Workbook

Sheet NOTES
A2: The model has actual and test data to illustrate the workings of the model.
A4: Issue | B4: Location | C4: Item | D4: Comment
A5: 1 | B5: Model update'!F37:F41 | C5: Real Vanilla WACC (rvw) | D5: Values updated for 2018 cost of debt
A7: =A5+1 -> 2 | B7: Model update'!F54:F58 | C7: DuoS Xt for2018 | D7: Values updated for 2018 cost of debt
A9: =A7+1 -> 3 | B9: Model update'!F66:F70 | C9: Metering Xt for2018 | D9: Values updated for 2018 cost of debt
A11: =A9+1 -> 4 | B11: Model update'!F94:F98 | C11: Ifactor (t) 2018 | D11: Values updated
A13: =A11+1 -> 5 | B13: Model update'!F105:F109 | C13: S factor (t) 2018 | D13: Values updated for 2018 cost of debt
A15: =A13+1 -> 6 | B15: Model update'!F127:F131 | C15: Licence Fee (t-1) 2017 | D15: Values may require updating
A17: =A15+1 -> 7 | B17: The following is test data to illustrate the workings of the model. | D17: Input data required from DNSPs
B18: Metering!D8:D10 | C18: Proposed Metering Tariffs P(t) for 2018
B19: Metering!F8:F10 | C19: Forecast Quantities (Qt) for 2018
B20: Metering!D80:D82 | C20: Estimated Quantities (Qt-1) for 2017
B22: Prop2018DistTar!D7:W52 | C22: Proposed Distribution Tariffs (Pt) for 2018
B23: Prop2018DistTar!AV27:BO52 | C23: Forecast Quantities (Qt) for 2018
B24: Est2017DistRev!Z7:AS52 | C24: Estimated Distribution Quantities for 2017 (Qt-1)
B26: Prop2018TransTar!D7:W52 | C26: Proposed Transmission Tariffs (Pt) for 2018
B27: 2018TransRevCont'!C20:C23 | C27: Table 3 - Transmission charges for year t
B28: 2018TransRevCont'!D42:D45 | C28: Transmission charges for year t-1
B30: Prop2018JSTar!D7:W52 | C30: Proposed Jurisdictional scheme Tariffs (Pt) for 2018
B31: 2018JSRevCont'!C20:C21 | C31: Table 3 - PFIT & TFIT charges for year t
B32: 2018JSRevCont'!D40:D41 | C32: PFIT & TFIT charges for year t-1

Sheet Formulae
B2: DUoS
B3: Figure 14.1 Revenue cap formulae
B4: (1) | H4: i=1,..,n and j=1,..,m and t=1,..,5
B5: (2) | H5: t = 1,2,…,5
B6: (3) | H6: t = 1
B7: (4) | H7: t = 2,…,5
B9: where;
C10: is the total annual revenue in year t.
D11: is the price of component 'j' of tariff 'i' in year t.
D12: is the forecast quantity of component 'j' of tariff 'i' in year t.
C13: is the adjusted annual smoothed revenue requirement for year t.
D14: is the annual adjustment f–factor scheme amount in year t. This amount will be calculated as per the method set out in the relevant f–factor scheme.
D15: is the sum of:
B16: · the final carryover amount from the application of the DMIS from the 2011–15 regulatory control period. This amount will be calculated using the method set out in the DMIS and will be deducted from/added to allowed revenue in the 2017 pricing proposal.
D17: is the sum of:
B18: · the recovery of license fee charges by the Victorian Essential Services Commission indexed by one and a half years of interest, calculated using the following method:
B20: where:
C21: are the licence fees paid by DNSP to the Victorian Essential Services Commission in the financial year ending in June of regulatory year t–1,
C22: is the approved nominal weighted average cost of capital (WACC) for the relevant regulatory year using the following method:
B25: · any under or over recovery of actual revenue collected through DUoS charges in regulatory year t–2 as calculated using the method in appendix A,
B26: · the AER approved pass through amounts (positive or negative) with respect to regulatory year t.
C27: is the annual smoothed revenue requirement as stated in the Post Tax Revenue Model (PTRM) for year t (when year t is the first year of the 2016–20 regulatory control period).[43]
C28: is the s‑factor determined in accordance with the service target performance incentive scheme (STPIS) for regulatory year t.[44]
C29: is the annual percentage change in the ABS CPI All Groups, Weighted Average of Eight Capital Cities[45] from the June quarter in year t–2 to the June quarter in year t–1, calculated using the following method :
B30: The ABS CPI All Groups, Weighted Average of Eight Capital Cities for the June quarter in regulatory year t–1
B31: divided by
B32: The ABS CPI All Groups, Weighted Average of Eight Capital Cities for the June quarter in regulatory year t–2
B33: minus one.
B34: For example, for the 2017 regulatory year, t–2 is June quarter 2015 and t–1 is June quarter 2016 and for the 2018 regulatory year, t–2 is June quarter 2016 and t–1 is June quarter 2017 and so on.
C35: is the X factor for each year of the 2016–20 regulatory control period as determined in the PTRM, and annually revised for the return on debt update in accordance with the formula specified in attachment 3—rate of return—calculated for the relevant year.
B38: [43] | C38: Our final F&A stated that if necessary an adjustment for inflation may be required to the annual smoothed revenue requirement for year t. However, as the annual smoothed revenue requirement for year t as stated in our preliminary decision PTRM is in nominal dollars there is no need to adjust it for inflation. This approach is consistent with past regulatory practice.
B39: [44] | C39: For the first two regulatory years of the 2016–20 regulatory control period, the value of St is to be adjusted to account for the change in revenue requirements between the regulatory control periods, as explained in attachment 11. In the formulas in the STPIS, the AR(t+1) is equivalent to ARt in this formula. Calculations of the S factor adjustment are to be made accordingly.
B40: [45] | C40: If the ABS does not or ceases to publish the index, then CPI will mean an index which the AER considers is the best available alternative index
B44: Figure 14.2 Side constraints [46]
C50: where each tariff class has "n" tariffs, with each up to "m" components, and where:
D51: is the proposed price for component ‘j’ of tariff 'i' for year t.
C52: is the price charged for component ‘j’ of tariff 'i' in year t–1.
D53: is the forecast quantity of component ‘j’ of tariff 'i' in year t.
C54: is the annual percentage change in the ABS CPI All Groups, Weighted Average of Eight Capital Cities[4] from the June quarter in year t–2 to the June quarter in year t–1, calculated using the following method :
C55: The ABS CPI All Groups, Weighted Average of Eight Capital Cities[47] for the June quarter in regulatory year t–1
C56: divided by
C57: The ABS CPI All Groups, Weighted Average of Eight Capital Cities for the June quarter in regulatory year t–2
C58: minus one.
B59: For example, for the 2017 regulatory year, t–2 is June quarter 2015 and t–1 is June quarter 2016 and for the 2018 regulatory year, t–2 is June quarter 2016 and t–1 is June quarter 2017 and so on.
D60: is the X factor for each year of the 2016–20 regulatory control period as determined in the PTRM, and annually revised for the return on debt update in accordance with the formula specified in attachment 3—rate of return—calculated for the relevant year. If X>0, then X will be set equal to zero for the purposes of the side constraint formula.
C61: is the s‑factor determined in accordance with the STPIS for regulatory year t.[5]
D62: is the annual percentage change from the f–factor scheme amount in year t. This amount will be calculated as per the method set out in attachment 19—f–factor scheme.
D63: is the annual percentage change from the final carryover amount from the application of the DMIS from the 2011–15 regulatory control period. This amount will be calculated using the method set out in the DMIS and will be deducted from/added to allowed revenue in the 2017 pricing proposal.
D64: is annual percentage change from the sum of:
B65: · the recovery of license fee charges by the Victorian Essential Services Commission indexed by one and a half years of interest, calculated using the following method:
B67: where:
B68: are the licence fees paid byDNSP to the Victorian Essential Services Commission in the financial year ending in June of regulatory year t–1,
C69: is the approved nominal weighted average cost of capital (WACC) for the relevant regulatory year using the following method:
B72: where the
B73: is as set out in our final decision PTRM and updated annually
B74: · the AER approved pass through amounts (positive or negative) with respect to regulatory year t.
B75: With the exception of the CPI, X factor and S factor, the percentage for each of the other factors above can be calculated by dividing the incremental revenues (as used in the total annual revenue formula) for each factor by the expected revenues for regulatory year t–1 (based on the prices in year t–1 multiplied by the forecast quantities for year t).
B77: [46] | C77: All parameters are in nominal terms unless otherwise specified.
B78: [47] | C78: If the ABS does not or ceases to publish the index, then CPI will mean an index which the AER considers is the best available alternative index.
H83: Table 14.1 | I83: Example calculation of DUoS unders and overs account ($'000, nominal)
I84: Year t–2 | J84: Year t–1 | K84: Year t
I85: (actual) | J85: (estimate) | K85: (forecast)
H86: (A) Revenue from DUoS charges | I86: 46 779 | J86: 40 269 | K86: 39 510
H87: (B) Less TAR for regulatory year = | I87: 43 039 | J87: 41 427 | K87: 44 429
H88: + Adjusted annual smoothed revenues (AARt) | I88: 40 189 | J88: 41 393 | K88: 44 393
H89: + f–factor scheme amount (It) | I89: –12 | J89: 10 | K89: 14
H90: + DMIS carryover amount (Tt) | I90: 1013 | J90: 0 | K90: 0
H91: + Annual adjustments (Bt)a = | I91: 1849 | J91: 24 | K91: 22
H92: + License fee recovery | I92: 25 | J92: 24 | K92: 22
H93: + Approved pass through amounts | I93: 1824 | J93: 0 | K93: 0
H95: (A minus B) Under/over recovery of revenue for regulatory year | I95: 3740 | J95: –1158 | K95: –4919b
H97: DUoS unders and overs account
H98: Nominal WACC (per cent) | I98: 0.05 | J98: 0.055 | K98: 0.06
H99: Opening balance | I99: 1737 | J99: 5656c | K99: 4778
H100: Interest on opening balance | I100: 87 | J100: 311 | K100: 287
H101: Under/over recovery of revenue for regulatory year | I101: 3740 | J101: –1158 | K101: –4919b
H102: Interest on under/over recovery for regulatory year | I102: 92 | J102: –31 | K102: –145
H103: Closing balance | I103: 5656 | J103: 4778 | K103: 0d
G104: Notes: | H104: (a) Bt parameter calculations in the DUoS unders and overs account exclude approved DUoS revenue under/over recovery for regulatory year.
H105: (b) Approved DUoS revenue under/over recovery for regulatory year t.
H106: (c) Opening balance is the previous year's closing balance.
H107: (d) The DNSP is expected to achieve a closing balance as close to zero as practicable in its DUoS unders and overs account in each forecast year in its annual pricing proposals in the 2016–20 regulatory control period.
H113: Table 14.2 | I113: Example calculation of designated pricing proposal charges unders and overs account ($'000, nominal)
I114: Year t–2 | J114: Year t–1 | K114: Year t
I115: (actual) | J115: (estimate) | K115: (forecast)
H116: (A) Revenue from designated pricing proposal charges (DPPC) | I116: 40 077 | J116: 34 944 | K116: 36 609
H117: (B) Less DPPC related payments for regulatory year = | I117: 34 365 | J117: 38 734 | K117: 39 200
H118: + DPPC charges to be paid to TNSP | I118: 33 672 | J118: 37 933 | K118: 38 000
H119: + Avoided TUoS/DPPC payments | I119: 572 | J119: 734 | K119: 800
H120: + Inter–distributor payments | I120: 121 | J120: 67 | K120: 400
H122: (A minus B) Under/over recovery of revenue for regulatory year | I122: 5712 | J122: –3790 | K122: –2540a
H124: DPPC unders and overs account
H125: Nominal WACC (per cent) | I125: 0.05 | J125: 0.055 | K125: 0.06
H126: Opening balance | I126: 167 | J126: 6028b | K126: 2467
H127: Interest on opening balance | I127: 8 | J127: 332 | K127: 148
H128: Under/over recovery of revenue for regulatory year | I128: 5712 | J128: –3790 | K128: –2540a
H129: Interest on under/over recovery for regulatory year | I129: 141 | J129: –103 | K129: –75
H130: Closing balance | I130: 6028 | J130: 2467 | K130: 0c
G131: Notes: | H131: (a) Approved DPPC revenue under/over recovery for regulatory year t.
H132: (b) Opening balance is the previous year's closing balance.
H133: (c)The DNSP is expected to achieve a closing balance as close to zero as practicable in its DPPC unders and overs account in each forecast year in its annual pricing proposals in the 2016–20 regulatory control period.
H139: Table 14.3 Example calculation of jurisdictional scheme amounts unders and overs account ($'000, nominal)
I140: Year t–2 | J140: Year t–1 | K140: Year t
I141: (actual) | J141: (estimate) | K141: (forecast)
H142: (A) Revenue from jurisdictional schemes | I142: 19 777 | J142: 23 121 | K142: 26 965
H143: (B) Less jurisdictional scheme payments for regulatory year = | I143: 20 272 | J143: 20 959 | K143: 28 641
H144: + Jurisdictional scheme 1 payments | I144: 14 159 | J144: 13 954 | K144: 13 961
H145: + Jurisdictional scheme 2 payments | I145: 6113 | J145: 7005 | K145: 14 680
H147: (A minus B) Under/over recovery of revenue for regulatory year | I147: –495 | J147: 2162 | K147: –1676a
H149: Jurisdictional scheme amount unders and overs account
H150: Nominal WACC (per cent) | I150: 0.05 | J150: 0.055 | K150: 0.06
H151: Opening balance | I151: –52 | J151: –562b | K151: 1628
H152: Interest on opening balance | I152: –3 | J152: –31 | K152: 98
H153: Under/over recovery of revenue for regulatory year | I153: –495 | J153: 2162 | K153: –1676a
H154: Interest on under/over recovery for regulatory year | I154: –12 | J154: 59 | K154: –50
H155: Closing balance | I155: –562 | J155: 1628 | K155: 0c
G156: Notes: | H156: (a) Approved jurisdictional scheme amounts revenue under/over recovery for regulatory year t.
H157: (b) Opening balance is the previous year's closing balance.
H158: (c) The DNSP is expected to achieve a closing balance as close to zero as practicable in its jurisdictional scheme amount unders and overs account in each forecast year in its annual pricing proposals in the 2016–20 regulatory control period.
B166: Metering
B167: Figure 16.3 | C167: Annual metering charges revenue cap formula
A168: (1) | H168: i=1,..,n and j=1,..,m and t=1,..,5
A170: (2) | H170: t = 1,2,…,5
A172: (3) | H172: t = 1,2,…,5
B175: where;
C176: is the total annual revenue for annual metering charges in year t.
E177: is the price of component 'j' of metering service 'i' in year t.
E178: is the forecast quantity of component 'j' of metering service 'i' in year t.
D179: is the annual revenue requirement for year t. When year t is the first year of the 2016–20 regulatory control period,
D180: is the annual revenue requirement in the annual metering charges Post Tax Revenue Model (PTRM) for year t.
E181: is equal to zero for all years except 2017 and is a once off adjustment to 2017 charges for the unders and overs recoveries relating to Advanced Metering Infrastructure actual revenues and actual costs incurred in 2014 and 2015.
E182: is the sum of annual adjustment factors in year t as calculated in the unders and overs account in appendix C.
D184: is the annual revenue requirement for year t–1.
C185: is the annual percentage change in the ABS CPI All Groups, Weighted Average of Eight Capital Cities[39] from the June quarter in year t–2 to the June quarter in year t–1, calculated using the following method:
B186: The ABS CPI All Groups, Weighted Average of Eight Capital Cities for the June quarter in regulatory year t–1
B187: divided by
B188: The ABS CPI All Groups, Weighted Average of Eight Capital Cities for the June quarter in regulatory year t–2
B189: minus one.
B190: For example, for the 2017 regulatory year, t–2 is June quarter 2015 and t–1 is June quarter 2016 and for the 2018 regulatory year, t–2 is June quarter 2016 and t–1 is June quarter 2017 and so on.
D191: is the X factor for each year of the 2016–20 regulatory control period as determined in the annual metering charges PTRM.
B194: [39] | C194: If the ABS does not or ceases to publish the index, then CPI will mean an index which the AER considers is the best available alternative index
B199: Figure 16.4 Side constraints
B201: where:
E202: is the price of annual metering charges service 'i' in year t.
D203: is the price of annual metering charges service 'i' in year t–1.
C204: is the annual percentage change in the ABS CPI All Groups, Weighted Average of Eight Capital Cities from the June quarter in year t–2 to the June quarter in year t–1, calculated using the following method:
B205: The ABS CPI All Groups, Weighted Average of Eight Capital Cities[40] for the June quarter in regulatory year t–1
B206: divided by
B207: The ABS CPI All Groups, Weighted Average of Eight Capital Cities for the June quarter in regulatory year t–2
B208: minus one.
B209: For example, for the 2017 regulatory year, t–2 is June quarter 2015 and t–1 is June quarter 2016 and for the 2018 regulatory year, t–2 is June quarter 2016 and t–1 is June quarter 2017 and so on.
D210: is the X factor for each year of the 2016–20 regulatory control period as determined in the annual metering charges PTRM.
E211: is the annual percentage change for the unders and overs recoveries relating to Advanced Metering Infrastructure actual revenues and actual costs incurred in 2014 and 2015. It is equal to zero for all years except 2017 and is a once off adjustment to 2017 charges.
E212: is the annual percentage change from the sum of annual adjustment factors in year t as calculated in the unders and overs account in appendix C.
B213: With the exception of the CPI and the X factor, the percentage for each of the other factors above can be calculated by dividing the incremental revenues (as used in the total annual revenue formula) for each factor by the expected revenues for regulatory year t–1 (based on the prices in year t–1 multiplied by the forecast quantities for year t).
B215: [40] | C215: If the ABS does not or ceases to publish the index, then CPI will mean an index which the AER considers is the best available alternative index.
H220: Table 16.xx | I220: Example calculation of annual metering charges unders and overs account ($'000, nominal)
I221: Year t–2 | J221: Year t–1 | K221: Year t
I222: (actual) | J222: (estimate) | K222: (forecast)
H223: (A) Revenue from annual metering charges | I223: 8 449 | J223: 7 389 | K223: 6 460
H224: (B) Less TARM for regulatory year = | I224: 7 366 | J224: 7 422 | K224: 7 573
H225: + Annual revenue requirement (ARt) | I225: 7 349 | J225: 7 412 | K225: 7 559
H226: + T factor (Tt) – true‑ups relating to the AMI–Order in Council | I226: 17 | J226: 10 | K226: 14
H228: (A minus B) Under/over recovery of revenue for regulatory year | I228: 1 083 | J228: –33 | K228: –1 113a
H230: Annual metering charges unders and overs account
H231: Nominal WACC (per cent) | I231: 0.05 | J231: 0.055 | K231: 0.06
H232: Opening balance | I232: –50 | J232: 1 057b | K232: 1 081
H233: Interest on opening balance | I233: –3 | J233: 58 | K233: 65
H234: Under/over recovery of revenue for regulatory year | I234: 1 083 | J234: –33 | K234: –1 113b
H235: Interest on under/over recovery for regulatory year | I235: 27 | J235: –1 | K235: –33
H236: Closing balance | I236: 1 057 | J236: 1 081 | K236: 0c
G237: Notes: | H237: (a) Approved annual metering charges revenue under/over recovery for regulatory year t. This is the Bt parameter in the annual metering charges revenue cap formula.
H238: (b) Opening balance is the previous year's closing balance.
H239: (c) The DNSP is expected to achieve a closing balance as close to zero as practicable in its annual metering charges unders and overs account in each forecast year in its annual pricing proposals in the 2016–20 regulatory control period.

Sheet Model update
A3: Tariff Approval Template for | C3: =A55 -> CitiPower
A5: calendar year commencing | C5: 2018
A7: t | B7: = | C7: =C5 -> 2018
A8: t-1 | B8: = | C8: =C7-1 -> 2017
A9: t-2 | B9: = | C9: 2016
A10: t-3 | B10: = | C10: 2015
A11: t-4 | B11: = | C11: 2014
A13: Please fill in yellow highlighted cells where appropriate
A15: CPI | B15: The ABS changed the index reference base in September 2012 from 1989-90 to 2011-12.
A16: CPI Index Sept 2011 | C16: 99.8
A17: CPI Index Sept 2012 | C17: 101.8 | E17: CPI 2013 | F17: =C17/C16-1 -> 0.02004008016
A18: CPI Index Sept 2013 | C18: 104 | E18: CPI 2014 | F18: =C18/C17-1 -> 0.02161100196
A19: CPI Index Sept 2014 | C19: 106.4 | E19: CPI 2015 | F19: =C19/C18-1 -> 0.02307692308
A20: CPI Index Sept 2015 | C20: 108 | E20: CPI 2016 | F20: =C20/C19-1 -> 0.01503759398
A21: CPI Index June 2015 | C21: 107.5
A22: CPI Index June 2016 | C22: 108.6 | E22: CPI 2017 | F22: =IF(OR(C21="",C22=""),0,C22/C21-1) -> 0.01023255814
A23: CPI Index June 2017 | C23: 110.7 | E23: CPI 2018 | F23: =IF(OR(C22="",C23=""),0,C23/C22-1) -> 0.01933701657
A24: CPI Index June 2018 | E24: CPI 2019 | F24: 0
A25: CPI Index June 2019 | E25: CPI 2020 | F25: 0
A28: ="CPI " &$C$9 -> CPI 2016 | C28: =VLOOKUP(A28,E$17:F$25,2,FALSE) -> 0.01503759398 | D28: (t-2)
A29: ="CPI " &$C$8 -> CPI 2017 | C29: =VLOOKUP(A29,E$17:F$25,2,FALSE) -> 0.01023255814 | D29: (t-1)
A30: ="CPI " &$C$5 -> CPI 2018 | C30: 0.01933701657 | D30: (t)
A35: Real Vanilla WACC (rvw)
A36: ="rvw for "&C$5 -> rvw for 2018 | D36: rvw for 2016 | E36: rvw for 2017 | F36: rvw for 2018 | G36: rvw for 2019 | H36: rvw for 2020
A37: =$A$54 -> Jemena | B37: =HLOOKUP($A$36,$D$36:$H$41,2,FALSE) -> 0.0384827082 | D37: 0.03959695909 | E37: 0.03899874743 | F37: 0.0384827082 | G37: 0.0384827082 | H37: 0.0384827082
A38: =$A$55 -> CitiPower | B38: =HLOOKUP($A$36,$D$36:$H$41,3,FALSE) -> 0.03589785446 | D38: 0.03696767584 | E38: 0.03639507276 | F38: 0.03589785446 | G38: 0.03589785446 | H38: 0.03589785446
A39: =$A$56 -> Powercor | B39: =HLOOKUP($A$36,$D$36:$H$41,4,FALSE) -> 0.03589785446 | D39: 0.03696767584 | E39: 0.03639507276 | F39: 0.03589785446 | G39: 0.03589785446 | H39: 0.03589785446
A40: =$A$57 -> AusNet Services | B40: =HLOOKUP($A$36,$D$36:$H$41,5,FALSE) -> 0.03828127548 | D40: 0.03898496731 | E40: 0.03853039129 | F40: 0.03828127548 | G40: 0.03828127548 | H40: 0.03828127548
A41: =$A$58 -> United Energy | B41: =HLOOKUP($A$36,$D$36:$H$41,6,FALSE) -> 0.03839184135 | D41: 0.03959852119 | E41: 0.03896319849 | F41: 0.03839184135 | G41: 0.03839184135 | H41: 0.03839184135
A43: ="rvw (t) "&C$5 -> rvw (t) 2018 | B43: =VLOOKUP(C$3,A37:B41,2,FALSE) -> 0.03589785446 | C43: (t) | D43: =VLOOKUP($C$3,$A$37:$H$41,4,FALSE) -> 0.03696767584 | E43: =VLOOKUP($C$3,$A37:$H$41,5,FALSE) -> 0.03639507276 | F43: =VLOOKUP($C$3,$A$37:$H$41,6,FALSE) -> 0.03589785446 | G43: =VLOOKUP($C$3,$A$37:$H$41,7,FALSE) -> 0.03589785446 | H43: =VLOOKUP($C$3,$A$37:$H$41,8,FALSE) -> 0.03589785446
A45: ="rvw for "&C$5-1 -> rvw for 2017 | B45: =IF(C$5=2016,F$184,HLOOKUP($A45,D$36:H$43,8,FALSE)) -> 0.03639507276 | C45: (t-1)
A47: ="rvw for "&C$5-2 -> rvw for 2016 | B47: =IF(OR(C$5=2016,C$5=2017),F$183,HLOOKUP($A47,D$36:H$43,8,FALSE)) -> 0.03696767584 | C47: (t-2)
A52: DuoS
A53: ="Xt for "&C$5 -> Xt for 2018 | D53: AR for 2016 | E53: Xt for 2017 | F53: Xt for 2018 | G53: Xt for 2019 | H53: Xt for 2020
A54: Jemena | B54: =IF(C$5=2016,"n/a",HLOOKUP($A$53,$E$53:$H$58,2,FALSE)) -> 0.0027 | D54: 238498758 | E54: -0.0325 | F54: 0.0027 | G54: -0.0202 | H54: -0.02
A55: CitiPower | B55: =IF(C$5=2016,"n/a",HLOOKUP($A$53,$E$53:$H$58,3,FALSE)) -> -0.0005 | D55: 282881283 | E55: 0.004 | F55: -0.0005 | G55: -0.012 | H55: -0.024
A56: Powercor | B56: =IF(C$5=2016,"n/a",HLOOKUP($A$53,$E$53:$H$58,4,FALSE)) -> -0.0081 | D56: 621773294 | E56: 0.0468 | F56: -0.0081 | G56: -0.018 | H56: -0.026
A57: AusNet Services | B57: =IF(C$5=2016,"n/a",HLOOKUP($A$53,$E$53:$H$58,5,FALSE)) -> -0.0184 | D57: 586045137 | E57: 0.003 | F57: -0.0184 | G57: -0.025 | H57: -0.03
A58: United Energy | B58: =IF(C$5=2016,"n/a",HLOOKUP($A$53,$E$53:$H$58,6,FALSE)) -> -0.0316 | D58: 375069867 | E58: -0.0383 | F58: -0.0316 | G58: -0.035 | H58: 0
A60: ="Xt for"&C$5 -> Xt for2018 | B60: =VLOOKUP(C$3,A54:B58,2,FALSE) -> -0.0005 | D60: =VLOOKUP($C$3,$A$54:$H$58,4,FALSE) -> 282881283 | E60: =VLOOKUP($C$3,$A$54:$H$58,5,FALSE) -> 0.004 | F60: =VLOOKUP($C$3,$A$54:$H$58,6,FALSE) -> -0.0005 | G60: =VLOOKUP($C$3,$A$54:$H$58,7,FALSE) -> -0.012 | H60: =VLOOKUP($C$3,$A$54:$H$58,8,FALSE) -> -0.024
A64: Metering
A65: ="Xt for "&C$5 -> Xt for 2018 | D65: AR for 2016 | E65: Xt for 2017 | F65: Xt for 2018 | G65: Xt for 2019 | H65: Xt for 2020
A66: Jemena | B66: =IF(C$5=2016,"n/a",HLOOKUP($A$65,$E$65:$H$70,2,FALSE)) -> -0.0136 | D66: 44212949.02 | E66: 0.3473 | F66: -0.0136 | G66: -0.015 | H66: -0.015
A67: CitiPower | B67: =IF(C$5=2016,"n/a",HLOOKUP($A$65,$E$65:$H$70,3,FALSE)) -> 0.0767 | D67: 32973195.04 | E67: 0.1402 | F67: 0.0767 | G67: 0.075 | H67: 0.075
A68: Powercor | B68: =IF(C$5=2016,"n/a",HLOOKUP($A$65,$E$65:$H$70,4,FALSE)) -> 0.0819 | D68: 79145313.2 | E68: 0.1096 | F68: 0.0819 | G68: 0.08 | H68: 0.08
A69: AusNet Services | B69: =IF(C$5=2016,"n/a",HLOOKUP($A$65,$E$65:$H$70,5,FALSE)) -> 0.1658 | D69: 92754610.44 | E69: 0.0231 | F69: 0.1658 | G69: 0.165 | H69: 0.165
A70: United Energy | B70: =IF(C$5=2016,"n/a",HLOOKUP($A$65,$E$65:$H$70,6,FALSE)) -> 0.057 | D70: 62733316.95 | E70: 0.3081 | F70: 0.057 | G70: 0.055 | H70: 0.055
A72: ="Xt for"&C$5 -> Xt for2018 | B72: =VLOOKUP(C$3,A66:B70,2,FALSE) -> 0.0767 | D72: =VLOOKUP($C$3,$A$66:$H$70,4,FALSE) -> 32973195.04 | E72: =VLOOKUP($C$3,$A$66:$H$70,5,FALSE) -> 0.1402 | F72: =VLOOKUP($C$3,$A$66:$H$70,6,FALSE) -> 0.0767 | G72: =VLOOKUP($C$3,$A$66:$H$70,7,FALSE) -> 0.075 | H72: =VLOOKUP($C$3,$A$66:$H$70,8,FALSE) -> 0.075
A76: DuoS
A77: Real Pre-tax WACC (rptw)
A78: ="rptw for "&C$5 -> rptw for 2018 | D78: rptw for 2016 | E78: rptw for 2017 | F78: rptw for 2018 | G78: rptw for 2019 | H78: rptw for 2020
A79: =$A$54 -> Jemena | B79: =HLOOKUP($A$78,$D$78:$H$83,2,FALSE) -> 0.04611949618 | D79: 0.04723374708 | E79: 0.04663553542 | F79: 0.04611949618
A80: =$A$55 -> CitiPower | B80: =HLOOKUP($A$78,$D$78:$H$83,3,FALSE) -> 0.0433987454 | D80: 0.04446856678 | E80: 0.0438959637 | F80: 0.0433987454
A81: =$A$56 -> Powercor | B81: =HLOOKUP($A$78,$D$78:$H$83,4,FALSE) -> 0.0424010669 | D81: 0.04347088828 | E81: 0.0428982852 | F81: 0.0424010669
A82: =$A$57 -> AusNet Services | B82: =HLOOKUP($A$78,$D$78:$H$83,5,FALSE) -> 0.04463507863 | D82: 0.04533877046 | E82: 0.04488419444 | F82: 0.04463507863
A83: =$A$58 -> United Energy | B83: =HLOOKUP($A$78,$D$78:$H$83,6,FALSE) -> 0.04698513788 | D83: 0.04819181771 | E83: 0.04755649502 | F83: 0.04698513788
A85: ="rptw (t) "&C$5 -> rptw (t) 2018 | B85: =VLOOKUP(C$3,A79:B83,2,FALSE) -> 0.0433987454 | C85: (t) | D85: =VLOOKUP($C$3,$A$79:$H$83,4,FALSE) -> 0.04446856678 | E85: =VLOOKUP($C$3,$A79:$H$83,5,FALSE) -> 0.0438959637 | F85: =VLOOKUP($C$3,$A$79:$H$83,6,FALSE) -> 0.0433987454 | G85: =VLOOKUP($C$3,$A$79:$H$83,7,FALSE) -> 0 | H85: =VLOOKUP($C$3,$A$79:$H$83,8,FALSE) -> 0
A87: ="rptw for "&C$5-1 -> rptw for 2017 | B87: =IF(C$5=2016,B$183,HLOOKUP($A87,D$78:H$85,8,FALSE)) -> 0.0438959637 | C87: (t-1)
A89: ="rptw for "&C$5-2 -> rptw for 2016 | B89: =IF(OR(C$5=2016,C$5=2017),B$183,HLOOKUP($A89,D$78:H$85,8,FALSE)) -> 0.04446856678 | C89: (t-2)
A93: F factor Scheme | B93: =$C$5 -> 2018 | D93: 2016 | E93: =+D93+1 -> 2017 | F93: =+E93+1 -> 2018 | G93: 2019 | H93: 2020
A94: =$A$54 -> Jemena | B94: =HLOOKUP($B$93,$D$93:$H$98,2,FALSE) -> 655000 | D94: -680000 | E94: 70000 | F94: 655000
A95: =$A$55 -> CitiPower | B95: =HLOOKUP($B$93,$D$93:$H$98,3,FALSE) -> 140000 | D95: -15000 | E95: 410000 | F95: 140000
A96: =$A$56 -> Powercor | B96: =HLOOKUP($B$93,$D$93:$H$98,4,FALSE) -> 1755000 | D96: -1530000 | E96: 1420000 | F96: 1755000
A97: =$A$57 -> AusNet Services | B97: =HLOOKUP($B$93,$D$93:$H$98,5,FALSE) -> 750000 | D97: 1870000 | E97: 3420000 | F97: 750000
A98: =$A$58 -> United Energy | B98: =HLOOKUP($B$93,$D$93:$H$98,6,FALSE) -> 1000000 | D98: -2245000 | E98: 555000 | F98: 1000000
A100: ="Ifactor (t) "&C$5 -> Ifactor (t) 2018 | B100: =VLOOKUP(C$3,A94:B98,2,FALSE) -> 140000 | D100: =VLOOKUP($C$3,$A$94:$H$98,4,FALSE) -> -15000 | E100: =VLOOKUP($C$3,$A$94:$H$98,5,FALSE) -> 410000 | F100: =VLOOKUP($C$3,$A$94:$H$98,6,FALSE) -> 140000 | G100: =VLOOKUP($C$3,$A$94:$H$98,7,FALSE) -> 0 | H100: =VLOOKUP($C$3,$A$94:$H$98,8,FALSE) -> 0
A104: S factor Scheme | B104: =$C$5 -> 2018 | D104: 2016 | E104: =+D104+1 -> 2017 | F104: =+E104+1 -> 2018 | G104: 2019 | H104: 2020
A105: =$A$54 -> Jemena | B105: =HLOOKUP($B$104,$D$104:$H$109,2,FALSE) -> -0.03971153723 | D105: 0.03997406406 | E105: 0.01488310469 | F105: -0.03971153723
A106: =$A$55 -> CitiPower | B106: =HLOOKUP($B$104,$D$104:$H$109,3,FALSE) -> 0.01857052664 | D106: -0.01268789003 | E106: 0.004032145684 | F106: 0.01857052664
A107: =$A$56 -> Powercor | B107: =HLOOKUP($B$104,$D$104:$H$109,4,FALSE) -> -0.01384168227 | D107: -0.01184910821 | E107: 0.05100648542 | F107: -0.01384168227
A108: =$A$57 -> AusNet Services | B108: =HLOOKUP($B$104,$D$104:$H$109,5,FALSE) -> -0.06343364122 | D108: 0.03357397489 | E108: 0.03217876587 | F108: -0.06343364122
A109: =$A$58 -> United Energy | B109: =HLOOKUP($B$104,$D$104:$H$109,6,FALSE) -> 0.02276703882 | D109: -0.02947870448 | E109: 0.02836672327 | F109: 0.02276703882
A111: ="S factor (t) "&C$5 -> S factor (t) 2018 | B111: =VLOOKUP(C$3,A105:B109,2,FALSE) -> 0.01857052664 | D111: =VLOOKUP($C$3,$A$105:$H$109,4,FALSE) -> -0.01268789003 | E111: =VLOOKUP($C$3,$A$105:$H$109,5,FALSE) -> 0.004032145684 | F111: =VLOOKUP($C$3,$A$105:$H$109,6,FALSE) -> 0.01857052664 | G111: =VLOOKUP($C$3,$A$105:$H$109,7,FALSE) -> 0 | H111: =VLOOKUP($C$3,$A$105:$H$109,8,FALSE) -> 0
A115: Pass through Amounts | B115: =$C$5 -> 2018 | D115: 2016 | E115: =+D115+1 -> 2017 | F115: =+E115+1 -> 2018 | G115: 2019 | H115: 2020
A116: =$A$54 -> Jemena | B116: =HLOOKUP($B$115,$D$115:$H$120,2,FALSE) -> 0 | D116: 0 | E116: 0 | F116: 0
A117: =$A$55 -> CitiPower | B117: =HLOOKUP($B$115,$D$115:$H$120,3,FALSE) -> 0 | D117: 0 | E117: 0 | F117: 0
A118: =$A$56 -> Powercor | B118: =HLOOKUP($B$115,$D$115:$H$120,4,FALSE) -> 0 | D118: 0 | E118: 0 | F118: 0
A119: =$A$57 -> AusNet Services | B119: =HLOOKUP($B$115,$D$115:$H$120,5,FALSE) -> 0 | D119: =-(5723000*(1+0.0975)) -> -6280992.5 | E119: 0 | F119: 0
A120: =$A$58 -> United Energy | B120: =HLOOKUP($B$115,$D$115:$H$120,6,FALSE) -> 0 | D120: 0 | E120: 0 | F120: 0
A122: ="Pass through amounts (t) "&C$5 -> Pass through amounts (t) 2018 | B122: =VLOOKUP(C$3,A116:B120,2,FALSE) -> 0 | D122: =VLOOKUP($C$3,$A$116:$H$120,4,FALSE) -> 0 | E122: =VLOOKUP($C$3,$A$116:$H$120,5,FALSE) -> 0 | F122: =VLOOKUP($C$3,$A$116:$H$120,6,FALSE) -> 0 | G122: =VLOOKUP($C$3,$A$116:$H$120,7,FALSE) -> 0 | H122: =VLOOKUP($C$3,$A$116:$H$120,8,FALSE) -> 0
C125: Relevant financial year (t-1) | D125: =TEXT(D126-2,"####")&"-"&RIGHT(TEXT(D126-1,"##"),2) -> 2014-15 | E125: =TEXT(E126-2,"####")&"-"&RIGHT(TEXT(E126-1,"##"),2) -> 2015-16 | F125: 2016-17 | G125: 2017-18 | H125: 2018-19
A126: License Fees | B126: =$C$5 -> 2018 | D126: 2016 | E126: =+D126+1 -> 2017 | F126: =+E126+1 -> 2018 | G126: 2019 | H126: 2020
A127: =$A$54 -> Jemena | B127: =HLOOKUP($B$126,$D$126:$H$131,2,FALSE) -> 76545 | D127: 36033 | E127: 39516 | F127: 76545
A128: =$A$55 -> CitiPower | B128: =HLOOKUP($B$126,$D$126:$H$131,3,FALSE) -> 78091 | D128: 36475 | E128: 40445 | F128: 78091
A129: =$A$56 -> Powercor | B129: =HLOOKUP($B$126,$D$126:$H$131,4,FALSE) -> 185081 | D129: 85205 | E129: 94964 | F129: 185081
A130: =$A$57 -> AusNet Services | B130: =HLOOKUP($B$126,$D$126:$H$131,5,FALSE) -> 168235 | D130: 74811 | E130: 85031 | F130: 168235
A131: =$A$58 -> United Energy | B131: =HLOOKUP($B$126,$D$126:$H$131,6,FALSE) -> 158262 | D131: 74197 | E131: 81712 | F131: 158262
A133: ="Licence Fee (t-1) "&TEXT(C$5-2,"####")&"-"&RIGHT(TEXT(C$5-1,"##"),2) -> Licence Fee (t-1) 2016-17 | B133: =VLOOKUP(C$3,A127:B131,2,FALSE) -> 78091 | D133: =VLOOKUP($C$3,$A$127:$H$131,4,FALSE) -> 36475 | E133: =VLOOKUP($C$3,$A$127:$H$131,5,FALSE) -> 40445 | F133: =VLOOKUP($C$3,$A$127:$H$131,6,FALSE) -> 78091 | G133: =VLOOKUP($C$3,$A$127:$H$131,7,FALSE) -> 0 | H133: =VLOOKUP($C$3,$A$127:$H$131,8,FALSE) -> 0
A137: DMIA Carryover adjustment | B137: =$C$5 -> 2018 | D137: 2016 | E137: =+D137+1 -> 2017 | F137: =+E137+1 -> 2018 | G137: 2019 | H137: 2020
A138: =$A$54 -> Jemena | B138: =HLOOKUP($B$137,$D$137:$H$142,2,FALSE) -> 0 | E138: =H154 -> -91286.96254
A139: =$A$55 -> CitiPower | B139: =HLOOKUP($B$137,$D$137:$H$142,3,FALSE) -> 0
A140: =$A$56 -> Powercor | B140: =HLOOKUP($B$137,$D$137:$H$142,4,FALSE) -> 0
A141: =$A$57 -> AusNet Services | B141: =HLOOKUP($B$137,$D$137:$H$142,5,FALSE) -> 0
A142: =$A$58 -> United Energy | B142: =HLOOKUP($B$137,$D$137:$H$142,6,FALSE) -> 0 | E142: =H163 -> -479908.4001
A144: ="T factor (t) "&C$5 -> T factor (t) 2018 | B144: =VLOOKUP(C$3,A138:B142,2,FALSE) -> 0 | D144: =VLOOKUP($C$3,$A$138:$H$142,4,FALSE) -> 0 | E144: =VLOOKUP($C$3,$A$138:$H$142,5,FALSE) -> 0 | F144: =VLOOKUP($C$3,$A$138:$H$142,6,FALSE) -> 0 | G144: =VLOOKUP($C$3,$A$138:$H$142,7,FALSE) -> 0 | H144: =VLOOKUP($C$3,$A$138:$H$142,8,FALSE) -> 0
A147: DMIA Carryover adjustment
A148: Jemena | C148: 2011-15 | D148: 2016 | E148: 2017
A149: CPI - PTRM | D149: 0.02323079821 | E149: 0.02323079821
A150: Nominal Vanilla WACC - PTRM | C150: 0.1033058648 | D150: =(1+D149)*(1+D37)-1 -> 0.06374762627 | E150: =(1+E149)*(1+E37)-1 -> 0.06313551768
C152: 2011 | D152: 2012 | E152: 2013 | F152: 2014 | G152: 2015 | H152: Total
A153: Ex-ante revenue minus ex post expenditure ($nominal) | C153: -263938 | D153: -16375.4 | E153: 163676.6714 | F153: 153066.6261 | G153: 125690.5855 | H153: =SUM(C153:G153) -> 162120.4829
A154: DMIA Carryover adjustment | C154: =0-(C153/(1+$C150))*(1+$C150)^5*(1+$D150)*(1+$E150) -> 442295.8453 | D154: =C154-(D153/(1+$C150))*(1+$C150)^4*(1+$D150)*(1+$E150) -> 467167.6289 | E154: =D154-(E153/(1+$C150))*(1+$C150)^3*(1+$D150)*(1+$E150) -> 241844.4502 | F154: =E154-(F153/(1+$C150))*(1+$C150)^2*(1+$D150)*(1+$E150) -> 50857.51142 | G154: =F154-(G153/(1+$C150))*(1+$C150)^1*(1+$D150)*(1+$E150) -> -91286.96254 | H154: =G154 -> -91286.96254
A157: UED | C157: 2011-15 | D157: 2016 | E157: 2017
A158: CPI - PTRM | D158: 0.02323079821 | E158: 0.02323079821
A159: Nominal Vanilla WACC - PTRM | C159: 0.09489772882 | D159: =(1+D158)*(1+D41)-1 -> 0.06374922465 | E159: =(1+E158)*(1+E41)-1 -> 0.0630991429
C161: 2011 | D161: 2012 | E161: 2013 | F161: 2014 | G161: 2015 | H161: Total
A162: Ex-ante revenue minus ex post expenditure ($nominal) | C162: 406960 | D162: 327739.2 | E162: 91075.34272 | F162: -227853.7479 | G162: -450364.8291 | H162: =SUM(C162:G162) -> 147555.9658
A163: DMIA Carryover adjustment | C163: =0-(C162/(1+$C159))*(1+$C159)^5*(1+$D159)*(1+$E159) -> -661392.0476 | D163: =C163-(D162/(1+$C159))*(1+$C159)^4*(1+$D159)*(1+$E159) -> -1147868.786 | E163: =D163-(E162/(1+$C159))*(1+$C159)^3*(1+$D159)*(1+$E159) -> -1271338.644 | F163: =E163-(F162/(1+$C159))*(1+$C159)^2*(1+$D159)*(1+$E159) -> -989212.8748 | G163: =F163-(G162/(1+$C159))*(1+$C159)^1*(1+$D159)*(1+$E159) -> -479908.4001 | H163: =G163 -> -479908.4001
A172: Regulatory Period 2011-15
A174: DuoS
A175: Real Pre-tax WACC for distribution tariffs | D175: Real Vanilla WACC for distribution tariffs
A177: =$A$54 -> Jemena | B177: 0.087 | D177: =$A$54 -> Jemena | F177: 0.0756
A178: =$A$55 -> CitiPower | B178: 0.0786 | D178: =$A$55 -> CitiPower | F178: 0.0674
A179: =$A$56 -> Powercor | B179: 0.0776 | D179: =$A$56 -> Powercor | F179: 0.0674
A180: =$A$57 -> AusNet Services | B180: 0.078 | D180: =$A$57 -> AusNet Services | F180: 0.0699
A181: =$A$58 -> United Energy | B181: 0.0791 | D181: =$A$58 -> United Energy | F181: 0.0674
A183: pretax WACCD | B183: =VLOOKUP($C$3,A177:B181,2,FALSE) -> 0.0786 | D183: Real Vanilla WACCD | F183: =VLOOKUP($C$3,D177:F181,3,FALSE) -> 0.0674
A188: Pass Through Costs | E188: 2014 | F188: 2015
A190: =A204 -> F Factor pass through | E190: =B204 -> 10000 | F190: =C204 -> -65000
A191: VBRC | E191: =B215 -> 0 | F191: =C215 -> 0
A192: Powerline Replacement program | E192: =B226 -> 0 | F192: =C226 -> 0
A193: TOTAL PASS THROUGH AMOUNTS | E193: =SUM(E190:E192) -> 10000 | F193: =SUM(F190:F192) -> -65000
A197: F factor Scheme | B197: 2014 | C197: 2015
A198: =$A$54 -> Jemena | B198: 370000 | C198: -855000
A199: =$A$55 -> CitiPower | B199: 10000 | C199: -65000
A200: =$A$56 -> Powercor | B200: 2470000 | C200: -2405000
A201: =$A$57 -> AusNet Services | B201: 1970000 | C201: 2020000
A202: =$A$58 -> United Energy | B202: 980000 | C202: -70000
A204: F Factor pass through | B204: =VLOOKUP($C$3,$A$198:$C$202,2,FALSE) -> 10000 | C204: =VLOOKUP($C$3,$A$198:$C$202,3,FALSE) -> -65000
A208: VBRC | B208: 2014 | C208: 2015
A209: =$A$54 -> Jemena | B209: 0 | C209: 0
A210: =$A$55 -> CitiPower | B210: 0 | C210: 0
A211: =$A$56 -> Powercor | B211: =H245 -> 7193170.454 | C211: =I245 -> 8768550.378
A212: =$A$57 -> AusNet Services | B212: =H262 -> 6039778.158 | C212: =I262 -> 8341755.212
A213: =$A$58 -> United Energy | B213: 0 | C213: 0
A215: VBRC pass through | B215: =VLOOKUP($C$3,$A$209:$C$213,2,FALSE) -> 0 | C215: =VLOOKUP($C$3,$A$209:$C$213,3,FALSE) -> 0
A219: Powerline Replacement program | B219: 2014 | C219: 2015
A220: =$A$54 -> Jemena | B220: 0 | C220: 0
A221: =$A$55 -> CitiPower | B221: 0 | C221: 0
A222: =$A$56 -> Powercor | B222: =H249 -> 0 | C222: 8777690.455
A223: =$A$57 -> AusNet Services | B223: 0 | C223: 5723419.31
A224: =$A$58 -> United Energy | B224: 0 | C224: 0
A226: Powerline Replacement program | B226: =VLOOKUP($C$3,$A$219:$C$224,2,FALSE) -> 0 | C226: =VLOOKUP($C$3,$A$219:$C$224,3,FALSE) -> 0
A231: VBRC
A233: Powercor | E233: 2011 | F233: 2012 | G233: 2013 | H233: 2014 | I233: 2015
A234: Pass through amounts approved (Nominal $) - Forecast CPI | G234: 10270612 | H234: 7181525 | I234: 8777217
A235: (As per AER's Final Decision on Powercor's VBRC pass through, table 7.2, 7 March 2012)
A236: Forecast CPI in PTRM | E236: 0.0257487534 | F236: 0.0257487534 | G236: 0.0257487534 | H236: 0.0257487534 | I236: 0.0257487534
E237: =1+E236 -> 1.025748753 | F237: =E237*(1+F236) -> 1.052160505 | G237: =F237*(1+G236) -> 1.079252326 | H237: =G237*(1+H236) -> 1.107041729 | I237: =H237*(1+I236) -> 1.135546673
A239: Pass through amounts approved (Real $2010) | G239: =G234/G237 -> 9516414.047 | H239: =H234/H237 -> 6487131.257 | I239: =I234/I237 -> 7729507.918
A242: Actual CPI | E242: =173.3/168.6-1 -> 0.02787663108 | F242: =179.4/173.3-1 -> 0.03519907675 | G242: =C17/C16-1 -> 0.02004008016 | H242: =C18/C17-1 -> 0.02161100196 | I242: =C19/C18-1 -> 0.02307692308
E243: =1+E242 -> 1.027876631 | F243: =E243*(1+F242) -> 1.06405694 | G243: =F243*(1+G242) -> 1.085380726 | H243: =G243*(1+H242) -> 1.108836891 | I243: 1.134425434
A245: Pass through amounts approved (Nominal $) - Actual CPI | G245: =G239*G243 -> 10328932.39 | H245: =H239*H243 -> 7193170.454 | I245: =I239*I243 -> 8768550.378
A250: AusNet Services | E250: 2011 | F250: 2012 | G250: 2013 | H250: 2014 | I250: 2015
A251: Pass through amounts approved (Nominal $) - Forecast CPI | G251: 5790000 | H251: 6030000 | I251: 8350000
A252: As per AER's Final Decision on AusNet Services's VBRC pass through, table 1.3, 19 October 2012
A253: Forecast CPI in PTRM | E253: 0.0257487534 | F253: 0.0257487534 | G253: 0.0257487534 | H253: 0.0257487534 | I253: 0.0257487534
E254: =1+E253 -> 1.025748753 | F254: =E254*(1+F253) -> 1.052160505 | G254: =F254*(1+G253) -> 1.079252326 | H254: =G254*(1+H253) -> 1.107041729 | I254: =H254*(1+I253) -> 1.135546673
A256: Pass through amounts approved (Real $2010) | G256: =G251/G254 -> 5364825.127 | H256: =H251/H254 -> 5446949.148 | I256: =I251/I254 -> 7353286.482
A259: Actual CPI | E259: =173.3/168.6-1 -> 0.02787663108 | F259: =179.4/173.3-1 -> 0.03519907675 | G259: =C17/C16-1 -> 0.02004008016 | H259: =C18/C17-1 -> 0.02161100196 | I259: =C19/C18-1 -> 0.02307692308
E260: =1+E259 -> 1.027876631 | F260: =E260*(1+F259) -> 1.06405694 | G260: =F260*(1+G259) -> 1.085380726 | H260: =G260*(1+H259) -> 1.108836891 | I260: 1.134425434
A262: Pass through amounts approved (Nominal $) - Actual CPI | G262: =G256*G260 -> 5822877.791 | H262: =H256*H260 -> 6039778.158 | I262: =I256*I260 -> 8341755.212
A270: AMI Transitional Adjustment in 2018 prices ($)
A271: =C3 -> CitiPower
C272: 2009 | D272: 2010 | E272: 2011 | F272: 2012 | G272: 2013 | H272: 2014 | I272: 2015 | J272: 2016 | K272: 2017 | L272: 2018 | M272: 2019 | N272: 2020
A273: CPI | C273: 0.04981084489 | D273: 0.01261261261 | E273: 0.02787663108 | F273: 0.03519907675 | G273: =$F17 -> 0.02004008016 | H273: =$F18 -> 0.02161100196 | I273: =$F19 -> 0.02307692308 | J273: =$F20 -> 0.01503759398 | K273: =$F22 -> 0.01023255814 | L273: =$F23 -> 0.01933701657 | M273: =$F24 -> 0 | N273: =$F25 -> 0
A275: Vanilla' WACC (Real) | C275: 0.06771645866 | D275: =$C275 -> 0.06771645866 | E275: =$C275 -> 0.06771645866 | F275: 0.06771645866 | G275: 0.06771645866 | H275: 0.05023909437 | I275: =H275 -> 0.05023909437 | J275: =D43 -> 0.03696767584 | K275: =E43 -> 0.03639507276 | L275: =F43 -> 0.03589785446 | M275: =G43 -> 0.03589785446 | N275: =H43 -> 0.03589785446
A276: Vanilla' WACC (nominal) | C276: =(1+C275)*(1+C273)-1 -> 0.1209003176 | D276: 0.08118315273 | E276: 0.09748079647 | F276: 0.1052990922 | G276: 0.08911358208 | H276: 0.0729358135 | I276: 0.07447538116 | J276: 0.05256117473 | K276: 0.0470000456 | L276: 0.05592902844 | M276: 0.03589785446 | N276: 0.03589785446
A278: Future value index | C278: =(1+C276)^0.5 -> 1.058725799 | D278: =C278*(D276+1) -> 1.144676497 | E278: 1.256260474 | F278: 1.388543561 | G278: 1.512281652 | H278: 1.622581145 | I278: 1.743423494 | J278: 1.835059881 | K278: 1.921307779 | L278: 2.028764656 | M278: 2.101592955 | N278: 2.177035633
A280: AMI Transitional Adjustment - Revenue and Costs 2009-2015
A281: Over \ (under) recovery of revenue and costs (000's)
A282: NPV at 1 January 2009 | D282: 296.8349907
A284: AMI Transitional Adjustment in 2018 prices ($) | D284: =-D282*L278*10^3 -> -602208.3378
A286: AMI Transitional Adjustment - Revenue 2016-2020
A287: Increase \ (Reduction) in revenue 2016-2020 (000's)
A288: NPV at 1 January 2016 | D288: -1035.544676
A290: AMI Transitional Adjustment in 2018 prices ($) | D290: =D288*L278/I278*10^3 -> -1205029.326
A292: Total AMI Transitional Adjustment in 2018 prices ($) | D292: =SUM(D284,D290) -> -1807237.664

Sheet Metering
B1: ="Tariff Approval - "&'Model update'!C3 -> Tariff Approval - CitiPower
B3: ="PROPOSED "&'Model update'!$C$5&" METERING TARIFFS AND REVENUE" -> PROPOSED 2018 METERING TARIFFS AND REVENUE
D5: ="Proposed Metering Tariffs P(t) for " &'Model update'!$C$5 -> Proposed Metering Tariffs P(t) for 2018 | E5: ="Current Metering Tariffs P(t-1) for" &'Model update'!$C$8 -> Current Metering Tariffs P(t-1) for2017 | F5: ="Forecast Quantities (Qt) for "&'Model update'!$C$5 -> Forecast Quantities (Qt) for 2018 | H5: ="Forecast Revenue (Pt "&'Model update'!$C$5&")*(Qt " &'Model update'!$C$5&")" -> Forecast Revenue (Pt 2018)*(Qt 2018) | I5: ="Revenue (Pt-1 "&'Model update'!$C$8&")*(Qt " &'Model update'!$C$5&")" -> Revenue (Pt-1 2017)*(Qt 2018) | K5: Movement | L5: Side Constraint
B6: Proposed tariff | C6: Existing tariff | D6: PropTar $/Cust/year | E6: ExistTar $/Cust/year | F6: FcastVol Cust # | H6: PropRev Fixed | I6: ExistRev Fixed
B8: Single phase | C8: Single phase | D8: 73 | E8: 85.11 | F8: 260068 | H8: =D8*F8 -> 18984964 | I8: =E8*F8 -> 22134387.48 | K8: =IFERROR(H8/I8,"") -> 0.8577135472 | L8: =IF(B8="","",IF(K8<$I$30,"COMPLIANT","BREACHED")) -> COMPLIANT
B9: Three phase direct connected meter | C9: Three phase direct connected meter | D9: 91.25 | E9: 111.25 | F9: 61493 | H9: 5611236.25 | I9: 6841096.25 | K9: =IFERROR(H9/I9,"") -> 0.8202247191 | L9: COMPLIANT
B10: Three phase CT connected meter | C10: Three phase CT connected meter | D10: 113.15 | E10: 140.51 | F10: 3041 | H10: 344089.15 | I10: 427290.91 | K10: 0.8052807629 | L10: COMPLIANT
H11: 0 | I11: 0
H12: 0 | I12: 0
H13: 0 | I13: 0
H14: 0 | I14: 0
H15: 0 | I15: 0
H16: 0 | I16: 0
H17: =SUM(H7:H16) -> 24940289.4 | I17: =SUM(I7:I16) -> 29402774.64
B22: Year (t) | D22: ='Model update'!C5 -> 2018
B24: Table 1- Compliance with AER Final Determination Total Metering Annual Revenue | H24: Metering tariff rebalancing control
B25: Revenue from Metering charges for year t | D25: =H17 -> 24940289.4 | H25: ="CPI "&'Model update'!$C$5 -> CPI 2018 | I25: =D37 -> 0.01933701657
B26: Total Annual Metering Revenue for year t | D26: =D33 -> 24940289.4 | H26: ="X "& 'Model update'!$C$5 -> X 2018 | I26: =MIN(D38,0) -> 0
D27: =IF(D25="","",IF(D26>=D25,"METERING REVENUE CAP FORMULA COMPLIANT","METERING REVENUE CAP FORMULA BREACHED")) -> METERING REVENUE CAP FORMULA COMPLIANT | E27: =IF(C43=0,"",IF(C42>C43,"MAXIMUM TRANSMISSION REVENUE FORMULA COMPLIANT","MAXIMUM TRANSMISSION REVENUE FORMULA BREACHED")) ->  | H27: ="Tt "&'Model update'!$C$5 -> Tt 2018 | I27: =D31/I17 -> -0.06146486807
H28: ="Bt "&'Model update'!$C$5 -> Bt 2018 | I28: =D32/I17 -> -0.007058618326
B29: Table 2 - Total Annual Revenue for year t (TARMt)
B30: Adjusted Annual Smoothed Metering Revenue for year t | D30: =D39 -> 26955070.03 | I30: =(1+I25)*(1-I26)*(1+0.02)+SUM(I27:I28) -> 0.9712002705
B31: T factor for year t | D31: ='Model update'!$D$292 -> -1807237.664
B32: B factor for year t | D32: =F57 -> -207542.9639
B33: Total Annual Revenue for year t | D33: =SUM(D30:D32) -> 24940289.4
B35: Table 3 - Adjusted Annual Revenue for year t (ARt)
B36: Adjusted Annual Smoothed Revenue for year t-1 | D36: 28640449.73
B37: CPI for period t | D37: ='Model update'!C30 -> 0.01933701657
B38: X factor for period t | D38: ='Model update'!B72 -> 0.0767
B39: Adjusted Annual Smoothed Revenue for year t | D39: =IF(D22=2016,'Model update'!D72,(D36*(1+D37)*(1-D38))) -> 26955070.03
B44: Table 4 - Metering Services Recovery Arrangements
D45: Year t-2 | E45: Year t-1 | F45: Year t
D46: (actual) | E46: (estimate) | F46: (forecast)
D47: =E47-1 -> 2016 | E47: =F47-1 -> 2017 | F47: =D$22 -> 2018
B49: (A) Revenue from Metering proposal charges | D49: 32364241.31 | E49: =E89 -> 29291246.37 | F49: =D25 -> 24940289.4
B52: (B) Less TARM for regulatory year = | D52: =SUM(D53:D54) -> 32973195.04 | E52: =SUM(E53:E54) -> 28640449.73 | F52: =SUM(F53:F54) -> 25147832.36
B53: + Adjusted annual smoothed revenue | D53: 32973195.04 | E53: =D36 -> 28640449.73 | F53: =D30 -> 26955070.03
B54: + T factor | D54: 0 | E54: 0 | F54: =D31 -> -1807237.664
B57: (A minus B) Under/over recovery of revenue for regulatory year | D57: =D49-D52 -> -608953.7285 | E57: =E49-E52 -> 650796.6396 | F57: =F49-F52 -> -207542.9639
B61: Table 5 - Metering Services Unders and Overs Account
D62: Year t-2 | E62: Year t-1 | F62: Year t
D63: (actual) | E63: (estimate) | F63: (forecast)
B64: Calendar year | D64: =E64-1 -> 2016 | E64: =F64-1 -> 2017 | F64: =D$22 -> 2018
B66: Nominal WACC | D66: =(1+'Model update'!$B$47)*(1+'Model update'!$C$28)-1 -> 0.05256117473 | E66: =(1+'Model update'!$B$45)*(1+'Model update'!$C$29)-1 -> 0.0470000456 | F66: =(1+'Model update'!$B$43)*(1+'Model update'!$C$30)-1 -> 0.05592902844
B68: Opening balance | D68: 0 | E68: =D72 -> -624752.4488 | F68: =E72 -> 11798.93439
B69: Interest on Opening balance | D69: =D68*D66 -> 0 | E69: =E68*E66 -> -29363.39358 | F69: =F68*F66 -> 659.9029371
B70: Under/over recovery of revenue for regulatory year | D70: =D57 -> -608953.7285 | E70: =E57 -> 650796.6396 | F70: =F57 -> -207542.9639
B71: Interest on under/over recovery for regulatory year | D71: =D70*((1+D66)^0.5-1) -> -15798.72034 | E71: =E70*((1+E66)^0.5-1) -> 15118.13718 | F71: =F70*((1+F66)^0.5-1) -> -5724.880405
B72: Closing balance of Metering Services overs/ (unders) account | D72: =SUM(D68:D71) -> -624752.4488 | E72: =SUM(E68:E71) -> 11798.93439 | F72: -200809.007
B74: The DNSP is expected to achieve a closing balance as close to zero as practicable in its annual metering charges unders and overs account in each forecast year in its annual pricing proposals in the 2016–20 regulatory control period.
C77: ="Current Metering Tariffs P(t-1) for " &'Model update'!$C$8 -> Current Metering Tariffs P(t-1) for 2017 | D77: ="Estimated Quantities (Qt-1) for "&'Model update'!$C$5-1 -> Estimated Quantities (Qt-1) for 2017 | E77: ="Revenue (Pt-1 "&'Model update'!$C$8&")*(Qt-1 " &'Model update'!$C$5-1&")" -> Revenue (Pt-1 2017)*(Qt-1 2017)
B78: Existing tariff | C78: ExistTar $/Cust/year | D78: FcastVol Cust # | E78: ExistRev Fixed
B80: Single phase | C80: =E8 -> 85.11 | D80: 259419 | E80: =C80*D80 -> 22079151.09
B81: Three phase direct connected meter | C81: =E9 -> 111.25 | D81: 61035 | E81: 6790143.75
B82: Three phase CT connected meter | C82: 140.51 | D82: 3003 | E82: 421951.53
E83: 0
E84: 0
E85: 0
E86: 0
E87: 0
E88: 0
E89: =SUM(E79:E88) -> 29291246.37

Sheet Prop2018DistTar
B1: ="Tariff Approval - "&'Model update'!$C$3 -> Tariff Approval - CitiPower | CO1: Note
CO2: Qt 2018 has been allocated per inserted worksheet Vol
B3: ="PROPOSED "&'Model update'!$C$5&" DISTRIBUTION TARIFFS" -> PROPOSED 2018 DISTRIBUTION TARIFFS | CO3: This enables allocations to tariffs that weren't available in 2017 such as Medium Business opt-out
D4: ="Proposed Distribution Tariffs (Pt) for "&'Model update'!$C$5 -> Proposed Distribution Tariffs (Pt) for 2018 | Z4: ="Current Distribution Tariffs (Pt-1) for "&'Model update'!$C$8 -> Current Distribution Tariffs (Pt-1) for 2017 | AV4: ="Forecast Quantities (Qt) for "&'Model update'!$C$5 -> Forecast Quantities (Qt) for 2018 | BR4: ="Forecast Revenue (Pt "&'Model update'!$C$5&")*(Qt " &'Model update'!$C$5&")" -> Forecast Revenue (Pt 2018)*(Qt 2018) | CO4: ="Revenue (Pt-1 "&'Model update'!$C$8&")*(Qt " &'Model update'!$C$5&")" -> Revenue (Pt-1 2017)*(Qt 2018)
B5: Proposed tariff | C5: Existing tariff | D5: PropTar Fixed | E5: PropTar Anytime | F5: PropTar PkBlk | I5: PropTar OPkBlk1 | M5: PropTar Dem kVA | N5: PropTar Dem kW | O5: PropTar Dem kW Sum | P5: PropTar Dem kW Win | Q5: PropTar SumBlk1 | R5: PropTar SumBlk2 | S5: PropTar SumBlk3 | U5: PropTar WtrBlk1 | V5: PropTar WtrBlk2 | W5: PropTar WtrBlk3 | X5: PropTar WtrBlk4 | Z5: ExistTar Fixed | AA5: ExistTar Anytime | AB5: ExistTar PkBlk | AE5: ExistTar OPkBlk1 | AI5: ExistTar Dem kVA | AJ5: ExistTar Dem kW | AK5: ExistTar Dem kW Sum | AL5: ExistTar Dem kW Win | AM5: ExistTar SumBlk1 | AN5: ExistTar SumBlk2 | AO5: ExistTar SumBlk3 | AQ5: ExistTar WtrBlk1 | AR5: ExistTar WtrBlk2 | AS5: ExistTar WtrBlk3 | AT5: ExistTar WtrBlk4 | AV5: FcastVol Fixed | AW5: FcastVol PkBlk1 | AX5: FcastVol PkBlk2 | AY5: FcastVol PkBlk3 | AZ5: FcastVol PkBlk4 | BA5: FcastVol OPkBlk1 | BB5: FcastVol OPkBlk2 | BC5: FcastVol OPkBlk3 | BD5: FcastVol OPkBlk4 | BE5: FcastVol DemBlk1 | BF5: FcastVol DemBlk2 | BG5: FcastVol DemBlk3 | BH5: FcastVol DemBlk4 | BI5: FcastVol SumBlk1 | BJ5: FcastVol SumBlk2 | BK5: FcastVol SumBlk3 | BL5: FcastVol SumBlk4 | BM5: FcastVol WtrBlk1 | BN5: FcastVol WtrBlk2 | BO5: FcastVol WtrBlk3 | BP5: FcastVol WtrBlk4 | BR5: PropRev Fixed | BS5: PropRev PkBlk1 | BT5: PropRev PkBlk2 | BU5: PropRev PkBlk3 | BV5: PropRev PkBlk4 | BW5: PropRev OPkBlk1 | BX5: PropRev OPkBlk2 | BY5: PropRev OPkBlk3 | BZ5: PropRev OPkBlk4 | CA5: PropRev DemBlk1 | CB5: PropRev DemBlk2 | CC5: PropRev DemBlk3 | CD5: PropRev DemBlk4 | CE5: PropRev SumBlk1 | CF5: PropRev SumBlk2 | CG5: PropRev SumBlk3 | CH5: PropRev SumBlk4 | CI5: PropRev WtrBlk1 | CJ5: PropRev WtrBlk2 | CK5: PropRev WtrBlk3 | CL5: PropRev WtrBlk4 | CM5: PropRev Total | CO5: ExistRev Fixed | CP5: ExistRev PkBlk1 | CQ5: ExistRev PkBlk2 | CR5: ExistRev PkBlk3 | CS5: ExistRev PkBlk4 | CT5: ExistRev OPkBlk1 | CU5: ExistRev OPkBlk2 | CV5: ExistRev OPkBlk3 | CW5: ExistRev OPkBlk4 | CX5: ExistRev DemBlk1 | CY5: ExistRev DemBlk2 | CZ5: ExistRev DemBlk3 | DA5: ExistRev DemBlk4 | DB5: ExistRev SumBlk1 | DC5: ExistRev SumBlk2 | DD5: ExistRev SumBlk3 | DE5: ExistRev SumBlk4 | DF5: ExistRev WtrBlk1 | DG5: ExistRev WtrBlk2 | DH5: ExistRev WtrBlk3 | DI5: ExistRev WtrBlk4 | DJ5: ExistRev Total
BR6: =D6*AV6 -> 0 | BS6: =E6/100*AW6 -> 0 | BT6: 0 | BU6: 0 | BV6: 0 | BW6: 0 | BX6: 0 | BY6: 0 | BZ6: 0 | CA6: =M6*BE6 -> 0 | CB6: =N6*BF6 -> 0 | CC6: =O6*BG6 -> 0 | CD6: =P6*BH6 -> 0 | CE6: =Q6/100*BI6 -> 0 | CF6: =R6/100*BJ6 -> 0 | CG6: 0 | CH6: 0 | CI6: 0 | CJ6: 0 | CK6: 0 | CL6: 0 | CM6: =SUM(BR6:CL6) -> 0 | CO6: =Z6*AV6 -> 0 | CP6: =AA6/100*AW6 -> 0 | CQ6: 0 | CR6: 0 | CS6: 0 | CT6: 0 | CU6: 0 | CV6: 0 | CW6: 0 | CX6: =AI6*BE6 -> 0 | CY6: =AJ6*BF6 -> 0 | CZ6: =AK6*BG6 -> 0 | DA6: =AL6*BH6 -> 0 | DB6: =AM6/100*BI6 -> 0 | DC6: =AN6/100*BJ6 -> 0 | DD6: 0 | DE6: 0 | DF6: 0 | DG6: 0 | DH6: 0 | DI6: 0 | DJ6: =SUM(CO6:DI6) -> 0
A7: C1R | B7: Residential Single Rate | C7: Residential Single Rate | D7: 85 | E7: 4.61 | F7: 0 | G7: 0 | H7: 0 | I7: 0 | J7: 0 | K7: 0 | L7: 0 | M7: 0 | N7: 0 | O7: 0 | P7: 0 | Q7: 0 | R7: 0 | S7: 0 | T7: 0 | U7: 0 | V7: 0 | W7: 0 | X7: 0 | Z7: =IFERROR(INDEX(Est2017DistRev!D:D,MATCH($A7,Est2017DistRev!$A:$A,),1),) -> 85 | AA7: =IFERROR(INDEX(Est2017DistRev!E:E,MATCH($A7,Est2017DistRev!$A:$A,),1),) -> 4.6 | AB7: =IFERROR(INDEX(Est2017DistRev!F:F,MATCH($A7,Est2017DistRev!$A:$A,),1),) -> 0 | AC7: =IFERROR(INDEX(Est2017DistRev!G:G,MATCH($A7,Est2017DistRev!$A:$A,),1),) -> 0 | AD7: =IFERROR(INDEX(Est2017DistRev!H:H,MATCH($A7,Est2017DistRev!$A:$A,),1),) -> 0 | AE7: =IFERROR(INDEX(Est2017DistRev!I:I,MATCH($A7,Est2017DistRev!$A:$A,),1),) -> 0 | AF7: =IFERROR(INDEX(Est2017DistRev!J:J,MATCH($A7,Est2017DistRev!$A:$A,),1),) -> 0 | AG7: =IFERROR(INDEX(Est2017DistRev!K:K,MATCH($A7,Est2017DistRev!$A:$A,),1),) -> 0 | AH7: =IFERROR(INDEX(Est2017DistRev!L:L,MATCH($A7,Est2017DistRev!$A:$A,),1),) -> 0 | AI7: =IFERROR(INDEX(Est2017DistRev!M:M,MATCH($A7,Est2017DistRev!$A:$A,),1),) -> 0 | AJ7: =IFERROR(INDEX(Est2017DistRev!N:N,MATCH($A7,Est2017DistRev!$A:$A,),1),) -> 0 | AK7: =IFERROR(INDEX(Est2017DistRev!O:O,MATCH($A7,Est2017DistRev!$A:$A,),1),) -> 0 | AL7: =IFERROR(INDEX(Est2017DistRev!P:P,MATCH($A7,Est2017DistRev!$A:$A,),1),) -> 0 | AM7: =IFERROR(INDEX(Est2017DistRev!Q:Q,MATCH($A7,Est2017DistRev!$A:$A,),1),) -> 0 | AN7: =IFERROR(INDEX(Est2017DistRev!R:R,MATCH($A7,Est2017DistRev!$A:$A,),1),) -> 0 | AO7: =IFERROR(INDEX(Est2017DistRev!S:S,MATCH($A7,Est2017DistRev!$A:$A,),1),) -> 0 | AP7: =IFERROR(INDEX(Est2017DistRev!T:T,MATCH($A7,Est2017DistRev!$A:$A,),1),) -> 0 | AQ7: =IFERROR(INDEX(Est2017DistRev!U:U,MATCH($A7,Est2017DistRev!$A:$A,),1),) -> 0 | AR7: =IFERROR(INDEX(Est2017DistRev!V:V,MATCH($A7,Est2017DistRev!$A:$A,),1),) -> 0 | AS7: =IFERROR(INDEX(Est2017DistRev!W:W,MATCH($A7,Est2017DistRev!$A:$A,),1),) -> 0 | AT7: =IFERROR(INDEX(Est2017DistRev!X:X,MATCH($A7,Est2017DistRev!$A:$A,),1),) -> 0 | AV7: 203567.5438 | AW7: 837924196.2 | AX7: 0 | AY7: 0 | AZ7: 0 | BA7: 0 | BB7: 0 | BC7: 0 | BD7: 0 | BE7: 0 | BF7: 0 | BG7: 0 | BH7: 0 | BI7: 0 | BJ7: 0 | BK7: 0 | BL7: 0 | BM7: 0 | BN7: 0 | BO7: 0 | BP7: 0 | BR7: =D7*AV7 -> 17303241.23 | BS7: 38628305.45 | BT7: 0 | BU7: 0 | BV7: 0 | BW7: 0 | BX7: 0 | BY7: 0 | BZ7: 0 | CA7: =M7*BE7 -> 0 | CB7: 0 | CC7: 0 | CD7: 0 | CE7: =Q7/100*BI7 -> 0 | CF7: 0 | CG7: 0 | CH7: 0 | CI7: 0 | CJ7: 0 | CK7: 0 | CL7: 0 | CM7: =SUM(BR7:CL7) -> 55931546.67 | CO7: =Z7*Vol!D7 -> 17303241.23 | CP7: =AA7*Vol!E7/100 -> 38544513.03 | CQ7: =AB7*Vol!F7/100 -> 0 | CR7: =AC7*Vol!G7/100 -> 0 | CS7: =AD7*Vol!H7/100 -> 0 | CT7: =AE7*Vol!I7/100 -> 0 | CU7: =AF7*Vol!J7/100 -> 0 | CV7: =AG7*Vol!K7/100 -> 0 | CW7: =AH7*Vol!L7/100 -> 0 | CX7: =AI7*Vol!M7 -> 0 | CY7: =AJ7*Vol!N7 -> 0 | CZ7: =AK7*Vol!O7 -> 0 | DA7: =AL7*Vol!P7 -> 0 | DB7: =AM7*Vol!Q7/100 -> 0 | DC7: =AN7*Vol!R7/100 -> 0 | DD7: =AO7*Vol!S7/100 -> 0 | DE7: =AP7*Vol!T7/100 -> 0 | DF7: =AQ7*Vol!U7/100 -> 0 | DG7: =AR7*Vol!V7/100 -> 0 | DH7: =AS7*Vol!W7/100 -> 0 | DI7: =AT7*Vol!X7/100 -> 0 | DJ7: 55847754.25
A8: C1RB | B8: Residential Single Rate - Bulk | C8: Residential Single Rate - Bulk | D8: 75 | E8: 3.95 | F8: 0 | G8: 0 | H8: 0 | I8: 0 | J8: 0 | K8: 0 | L8: 0 | M8: 0 | N8: 0 | O8: 0 | P8: 0 | Q8: 0 | R8: 0 | S8: 0 | T8: 0 | U8: 0 | V8: 0 | W8: 0 | X8: 0 | Z8: =IFERROR(INDEX(Est2017DistRev!D:D,MATCH($A8,Est2017DistRev!$A:$A,),1),) -> 75 | AA8: =IFERROR(INDEX(Est2017DistRev!E:E,MATCH($A8,Est2017DistRev!$A:$A,),1),) -> 3.18 | AB8: =IFERROR(INDEX(Est2017DistRev!F:F,MATCH($A8,Est2017DistRev!$A:$A,),1),) -> 0 | AC8: =IFERROR(INDEX(Est2017DistRev!G:G,MATCH($A8,Est2017DistRev!$A:$A,),1),) -> 0 | AD8: =IFERROR(INDEX(Est2017DistRev!H:H,MATCH($A8,Est2017DistRev!$A:$A,),1),) -> 0 | AE8: =IFERROR(INDEX(Est2017DistRev!I:I,MATCH($A8,Est2017DistRev!$A:$A,),1),) -> 0 | AF8: =IFERROR(INDEX(Est2017DistRev!J:J,MATCH($A8,Est2017DistRev!$A:$A,),1),) -> 0 | AG8: =IFERROR(INDEX(Est2017DistRev!K:K,MATCH($A8,Est2017DistRev!$A:$A,),1),) -> 0 | AH8: =IFERROR(INDEX(Est2017DistRev!L:L,MATCH($A8,Est2017DistRev!$A:$A,),1),) -> 0 | AI8: =IFERROR(INDEX(Est2017DistRev!M:M,MATCH($A8,Est2017DistRev!$A:$A,),1),) -> 0 | AJ8: =IFERROR(INDEX(Est2017DistRev!N:N,MATCH($A8,Est2017DistRev!$A:$A,),1),) -> 0 | AK8: =IFERROR(INDEX(Est2017DistRev!O:O,MATCH($A8,Est2017DistRev!$A:$A,),1),) -> 0 | AL8: =IFERROR(INDEX(Est2017DistRev!P:P,MATCH($A8,Est2017DistRev!$A:$A,),1),) -> 0 | AM8: =IFERROR(INDEX(Est2017DistRev!Q:Q,MATCH($A8,Est2017DistRev!$A:$A,),1),) -> 0 | AN8: =IFERROR(INDEX(Est2017DistRev!R:R,MATCH($A8,Est2017DistRev!$A:$A,),1),) -> 0 | AO8: =IFERROR(INDEX(Est2017DistRev!S:S,MATCH($A8,Est2017DistRev!$A:$A,),1),) -> 0 | AP8: =IFERROR(INDEX(Est2017DistRev!T:T,MATCH($A8,Est2017DistRev!$A:$A,),1),) -> 0 | AQ8: =IFERROR(INDEX(Est2017DistRev!U:U,MATCH($A8,Est2017DistRev!$A:$A,),1),) -> 0 | AR8: =IFERROR(INDEX(Est2017DistRev!V:V,MATCH($A8,Est2017DistRev!$A:$A,),1),) -> 0 | AS8: =IFERROR(INDEX(Est2017DistRev!W:W,MATCH($A8,Est2017DistRev!$A:$A,),1),) -> 0 | AT8: =IFERROR(INDEX(Est2017DistRev!X:X,MATCH($A8,Est2017DistRev!$A:$A,),1),) -> 0 | AV8: 30796.1653 | AW8: 103793921.8 | AX8: 0 | AY8: 0 | AZ8: 0 | BA8: 0 | BB8: 0 | BC8: 0 | BD8: 0 | BE8: 0 | BF8: 0 | BG8: 0 | BH8: 0 | BI8: 0 | BJ8: 0 | BK8: 0 | BL8: 0 | BM8: 0 | BN8: 0 | BO8: 0 | BP8: 0 | BR8: 2309712.397 | BS8: 4099859.912 | BT8: 0 | BU8: 0 | BV8: 0 | BW8: 0 | BX8: 0 | BY8: 0 | BZ8: 0 | CA8: 0 | CB8: 0 | CC8: 0 | CD8: 0 | CE8: 0 | CF8: 0 | CG8: 0 | CH8: 0 | CI8: 0 | CJ8: 0 | CK8: 0 | CL8: 0 | CM8: 6409572.309 | CO8: =Z8*Vol!D8 -> 2309712.397 | CP8: =AA8*Vol!E8/100 -> 3300646.714 | CQ8: =AB8*Vol!F8/100 -> 0 | CR8: =AC8*Vol!G8/100 -> 0 | CS8: =AD8*Vol!H8/100 -> 0 | CT8: =AE8*Vol!I8/100 -> 0 | CU8: =AF8*Vol!J8/100 -> 0 | CV8: =AG8*Vol!K8/100 -> 0 | CW8: =AH8*Vol!L8/100 -> 0 | CX8: =AI8*Vol!M8 -> 0 | CY8: =AJ8*Vol!N8 -> 0 | CZ8: =AK8*Vol!O8 -> 0 | DA8: =AL8*Vol!P8 -> 0 | DB8: =AM8*Vol!Q8/100 -> 0 | DC8: =AN8*Vol!R8/100 -> 0 | DD8: =AO8*Vol!S8/100 -> 0 | DE8: =AP8*Vol!T8/100 -> 0 | DF8: =AQ8*Vol!U8/100 -> 0 | DG8: =AR8*Vol!V8/100 -> 0 | DH8: =AS8*Vol!W8/100 -> 0 | DI8: =AT8*Vol!X8/100 -> 0 | DJ8: 5610359.111
A9: C13R | B9: Residential - flexible pricing | C9: Residential - flexible pricing | D9: 85 | E9: 0 | F9: 0 | G9: 0 | H9: 0 | I9: 0 | J9: 0 | K9: 0 | L9: 0 | M9: 0 | N9: 0 | O9: 0 | P9: 0 | Q9: 10.96 | R9: 7.38 | S9: 2.9 | T9: 0 | U9: 10.96 | V9: 7.38 | W9: 2.9 | X9: 0 | Z9: =IFERROR(INDEX(Est2017DistRev!D:D,MATCH($A9,Est2017DistRev!$A:$A,),1),) -> 85 | AA9: =IFERROR(INDEX(Est2017DistRev!E:E,MATCH($A9,Est2017DistRev!$A:$A,),1),) -> 0 | AB9: =IFERROR(INDEX(Est2017DistRev!F:F,MATCH($A9,Est2017DistRev!$A:$A,),1),) -> 0 | AC9: =IFERROR(INDEX(Est2017DistRev!G:G,MATCH($A9,Est2017DistRev!$A:$A,),1),) -> 0 | AD9: =IFERROR(INDEX(Est2017DistRev!H:H,MATCH($A9,Est2017DistRev!$A:$A,),1),) -> 0 | AE9: =IFERROR(INDEX(Est2017DistRev!I:I,MATCH($A9,Est2017DistRev!$A:$A,),1),) -> 0 | AF9: =IFERROR(INDEX(Est2017DistRev!J:J,MATCH($A9,Est2017DistRev!$A:$A,),1),) -> 0 | AG9: =IFERROR(INDEX(Est2017DistRev!K:K,MATCH($A9,Est2017DistRev!$A:$A,),1),) -> 0 | AH9: =IFERROR(INDEX(Est2017DistRev!L:L,MATCH($A9,Est2017DistRev!$A:$A,),1),) -> 0 | AI9: =IFERROR(INDEX(Est2017DistRev!M:M,MATCH($A9,Est2017DistRev!$A:$A,),1),) -> 0 | AJ9: =IFERROR(INDEX(Est2017DistRev!N:N,MATCH($A9,Est2017DistRev!$A:$A,),1),) -> 0 | AK9: =IFERROR(INDEX(Est2017DistRev!O:O,MATCH($A9,Est2017DistRev!$A:$A,),1),) -> 0 | AL9: =IFERROR(INDEX(Est2017DistRev!P:P,MATCH($A9,Est2017DistRev!$A:$A,),1),) -> 0 | AM9: =IFERROR(INDEX(Est2017DistRev!Q:Q,MATCH($A9,Est2017DistRev!$A:$A,),1),) -> 9.97 | AN9: =IFERROR(INDEX(Est2017DistRev!R:R,MATCH($A9,Est2017DistRev!$A:$A,),1),) -> 6.72 | AO9: =IFERROR(INDEX(Est2017DistRev!S:S,MATCH($A9,Est2017DistRev!$A:$A,),1),) -> 2.65 | AP9: =IFERROR(INDEX(Est2017DistRev!T:T,MATCH($A9,Est2017DistRev!$A:$A,),1),) -> 0 | AQ9: =IFERROR(INDEX(Est2017DistRev!U:U,MATCH($A9,Est2017DistRev!$A:$A,),1),) -> 9.97 | AR9: =IFERROR(INDEX(Est2017DistRev!V:V,MATCH($A9,Est2017DistRev!$A:$A,),1),) -> 6.72 | AS9: =IFERROR(INDEX(Est2017DistRev!W:W,MATCH($A9,Est2017DistRev!$A:$A,),1),) -> 2.65 | AT9: =IFERROR(INDEX(Est2017DistRev!X:X,MATCH($A9,Est2017DistRev!$A:$A,),1),) -> 0 | AV9: 692.1990213 | AW9: 0 | AX9: 0 | AY9: 0 | AZ9: 0 | BA9: 0 | BB9: 0 | BC9: 0 | BD9: 0 | BE9: 0 | BF9: 0 | BG9: 0 | BH9: 0 | BI9: 209399.3886 | BJ9: 421530.7094 | BK9: 295381.0238 | BL9: 0 | BM9: 766444.7639 | BN9: 1512235.207 | BO9: 1077906.585 | BP9: 0 | BR9: 58836.91681 | BS9: 0 | BT9: 0 | BU9: 0 | BV9: 0 | BW9: 0 | BX9: 0 | BY9: 0 | BZ9: 0 | CA9: 0 | CB9: 0 | CC9: 0 | CD9: 0 | CE9: 22950.17299 | CF9: 31108.96635 | CG9: 8566.04969 | CH9: 0 | CI9: 84002.34612 | CJ9: 111602.9583 | CK9: 31259.29097 | CL9: 0 | CM9: 348326.7012 | CO9: =Z9*Vol!D9 -> 58836.91681 | CP9: =AA9*Vol!E9/100 -> 0 | CQ9: =AB9*Vol!F9/100 -> 0 | CR9: =AC9*Vol!G9/100 -> 0 | CS9: =AD9*Vol!H9/100 -> 0 | CT9: =AE9*Vol!I9/100 -> 0 | CU9: =AF9*Vol!J9/100 -> 0 | CV9: =AG9*Vol!K9/100 -> 0 | CW9: =AH9*Vol!L9/100 -> 0 | CX9: =AI9*Vol!M9 -> 0 | CY9: =AJ9*Vol!N9 -> 0 | CZ9: =AK9*Vol!O9 -> 0 | DA9: =AL9*Vol!P9 -> 0 | DB9: =AM9*Vol!Q9/100 -> 20877.11904 | DC9: =AN9*Vol!R9/100 -> 28326.86367 | DD9: =AO9*Vol!S9/100 -> 7827.597131 | DE9: =AP9*Vol!T9/100 -> 0 | DF9: =AQ9*Vol!U9/100 -> 76414.54296 | DG9: =AR9*Vol!V9/100 -> 101622.2059 | DH9: =AS9*Vol!W9/100 -> 28564.52451 | DI9: =AT9*Vol!X9/100 -> 0 | DJ9: 322469.7701
A10: C13RB | B10: Residential - flexible pricing bulk | C10: Residential - flexible pricing bulk | D10: 75 | E10: 0 | F10: 0 | G10: 0 | H10: 0 | I10: 0 | J10: 0 | K10: 0 | L10: 0 | M10: 0 | N10: 0 | O10: 0 | P10: 0 | Q10: 8.76 | R10: 5.9 | S10: 2.32 | T10: 0 | U10: 8.76 | V10: 5.9 | W10: 2.32 | X10: 0 | Z10: =IFERROR(INDEX(Est2017DistRev!D:D,MATCH($A10,Est2017DistRev!$A:$A,),1),) -> 75 | AA10: =IFERROR(INDEX(Est2017DistRev!E:E,MATCH($A10,Est2017DistRev!$A:$A,),1),) -> 0 | AB10: =IFERROR(INDEX(Est2017DistRev!F:F,MATCH($A10,Est2017DistRev!$A:$A,),1),) -> 0 | AC10: =IFERROR(INDEX(Est2017DistRev!G:G,MATCH($A10,Est2017DistRev!$A:$A,),1),) -> 0 | AD10: =IFERROR(INDEX(Est2017DistRev!H:H,MATCH($A10,Est2017DistRev!$A:$A,),1),) -> 0 | AE10: =IFERROR(INDEX(Est2017DistRev!I:I,MATCH($A10,Est2017DistRev!$A:$A,),1),) -> 0 | AF10: =IFERROR(INDEX(Est2017DistRev!J:J,MATCH($A10,Est2017DistRev!$A:$A,),1),) -> 0 | AG10: =IFERROR(INDEX(Est2017DistRev!K:K,MATCH($A10,Est2017DistRev!$A:$A,),1),) -> 0 | AH10: =IFERROR(INDEX(Est2017DistRev!L:L,MATCH($A10,Est2017DistRev!$A:$A,),1),) -> 0 | AI10: =IFERROR(INDEX(Est2017DistRev!M:M,MATCH($A10,Est2017DistRev!$A:$A,),1),) -> 0 | AJ10: =IFERROR(INDEX(Est2017DistRev!N:N,MATCH($A10,Est2017DistRev!$A:$A,),1),) -> 0 | AK10: =IFERROR(INDEX(Est2017DistRev!O:O,MATCH($A10,Est2017DistRev!$A:$A,),1),) -> 0 | AL10: =IFERROR(INDEX(Est2017DistRev!P:P,MATCH($A10,Est2017DistRev!$A:$A,),1),) -> 0 | AM10: =IFERROR(INDEX(Est2017DistRev!Q:Q,MATCH($A10,Est2017DistRev!$A:$A,),1),) -> 7.97 | AN10: =IFERROR(INDEX(Est2017DistRev!R:R,MATCH($A10,Est2017DistRev!$A:$A,),1),) -> 5.37 | AO10: =IFERROR(INDEX(Est2017DistRev!S:S,MATCH($A10,Est2017DistRev!$A:$A,),1),) -> 2.12 | AP10: =IFERROR(INDEX(Est2017DistRev!T:T,MATCH($A10,Est2017DistRev!$A:$A,),1),) -> 0 | AQ10: =IFERROR(INDEX(Est2017DistRev!U:U,MATCH($A10,Est2017DistRev!$A:$A,),1),) -> 7.97 | AR10: =IFERROR(INDEX(Est2017DistRev!V:V,MATCH($A10,Est2017DistRev!$A:$A,),1),) -> 5.37 | AS10: =IFERROR(INDEX(Est2017DistRev!W:W,MATCH($A10,Est2017DistRev!$A:$A,),1),) -> 2.12 | AT10: =IFERROR(INDEX(Est2017DistRev!X:X,MATCH($A10,Est2017DistRev!$A:$A,),1),) -> 0 | AV10: 86 | AW10: 0 | AX10: 0 | AY10: 0 | AZ10: 0 | BA10: 0 | BB10: 0 | BC10: 0 | BD10: 0 | BE10: 0 | BF10: 0 | BG10: 0 | BH10: 0 | BI10: 14822.46394 | BJ10: 30911.09407 | BK10: 25018.29177 | BL10: 0 | BM10: 55723.87165 | BN10: 110586.6363 | BO10: 89504.20804 | BP10: 0 | BR10: 6450 | BS10: 0 | BT10: 0 | BU10: 0 | BV10: 0 | BW10: 0 | BX10: 0 | BY10: 0 | BZ10: 0 | CA10: 0 | CB10: 0 | CC10: 0 | CD10: 0 | CE10: 1298.447841 | CF10: 1823.75455 | CG10: 580.424369 | CH10: 0 | CI10: 4881.411157 | CJ10: 6524.611544 | CK10: 2076.497626 | CL10: 0 | CM10: 23635.14709 | CO10: =Z10*Vol!D10 -> 6450 | CP10: =AA10*Vol!E10/100 -> 0 | CQ10: =AB10*Vol!F10/100 -> 0 | CR10: =AC10*Vol!G10/100 -> 0 | CS10: =AD10*Vol!H10/100 -> 0 | CT10: =AE10*Vol!I10/100 -> 0 | CU10: =AF10*Vol!J10/100 -> 0 | CV10: =AG10*Vol!K10/100 -> 0 | CW10: =AH10*Vol!L10/100 -> 0 | CX10: =AI10*Vol!M10 -> 0 | CY10: =AJ10*Vol!N10 -> 0 | CZ10: =AK10*Vol!O10 -> 0 | DA10: =AL10*Vol!P10 -> 0 | DB10: =AM10*Vol!Q10/100 -> 1181.350376 | DC10: =AN10*Vol!R10/100 -> 1659.925752 | DD10: =AO10*Vol!S10/100 -> 530.3877855 | DE10: =AP10*Vol!T10/100 -> 0 | DF10: =AQ10*Vol!U10/100 -> 4441.192571 | DG10: =AR10*Vol!V10/100 -> 5938.502371 | DH10: =AS10*Vol!W10/100 -> 1897.48921 | DI10: =AT10*Vol!X10/100 -> 0 | DJ10: 22098.84807
A11: C2R | B11: Residential Two Rate 5d | C11: Residential Two Rate 5d | D11: 85 | E11: 0 | F11: 9.88 | G11: 0 | H11: 0 | I11: 2.11 | J11: 0 | K11: 0 | L11: 0 | M11: 0 | N11: 0 | O11: 0 | P11: 0 | Q11: 0 | R11: 0 | S11: 0 | T11: 0 | U11: 0 | V11: 0 | W11: 0 | X11: 0 | Z11: =IFERROR(INDEX(Est2017DistRev!D:D,MATCH($A11,Est2017DistRev!$A:$A,),1),) -> 85 | AA11: =IFERROR(INDEX(Est2017DistRev!E:E,MATCH($A11,Est2017DistRev!$A:$A,),1),) -> 0 | AB11: =IFERROR(INDEX(Est2017DistRev!F:F,MATCH($A11,Est2017DistRev!$A:$A,),1),) -> 8.54 | AC11: =IFERROR(INDEX(Est2017DistRev!G:G,MATCH($A11,Est2017DistRev!$A:$A,),1),) -> 0 | AD11: =IFERROR(INDEX(Est2017DistRev!H:H,MATCH($A11,Est2017DistRev!$A:$A,),1),) -> 0 | AE11: =IFERROR(INDEX(Est2017DistRev!I:I,MATCH($A11,Est2017DistRev!$A:$A,),1),) -> 1.83 | AF11: =IFERROR(INDEX(Est2017DistRev!J:J,MATCH($A11,Est2017DistRev!$A:$A,),1),) -> 0 | AG11: =IFERROR(INDEX(Est2017DistRev!K:K,MATCH($A11,Est2017DistRev!$A:$A,),1),) -> 0 | AH11: =IFERROR(INDEX(Est2017DistRev!L:L,MATCH($A11,Est2017DistRev!$A:$A,),1),) -> 0 | AI11: =IFERROR(INDEX(Est2017DistRev!M:M,MATCH($A11,Est2017DistRev!$A:$A,),1),) -> 0 | AJ11: =IFERROR(INDEX(Est2017DistRev!N:N,MATCH($A11,Est2017DistRev!$A:$A,),1),) -> 0 | AK11: =IFERROR(INDEX(Est2017DistRev!O:O,MATCH($A11,Est2017DistRev!$A:$A,),1),) -> 0 | AL11: =IFERROR(INDEX(Est2017DistRev!P:P,MATCH($A11,Est2017DistRev!$A:$A,),1),) -> 0 | AM11: =IFERROR(INDEX(Est2017DistRev!Q:Q,MATCH($A11,Est2017DistRev!$A:$A,),1),) -> 0 | AN11: =IFERROR(INDEX(Est2017DistRev!R:R,MATCH($A11,Est2017DistRev!$A:$A,),1),) -> 0 | AO11: =IFERROR(INDEX(Est2017DistRev!S:S,MATCH($A11,Est2017DistRev!$A:$A,),1),) -> 0 | AP11: =IFERROR(INDEX(Est2017DistRev!T:T,MATCH($A11,Est2017DistRev!$A:$A,),1),) -> 0 | AQ11: =IFERROR(INDEX(Est2017DistRev!U:U,MATCH($A11,Est2017DistRev!$A:$A,),1),) -> 0 | AR11: =IFERROR(INDEX(Est2017DistRev!V:V,MATCH($A11,Est2017DistRev!$A:$A,),1),) -> 0 | AS11: =IFERROR(INDEX(Est2017DistRev!W:W,MATCH($A11,Est2017DistRev!$A:$A,),1),) -> 0 | AT11: =IFERROR(INDEX(Est2017DistRev!X:X,MATCH($A11,Est2017DistRev!$A:$A,),1),) -> 0 | AV11: 10844.91892 | AW11: 0 | AX11: 34303841.22 | AY11: 0 | AZ11: 0 | BA11: 29910228.53 | BB11: 0 | BC11: 0 | BD11: 0 | BE11: 0 | BF11: 0 | BG11: 0 | BH11: 0 | BI11: 0 | BJ11: 0 | BK11: 0 | BL11: 0 | BM11: 0 | BN11: 0 | BO11: 0 | BP11: 0 | BR11: 921818.1078 | BS11: 0 | BT11: 3389219.512 | BU11: 0 | BV11: 0 | BW11: 631105.8221 | BX11: 0 | BY11: 0 | BZ11: 0 | CA11: 0 | CB11: 0 | CC11: 0 | CD11: 0 | CE11: 0 | CF11: 0 | CG11: 0 | CH11: 0 | CI11: 0 | CJ11: 0 | CK11: 0 | CL11: 0 | CM11: 4942143.442 | CO11: =Z11*Vol!D11 -> 921818.1078 | CP11: =AA11*Vol!E11/100 -> 0 | CQ11: =AB11*Vol!F11/100 -> 2929548.04 | CR11: =AC11*Vol!G11/100 -> 0 | CS11: =AD11*Vol!H11/100 -> 0 | CT11: =AE11*Vol!I11/100 -> 547357.1822 | CU11: =AF11*Vol!J11/100 -> 0 | CV11: =AG11*Vol!K11/100 -> 0 | CW11: =AH11*Vol!L11/100 -> 0 | CX11: =AI11*Vol!M11 -> 0 | CY11: =AJ11*Vol!N11 -> 0 | CZ11: =AK11*Vol!O11 -> 0 | DA11: =AL11*Vol!P11 -> 0 | DB11: =AM11*Vol!Q11/100 -> 0 | DC11: =AN11*Vol!R11/100 -> 0 | DD11: =AO11*Vol!S11/100 -> 0 | DE11: =AP11*Vol!T11/100 -> 0 | DF11: =AQ11*Vol!U11/100 -> 0 | DG11: =AR11*Vol!V11/100 -> 0 | DH11: =AS11*Vol!W11/100 -> 0 | DI11: =AT11*Vol!X11/100 -> 0 | DJ11: 4398723.33
A12: C2RB | B12: Residential Two Rate 5d - Bulk | C12: Residential Two Rate 5d - Bulk | D12: 75 | E12: 0 | F12: 8.41 | G12: 0 | H12: 0 | I12: 1.91 | J12: 0 | K12: 0 | L12: 0 | M12: 0 | N12: 0 | O12: 0 | P12: 0 | Q12: 0 | R12: 0 | S12: 0 | T12: 0 | U12: 0 | V12: 0 | W12: 0 | X12: 0 | Z12: =IFERROR(INDEX(Est2017DistRev!D:D,MATCH($A12,Est2017DistRev!$A:$A,),1),) -> 75 | AA12: =IFERROR(INDEX(Est2017DistRev!E:E,MATCH($A12,Est2017DistRev!$A:$A,),1),) -> 0 | AB12: =IFERROR(INDEX(Est2017DistRev!F:F,MATCH($A12,Est2017DistRev!$A:$A,),1),) -> 6.76 | AC12: =IFERROR(INDEX(Est2017DistRev!G:G,MATCH($A12,Est2017DistRev!$A:$A,),1),) -> 0 | AD12: =IFERROR(INDEX(Est2017DistRev!H:H,MATCH($A12,Est2017DistRev!$A:$A,),1),) -> 0 | AE12: =IFERROR(INDEX(Est2017DistRev!I:I,MATCH($A12,Est2017DistRev!$A:$A,),1),) -> 1.55 | AF12: =IFERROR(INDEX(Est2017DistRev!J:J,MATCH($A12,Est2017DistRev!$A:$A,),1),) -> 0 | AG12: =IFERROR(INDEX(Est2017DistRev!K:K,MATCH($A12,Est2017DistRev!$A:$A,),1),) -> 0 | AH12: =IFERROR(INDEX(Est2017DistRev!L:L,MATCH($A12,Est2017DistRev!$A:$A,),1),) -> 0 | AI12: =IFERROR(INDEX(Est2017DistRev!M:M,MATCH($A12,Est2017DistRev!$A:$A,),1),) -> 0 | AJ12: =IFERROR(INDEX(Est2017DistRev!N:N,MATCH($A12,Est2017DistRev!$A:$A,),1),) -> 0 | AK12: =IFERROR(INDEX(Est2017DistRev!O:O,MATCH($A12,Est2017DistRev!$A:$A,),1),) -> 0 | AL12: =IFERROR(INDEX(Est2017DistRev!P:P,MATCH($A12,Est2017DistRev!$A:$A,),1),) -> 0 | AM12: =IFERROR(INDEX(Est2017DistRev!Q:Q,MATCH($A12,Est2017DistRev!$A:$A,),1),) -> 0 | AN12: =IFERROR(INDEX(Est2017DistRev!R:R,MATCH($A12,Est2017DistRev!$A:$A,),1),) -> 0 | AO12: =IFERROR(INDEX(Est2017DistRev!S:S,MATCH($A12,Est2017DistRev!$A:$A,),1),) -> 0 | AP12: =IFERROR(INDEX(Est2017DistRev!T:T,MATCH($A12,Est2017DistRev!$A:$A,),1),) -> 0 | AQ12: =IFERROR(INDEX(Est2017DistRev!U:U,MATCH($A12,Est2017DistRev!$A:$A,),1),) -> 0 | AR12: =IFERROR(INDEX(Est2017DistRev!V:V,MATCH($A12,Est2017DistRev!$A:$A,),1),) -> 0 | AS12: =IFERROR(INDEX(Est2017DistRev!W:W,MATCH($A12,Est2017DistRev!$A:$A,),1),) -> 0 | AT12: =IFERROR(INDEX(Est2017DistRev!X:X,MATCH($A12,Est2017DistRev!$A:$A,),1),) -> 0 | AV12: 4325.479896 | AW12: 0 | AX12: 11937966.33 | AY12: 0 | AZ12: 0 | BA12: 10332699.16 | BB12: 0 | BC12: 0 | BD12: 0 | BE12: 0 | BF12: 0 | BG12: 0 | BH12: 0 | BI12: 0 | BJ12: 0 | BK12: 0 | BL12: 0 | BM12: 0 | BN12: 0 | BO12: 0 | BP12: 0 | BR12: 324410.9922 | BS12: 0 | BT12: 1003982.969 | BU12: 0 | BV12: 0 | BW12: 197354.5539 | BX12: 0 | BY12: 0 | BZ12: 0 | CA12: 0 | CB12: 0 | CC12: 0 | CD12: 0 | CE12: 0 | CF12: 0 | CG12: 0 | CH12: 0 | CI12: 0 | CJ12: 0 | CK12: 0 | CL12: 0 | CM12: 1525748.515 | CO12: =Z12*Vol!D12 -> 324410.9922 | CP12: =AA12*Vol!E12/100 -> 0 | CQ12: =AB12*Vol!F12/100 -> 807006.5241 | CR12: =AC12*Vol!G12/100 -> 0 | CS12: =AD12*Vol!H12/100 -> 0 | CT12: =AE12*Vol!I12/100 -> 160156.837 | CU12: =AF12*Vol!J12/100 -> 0 | CV12: =AG12*Vol!K12/100 -> 0 | CW12: =AH12*Vol!L12/100 -> 0 | CX12: =AI12*Vol!M12 -> 0 | CY12: =AJ12*Vol!N12 -> 0 | CZ12: =AK12*Vol!O12 -> 0 | DA12: =AL12*Vol!P12 -> 0 | DB12: =AM12*Vol!Q12/100 -> 0 | DC12: =AN12*Vol!R12/100 -> 0 | DD12: =AO12*Vol!S12/100 -> 0 | DE12: =AP12*Vol!T12/100 -> 0 | DF12: =AQ12*Vol!U12/100 -> 0 | DG12: =AR12*Vol!V12/100 -> 0 | DH12: =AS12*Vol!W12/100 -> 0 | DI12: =AT12*Vol!X12/100 -> 0 | DJ12: 1291574.353
A13: C3R | B13: Residential Interval | C13: Residential Interval | D13: 85 | E13: 0 | F13: 9.88 | G13: 0 | H13: 0 | I13: 2.11 | J13: 0 | K13: 0 | L13: 0 | M13: 0 | N13: 0 | O13: 0 | P13: 0 | Q13: 0 | R13: 0 | S13: 0 | T13: 0 | U13: 0 | V13: 0 | W13: 0 | X13: 0 | Z13: =IFERROR(INDEX(Est2017DistRev!D:D,MATCH($A13,Est2017DistRev!$A:$A,),1),) -> 85 | AA13: =IFERROR(INDEX(Est2017DistRev!E:E,MATCH($A13,Est2017DistRev!$A:$A,),1),) -> 0 | AB13: =IFERROR(INDEX(Est2017DistRev!F:F,MATCH($A13,Est2017DistRev!$A:$A,),1),) -> 8.54 | AC13: =IFERROR(INDEX(Est2017DistRev!G:G,MATCH($A13,Est2017DistRev!$A:$A,),1),) -> 0 | AD13: =IFERROR(INDEX(Est2017DistRev!H:H,MATCH($A13,Est2017DistRev!$A:$A,),1),) -> 0 | AE13: =IFERROR(INDEX(Est2017DistRev!I:I,MATCH($A13,Est2017DistRev!$A:$A,),1),) -> 1.83 | AF13: =IFERROR(INDEX(Est2017DistRev!J:J,MATCH($A13,Est2017DistRev!$A:$A,),1),) -> 0 | AG13: =IFERROR(INDEX(Est2017DistRev!K:K,MATCH($A13,Est2017DistRev!$A:$A,),1),) -> 0 | AH13: =IFERROR(INDEX(Est2017DistRev!L:L,MATCH($A13,Est2017DistRev!$A:$A,),1),) -> 0 | AI13: =IFERROR(INDEX(Est2017DistRev!M:M,MATCH($A13,Est2017DistRev!$A:$A,),1),) -> 0 | AJ13: =IFERROR(INDEX(Est2017DistRev!N:N,MATCH($A13,Est2017DistRev!$A:$A,),1),) -> 0 | AK13: =IFERROR(INDEX(Est2017DistRev!O:O,MATCH($A13,Est2017DistRev!$A:$A,),1),) -> 0 | AL13: =IFERROR(INDEX(Est2017DistRev!P:P,MATCH($A13,Est2017DistRev!$A:$A,),1),) -> 0 | AM13: =IFERROR(INDEX(Est2017DistRev!Q:Q,MATCH($A13,Est2017DistRev!$A:$A,),1),) -> 0 | AN13: =IFERROR(INDEX(Est2017DistRev!R:R,MATCH($A13,Est2017DistRev!$A:$A,),1),) -> 0 | AO13: =IFERROR(INDEX(Est2017DistRev!S:S,MATCH($A13,Est2017DistRev!$A:$A,),1),) -> 0 | AP13: =IFERROR(INDEX(Est2017DistRev!T:T,MATCH($A13,Est2017DistRev!$A:$A,),1),) -> 0 | AQ13: =IFERROR(INDEX(Est2017DistRev!U:U,MATCH($A13,Est2017DistRev!$A:$A,),1),) -> 0 | AR13: =IFERROR(INDEX(Est2017DistRev!V:V,MATCH($A13,Est2017DistRev!$A:$A,),1),) -> 0 | AS13: =IFERROR(INDEX(Est2017DistRev!W:W,MATCH($A13,Est2017DistRev!$A:$A,),1),) -> 0 | AT13: =IFERROR(INDEX(Est2017DistRev!X:X,MATCH($A13,Est2017DistRev!$A:$A,),1),) -> 0 | AV13: 17220.89451 | AW13: 0 | AX13: 60059088.86 | AY13: 0 | AZ13: 0 | BA13: 52811678.16 | BB13: 0 | BC13: 0 | BD13: 0 | BE13: 0 | BF13: 0 | BG13: 0 | BH13: 0 | BI13: 0 | BJ13: 0 | BK13: 0 | BL13: 0 | BM13: 0 | BN13: 0 | BO13: 0 | BP13: 0 | BR13: 1463776.033 | BS13: 0 | BT13: 5933837.979 | BU13: 0 | BV13: 0 | BW13: 1114326.409 | BX13: 0 | BY13: 0 | BZ13: 0 | CA13: 0 | CB13: 0 | CC13: 0 | CD13: 0 | CE13: 0 | CF13: 0 | CG13: 0 | CH13: 0 | CI13: 0 | CJ13: 0 | CK13: 0 | CL13: 0 | CM13: 8511940.422 | CO13: =Z13*Vol!D13 -> 1463776.033 | CP13: =AA13*Vol!E13/100 -> 0 | CQ13: =AB13*Vol!F13/100 -> 5129046.189 | CR13: =AC13*Vol!G13/100 -> 0 | CS13: =AD13*Vol!H13/100 -> 0 | CT13: =AE13*Vol!I13/100 -> 966453.7104 | CU13: =AF13*Vol!J13/100 -> 0 | CV13: =AG13*Vol!K13/100 -> 0 | CW13: =AH13*Vol!L13/100 -> 0 | CX13: =AI13*Vol!M13 -> 0 | CY13: =AJ13*Vol!N13 -> 0 | CZ13: =AK13*Vol!O13 -> 0 | DA13: =AL13*Vol!P13 -> 0 | DB13: =AM13*Vol!Q13/100 -> 0 | DC13: =AN13*Vol!R13/100 -> 0 | DD13: =AO13*Vol!S13/100 -> 0 | DE13: =AP13*Vol!T13/100 -> 0 | DF13: =AQ13*Vol!U13/100 -> 0 | DG13: =AR13*Vol!V13/100 -> 0 | DH13: =AS13*Vol!W13/100 -> 0 | DI13: =AT13*Vol!X13/100 -> 0 | DJ13: 7559275.933
A14: C3RB | B14: Residential Interval - Bulk | C14: Residential Interval - Bulk | D14: 75 | E14: 0 | F14: 8.41 | G14: 0 | H14: 0 | I14: 1.91 | J14: 0 | K14: 0 | L14: 0 | M14: 0 | N14: 0 | O14: 0 | P14: 0 | Q14: 0 | R14: 0 | S14: 0 | T14: 0 | U14: 0 | V14: 0 | W14: 0 | X14: 0 | Z14: =IFERROR(INDEX(Est2017DistRev!D:D,MATCH($A14,Est2017DistRev!$A:$A,),1),) -> 75 | AA14: =IFERROR(INDEX(Est2017DistRev!E:E,MATCH($A14,Est2017DistRev!$A:$A,),1),) -> 0 | AB14: =IFERROR(INDEX(Est2017DistRev!F:F,MATCH($A14,Est2017DistRev!$A:$A,),1),) -> 6.76 | AC14: =IFERROR(INDEX(Est2017DistRev!G:G,MATCH($A14,Est2017DistRev!$A:$A,),1),) -> 0 | AD14: =IFERROR(INDEX(Est2017DistRev!H:H,MATCH($A14,Est2017DistRev!$A:$A,),1),) -> 0 | AE14: =IFERROR(INDEX(Est2017DistRev!I:I,MATCH($A14,Est2017DistRev!$A:$A,),1),) -> 1.55 | AF14: =IFERROR(INDEX(Est2017DistRev!J:J,MATCH($A14,Est2017DistRev!$A:$A,),1),) -> 0 | AG14: =IFERROR(INDEX(Est2017DistRev!K:K,MATCH($A14,Est2017DistRev!$A:$A,),1),) -> 0 | AH14: =IFERROR(INDEX(Est2017DistRev!L:L,MATCH($A14,Est2017DistRev!$A:$A,),1),) -> 0 | AI14: =IFERROR(INDEX(Est2017DistRev!M:M,MATCH($A14,Est2017DistRev!$A:$A,),1),) -> 0 | AJ14: =IFERROR(INDEX(Est2017DistRev!N:N,MATCH($A14,Est2017DistRev!$A:$A,),1),) -> 0 | AK14: =IFERROR(INDEX(Est2017DistRev!O:O,MATCH($A14,Est2017DistRev!$A:$A,),1),) -> 0 | AL14: =IFERROR(INDEX(Est2017DistRev!P:P,MATCH($A14,Est2017DistRev!$A:$A,),1),) -> 0 | AM14: =IFERROR(INDEX(Est2017DistRev!Q:Q,MATCH($A14,Est2017DistRev!$A:$A,),1),) -> 0 | AN14: =IFERROR(INDEX(Est2017DistRev!R:R,MATCH($A14,Est2017DistRev!$A:$A,),1),) -> 0 | AO14: =IFERROR(INDEX(Est2017DistRev!S:S,MATCH($A14,Est2017DistRev!$A:$A,),1),) -> 0 | AP14: =IFERROR(INDEX(Est2017DistRev!T:T,MATCH($A14,Est2017DistRev!$A:$A,),1),) -> 0 | AQ14: =IFERROR(INDEX(Est2017DistRev!U:U,MATCH($A14,Est2017DistRev!$A:$A,),1),) -> 0 | AR14: =IFERROR(INDEX(Est2017DistRev!V:V,MATCH($A14,Est2017DistRev!$A:$A,),1),) -> 0 | AS14: =IFERROR(INDEX(Est2017DistRev!W:W,MATCH($A14,Est2017DistRev!$A:$A,),1),) -> 0 | AT14: =IFERROR(INDEX(Est2017DistRev!X:X,MATCH($A14,Est2017DistRev!$A:$A,),1),) -> 0 | AV14: 8720.076186 | AW14: 0 | AX14: 14985083.09 | AY14: 0 | AZ14: 0 | BA14: 14138212.66 | BB14: 0 | BC14: 0 | BD14: 0 | BE14: 0 | BF14: 0 | BG14: 0 | BH14: 0 | BI14: 0 | BJ14: 0 | BK14: 0 | BL14: 0 | BM14: 0 | BN14: 0 | BO14: 0 | BP14: 0 | BR14: 654005.7139 | BS14: 0 | BT14: 1260245.488 | BU14: 0 | BV14: 0 | BW14: 270039.8619 | BX14: 0 | BY14: 0 | BZ14: 0 | CA14: 0 | CB14: 0 | CC14: 0 | CD14: 0 | CE14: 0 | CF14: 0 | CG14: 0 | CH14: 0 | CI14: 0 | CJ14: 0 | CK14: 0 | CL14: 0 | CM14: 2184291.064 | CO14: =Z14*Vol!D14 -> 654005.7139 | CP14: =AA14*Vol!E14/100 -> 0 | CQ14: =AB14*Vol!F14/100 -> 1012991.617 | CR14: =AC14*Vol!G14/100 -> 0 | CS14: =AD14*Vol!H14/100 -> 0 | CT14: =AE14*Vol!I14/100 -> 219142.2963 | CU14: =AF14*Vol!J14/100 -> 0 | CV14: =AG14*Vol!K14/100 -> 0 | CW14: =AH14*Vol!L14/100 -> 0 | CX14: =AI14*Vol!M14 -> 0 | CY14: =AJ14*Vol!N14 -> 0 | CZ14: =AK14*Vol!O14 -> 0 | DA14: =AL14*Vol!P14 -> 0 | DB14: =AM14*Vol!Q14/100 -> 0 | DC14: =AN14*Vol!R14/100 -> 0 | DD14: =AO14*Vol!S14/100 -> 0 | DE14: =AP14*Vol!T14/100 -> 0 | DF14: =AQ14*Vol!U14/100 -> 0 | DG14: =AR14*Vol!V14/100 -> 0 | DH14: =AS14*Vol!W14/100 -> 0 | DI14: =AT14*Vol!X14/100 -> 0 | DJ14: 1886139.627
A15: C2ROP | B15: Residential Two Rate 5d - Controlled Load | C15: Residential Two Rate 5d - Controlled Load | D15: 0 | E15: 0 | F15: 0 | G15: 0 | H15: 0 | I15: 1.78 | J15: 0 | K15: 0 | L15: 0 | M15: 0 | N15: 0 | O15: 0 | P15: 0 | Q15: 0 | R15: 0 | S15: 0 | T15: 0 | U15: 0 | V15: 0 | W15: 0 | X15: 0 | Z15: =IFERROR(INDEX(Est2017DistRev!D:D,MATCH($A15,Est2017DistRev!$A:$A,),1),) -> 0 | AA15: =IFERROR(INDEX(Est2017DistRev!E:E,MATCH($A15,Est2017DistRev!$A:$A,),1),) -> 0 | AB15: =IFERROR(INDEX(Est2017DistRev!F:F,MATCH($A15,Est2017DistRev!$A:$A,),1),) -> 0 | AC15: =IFERROR(INDEX(Est2017DistRev!G:G,MATCH($A15,Est2017DistRev!$A:$A,),1),) -> 0 | AD15: =IFERROR(INDEX(Est2017DistRev!H:H,MATCH($A15,Est2017DistRev!$A:$A,),1),) -> 0 | AE15: =IFERROR(INDEX(Est2017DistRev!I:I,MATCH($A15,Est2017DistRev!$A:$A,),1),) -> 1.55 | AF15: =IFERROR(INDEX(Est2017DistRev!J:J,MATCH($A15,Est2017DistRev!$A:$A,),1),) -> 0 | AG15: =IFERROR(INDEX(Est2017DistRev!K:K,MATCH($A15,Est2017DistRev!$A:$A,),1),) -> 0 | AH15: =IFERROR(INDEX(Est2017DistRev!L:L,MATCH($A15,Est2017DistRev!$A:$A,),1),) -> 0 | AI15: =IFERROR(INDEX(Est2017DistRev!M:M,MATCH($A15,Est2017DistRev!$A:$A,),1),) -> 0 | AJ15: =IFERROR(INDEX(Est2017DistRev!N:N,MATCH($A15,Est2017DistRev!$A:$A,),1),) -> 0 | AK15: =IFERROR(INDEX(Est2017DistRev!O:O,MATCH($A15,Est2017DistRev!$A:$A,),1),) -> 0 | AL15: =IFERROR(INDEX(Est2017DistRev!P:P,MATCH($A15,Est2017DistRev!$A:$A,),1),) -> 0 | AM15: =IFERROR(INDEX(Est2017DistRev!Q:Q,MATCH($A15,Est2017DistRev!$A:$A,),1),) -> 0 | AN15: =IFERROR(INDEX(Est2017DistRev!R:R,MATCH($A15,Est2017DistRev!$A:$A,),1),) -> 0 | AO15: =IFERROR(INDEX(Est2017DistRev!S:S,MATCH($A15,Est2017DistRev!$A:$A,),1),) -> 0 | AP15: =IFERROR(INDEX(Est2017DistRev!T:T,MATCH($A15,Est2017DistRev!$A:$A,),1),) -> 0 | AQ15: =IFERROR(INDEX(Est2017DistRev!U:U,MATCH($A15,Est2017DistRev!$A:$A,),1),) -> 0 | AR15: =IFERROR(INDEX(Est2017DistRev!V:V,MATCH($A15,Est2017DistRev!$A:$A,),1),) -> 0 | AS15: =IFERROR(INDEX(Est2017DistRev!W:W,MATCH($A15,Est2017DistRev!$A:$A,),1),) -> 0 | AT15: =IFERROR(INDEX(Est2017DistRev!X:X,MATCH($A15,Est2017DistRev!$A:$A,),1),) -> 0 | AV15: 9721.635616 | AW15: 0 | AX15: 0 | AY15: 0 | AZ15: 0 | BA15: 19909930.71 | BB15: 0 | BC15: 0 | BD15: 0 | BE15: 0 | BF15: 0 | BG15: 0 | BH15: 0 | BI15: 0 | BJ15: 0 | BK15: 0 | BL15: 0 | BM15: 0 | BN15: 0 | BO15: 0 | BP15: 0 | BR15: 0 | BS15: 0 | BT15: 0 | BU15: 0 | BV15: 0 | BW15: 354396.7666 | BX15: 0 | BY15: 0 | BZ15: 0 | CA15: 0 | CB15: 0 | CC15: 0 | CD15: 0 | CE15: 0 | CF15: 0 | CG15: 0 | CH15: 0 | CI15: 0 | CJ15: 0 | CK15: 0 | CL15: 0 | CM15: 354396.7666 | CO15: =Z15*Vol!D15 -> 0 | CP15: =AA15*Vol!E15/100 -> 0 | CQ15: =AB15*Vol!F15/100 -> 0 | CR15: =AC15*Vol!G15/100 -> 0 | CS15: =AD15*Vol!H15/100 -> 0 | CT15: =AE15*Vol!I15/100 -> 308603.926 | CU15: =AF15*Vol!J15/100 -> 0 | CV15: =AG15*Vol!K15/100 -> 0 | CW15: =AH15*Vol!L15/100 -> 0 | CX15: =AI15*Vol!M15 -> 0 | CY15: =AJ15*Vol!N15 -> 0 | CZ15: =AK15*Vol!O15 -> 0 | DA15: =AL15*Vol!P15 -> 0 | DB15: =AM15*Vol!Q15/100 -> 0 | DC15: =AN15*Vol!R15/100 -> 0 | DD15: =AO15*Vol!S15/100 -> 0 | DE15: =AP15*Vol!T15/100 -> 0 | DF15: =AQ15*Vol!U15/100 -> 0 | DG15: =AR15*Vol!V15/100 -> 0 | DH15: =AS15*Vol!W15/100 -> 0 | DI15: =AT15*Vol!X15/100 -> 0 | DJ15: 308603.926
A16: C2RBOP | B16: Residential Two Rate 5d - Bulk - Controlled Load | C16: Residential Two Rate 5d - Bulk - Controlled Load | D16: 0 | E16: 0 | F16: 0 | G16: 0 | H16: 0 | I16: 1.38 | J16: 0 | K16: 0 | L16: 0 | M16: 0 | N16: 0 | O16: 0 | P16: 0 | Q16: 0 | R16: 0 | S16: 0 | T16: 0 | U16: 0 | V16: 0 | W16: 0 | X16: 0 | Z16: =IFERROR(INDEX(Est2017DistRev!D:D,MATCH($A16,Est2017DistRev!$A:$A,),1),) -> 0 | AA16: =IFERROR(INDEX(Est2017DistRev!E:E,MATCH($A16,Est2017DistRev!$A:$A,),1),) -> 0 | AB16: =IFERROR(INDEX(Est2017DistRev!F:F,MATCH($A16,Est2017DistRev!$A:$A,),1),) -> 0 | AC16: =IFERROR(INDEX(Est2017DistRev!G:G,MATCH($A16,Est2017DistRev!$A:$A,),1),) -> 0 | AD16: =IFERROR(INDEX(Est2017DistRev!H:H,MATCH($A16,Est2017DistRev!$A:$A,),1),) -> 0 | AE16: =IFERROR(INDEX(Est2017DistRev!I:I,MATCH($A16,Est2017DistRev!$A:$A,),1),) -> 1.11 | AF16: =IFERROR(INDEX(Est2017DistRev!J:J,MATCH($A16,Est2017DistRev!$A:$A,),1),) -> 0 | AG16: =IFERROR(INDEX(Est2017DistRev!K:K,MATCH($A16,Est2017DistRev!$A:$A,),1),) -> 0 | AH16: =IFERROR(INDEX(Est2017DistRev!L:L,MATCH($A16,Est2017DistRev!$A:$A,),1),) -> 0 | AI16: =IFERROR(INDEX(Est2017DistRev!M:M,MATCH($A16,Est2017DistRev!$A:$A,),1),) -> 0 | AJ16: =IFERROR(INDEX(Est2017DistRev!N:N,MATCH($A16,Est2017DistRev!$A:$A,),1),) -> 0 | AK16: =IFERROR(INDEX(Est2017DistRev!O:O,MATCH($A16,Est2017DistRev!$A:$A,),1),) -> 0 | AL16: =IFERROR(INDEX(Est2017DistRev!P:P,MATCH($A16,Est2017DistRev!$A:$A,),1),) -> 0 | AM16: =IFERROR(INDEX(Est2017DistRev!Q:Q,MATCH($A16,Est2017DistRev!$A:$A,),1),) -> 0 | AN16: =IFERROR(INDEX(Est2017DistRev!R:R,MATCH($A16,Est2017DistRev!$A:$A,),1),) -> 0 | AO16: =IFERROR(INDEX(Est2017DistRev!S:S,MATCH($A16,Est2017DistRev!$A:$A,),1),) -> 0 | AP16: =IFERROR(INDEX(Est2017DistRev!T:T,MATCH($A16,Est2017DistRev!$A:$A,),1),) -> 0 | AQ16: =IFERROR(INDEX(Est2017DistRev!U:U,MATCH($A16,Est2017DistRev!$A:$A,),1),) -> 0 | AR16: =IFERROR(INDEX(Est2017DistRev!V:V,MATCH($A16,Est2017DistRev!$A:$A,),1),) -> 0 | AS16: =IFERROR(INDEX(Est2017DistRev!W:W,MATCH($A16,Est2017DistRev!$A:$A,),1),) -> 0 | AT16: =IFERROR(INDEX(Est2017DistRev!X:X,MATCH($A16,Est2017DistRev!$A:$A,),1),) -> 0 | AV16: 3658.606663 | AW16: 0 | AX16: 0 | AY16: 0 | AZ16: 0 | BA16: 7350471.826 | BB16: 0 | BC16: 0 | BD16: 0 | BE16: 0 | BF16: 0 | BG16: 0 | BH16: 0 | BI16: 0 | BJ16: 0 | BK16: 0 | BL16: 0 | BM16: 0 | BN16: 0 | BO16: 0 | BP16: 0 | BR16: 0 | BS16: 0 | BT16: 0 | BU16: 0 | BV16: 0 | BW16: 101436.5112 | BX16: 0 | BY16: 0 | BZ16: 0 | CA16: 0 | CB16: 0 | CC16: 0 | CD16: 0 | CE16: 0 | CF16: 0 | CG16: 0 | CH16: 0 | CI16: 0 | CJ16: 0 | CK16: 0 | CL16: 0 | CM16: 101436.5112 | CO16: =Z16*Vol!D16 -> 0 | CP16: =AA16*Vol!E16/100 -> 0 | CQ16: =AB16*Vol!F16/100 -> 0 | CR16: =AC16*Vol!G16/100 -> 0 | CS16: =AD16*Vol!H16/100 -> 0 | CT16: =AE16*Vol!I16/100 -> 81590.23727 | CU16: =AF16*Vol!J16/100 -> 0 | CV16: =AG16*Vol!K16/100 -> 0 | CW16: =AH16*Vol!L16/100 -> 0 | CX16: =AI16*Vol!M16 -> 0 | CY16: =AJ16*Vol!N16 -> 0 | CZ16: =AK16*Vol!O16 -> 0 | DA16: =AL16*Vol!P16 -> 0 | DB16: =AM16*Vol!Q16/100 -> 0 | DC16: =AN16*Vol!R16/100 -> 0 | DD16: =AO16*Vol!S16/100 -> 0 | DE16: =AP16*Vol!T16/100 -> 0 | DF16: =AQ16*Vol!U16/100 -> 0 | DG16: =AR16*Vol!V16/100 -> 0 | DH16: =AS16*Vol!W16/100 -> 0 | DI16: =AT16*Vol!X16/100 -> 0 | DJ16: 81590.23727
A17: CDS | B17: Dedicated Circuit | C17: Dedicated Circuit | D17: 0 | E17: 0 | F17: 0 | G17: 0 | H17: 0 | I17: 1.78 | J17: 0 | K17: 0 | L17: 0 | M17: 0 | N17: 0 | O17: 0 | P17: 0 | Q17: 0 | R17: 0 | S17: 0 | T17: 0 | U17: 0 | V17: 0 | W17: 0 | X17: 0 | Z17: =IFERROR(INDEX(Est2017DistRev!D:D,MATCH($A17,Est2017DistRev!$A:$A,),1),) -> 0 | AA17: =IFERROR(INDEX(Est2017DistRev!E:E,MATCH($A17,Est2017DistRev!$A:$A,),1),) -> 0 | AB17: =IFERROR(INDEX(Est2017DistRev!F:F,MATCH($A17,Est2017DistRev!$A:$A,),1),) -> 0 | AC17: =IFERROR(INDEX(Est2017DistRev!G:G,MATCH($A17,Est2017DistRev!$A:$A,),1),) -> 0 | AD17: =IFERROR(INDEX(Est2017DistRev!H:H,MATCH($A17,Est2017DistRev!$A:$A,),1),) -> 0 | AE17: =IFERROR(INDEX(Est2017DistRev!I:I,MATCH($A17,Est2017DistRev!$A:$A,),1),) -> 1.55 | AF17: =IFERROR(INDEX(Est2017DistRev!J:J,MATCH($A17,Est2017DistRev!$A:$A,),1),) -> 0 | AG17: =IFERROR(INDEX(Est2017DistRev!K:K,MATCH($A17,Est2017DistRev!$A:$A,),1),) -> 0 | AH17: =IFERROR(INDEX(Est2017DistRev!L:L,MATCH($A17,Est2017DistRev!$A:$A,),1),) -> 0 | AI17: =IFERROR(INDEX(Est2017DistRev!M:M,MATCH($A17,Est2017DistRev!$A:$A,),1),) -> 0 | AJ17: =IFERROR(INDEX(Est2017DistRev!N:N,MATCH($A17,Est2017DistRev!$A:$A,),1),) -> 0 | AK17: =IFERROR(INDEX(Est2017DistRev!O:O,MATCH($A17,Est2017DistRev!$A:$A,),1),) -> 0 | AL17: =IFERROR(INDEX(Est2017DistRev!P:P,MATCH($A17,Est2017DistRev!$A:$A,),1),) -> 0 | AM17: =IFERROR(INDEX(Est2017DistRev!Q:Q,MATCH($A17,Est2017DistRev!$A:$A,),1),) -> 0 | AN17: =IFERROR(INDEX(Est2017DistRev!R:R,MATCH($A17,Est2017DistRev!$A:$A,),1),) -> 0 | AO17: =IFERROR(INDEX(Est2017DistRev!S:S,MATCH($A17,Est2017DistRev!$A:$A,),1),) -> 0 | AP17: =IFERROR(INDEX(Est2017DistRev!T:T,MATCH($A17,Est2017DistRev!$A:$A,),1),) -> 0 | AQ17: =IFERROR(INDEX(Est2017DistRev!U:U,MATCH($A17,Est2017DistRev!$A:$A,),1),) -> 0 | AR17: =IFERROR(INDEX(Est2017DistRev!V:V,MATCH($A17,Est2017DistRev!$A:$A,),1),) -> 0 | AS17: =IFERROR(INDEX(Est2017DistRev!W:W,MATCH($A17,Est2017DistRev!$A:$A,),1),) -> 0 | AT17: =IFERROR(INDEX(Est2017DistRev!X:X,MATCH($A17,Est2017DistRev!$A:$A,),1),) -> 0 | AV17: 22642.03058 | AW17: 0 | AX17: 0 | AY17: 0 | AZ17: 0 | BA17: 33890069.86 | BB17: 0 | BC17: 0 | BD17: 0 | BE17: 0 | BF17: 0 | BG17: 0 | BH17: 0 | BI17: 0 | BJ17: 0 | BK17: 0 | BL17: 0 | BM17: 0 | BN17: 0 | BO17: 0 | BP17: 0 | BR17: 0 | BS17: 0 | BT17: 0 | BU17: 0 | BV17: 0 | BW17: 603243.2436 | BX17: 0 | BY17: 0 | BZ17: 0 | CA17: 0 | CB17: 0 | CC17: 0 | CD17: 0 | CE17: 0 | CF17: 0 | CG17: 0 | CH17: 0 | CI17: 0 | CJ17: 0 | CK17: 0 | CL17: 0 | CM17: 603243.2436 | CO17: =Z17*Vol!D17 -> 0 | CP17: =AA17*Vol!E17/100 -> 0 | CQ17: =AB17*Vol!F17/100 -> 0 | CR17: =AC17*Vol!G17/100 -> 0 | CS17: =AD17*Vol!H17/100 -> 0 | CT17: =AE17*Vol!I17/100 -> 525296.0829 | CU17: =AF17*Vol!J17/100 -> 0 | CV17: =AG17*Vol!K17/100 -> 0 | CW17: =AH17*Vol!L17/100 -> 0 | CX17: =AI17*Vol!M17 -> 0 | CY17: =AJ17*Vol!N17 -> 0 | CZ17: =AK17*Vol!O17 -> 0 | DA17: =AL17*Vol!P17 -> 0 | DB17: =AM17*Vol!Q17/100 -> 0 | DC17: =AN17*Vol!R17/100 -> 0 | DD17: =AO17*Vol!S17/100 -> 0 | DE17: =AP17*Vol!T17/100 -> 0 | DF17: =AQ17*Vol!U17/100 -> 0 | DG17: =AR17*Vol!V17/100 -> 0 | DH17: =AS17*Vol!W17/100 -> 0 | DI17: =AT17*Vol!X17/100 -> 0 | DJ17: 525296.0829
A18: CDSB | B18: Dedicated Circuit - Bulk | C18: Dedicated Circuit - Bulk | D18: 0 | E18: 0 | F18: 0 | G18: 0 | H18: 0 | I18: 1.38 | J18: 0 | K18: 0 | L18: 0 | M18: 0 | N18: 0 | O18: 0 | P18: 0 | Q18: 0 | R18: 0 | S18: 0 | T18: 0 | U18: 0 | V18: 0 | W18: 0 | X18: 0 | Z18: =IFERROR(INDEX(Est2017DistRev!D:D,MATCH($A18,Est2017DistRev!$A:$A,),1),) -> 0 | AA18: =IFERROR(INDEX(Est2017DistRev!E:E,MATCH($A18,Est2017DistRev!$A:$A,),1),) -> 0 | AB18: =IFERROR(INDEX(Est2017DistRev!F:F,MATCH($A18,Est2017DistRev!$A:$A,),1),) -> 0 | AC18: =IFERROR(INDEX(Est2017DistRev!G:G,MATCH($A18,Est2017DistRev!$A:$A,),1),) -> 0 | AD18: =IFERROR(INDEX(Est2017DistRev!H:H,MATCH($A18,Est2017DistRev!$A:$A,),1),) -> 0 | AE18: =IFERROR(INDEX(Est2017DistRev!I:I,MATCH($A18,Est2017DistRev!$A:$A,),1),) -> 1.11 | AF18: =IFERROR(INDEX(Est2017DistRev!J:J,MATCH($A18,Est2017DistRev!$A:$A,),1),) -> 0 | AG18: =IFERROR(INDEX(Est2017DistRev!K:K,MATCH($A18,Est2017DistRev!$A:$A,),1),) -> 0 | AH18: =IFERROR(INDEX(Est2017DistRev!L:L,MATCH($A18,Est2017DistRev!$A:$A,),1),) -> 0 | AI18: =IFERROR(INDEX(Est2017DistRev!M:M,MATCH($A18,Est2017DistRev!$A:$A,),1),) -> 0 | AJ18: =IFERROR(INDEX(Est2017DistRev!N:N,MATCH($A18,Est2017DistRev!$A:$A,),1),) -> 0 | AK18: =IFERROR(INDEX(Est2017DistRev!O:O,MATCH($A18,Est2017DistRev!$A:$A,),1),) -> 0 | AL18: =IFERROR(INDEX(Est2017DistRev!P:P,MATCH($A18,Est2017DistRev!$A:$A,),1),) -> 0 | AM18: =IFERROR(INDEX(Est2017DistRev!Q:Q,MATCH($A18,Est2017DistRev!$A:$A,),1),) -> 0 | AN18: =IFERROR(INDEX(Est2017DistRev!R:R,MATCH($A18,Est2017DistRev!$A:$A,),1),) -> 0 | AO18: =IFERROR(INDEX(Est2017DistRev!S:S,MATCH($A18,Est2017DistRev!$A:$A,),1),) -> 0 | AP18: =IFERROR(INDEX(Est2017DistRev!T:T,MATCH($A18,Est2017DistRev!$A:$A,),1),) -> 0 | AQ18: =IFERROR(INDEX(Est2017DistRev!U:U,MATCH($A18,Est2017DistRev!$A:$A,),1),) -> 0 | AR18: =IFERROR(INDEX(Est2017DistRev!V:V,MATCH($A18,Est2017DistRev!$A:$A,),1),) -> 0 | AS18: =IFERROR(INDEX(Est2017DistRev!W:W,MATCH($A18,Est2017DistRev!$A:$A,),1),) -> 0 | AT18: =IFERROR(INDEX(Est2017DistRev!X:X,MATCH($A18,Est2017DistRev!$A:$A,),1),) -> 0 | AV18: 1081.479218 | AW18: 0 | AX18: 0 | AY18: 0 | AZ18: 0 | BA18: 2219211.192 | BB18: 0 | BC18: 0 | BD18: 0 | BE18: 0 | BF18: 0 | BG18: 0 | BH18: 0 | BI18: 0 | BJ18: 0 | BK18: 0 | BL18: 0 | BM18: 0 | BN18: 0 | BO18: 0 | BP18: 0 | BR18: 0 | BS18: 0 | BT18: 0 | BU18: 0 | BV18: 0 | BW18: 30625.11445 | BX18: 0 | BY18: 0 | BZ18: 0 | CA18: 0 | CB18: 0 | CC18: 0 | CD18: 0 | CE18: 0 | CF18: 0 | CG18: 0 | CH18: 0 | CI18: 0 | CJ18: 0 | CK18: 0 | CL18: 0 | CM18: 30625.11445 | CO18: =Z18*Vol!D18 -> 0 | CP18: =AA18*Vol!E18/100 -> 0 | CQ18: =AB18*Vol!F18/100 -> 0 | CR18: =AC18*Vol!G18/100 -> 0 | CS18: =AD18*Vol!H18/100 -> 0 | CT18: =AE18*Vol!I18/100 -> 24633.24424 | CU18: =AF18*Vol!J18/100 -> 0 | CV18: =AG18*Vol!K18/100 -> 0 | CW18: =AH18*Vol!L18/100 -> 0 | CX18: =AI18*Vol!M18 -> 0 | CY18: =AJ18*Vol!N18 -> 0 | CZ18: =AK18*Vol!O18 -> 0 | DA18: =AL18*Vol!P18 -> 0 | DB18: =AM18*Vol!Q18/100 -> 0 | DC18: =AN18*Vol!R18/100 -> 0 | DD18: =AO18*Vol!S18/100 -> 0 | DE18: =AP18*Vol!T18/100 -> 0 | DF18: =AQ18*Vol!U18/100 -> 0 | DG18: =AR18*Vol!V18/100 -> 0 | DH18: =AS18*Vol!W18/100 -> 0 | DI18: =AT18*Vol!X18/100 -> 0 | DJ18: 24633.24424
A19: CR | B19: Residential Demand | C19: Residential Demand | D19: 85 | E19: 2.93 | F19: 0 | G19: 0 | H19: 0 | I19: 0 | J19: 0 | K19: 0 | L19: 0 | M19: 0 | N19: 0 | O19: 7.16 | P19: 2.45 | Q19: 0 | R19: 0 | S19: 0 | T19: 0 | U19: 0 | V19: 0 | W19: 0 | X19: 0 | Z19: =IFERROR(INDEX(Est2017DistRev!D:D,MATCH($A19,Est2017DistRev!$A:$A,),1),) -> 85 | AA19: =IFERROR(INDEX(Est2017DistRev!E:E,MATCH($A19,Est2017DistRev!$A:$A,),1),) -> 2.54 | AB19: =IFERROR(INDEX(Est2017DistRev!F:F,MATCH($A19,Est2017DistRev!$A:$A,),1),) -> 0 | AC19: =IFERROR(INDEX(Est2017DistRev!G:G,MATCH($A19,Est2017DistRev!$A:$A,),1),) -> 0 | AD19: =IFERROR(INDEX(Est2017DistRev!H:H,MATCH($A19,Est2017DistRev!$A:$A,),1),) -> 0 | AE19: =IFERROR(INDEX(Est2017DistRev!I:I,MATCH($A19,Est2017DistRev!$A:$A,),1),) -> 0 | AF19: =IFERROR(INDEX(Est2017DistRev!J:J,MATCH($A19,Est2017DistRev!$A:$A,),1),) -> 0 | AG19: =IFERROR(INDEX(Est2017DistRev!K:K,MATCH($A19,Est2017DistRev!$A:$A,),1),) -> 0 | AH19: =IFERROR(INDEX(Est2017DistRev!L:L,MATCH($A19,Est2017DistRev!$A:$A,),1),) -> 0 | AI19: =IFERROR(INDEX(Est2017DistRev!M:M,MATCH($A19,Est2017DistRev!$A:$A,),1),) -> 0 | AJ19: =IFERROR(INDEX(Est2017DistRev!N:N,MATCH($A19,Est2017DistRev!$A:$A,),1),) -> 0 | AK19: =IFERROR(INDEX(Est2017DistRev!O:O,MATCH($A19,Est2017DistRev!$A:$A,),1),) -> 6.19 | AL19: =IFERROR(INDEX(Est2017DistRev!P:P,MATCH($A19,Est2017DistRev!$A:$A,),1),) -> 2.12 | AM19: =IFERROR(INDEX(Est2017DistRev!Q:Q,MATCH($A19,Est2017DistRev!$A:$A,),1),) -> 0 | AN19: =IFERROR(INDEX(Est2017DistRev!R:R,MATCH($A19,Est2017DistRev!$A:$A,),1),) -> 0 | AO19: =IFERROR(INDEX(Est2017DistRev!S:S,MATCH($A19,Est2017DistRev!$A:$A,),1),) -> 0 | AP19: =IFERROR(INDEX(Est2017DistRev!T:T,MATCH($A19,Est2017DistRev!$A:$A,),1),) -> 0 | AQ19: =IFERROR(INDEX(Est2017DistRev!U:U,MATCH($A19,Est2017DistRev!$A:$A,),1),) -> 0 | AR19: =IFERROR(INDEX(Est2017DistRev!V:V,MATCH($A19,Est2017DistRev!$A:$A,),1),) -> 0 | AS19: =IFERROR(INDEX(Est2017DistRev!W:W,MATCH($A19,Est2017DistRev!$A:$A,),1),) -> 0 | AT19: =IFERROR(INDEX(Est2017DistRev!X:X,MATCH($A19,Est2017DistRev!$A:$A,),1),) -> 0 | AV19: 5 | AW19: 27500 | AX19: 0 | AY19: 0 | AZ19: 0 | BA19: 0 | BB19: 0 | BC19: 0 | BD19: 0 | BE19: 0 | BF19: 0 | BG19: 62.78538813 | BH19: 100.456621 | BI19: 0 | BJ19: 0 | BK19: 0 | BL19: 0 | BM19: 0 | BN19: 0 | BO19: 0 | BP19: 0 | BR19: 425 | BS19: 805.75 | BT19: 0 | BU19: 0 | BV19: 0 | BW19: 0 | BX19: 0 | BY19: 0 | BZ19: 0 | CA19: 0 | CB19: 0 | CC19: 449.543379 | CD19: 246.1187215 | CE19: 0 | CF19: 0 | CG19: 0 | CH19: 0 | CI19: 0 | CJ19: 0 | CK19: 0 | CL19: 0 | CM19: 1926.4121 | CO19: =Z19*Vol!D19 -> 425 | CP19: =AA19*Vol!E19/100 -> 698.5 | CQ19: =AB19*Vol!F19/100 -> 0 | CR19: =AC19*Vol!G19/100 -> 0 | CS19: =AD19*Vol!H19/100 -> 0 | CT19: =AE19*Vol!I19/100 -> 0 | CU19: =AF19*Vol!J19/100 -> 0 | CV19: =AG19*Vol!K19/100 -> 0 | CW19: =AH19*Vol!L19/100 -> 0 | CX19: =AI19*Vol!M19 -> 0 | CY19: =AJ19*Vol!N19 -> 0 | CZ19: =AK19*Vol!O19 -> 388.6415525 | DA19: =AL19*Vol!P19 -> 212.9680365 | DB19: =AM19*Vol!Q19/100 -> 0 | DC19: =AN19*Vol!R19/100 -> 0 | DD19: =AO19*Vol!S19/100 -> 0 | DE19: =AP19*Vol!T19/100 -> 0 | DF19: =AQ19*Vol!U19/100 -> 0 | DG19: =AR19*Vol!V19/100 -> 0 | DH19: =AS19*Vol!W19/100 -> 0 | DI19: =AT19*Vol!X19/100 -> 0 | DJ19: 1725.109589
A20: CRB | B20: Residential Bulk Demand | C20: Residential Bulk Demand | D20: 75 | E20: 1.85 | F20: 0 | G20: 0 | H20: 0 | I20: 0 | J20: 0 | K20: 0 | L20: 0 | M20: 0 | N20: 0 | O20: 5.24 | P20: 1.75 | Q20: 0 | R20: 0 | S20: 0 | T20: 0 | U20: 0 | V20: 0 | W20: 0 | X20: 0 | Z20: =IFERROR(INDEX(Est2017DistRev!D:D,MATCH($A20,Est2017DistRev!$A:$A,),1),) -> 75 | AA20: =IFERROR(INDEX(Est2017DistRev!E:E,MATCH($A20,Est2017DistRev!$A:$A,),1),) -> 1.6 | AB20: =IFERROR(INDEX(Est2017DistRev!F:F,MATCH($A20,Est2017DistRev!$A:$A,),1),) -> 0 | AC20: =IFERROR(INDEX(Est2017DistRev!G:G,MATCH($A20,Est2017DistRev!$A:$A,),1),) -> 0 | AD20: =IFERROR(INDEX(Est2017DistRev!H:H,MATCH($A20,Est2017DistRev!$A:$A,),1),) -> 0 | AE20: =IFERROR(INDEX(Est2017DistRev!I:I,MATCH($A20,Est2017DistRev!$A:$A,),1),) -> 0 | AF20: =IFERROR(INDEX(Est2017DistRev!J:J,MATCH($A20,Est2017DistRev!$A:$A,),1),) -> 0 | AG20: =IFERROR(INDEX(Est2017DistRev!K:K,MATCH($A20,Est2017DistRev!$A:$A,),1),) -> 0 | AH20: =IFERROR(INDEX(Est2017DistRev!L:L,MATCH($A20,Est2017DistRev!$A:$A,),1),) -> 0 | AI20: =IFERROR(INDEX(Est2017DistRev!M:M,MATCH($A20,Est2017DistRev!$A:$A,),1),) -> 0 | AJ20: =IFERROR(INDEX(Est2017DistRev!N:N,MATCH($A20,Est2017DistRev!$A:$A,),1),) -> 0 | AK20: =IFERROR(INDEX(Est2017DistRev!O:O,MATCH($A20,Est2017DistRev!$A:$A,),1),) -> 4.53 | AL20: =IFERROR(INDEX(Est2017DistRev!P:P,MATCH($A20,Est2017DistRev!$A:$A,),1),) -> 1.51 | AM20: =IFERROR(INDEX(Est2017DistRev!Q:Q,MATCH($A20,Est2017DistRev!$A:$A,),1),) -> 0 | AN20: =IFERROR(INDEX(Est2017DistRev!R:R,MATCH($A20,Est2017DistRev!$A:$A,),1),) -> 0 | AO20: =IFERROR(INDEX(Est2017DistRev!S:S,MATCH($A20,Est2017DistRev!$A:$A,),1),) -> 0 | AP20: =IFERROR(INDEX(Est2017DistRev!T:T,MATCH($A20,Est2017DistRev!$A:$A,),1),) -> 0 | AQ20: =IFERROR(INDEX(Est2017DistRev!U:U,MATCH($A20,Est2017DistRev!$A:$A,),1),) -> 0 | AR20: =IFERROR(INDEX(Est2017DistRev!V:V,MATCH($A20,Est2017DistRev!$A:$A,),1),) -> 0 | AS20: =IFERROR(INDEX(Est2017DistRev!W:W,MATCH($A20,Est2017DistRev!$A:$A,),1),) -> 0 | AT20: =IFERROR(INDEX(Est2017DistRev!X:X,MATCH($A20,Est2017DistRev!$A:$A,),1),) -> 0 | AV20: 1 | AW20: 5500 | AX20: 0 | AY20: 0 | AZ20: 0 | BA20: 0 | BB20: 0 | BC20: 0 | BD20: 0 | BE20: 0 | BF20: 0 | BG20: 12.55707763 | BH20: 20.0913242 | BI20: 0 | BJ20: 0 | BK20: 0 | BL20: 0 | BM20: 0 | BN20: 0 | BO20: 0 | BP20: 0 | BR20: 75 | BS20: 101.75 | BT20: 0 | BU20: 0 | BV20: 0 | BW20: 0 | BX20: 0 | BY20: 0 | BZ20: 0 | CA20: 0 | CB20: 0 | CC20: 65.79908676 | CD20: 35.15981735 | CE20: 0 | CF20: 0 | CG20: 0 | CH20: 0 | CI20: 0 | CJ20: 0 | CK20: 0 | CL20: 0 | CM20: 277.7089041 | CO20: =Z20*Vol!D20 -> 75 | CP20: =AA20*Vol!E20/100 -> 88 | CQ20: =AB20*Vol!F20/100 -> 0 | CR20: =AC20*Vol!G20/100 -> 0 | CS20: =AD20*Vol!H20/100 -> 0 | CT20: =AE20*Vol!I20/100 -> 0 | CU20: =AF20*Vol!J20/100 -> 0 | CV20: =AG20*Vol!K20/100 -> 0 | CW20: =AH20*Vol!L20/100 -> 0 | CX20: =AI20*Vol!M20 -> 0 | CY20: =AJ20*Vol!N20 -> 0 | CZ20: =AK20*Vol!O20 -> 56.88356164 | DA20: =AL20*Vol!P20 -> 30.33789954 | DB20: =AM20*Vol!Q20/100 -> 0 | DC20: =AN20*Vol!R20/100 -> 0 | DD20: =AO20*Vol!S20/100 -> 0 | DE20: =AP20*Vol!T20/100 -> 0 | DF20: =AQ20*Vol!U20/100 -> 0 | DG20: =AR20*Vol!V20/100 -> 0 | DH20: =AS20*Vol!W20/100 -> 0 | DI20: =AT20*Vol!X20/100 -> 0 | DJ20: 250.2214612
A21: C1G | B21: Non-Residential Single Rate | C21: Non-Residential Single Rate | D21: 145 | E21: 6.05 | F21: 0 | G21: 0 | H21: 0 | I21: 0 | J21: 0 | K21: 0 | L21: 0 | M21: 0 | N21: 0 | O21: 0 | P21: 0 | Q21: 0 | R21: 0 | S21: 0 | T21: 0 | U21: 0 | V21: 0 | W21: 0 | X21: 0 | Z21: =IFERROR(INDEX(Est2017DistRev!D:D,MATCH($A21,Est2017DistRev!$A:$A,),1),) -> 140 | AA21: =IFERROR(INDEX(Est2017DistRev!E:E,MATCH($A21,Est2017DistRev!$A:$A,),1),) -> 5.49 | AB21: =IFERROR(INDEX(Est2017DistRev!F:F,MATCH($A21,Est2017DistRev!$A:$A,),1),) -> 0 | AC21: =IFERROR(INDEX(Est2017DistRev!G:G,MATCH($A21,Est2017DistRev!$A:$A,),1),) -> 0 | AD21: =IFERROR(INDEX(Est2017DistRev!H:H,MATCH($A21,Est2017DistRev!$A:$A,),1),) -> 0 | AE21: =IFERROR(INDEX(Est2017DistRev!I:I,MATCH($A21,Est2017DistRev!$A:$A,),1),) -> 0 | AF21: =IFERROR(INDEX(Est2017DistRev!J:J,MATCH($A21,Est2017DistRev!$A:$A,),1),) -> 0 | AG21: =IFERROR(INDEX(Est2017DistRev!K:K,MATCH($A21,Est2017DistRev!$A:$A,),1),) -> 0 | AH21: =IFERROR(INDEX(Est2017DistRev!L:L,MATCH($A21,Est2017DistRev!$A:$A,),1),) -> 0 | AI21: =IFERROR(INDEX(Est2017DistRev!M:M,MATCH($A21,Est2017DistRev!$A:$A,),1),) -> 0 | AJ21: =IFERROR(INDEX(Est2017DistRev!N:N,MATCH($A21,Est2017DistRev!$A:$A,),1),) -> 0 | AK21: =IFERROR(INDEX(Est2017DistRev!O:O,MATCH($A21,Est2017DistRev!$A:$A,),1),) -> 0 | AL21: =IFERROR(INDEX(Est2017DistRev!P:P,MATCH($A21,Est2017DistRev!$A:$A,),1),) -> 0 | AM21: =IFERROR(INDEX(Est2017DistRev!Q:Q,MATCH($A21,Est2017DistRev!$A:$A,),1),) -> 0 | AN21: =IFERROR(INDEX(Est2017DistRev!R:R,MATCH($A21,Est2017DistRev!$A:$A,),1),) -> 0 | AO21: =IFERROR(INDEX(Est2017DistRev!S:S,MATCH($A21,Est2017DistRev!$A:$A,),1),) -> 0 | AP21: =IFERROR(INDEX(Est2017DistRev!T:T,MATCH($A21,Est2017DistRev!$A:$A,),1),) -> 0 | AQ21: =IFERROR(INDEX(Est2017DistRev!U:U,MATCH($A21,Est2017DistRev!$A:$A,),1),) -> 0 | AR21: =IFERROR(INDEX(Est2017DistRev!V:V,MATCH($A21,Est2017DistRev!$A:$A,),1),) -> 0 | AS21: =IFERROR(INDEX(Est2017DistRev!W:W,MATCH($A21,Est2017DistRev!$A:$A,),1),) -> 0 | AT21: =IFERROR(INDEX(Est2017DistRev!X:X,MATCH($A21,Est2017DistRev!$A:$A,),1),) -> 0 | AV21: 18214.93199 | AW21: 220224547 | AX21: 0 | AY21: 0 | AZ21: 0 | BA21: 0 | BB21: 0 | BC21: 0 | BD21: 0 | BE21: 0 | BF21: 0 | BG21: 0 | BH21: 0 | BI21: 0 | BJ21: 0 | BK21: 0 | BL21: 0 | BM21: 0 | BN21: 0 | BO21: 0 | BP21: 0 | BR21: 2641165.139 | BS21: 13323585.09 | BT21: 0 | BU21: 0 | BV21: 0 | BW21: 0 | BX21: 0 | BY21: 0 | BZ21: 0 | CA21: 0 | CB21: 0 | CC21: 0 | CD21: 0 | CE21: 0 | CF21: 0 | CG21: 0 | CH21: 0 | CI21: 0 | CJ21: 0 | CK21: 0 | CL21: 0 | CM21: 15964750.23 | CO21: =Z21*Vol!D21 -> 2550090.479 | CP21: =AA21*Vol!E21/100 -> 12090327.63 | CQ21: =AB21*Vol!F21/100 -> 0 | CR21: =AC21*Vol!G21/100 -> 0 | CS21: =AD21*Vol!H21/100 -> 0 | CT21: =AE21*Vol!I21/100 -> 0 | CU21: =AF21*Vol!J21/100 -> 0 | CV21: =AG21*Vol!K21/100 -> 0 | CW21: =AH21*Vol!L21/100 -> 0 | CX21: =AI21*Vol!M21 -> 0 | CY21: =AJ21*Vol!N21 -> 0 | CZ21: =AK21*Vol!O21 -> 0 | DA21: =AL21*Vol!P21 -> 0 | DB21: =AM21*Vol!Q21/100 -> 0 | DC21: =AN21*Vol!R21/100 -> 0 | DD21: =AO21*Vol!S21/100 -> 0 | DE21: =AP21*Vol!T21/100 -> 0 | DF21: =AQ21*Vol!U21/100 -> 0 | DG21: =AR21*Vol!V21/100 -> 0 | DH21: =AS21*Vol!W21/100 -> 0 | DI21: =AT21*Vol!X21/100 -> 0 | DJ21: 14640418.11
A22: C1GB | B22: Non-Residential Single Rate - Bulk | C22: Non-Residential Single Rate - Bulk | D22: 125 | E22: 4.64 | F22: 0 | G22: 0 | H22: 0 | I22: 0 | J22: 0 | K22: 0 | L22: 0 | M22: 0 | N22: 0 | O22: 0 | P22: 0 | Q22: 0 | R22: 0 | S22: 0 | T22: 0 | U22: 0 | V22: 0 | W22: 0 | X22: 0 | Z22: =IFERROR(INDEX(Est2017DistRev!D:D,MATCH($A22,Est2017DistRev!$A:$A,),1),) -> 120 | AA22: =IFERROR(INDEX(Est2017DistRev!E:E,MATCH($A22,Est2017DistRev!$A:$A,),1),) -> 4.21 | AB22: =IFERROR(INDEX(Est2017DistRev!F:F,MATCH($A22,Est2017DistRev!$A:$A,),1),) -> 0 | AC22: =IFERROR(INDEX(Est2017DistRev!G:G,MATCH($A22,Est2017DistRev!$A:$A,),1),) -> 0 | AD22: =IFERROR(INDEX(Est2017DistRev!H:H,MATCH($A22,Est2017DistRev!$A:$A,),1),) -> 0 | AE22: =IFERROR(INDEX(Est2017DistRev!I:I,MATCH($A22,Est2017DistRev!$A:$A,),1),) -> 0 | AF22: =IFERROR(INDEX(Est2017DistRev!J:J,MATCH($A22,Est2017DistRev!$A:$A,),1),) -> 0 | AG22: =IFERROR(INDEX(Est2017DistRev!K:K,MATCH($A22,Est2017DistRev!$A:$A,),1),) -> 0 | AH22: =IFERROR(INDEX(Est2017DistRev!L:L,MATCH($A22,Est2017DistRev!$A:$A,),1),) -> 0 | AI22: =IFERROR(INDEX(Est2017DistRev!M:M,MATCH($A22,Est2017DistRev!$A:$A,),1),) -> 0 | AJ22: =IFERROR(INDEX(Est2017DistRev!N:N,MATCH($A22,Est2017DistRev!$A:$A,),1),) -> 0 | AK22: =IFERROR(INDEX(Est2017DistRev!O:O,MATCH($A22,Est2017DistRev!$A:$A,),1),) -> 0 | AL22: =IFERROR(INDEX(Est2017DistRev!P:P,MATCH($A22,Est2017DistRev!$A:$A,),1),) -> 0 | AM22: =IFERROR(INDEX(Est2017DistRev!Q:Q,MATCH($A22,Est2017DistRev!$A:$A,),1),) -> 0 | AN22: =IFERROR(INDEX(Est2017DistRev!R:R,MATCH($A22,Est2017DistRev!$A:$A,),1),) -> 0 | AO22: =IFERROR(INDEX(Est2017DistRev!S:S,MATCH($A22,Est2017DistRev!$A:$A,),1),) -> 0 | AP22: =IFERROR(INDEX(Est2017DistRev!T:T,MATCH($A22,Est2017DistRev!$A:$A,),1),) -> 0 | AQ22: =IFERROR(INDEX(Est2017DistRev!U:U,MATCH($A22,Est2017DistRev!$A:$A,),1),) -> 0 | AR22: =IFERROR(INDEX(Est2017DistRev!V:V,MATCH($A22,Est2017DistRev!$A:$A,),1),) -> 0 | AS22: =IFERROR(INDEX(Est2017DistRev!W:W,MATCH($A22,Est2017DistRev!$A:$A,),1),) -> 0 | AT22: =IFERROR(INDEX(Est2017DistRev!X:X,MATCH($A22,Est2017DistRev!$A:$A,),1),) -> 0 | AV22: 5599.005158 | AW22: 73848559.18 | AX22: 0 | AY22: 0 | AZ22: 0 | BA22: 0 | BB22: 0 | BC22: 0 | BD22: 0 | BE22: 0 | BF22: 0 | BG22: 0 | BH22: 0 | BI22: 0 | BJ22: 0 | BK22: 0 | BL22: 0 | BM22: 0 | BN22: 0 | BO22: 0 | BP22: 0 | BR22: 699875.6447 | BS22: =E22/100*AW22 -> 3426573.146 | BT22: 0 | BU22: 0 | BV22: 0 | BW22: 0 | BX22: 0 | BY22: 0 | BZ22: 0 | CA22: 0 | CB22: 0 | CC22: 0 | CD22: 0 | CE22: 0 | CF22: 0 | CG22: 0 | CH22: 0 | CI22: 0 | CJ22: 0 | CK22: 0 | CL22: 0 | CM22: 4126448.79 | CO22: =Z22*Vol!D22 -> 671880.6189 | CP22: =AA22*Vol!E22/100 -> 3109024.341 | CQ22: =AB22*Vol!F22/100 -> 0 | CR22: =AC22*Vol!G22/100 -> 0 | CS22: =AD22*Vol!H22/100 -> 0 | CT22: =AE22*Vol!I22/100 -> 0 | CU22: =AF22*Vol!J22/100 -> 0 | CV22: =AG22*Vol!K22/100 -> 0 | CW22: =AH22*Vol!L22/100 -> 0 | CX22: =AI22*Vol!M22 -> 0 | CY22: =AJ22*Vol!N22 -> 0 | CZ22: =AK22*Vol!O22 -> 0 | DA22: =AL22*Vol!P22 -> 0 | DB22: =AM22*Vol!Q22/100 -> 0 | DC22: =AN22*Vol!R22/100 -> 0 | DD22: =AO22*Vol!S22/100 -> 0 | DE22: =AP22*Vol!T22/100 -> 0 | DF22: =AQ22*Vol!U22/100 -> 0 | DG22: =AR22*Vol!V22/100 -> 0 | DH22: =AS22*Vol!W22/100 -> 0 | DI22: =AT22*Vol!X22/100 -> 0 | DJ22: 3780904.96
A23: C2G5 | B23: Non-Residential Two Rate 5d | C23: Non-Residential Two Rate 5d | D23: 145 | E23: 0 | F23: 9.1 | G23: 0 | H23: 0 | I23: 2.41 | J23: 0 | K23: 0 | L23: 0 | M23: 0 | N23: 0 | O23: 0 | P23: 0 | Q23: 0 | R23: 0 | S23: 0 | T23: 0 | U23: 0 | V23: 0 | W23: 0 | X23: 0 | Z23: =IFERROR(INDEX(Est2017DistRev!D:D,MATCH($A23,Est2017DistRev!$A:$A,),1),) -> 140 | AA23: =IFERROR(INDEX(Est2017DistRev!E:E,MATCH($A23,Est2017DistRev!$A:$A,),1),) -> 0 | AB23: =IFERROR(INDEX(Est2017DistRev!F:F,MATCH($A23,Est2017DistRev!$A:$A,),1),) -> 8.27 | AC23: =IFERROR(INDEX(Est2017DistRev!G:G,MATCH($A23,Est2017DistRev!$A:$A,),1),) -> 0 | AD23: =IFERROR(INDEX(Est2017DistRev!H:H,MATCH($A23,Est2017DistRev!$A:$A,),1),) -> 0 | AE23: =IFERROR(INDEX(Est2017DistRev!I:I,MATCH($A23,Est2017DistRev!$A:$A,),1),) -> 2.18 | AF23: =IFERROR(INDEX(Est2017DistRev!J:J,MATCH($A23,Est2017DistRev!$A:$A,),1),) -> 0 | AG23: =IFERROR(INDEX(Est2017DistRev!K:K,MATCH($A23,Est2017DistRev!$A:$A,),1),) -> 0 | AH23: =IFERROR(INDEX(Est2017DistRev!L:L,MATCH($A23,Est2017DistRev!$A:$A,),1),) -> 0 | AI23: =IFERROR(INDEX(Est2017DistRev!M:M,MATCH($A23,Est2017DistRev!$A:$A,),1),) -> 0 | AJ23: =IFERROR(INDEX(Est2017DistRev!N:N,MATCH($A23,Est2017DistRev!$A:$A,),1),) -> 0 | AK23: =IFERROR(INDEX(Est2017DistRev!O:O,MATCH($A23,Est2017DistRev!$A:$A,),1),) -> 0 | AL23: =IFERROR(INDEX(Est2017DistRev!P:P,MATCH($A23,Est2017DistRev!$A:$A,),1),) -> 0 | AM23: =IFERROR(INDEX(Est2017DistRev!Q:Q,MATCH($A23,Est2017DistRev!$A:$A,),1),) -> 0 | AN23: =IFERROR(INDEX(Est2017DistRev!R:R,MATCH($A23,Est2017DistRev!$A:$A,),1),) -> 0 | AO23: =IFERROR(INDEX(Est2017DistRev!S:S,MATCH($A23,Est2017DistRev!$A:$A,),1),) -> 0 | AP23: =IFERROR(INDEX(Est2017DistRev!T:T,MATCH($A23,Est2017DistRev!$A:$A,),1),) -> 0 | AQ23: =IFERROR(INDEX(Est2017DistRev!U:U,MATCH($A23,Est2017DistRev!$A:$A,),1),) -> 0 | AR23: =IFERROR(INDEX(Est2017DistRev!V:V,MATCH($A23,Est2017DistRev!$A:$A,),1),) -> 0 | AS23: =IFERROR(INDEX(Est2017DistRev!W:W,MATCH($A23,Est2017DistRev!$A:$A,),1),) -> 0 | AT23: =IFERROR(INDEX(Est2017DistRev!X:X,MATCH($A23,Est2017DistRev!$A:$A,),1),) -> 0 | AV23: 6325.91212 | AW23: 0 | AX23: 90006939.07 | AY23: 0 | AZ23: 0 | BA23: 56232415.07 | BB23: 0 | BC23: 0 | BD23: 0 | BE23: 0 | BF23: 0 | BG23: 0 | BH23: 0 | BI23: 0 | BJ23: 0 | BK23: 0 | BL23: 0 | BM23: 0 | BN23: 0 | BO23: 0 | BP23: 0 | BR23: 917257.2574 | BS23: 0 | BT23: 8190631.455 | BU23: 0 | BV23: 0 | BW23: 1355201.203 | BX23: 0 | BY23: 0 | BZ23: 0 | CA23: 0 | CB23: 0 | CC23: 0 | CD23: 0 | CE23: 0 | CF23: 0 | CG23: 0 | CH23: 0 | CI23: 0 | CJ23: 0 | CK23: 0 | CL23: 0 | CM23: 10463089.92 | CO23: =Z23*Vol!D23 -> 885627.6968 | CP23: =AA23*Vol!E23/100 -> 0 | CQ23: =AB23*Vol!F23/100 -> 7443573.861 | CR23: =AC23*Vol!G23/100 -> 0 | CS23: =AD23*Vol!H23/100 -> 0 | CT23: =AE23*Vol!I23/100 -> 1225866.648 | CU23: =AF23*Vol!J23/100 -> 0 | CV23: =AG23*Vol!K23/100 -> 0 | CW23: =AH23*Vol!L23/100 -> 0 | CX23: =AI23*Vol!M23 -> 0 | CY23: =AJ23*Vol!N23 -> 0 | CZ23: =AK23*Vol!O23 -> 0 | DA23: =AL23*Vol!P23 -> 0 | DB23: =AM23*Vol!Q23/100 -> 0 | DC23: =AN23*Vol!R23/100 -> 0 | DD23: =AO23*Vol!S23/100 -> 0 | DE23: =AP23*Vol!T23/100 -> 0 | DF23: =AQ23*Vol!U23/100 -> 0 | DG23: =AR23*Vol!V23/100 -> 0 | DH23: =AS23*Vol!W23/100 -> 0 | DI23: =AT23*Vol!X23/100 -> 0 | DJ23: 9555068.206
A24: C2G5B | B24: Non-Residential Two Rate 5d - Bulk | C24: Non-Residential Two Rate 5d - Bulk | D24: 125 | E24: 0 | F24: 6.6 | G24: 0 | H24: 0 | I24: 1.8 | J24: 0 | K24: 0 | L24: 0 | M24: 0 | N24: 0 | O24: 0 | P24: 0 | Q24: 0 | R24: 0 | S24: 0 | T24: 0 | U24: 0 | V24: 0 | W24: 0 | X24: 0 | Z24: =IFERROR(INDEX(Est2017DistRev!D:D,MATCH($A24,Est2017DistRev!$A:$A,),1),) -> 120 | AA24: =IFERROR(INDEX(Est2017DistRev!E:E,MATCH($A24,Est2017DistRev!$A:$A,),1),) -> 0 | AB24: =IFERROR(INDEX(Est2017DistRev!F:F,MATCH($A24,Est2017DistRev!$A:$A,),1),) -> 6 | AC24: =IFERROR(INDEX(Est2017DistRev!G:G,MATCH($A24,Est2017DistRev!$A:$A,),1),) -> 0 | AD24: =IFERROR(INDEX(Est2017DistRev!H:H,MATCH($A24,Est2017DistRev!$A:$A,),1),) -> 0 | AE24: =IFERROR(INDEX(Est2017DistRev!I:I,MATCH($A24,Est2017DistRev!$A:$A,),1),) -> 1.63 | AF24: =IFERROR(INDEX(Est2017DistRev!J:J,MATCH($A24,Est2017DistRev!$A:$A,),1),) -> 0 | AG24: =IFERROR(INDEX(Est2017DistRev!K:K,MATCH($A24,Est2017DistRev!$A:$A,),1),) -> 0 | AH24: =IFERROR(INDEX(Est2017DistRev!L:L,MATCH($A24,Est2017DistRev!$A:$A,),1),) -> 0 | AI24: =IFERROR(INDEX(Est2017DistRev!M:M,MATCH($A24,Est2017DistRev!$A:$A,),1),) -> 0 | AJ24: =IFERROR(INDEX(Est2017DistRev!N:N,MATCH($A24,Est2017DistRev!$A:$A,),1),) -> 0 | AK24: =IFERROR(INDEX(Est2017DistRev!O:O,MATCH($A24,Est2017DistRev!$A:$A,),1),) -> 0 | AL24: =IFERROR(INDEX(Est2017DistRev!P:P,MATCH($A24,Est2017DistRev!$A:$A,),1),) -> 0 | AM24: =IFERROR(INDEX(Est2017DistRev!Q:Q,MATCH($A24,Est2017DistRev!$A:$A,),1),) -> 0 | AN24: =IFERROR(INDEX(Est2017DistRev!R:R,MATCH($A24,Est2017DistRev!$A:$A,),1),) -> 0 | AO24: =IFERROR(INDEX(Est2017DistRev!S:S,MATCH($A24,Est2017DistRev!$A:$A,),1),) -> 0 | AP24: =IFERROR(INDEX(Est2017DistRev!T:T,MATCH($A24,Est2017DistRev!$A:$A,),1),) -> 0 | AQ24: =IFERROR(INDEX(Est2017DistRev!U:U,MATCH($A24,Est2017DistRev!$A:$A,),1),) -> 0 | AR24: =IFERROR(INDEX(Est2017DistRev!V:V,MATCH($A24,Est2017DistRev!$A:$A,),1),) -> 0 | AS24: =IFERROR(INDEX(Est2017DistRev!W:W,MATCH($A24,Est2017DistRev!$A:$A,),1),) -> 0 | AT24: =IFERROR(INDEX(Est2017DistRev!X:X,MATCH($A24,Est2017DistRev!$A:$A,),1),) -> 0 | AV24: 1106.535597 | AW24: 0 | AX24: 16887632.07 | AY24: 0 | AZ24: 0 | BA24: 9694170.346 | BB24: 0 | BC24: 0 | BD24: 0 | BE24: 0 | BF24: 0 | BG24: 0 | BH24: 0 | BI24: 0 | BJ24: 0 | BK24: 0 | BL24: 0 | BM24: 0 | BN24: 0 | BO24: 0 | BP24: 0 | BR24: 138316.9496 | BS24: 0 | BT24: 1114583.716 | BU24: 0 | BV24: 0 | BW24: 174495.0662 | BX24: 0 | BY24: 0 | BZ24: 0 | CA24: 0 | CB24: 0 | CC24: 0 | CD24: 0 | CE24: 0 | CF24: 0 | CG24: 0 | CH24: 0 | CI24: 0 | CJ24: 0 | CK24: 0 | CL24: 0 | CM24: 1427395.732 | CO24: =Z24*Vol!D24 -> 132784.2716 | CP24: =AA24*Vol!E24/100 -> 0 | CQ24: =AB24*Vol!F24/100 -> 1013257.924 | CR24: =AC24*Vol!G24/100 -> 0 | CS24: =AD24*Vol!H24/100 -> 0 | CT24: =AE24*Vol!I24/100 -> 158014.9766 | CU24: =AF24*Vol!J24/100 -> 0 | CV24: =AG24*Vol!K24/100 -> 0 | CW24: =AH24*Vol!L24/100 -> 0 | CX24: =AI24*Vol!M24 -> 0 | CY24: =AJ24*Vol!N24 -> 0 | CZ24: =AK24*Vol!O24 -> 0 | DA24: =AL24*Vol!P24 -> 0 | DB24: =AM24*Vol!Q24/100 -> 0 | DC24: =AN24*Vol!R24/100 -> 0 | DD24: =AO24*Vol!S24/100 -> 0 | DE24: =AP24*Vol!T24/100 -> 0 | DF24: =AQ24*Vol!U24/100 -> 0 | DG24: =AR24*Vol!V24/100 -> 0 | DH24: =AS24*Vol!W24/100 -> 0 | DI24: =AT24*Vol!X24/100 -> 0 | DJ24: 1304057.172
A25: C3G | B25: Non-Residential Interval | C25: Non-Residential Interval | D25: 145 | E25: 0 | F25: 9.1 | G25: 0 | H25: 0 | I25: 2.41 | J25: 0 | K25: 0 | L25: 0 | M25: 0 | N25: 0 | O25: 0 | P25: 0 | Q25: 0 | R25: 0 | S25: 0 | T25: 0 | U25: 0 | V25: 0 | W25: 0 | X25: 0 | Z25: =IFERROR(INDEX(Est2017DistRev!D:D,MATCH($A25,Est2017DistRev!$A:$A,),1),) -> 140 | AA25: =IFERROR(INDEX(Est2017DistRev!E:E,MATCH($A25,Est2017DistRev!$A:$A,),1),) -> 0 | AB25: =IFERROR(INDEX(Est2017DistRev!F:F,MATCH($A25,Est2017DistRev!$A:$A,),1),) -> 8.27 | AC25: =IFERROR(INDEX(Est2017DistRev!G:G,MATCH($A25,Est2017DistRev!$A:$A,),1),) -> 0 | AD25: =IFERROR(INDEX(Est2017DistRev!H:H,MATCH($A25,Est2017DistRev!$A:$A,),1),) -> 0 | AE25: =IFERROR(INDEX(Est2017DistRev!I:I,MATCH($A25,Est2017DistRev!$A:$A,),1),) -> 2.18 | AF25: =IFERROR(INDEX(Est2017DistRev!J:J,MATCH($A25,Est2017DistRev!$A:$A,),1),) -> 0 | AG25: =IFERROR(INDEX(Est2017DistRev!K:K,MATCH($A25,Est2017DistRev!$A:$A,),1),) -> 0 | AH25: =IFERROR(INDEX(Est2017DistRev!L:L,MATCH($A25,Est2017DistRev!$A:$A,),1),) -> 0 | AI25: =IFERROR(INDEX(Est2017DistRev!M:M,MATCH($A25,Est2017DistRev!$A:$A,),1),) -> 0 | AJ25: =IFERROR(INDEX(Est2017DistRev!N:N,MATCH($A25,Est2017DistRev!$A:$A,),1),) -> 0 | AK25: =IFERROR(INDEX(Est2017DistRev!O:O,MATCH($A25,Est2017DistRev!$A:$A,),1),) -> 0 | AL25: =IFERROR(INDEX(Est2017DistRev!P:P,MATCH($A25,Est2017DistRev!$A:$A,),1),) -> 0 | AM25: =IFERROR(INDEX(Est2017DistRev!Q:Q,MATCH($A25,Est2017DistRev!$A:$A,),1),) -> 0 | AN25: =IFERROR(INDEX(Est2017DistRev!R:R,MATCH($A25,Est2017DistRev!$A:$A,),1),) -> 0 | AO25: =IFERROR(INDEX(Est2017DistRev!S:S,MATCH($A25,Est2017DistRev!$A:$A,),1),) -> 0 | AP25: =IFERROR(INDEX(Est2017DistRev!T:T,MATCH($A25,Est2017DistRev!$A:$A,),1),) -> 0 | AQ25: =IFERROR(INDEX(Est2017DistRev!U:U,MATCH($A25,Est2017DistRev!$A:$A,),1),) -> 0 | AR25: =IFERROR(INDEX(Est2017DistRev!V:V,MATCH($A25,Est2017DistRev!$A:$A,),1),) -> 0 | AS25: =IFERROR(INDEX(Est2017DistRev!W:W,MATCH($A25,Est2017DistRev!$A:$A,),1),) -> 0 | AT25: =IFERROR(INDEX(Est2017DistRev!X:X,MATCH($A25,Est2017DistRev!$A:$A,),1),) -> 0 | AV25: 4011.792454 | AW25: 0 | AX25: 44315700.54 | AY25: 0 | AZ25: 0 | BA25: 25142157.46 | BB25: 0 | BC25: 0 | BD25: 0 | BE25: 0 | BF25: 0 | BG25: 0 | BH25: 0 | BI25: 0 | BJ25: 0 | BK25: 0 | BL25: 0 | BM25: 0 | BN25: 0 | BO25: 0 | BP25: 0 | BR25: 581709.9058 | BS25: 0 | BT25: 4032728.749 | BU25: 0 | BV25: 0 | BW25: 605925.9948 | BX25: 0 | BY25: 0 | BZ25: 0 | CA25: 0 | CB25: 0 | CC25: 0 | CD25: 0 | CE25: 0 | CF25: 0 | CG25: 0 | CH25: 0 | CI25: 0 | CJ25: 0 | CK25: 0 | CL25: 0 | CM25: 5220364.65 | CO25: =Z25*Vol!D25 -> 561650.9436 | CP25: =AA25*Vol!E25/100 -> 0 | CQ25: =AB25*Vol!F25/100 -> 3664908.435 | CR25: =AC25*Vol!G25/100 -> 0 | CS25: =AD25*Vol!H25/100 -> 0 | CT25: =AE25*Vol!I25/100 -> 548099.0327 | CU25: =AF25*Vol!J25/100 -> 0 | CV25: =AG25*Vol!K25/100 -> 0 | CW25: =AH25*Vol!L25/100 -> 0 | CX25: =AI25*Vol!M25 -> 0 | CY25: =AJ25*Vol!N25 -> 0 | CZ25: =AK25*Vol!O25 -> 0 | DA25: =AL25*Vol!P25 -> 0 | DB25: =AM25*Vol!Q25/100 -> 0 | DC25: =AN25*Vol!R25/100 -> 0 | DD25: =AO25*Vol!S25/100 -> 0 | DE25: =AP25*Vol!T25/100 -> 0 | DF25: =AQ25*Vol!U25/100 -> 0 | DG25: =AR25*Vol!V25/100 -> 0 | DH25: =AS25*Vol!W25/100 -> 0 | DI25: =AT25*Vol!X25/100 -> 0 | DJ25: 4774658.411
A26: C3GB | B26: Non-Residential Interval - Bulk | C26: Non-Residential Interval - Bulk | D26: 125 | E26: 0 | F26: 6.6 | G26: 0 | H26: 0 | I26: 1.8 | J26: 0 | K26: 0 | L26: 0 | M26: 0 | N26: 0 | O26: 0 | P26: 0 | Q26: 0 | R26: 0 | S26: 0 | T26: 0 | U26: 0 | V26: 0 | W26: 0 | X26: 0 | Z26: =IFERROR(INDEX(Est2017DistRev!D:D,MATCH($A26,Est2017DistRev!$A:$A,),1),) -> 120 | AA26: =IFERROR(INDEX(Est2017DistRev!E:E,MATCH($A26,Est2017DistRev!$A:$A,),1),) -> 0 | AB26: =IFERROR(INDEX(Est2017DistRev!F:F,MATCH($A26,Est2017DistRev!$A:$A,),1),) -> 6 | AC26: =IFERROR(INDEX(Est2017DistRev!G:G,MATCH($A26,Est2017DistRev!$A:$A,),1),) -> 0 | AD26: =IFERROR(INDEX(Est2017DistRev!H:H,MATCH($A26,Est2017DistRev!$A:$A,),1),) -> 0 | AE26: =IFERROR(INDEX(Est2017DistRev!I:I,MATCH($A26,Est2017DistRev!$A:$A,),1),) -> 1.63 | AF26: =IFERROR(INDEX(Est2017DistRev!J:J,MATCH($A26,Est2017DistRev!$A:$A,),1),) -> 0 | AG26: =IFERROR(INDEX(Est2017DistRev!K:K,MATCH($A26,Est2017DistRev!$A:$A,),1),) -> 0 | AH26: =IFERROR(INDEX(Est2017DistRev!L:L,MATCH($A26,Est2017DistRev!$A:$A,),1),) -> 0 | AI26: =IFERROR(INDEX(Est2017DistRev!M:M,MATCH($A26,Est2017DistRev!$A:$A,),1),) -> 0 | AJ26: =IFERROR(INDEX(Est2017DistRev!N:N,MATCH($A26,Est2017DistRev!$A:$A,),1),) -> 0 | AK26: =IFERROR(INDEX(Est2017DistRev!O:O,MATCH($A26,Est2017DistRev!$A:$A,),1),) -> 0 | AL26: =IFERROR(INDEX(Est2017DistRev!P:P,MATCH($A26,Est2017DistRev!$A:$A,),1),) -> 0 | AM26: =IFERROR(INDEX(Est2017DistRev!Q:Q,MATCH($A26,Est2017DistRev!$A:$A,),1),) -> 0 | AN26: =IFERROR(INDEX(Est2017DistRev!R:R,MATCH($A26,Est2017DistRev!$A:$A,),1),) -> 0 | AO26: =IFERROR(INDEX(Est2017DistRev!S:S,MATCH($A26,Est2017DistRev!$A:$A,),1),) -> 0 | AP26: =IFERROR(INDEX(Est2017DistRev!T:T,MATCH($A26,Est2017DistRev!$A:$A,),1),) -> 0 | AQ26: =IFERROR(INDEX(Est2017DistRev!U:U,MATCH($A26,Est2017DistRev!$A:$A,),1),) -> 0 | AR26: =IFERROR(INDEX(Est2017DistRev!V:V,MATCH($A26,Est2017DistRev!$A:$A,),1),) -> 0 | AS26: =IFERROR(INDEX(Est2017DistRev!W:W,MATCH($A26,Est2017DistRev!$A:$A,),1),) -> 0 | AT26: =IFERROR(INDEX(Est2017DistRev!X:X,MATCH($A26,Est2017DistRev!$A:$A,),1),) -> 0 | AV26: 1947.172824 | AW26: 0 | AX26: 28963727.79 | AY26: 0 | AZ26: 0 | BA26: 15296835.41 | BB26: 0 | BC26: 0 | BD26: 0 | BE26: 0 | BF26: 0 | BG26: 0 | BH26: 0 | BI26: 0 | BJ26: 0 | BK26: 0 | BL26: 0 | BM26: 0 | BN26: 0 | BO26: 0 | BP26: 0 | BR26: 243396.603 | BS26: 0 | BT26: 1911606.034 | BU26: 0 | BV26: 0 | BW26: 275343.0374 | BX26: 0 | BY26: 0 | BZ26: 0 | CA26: 0 | CB26: 0 | CC26: 0 | CD26: 0 | CE26: 0 | CF26: 0 | CG26: 0 | CH26: 0 | CI26: 0 | CJ26: 0 | CK26: 0 | CL26: 0 | CM26: 2430345.675 | CO26: =Z26*Vol!D26 -> 233660.7389 | CP26: =AA26*Vol!E26/100 -> 0 | CQ26: =AB26*Vol!F26/100 -> 1737823.668 | CR26: =AC26*Vol!G26/100 -> 0 | CS26: =AD26*Vol!H26/100 -> 0 | CT26: =AE26*Vol!I26/100 -> 249338.4172 | CU26: =AF26*Vol!J26/100 -> 0 | CV26: =AG26*Vol!K26/100 -> 0 | CW26: =AH26*Vol!L26/100 -> 0 | CX26: =AI26*Vol!M26 -> 0 | CY26: =AJ26*Vol!N26 -> 0 | CZ26: =AK26*Vol!O26 -> 0 | DA26: =AL26*Vol!P26 -> 0 | DB26: =AM26*Vol!Q26/100 -> 0 | DC26: =AN26*Vol!R26/100 -> 0 | DD26: =AO26*Vol!S26/100 -> 0 | DE26: =AP26*Vol!T26/100 -> 0 | DF26: =AQ26*Vol!U26/100 -> 0 | DG26: =AR26*Vol!V26/100 -> 0 | DH26: =AS26*Vol!W26/100 -> 0 | DI26: =AT26*Vol!X26/100 -> 0 | DJ26: 2220822.824
A27: C14G | B27: Non-Residential Flexible Pricing | C27: Non-Residential Flexible Pricing | D27: 145 | E27: 0 | F27: 0 | G27: 0 | H27: 0 | I27: 0 | J27: 0 | K27: 0 | L27: 0 | M27: 0 | N27: 0 | O27: 0 | P27: 0 | Q27: 11.09 | R27: 7.75 | S27: 3.06 | T27: 0 | U27: 11.09 | V27: 7.75 | W27: 3.06 | X27: 0 | Z27: =IFERROR(INDEX(Est2017DistRev!D:D,MATCH($A27,Est2017DistRev!$A:$A,),1),) -> 140 | AA27: =IFERROR(INDEX(Est2017DistRev!E:E,MATCH($A27,Est2017DistRev!$A:$A,),1),) -> 0 | AB27: =IFERROR(INDEX(Est2017DistRev!F:F,MATCH($A27,Est2017DistRev!$A:$A,),1),) -> 0 | AC27: =IFERROR(INDEX(Est2017DistRev!G:G,MATCH($A27,Est2017DistRev!$A:$A,),1),) -> 0 | AD27: =IFERROR(INDEX(Est2017DistRev!H:H,MATCH($A27,Est2017DistRev!$A:$A,),1),) -> 0 | AE27: =IFERROR(INDEX(Est2017DistRev!I:I,MATCH($A27,Est2017DistRev!$A:$A,),1),) -> 0 | AF27: =IFERROR(INDEX(Est2017DistRev!J:J,MATCH($A27,Est2017DistRev!$A:$A,),1),) -> 0 | AG27: =IFERROR(INDEX(Est2017DistRev!K:K,MATCH($A27,Est2017DistRev!$A:$A,),1),) -> 0 | AH27: =IFERROR(INDEX(Est2017DistRev!L:L,MATCH($A27,Est2017DistRev!$A:$A,),1),) -> 0 | AI27: =IFERROR(INDEX(Est2017DistRev!M:M,MATCH($A27,Est2017DistRev!$A:$A,),1),) -> 0 | AJ27: =IFERROR(INDEX(Est2017DistRev!N:N,MATCH($A27,Est2017DistRev!$A:$A,),1),) -> 0 | AK27: =IFERROR(INDEX(Est2017DistRev!O:O,MATCH($A27,Est2017DistRev!$A:$A,),1),) -> 0 | AL27: =IFERROR(INDEX(Est2017DistRev!P:P,MATCH($A27,Est2017DistRev!$A:$A,),1),) -> 0 | AM27: =IFERROR(INDEX(Est2017DistRev!Q:Q,MATCH($A27,Est2017DistRev!$A:$A,),1),) -> 10.08 | AN27: =IFERROR(INDEX(Est2017DistRev!R:R,MATCH($A27,Est2017DistRev!$A:$A,),1),) -> 7.05 | AO27: =IFERROR(INDEX(Est2017DistRev!S:S,MATCH($A27,Est2017DistRev!$A:$A,),1),) -> 2.77 | AP27: =IFERROR(INDEX(Est2017DistRev!T:T,MATCH($A27,Est2017DistRev!$A:$A,),1),) -> 0 | AQ27: =IFERROR(INDEX(Est2017DistRev!U:U,MATCH($A27,Est2017DistRev!$A:$A,),1),) -> 10.08 | AR27: =IFERROR(INDEX(Est2017DistRev!V:V,MATCH($A27,Est2017DistRev!$A:$A,),1),) -> 7.05 | AS27: =IFERROR(INDEX(Est2017DistRev!W:W,MATCH($A27,Est2017DistRev!$A:$A,),1),) -> 2.77 | AT27: =IFERROR(INDEX(Est2017DistRev!X:X,MATCH($A27,Est2017DistRev!$A:$A,),1),) -> 0 | AV27: 21.10222788 | AW27: 0 | AX27: 0 | AY27: 0 | AZ27: 0 | BA27: 0 | BB27: 0 | BC27: 0 | BD27: 0 | BE27: 0 | BF27: 0 | BG27: 0 | BH27: 0 | BI27: 43821.56936 | BJ27: 12365.14554 | BK27: 36868.09714 | BL27: 0 | BM27: 161494.8713 | BN27: 41032.76051 | BO27: 110833.915 | BP27: 0 | BR27: 3059.823043 | BS27: 0 | BT27: 0 | BU27: 0 | BV27: 0 | BW27: 0 | BX27: 0 | BY27: 0 | BZ27: 0 | CA27: 0 | CB27: 0 | CC27: 0 | CD27: 0 | CE27: 4859.812042 | CF27: 958.2987794 | CG27: 1128.163772 | CH27: 0 | CI27: 17909.78122 | CJ27: 3180.03894 | CK27: 3391.517799 | CL27: 0 | CM27: 34487.4356 | CO27: =Z27*Vol!D27 -> 2954.311904 | CP27: =AA27*Vol!E27/100 -> 0 | CQ27: =AB27*Vol!F27/100 -> 0 | CR27: =AC27*Vol!G27/100 -> 0 | CS27: =AD27*Vol!H27/100 -> 0 | CT27: =AE27*Vol!I27/100 -> 0 | CU27: =AF27*Vol!J27/100 -> 0 | CV27: =AG27*Vol!K27/100 -> 0 | CW27: =AH27*Vol!L27/100 -> 0 | CX27: =AI27*Vol!M27 -> 0 | CY27: =AJ27*Vol!N27 -> 0 | CZ27: =AK27*Vol!O27 -> 0 | DA27: =AL27*Vol!P27 -> 0 | DB27: =AM27*Vol!Q27/100 -> 4417.214192 | DC27: =AN27*Vol!R27/100 -> 871.7427606 | DD27: =AO27*Vol!S27/100 -> 1021.246291 | DE27: =AP27*Vol!T27/100 -> 0 | DF27: =AQ27*Vol!U27/100 -> 16278.68302 | DG27: =AR27*Vol!V27/100 -> 2892.809616 | DH27: =AS27*Vol!W27/100 -> 3070.099446 | DI27: =AT27*Vol!X27/100 -> 0 | DJ27: 31506.10723
A28: C14GB | B28: Non-Residential - Flexible Pricing Bulk | C28: Non-Residential - Flexible Pricing Bulk | D28: 125 | E28: 0 | F28: 0 | G28: 0 | H28: 0 | I28: 0 | J28: 0 | K28: 0 | L28: 0 | M28: 0 | N28: 0 | O28: 0 | P28: 0 | Q28: 9.42 | R28: 6.58 | S28: 2.59 | T28: 0 | U28: 9.42 | V28: 6.58 | W28: 2.59 | X28: 0 | Z28: =IFERROR(INDEX(Est2017DistRev!D:D,MATCH($A28,Est2017DistRev!$A:$A,),1),) -> 120 | AA28: =IFERROR(INDEX(Est2017DistRev!E:E,MATCH($A28,Est2017DistRev!$A:$A,),1),) -> 0 | AB28: =IFERROR(INDEX(Est2017DistRev!F:F,MATCH($A28,Est2017DistRev!$A:$A,),1),) -> 0 | AC28: =IFERROR(INDEX(Est2017DistRev!G:G,MATCH($A28,Est2017DistRev!$A:$A,),1),) -> 0 | AD28: =IFERROR(INDEX(Est2017DistRev!H:H,MATCH($A28,Est2017DistRev!$A:$A,),1),) -> 0 | AE28: =IFERROR(INDEX(Est2017DistRev!I:I,MATCH($A28,Est2017DistRev!$A:$A,),1),) -> 0 | AF28: =IFERROR(INDEX(Est2017DistRev!J:J,MATCH($A28,Est2017DistRev!$A:$A,),1),) -> 0 | AG28: =IFERROR(INDEX(Est2017DistRev!K:K,MATCH($A28,Est2017DistRev!$A:$A,),1),) -> 0 | AH28: =IFERROR(INDEX(Est2017DistRev!L:L,MATCH($A28,Est2017DistRev!$A:$A,),1),) -> 0 | AI28: =IFERROR(INDEX(Est2017DistRev!M:M,MATCH($A28,Est2017DistRev!$A:$A,),1),) -> 0 | AJ28: =IFERROR(INDEX(Est2017DistRev!N:N,MATCH($A28,Est2017DistRev!$A:$A,),1),) -> 0 | AK28: =IFERROR(INDEX(Est2017DistRev!O:O,MATCH($A28,Est2017DistRev!$A:$A,),1),) -> 0 | AL28: =IFERROR(INDEX(Est2017DistRev!P:P,MATCH($A28,Est2017DistRev!$A:$A,),1),) -> 0 | AM28: =IFERROR(INDEX(Est2017DistRev!Q:Q,MATCH($A28,Est2017DistRev!$A:$A,),1),) -> 8.56 | AN28: =IFERROR(INDEX(Est2017DistRev!R:R,MATCH($A28,Est2017DistRev!$A:$A,),1),) -> 5.98 | AO28: =IFERROR(INDEX(Est2017DistRev!S:S,MATCH($A28,Est2017DistRev!$A:$A,),1),) -> 2.35 | AP28: =IFERROR(INDEX(Est2017DistRev!T:T,MATCH($A28,Est2017DistRev!$A:$A,),1),) -> 0 | AQ28: =IFERROR(INDEX(Est2017DistRev!U:U,MATCH($A28,Est2017DistRev!$A:$A,),1),) -> 8.56 | AR28: =IFERROR(INDEX(Est2017DistRev!V:V,MATCH($A28,Est2017DistRev!$A:$A,),1),) -> 5.98 | AS28: =IFERROR(INDEX(Est2017DistRev!W:W,MATCH($A28,Est2017DistRev!$A:$A,),1),) -> 2.35 | AT28: =IFERROR(INDEX(Est2017DistRev!X:X,MATCH($A28,Est2017DistRev!$A:$A,),1),) -> 0 | AV28: 5 | AW28: 0 | AX28: 0 | AY28: 0 | AZ28: 0 | BA28: 0 | BB28: 0 | BC28: 0 | BD28: 0 | BE28: 0 | BF28: 0 | BG28: 0 | BH28: 0 | BI28: 10467.50047 | BJ28: 2361.846711 | BK28: 7699.32017 | BL28: 0 | BM28: 30024.78157 | BN28: 6386.584144 | BO28: 20918.50232 | BP28: 0 | BR28: 625 | BS28: 0 | BT28: 0 | BU28: 0 | BV28: 0 | BW28: 0 | BX28: 0 | BY28: 0 | BZ28: 0 | CA28: 0 | CB28: 0 | CC28: 0 | CD28: 0 | CE28: 986.0385441 | CF28: 155.4095136 | CG28: 199.4123924 | CH28: 0 | CI28: 2828.334424 | CJ28: 420.2372366 | CK28: 541.78921 | CL28: 0 | CM28: 5756.221321 | CO28: =Z28*Vol!D28 -> 600 | CP28: =AA28*Vol!E28/100 -> 0 | CQ28: =AB28*Vol!F28/100 -> 0 | CR28: =AC28*Vol!G28/100 -> 0 | CS28: =AD28*Vol!H28/100 -> 0 | CT28: =AE28*Vol!I28/100 -> 0 | CU28: =AF28*Vol!J28/100 -> 0 | CV28: =AG28*Vol!K28/100 -> 0 | CW28: =AH28*Vol!L28/100 -> 0 | CX28: =AI28*Vol!M28 -> 0 | CY28: =AJ28*Vol!N28 -> 0 | CZ28: =AK28*Vol!O28 -> 0 | DA28: =AL28*Vol!P28 -> 0 | DB28: =AM28*Vol!Q28/100 -> 896.0180401 | DC28: =AN28*Vol!R28/100 -> 141.2384333 | DD28: =AO28*Vol!S28/100 -> 180.934024 | DE28: =AP28*Vol!T28/100 -> 0 | DF28: =AQ28*Vol!U28/100 -> 2570.121303 | DG28: =AR28*Vol!V28/100 -> 381.9177318 | DH28: =AS28*Vol!W28/100 -> 491.5848044 | DI28: =AT28*Vol!X28/100 -> 0 | DJ28: 5261.814336
A29: C2G7 | B29: Non-Residential Two Rate 7d | C29: Non-Residential Two Rate 7d | D29: 145 | E29: 0 | F29: 7.16 | G29: 0 | H29: 0 | I29: 2.41 | J29: 0 | K29: 0 | L29: 0 | M29: 0 | N29: 0 | O29: 0 | P29: 0 | Q29: 0 | R29: 0 | S29: 0 | T29: 0 | U29: 0 | V29: 0 | W29: 0 | X29: 0 | Z29: =IFERROR(INDEX(Est2017DistRev!D:D,MATCH($A29,Est2017DistRev!$A:$A,),1),) -> 140 | AA29: =IFERROR(INDEX(Est2017DistRev!E:E,MATCH($A29,Est2017DistRev!$A:$A,),1),) -> 0 | AB29: =IFERROR(INDEX(Est2017DistRev!F:F,MATCH($A29,Est2017DistRev!$A:$A,),1),) -> 6.51 | AC29: =IFERROR(INDEX(Est2017DistRev!G:G,MATCH($A29,Est2017DistRev!$A:$A,),1),) -> 0 | AD29: =IFERROR(INDEX(Est2017DistRev!H:H,MATCH($A29,Est2017DistRev!$A:$A,),1),) -> 0 | AE29: =IFERROR(INDEX(Est2017DistRev!I:I,MATCH($A29,Est2017DistRev!$A:$A,),1),) -> 2.18 | AF29: =IFERROR(INDEX(Est2017DistRev!J:J,MATCH($A29,Est2017DistRev!$A:$A,),1),) -> 0 | AG29: =IFERROR(INDEX(Est2017DistRev!K:K,MATCH($A29,Est2017DistRev!$A:$A,),1),) -> 0 | AH29: =IFERROR(INDEX(Est2017DistRev!L:L,MATCH($A29,Est2017DistRev!$A:$A,),1),) -> 0 | AI29: =IFERROR(INDEX(Est2017DistRev!M:M,MATCH($A29,Est2017DistRev!$A:$A,),1),) -> 0 | AJ29: =IFERROR(INDEX(Est2017DistRev!N:N,MATCH($A29,Est2017DistRev!$A:$A,),1),) -> 0 | AK29: =IFERROR(INDEX(Est2017DistRev!O:O,MATCH($A29,Est2017DistRev!$A:$A,),1),) -> 0 | AL29: =IFERROR(INDEX(Est2017DistRev!P:P,MATCH($A29,Est2017DistRev!$A:$A,),1),) -> 0 | AM29: =IFERROR(INDEX(Est2017DistRev!Q:Q,MATCH($A29,Est2017DistRev!$A:$A,),1),) -> 0 | AN29: =IFERROR(INDEX(Est2017DistRev!R:R,MATCH($A29,Est2017DistRev!$A:$A,),1),) -> 0 | AO29: =IFERROR(INDEX(Est2017DistRev!S:S,MATCH($A29,Est2017DistRev!$A:$A,),1),) -> 0 | AP29: =IFERROR(INDEX(Est2017DistRev!T:T,MATCH($A29,Est2017DistRev!$A:$A,),1),) -> 0 | AQ29: =IFERROR(INDEX(Est2017DistRev!U:U,MATCH($A29,Est2017DistRev!$A:$A,),1),) -> 0 | AR29: =IFERROR(INDEX(Est2017DistRev!V:V,MATCH($A29,Est2017DistRev!$A:$A,),1),) -> 0 | AS29: =IFERROR(INDEX(Est2017DistRev!W:W,MATCH($A29,Est2017DistRev!$A:$A,),1),) -> 0 | AT29: =IFERROR(INDEX(Est2017DistRev!X:X,MATCH($A29,Est2017DistRev!$A:$A,),1),) -> 0 | AV29: 2322.444207 | AW29: 0 | AX29: 37314656.19 | AY29: 0 | AZ29: 0 | BA29: 8982959.302 | BB29: 0 | BC29: 0 | BD29: 0 | BE29: 0 | BF29: 0 | BG29: 0 | BH29: 0 | BI29: 0 | BJ29: 0 | BK29: 0 | BL29: 0 | BM29: 0 | BN29: 0 | BO29: 0 | BP29: 0 | BR29: 336754.41 | BS29: 0 | BT29: 2671729.383 | BU29: 0 | BV29: 0 | BW29: 216489.3192 | BX29: 0 | BY29: 0 | BZ29: 0 | CA29: 0 | CB29: 0 | CC29: 0 | CD29: 0 | CE29: 0 | CF29: 0 | CG29: 0 | CH29: 0 | CI29: 0 | CJ29: 0 | CK29: 0 | CL29: 0 | CM29: 3224973.112 | CO29: =Z29*Vol!D29 -> 325142.189 | CP29: =AA29*Vol!E29/100 -> 0 | CQ29: =AB29*Vol!F29/100 -> 2429184.118 | CR29: =AC29*Vol!G29/100 -> 0 | CS29: =AD29*Vol!H29/100 -> 0 | CT29: =AE29*Vol!I29/100 -> 195828.5128 | CU29: =AF29*Vol!J29/100 -> 0 | CV29: =AG29*Vol!K29/100 -> 0 | CW29: =AH29*Vol!L29/100 -> 0 | CX29: =AI29*Vol!M29 -> 0 | CY29: =AJ29*Vol!N29 -> 0 | CZ29: =AK29*Vol!O29 -> 0 | DA29: =AL29*Vol!P29 -> 0 | DB29: =AM29*Vol!Q29/100 -> 0 | DC29: =AN29*Vol!R29/100 -> 0 | DD29: =AO29*Vol!S29/100 -> 0 | DE29: =AP29*Vol!T29/100 -> 0 | DF29: =AQ29*Vol!U29/100 -> 0 | DG29: =AR29*Vol!V29/100 -> 0 | DH29: =AS29*Vol!W29/100 -> 0 | DI29: =AT29*Vol!X29/100 -> 0 | DJ29: 2950154.82
A30: C2G7B | B30: Non-Residential Two Rate 7d - Bulk | C30: Non-Residential Two Rate 7d - Bulk | D30: 125 | E30: 0 | F30: 6.17 | G30: 0 | H30: 0 | I30: 1.8 | J30: 0 | K30: 0 | L30: 0 | M30: 0 | N30: 0 | O30: 0 | P30: 0 | Q30: 0 | R30: 0 | S30: 0 | T30: 0 | U30: 0 | V30: 0 | W30: 0 | X30: 0 | Z30: =IFERROR(INDEX(Est2017DistRev!D:D,MATCH($A30,Est2017DistRev!$A:$A,),1),) -> 120 | AA30: =IFERROR(INDEX(Est2017DistRev!E:E,MATCH($A30,Est2017DistRev!$A:$A,),1),) -> 0 | AB30: =IFERROR(INDEX(Est2017DistRev!F:F,MATCH($A30,Est2017DistRev!$A:$A,),1),) -> 5.61 | AC30: =IFERROR(INDEX(Est2017DistRev!G:G,MATCH($A30,Est2017DistRev!$A:$A,),1),) -> 0 | AD30: =IFERROR(INDEX(Est2017DistRev!H:H,MATCH($A30,Est2017DistRev!$A:$A,),1),) -> 0 | AE30: =IFERROR(INDEX(Est2017DistRev!I:I,MATCH($A30,Est2017DistRev!$A:$A,),1),) -> 1.63 | AF30: =IFERROR(INDEX(Est2017DistRev!J:J,MATCH($A30,Est2017DistRev!$A:$A,),1),) -> 0 | AG30: =IFERROR(INDEX(Est2017DistRev!K:K,MATCH($A30,Est2017DistRev!$A:$A,),1),) -> 0 | AH30: =IFERROR(INDEX(Est2017DistRev!L:L,MATCH($A30,Est2017DistRev!$A:$A,),1),) -> 0 | AI30: =IFERROR(INDEX(Est2017DistRev!M:M,MATCH($A30,Est2017DistRev!$A:$A,),1),) -> 0 | AJ30: =IFERROR(INDEX(Est2017DistRev!N:N,MATCH($A30,Est2017DistRev!$A:$A,),1),) -> 0 | AK30: =IFERROR(INDEX(Est2017DistRev!O:O,MATCH($A30,Est2017DistRev!$A:$A,),1),) -> 0 | AL30: =IFERROR(INDEX(Est2017DistRev!P:P,MATCH($A30,Est2017DistRev!$A:$A,),1),) -> 0 | AM30: =IFERROR(INDEX(Est2017DistRev!Q:Q,MATCH($A30,Est2017DistRev!$A:$A,),1),) -> 0 | AN30: =IFERROR(INDEX(Est2017DistRev!R:R,MATCH($A30,Est2017DistRev!$A:$A,),1),) -> 0 | AO30: =IFERROR(INDEX(Est2017DistRev!S:S,MATCH($A30,Est2017DistRev!$A:$A,),1),) -> 0 | AP30: =IFERROR(INDEX(Est2017DistRev!T:T,MATCH($A30,Est2017DistRev!$A:$A,),1),) -> 0 | AQ30: =IFERROR(INDEX(Est2017DistRev!U:U,MATCH($A30,Est2017DistRev!$A:$A,),1),) -> 0 | AR30: =IFERROR(INDEX(Est2017DistRev!V:V,MATCH($A30,Est2017DistRev!$A:$A,),1),) -> 0 | AS30: =IFERROR(INDEX(Est2017DistRev!W:W,MATCH($A30,Est2017DistRev!$A:$A,),1),) -> 0 | AT30: =IFERROR(INDEX(Est2017DistRev!X:X,MATCH($A30,Est2017DistRev!$A:$A,),1),) -> 0 | AV30: 251.5269155 | AW30: 0 | AX30: 5172333.901 | AY30: 0 | AZ30: 0 | BA30: 1298680.775 | BB30: 0 | BC30: 0 | BD30: 0 | BE30: 0 | BF30: 0 | BG30: 0 | BH30: 0 | BI30: 0 | BJ30: 0 | BK30: 0 | BL30: 0 | BM30: 0 | BN30: 0 | BO30: 0 | BP30: 0 | BR30: 31440.86443 | BS30: 0 | BT30: 319133.0017 | BU30: 0 | BV30: 0 | BW30: 23376.25396 | BX30: 0 | BY30: 0 | BZ30: 0 | CA30: 0 | CB30: 0 | CC30: 0 | CD30: 0 | CE30: 0 | CF30: 0 | CG30: 0 | CH30: 0 | CI30: 0 | CJ30: 0 | CK30: 0 | CL30: 0 | CM30: 373950.1201 | CO30: =Z30*Vol!D30 -> 30183.22986 | CP30: =AA30*Vol!E30/100 -> 0 | CQ30: =AB30*Vol!F30/100 -> 290167.9318 | CR30: =AC30*Vol!G30/100 -> 0 | CS30: =AD30*Vol!H30/100 -> 0 | CT30: =AE30*Vol!I30/100 -> 21168.49664 | CU30: =AF30*Vol!J30/100 -> 0 | CV30: =AG30*Vol!K30/100 -> 0 | CW30: =AH30*Vol!L30/100 -> 0 | CX30: =AI30*Vol!M30 -> 0 | CY30: =AJ30*Vol!N30 -> 0 | CZ30: =AK30*Vol!O30 -> 0 | DA30: =AL30*Vol!P30 -> 0 | DB30: =AM30*Vol!Q30/100 -> 0 | DC30: =AN30*Vol!R30/100 -> 0 | DD30: =AO30*Vol!S30/100 -> 0 | DE30: =AP30*Vol!T30/100 -> 0 | DF30: =AQ30*Vol!U30/100 -> 0 | DG30: =AR30*Vol!V30/100 -> 0 | DH30: =AS30*Vol!W30/100 -> 0 | DI30: =AT30*Vol!X30/100 -> 0 | DJ30: 341519.6583
A31: C2L7 | B31: Large Two Rate 7d | C31: Large Two Rate 7d | D31: 145 | E31: 0 | F31: 9.1 | G31: 0 | H31: 0 | I31: 2.41 | J31: 0 | K31: 0 | L31: 0 | M31: 0 | N31: 0 | O31: 0 | P31: 0 | Q31: 0 | R31: 0 | S31: 0 | T31: 0 | U31: 0 | V31: 0 | W31: 0 | X31: 0 | Z31: =IFERROR(INDEX(Est2017DistRev!D:D,MATCH($A31,Est2017DistRev!$A:$A,),1),) -> 140 | AA31: =IFERROR(INDEX(Est2017DistRev!E:E,MATCH($A31,Est2017DistRev!$A:$A,),1),) -> 0 | AB31: =IFERROR(INDEX(Est2017DistRev!F:F,MATCH($A31,Est2017DistRev!$A:$A,),1),) -> 8.27 | AC31: =IFERROR(INDEX(Est2017DistRev!G:G,MATCH($A31,Est2017DistRev!$A:$A,),1),) -> 0 | AD31: =IFERROR(INDEX(Est2017DistRev!H:H,MATCH($A31,Est2017DistRev!$A:$A,),1),) -> 0 | AE31: =IFERROR(INDEX(Est2017DistRev!I:I,MATCH($A31,Est2017DistRev!$A:$A,),1),) -> 2.18 | AF31: =IFERROR(INDEX(Est2017DistRev!J:J,MATCH($A31,Est2017DistRev!$A:$A,),1),) -> 0 | AG31: =IFERROR(INDEX(Est2017DistRev!K:K,MATCH($A31,Est2017DistRev!$A:$A,),1),) -> 0 | AH31: =IFERROR(INDEX(Est2017DistRev!L:L,MATCH($A31,Est2017DistRev!$A:$A,),1),) -> 0 | AI31: =IFERROR(INDEX(Est2017DistRev!M:M,MATCH($A31,Est2017DistRev!$A:$A,),1),) -> 0 | AJ31: =IFERROR(INDEX(Est2017DistRev!N:N,MATCH($A31,Est2017DistRev!$A:$A,),1),) -> 0 | AK31: =IFERROR(INDEX(Est2017DistRev!O:O,MATCH($A31,Est2017DistRev!$A:$A,),1),) -> 0 | AL31: =IFERROR(INDEX(Est2017DistRev!P:P,MATCH($A31,Est2017DistRev!$A:$A,),1),) -> 0 | AM31: =IFERROR(INDEX(Est2017DistRev!Q:Q,MATCH($A31,Est2017DistRev!$A:$A,),1),) -> 0 | AN31: =IFERROR(INDEX(Est2017DistRev!R:R,MATCH($A31,Est2017DistRev!$A:$A,),1),) -> 0 | AO31: =IFERROR(INDEX(Est2017DistRev!S:S,MATCH($A31,Est2017DistRev!$A:$A,),1),) -> 0 | AP31: =IFERROR(INDEX(Est2017DistRev!T:T,MATCH($A31,Est2017DistRev!$A:$A,),1),) -> 0 | AQ31: =IFERROR(INDEX(Est2017DistRev!U:U,MATCH($A31,Est2017DistRev!$A:$A,),1),) -> 0 | AR31: =IFERROR(INDEX(Est2017DistRev!V:V,MATCH($A31,Est2017DistRev!$A:$A,),1),) -> 0 | AS31: =IFERROR(INDEX(Est2017DistRev!W:W,MATCH($A31,Est2017DistRev!$A:$A,),1),) -> 0 | AT31: =IFERROR(INDEX(Est2017DistRev!X:X,MATCH($A31,Est2017DistRev!$A:$A,),1),) -> 0 | AV31: 4 | AW31: 0 | AX31: 224820.2679 | AY31: 0 | AZ31: 0 | BA31: 61632.40762 | BB31: 0 | BC31: 0 | BD31: 0 | BE31: 0 | BF31: 0 | BG31: 0 | BH31: 0 | BI31: 0 | BJ31: 0 | BK31: 0 | BL31: 0 | BM31: 0 | BN31: 0 | BO31: 0 | BP31: 0 | BR31: 580 | BS31: 0 | BT31: 20458.64438 | BU31: 0 | BV31: 0 | BW31: 1485.341024 | BX31: 0 | BY31: 0 | BZ31: 0 | CA31: 0 | CB31: 0 | CC31: 0 | CD31: 0 | CE31: 0 | CF31: 0 | CG31: 0 | CH31: 0 | CI31: 0 | CJ31: 0 | CK31: 0 | CL31: 0 | CM31: 22523.9854 | CO31: =Z31*Vol!D31 -> 560 | CP31: =AA31*Vol!E31/100 -> 0 | CQ31: =AB31*Vol!F31/100 -> 18592.63616 | CR31: =AC31*Vol!G31/100 -> 0 | CS31: =AD31*Vol!H31/100 -> 0 | CT31: =AE31*Vol!I31/100 -> 1343.586486 | CU31: =AF31*Vol!J31/100 -> 0 | CV31: =AG31*Vol!K31/100 -> 0 | CW31: =AH31*Vol!L31/100 -> 0 | CX31: =AI31*Vol!M31 -> 0 | CY31: =AJ31*Vol!N31 -> 0 | CZ31: =AK31*Vol!O31 -> 0 | DA31: =AL31*Vol!P31 -> 0 | DB31: =AM31*Vol!Q31/100 -> 0 | DC31: =AN31*Vol!R31/100 -> 0 | DD31: =AO31*Vol!S31/100 -> 0 | DE31: =AP31*Vol!T31/100 -> 0 | DF31: =AQ31*Vol!U31/100 -> 0 | DG31: =AR31*Vol!V31/100 -> 0 | DH31: =AS31*Vol!W31/100 -> 0 | DI31: =AT31*Vol!X31/100 -> 0 | DJ31: 20496.22264
A32: CG | B32: Non-Residential Demand Tariff | C32: Non-Residential Demand Tariff | D32: 145 | E32: 3.32 | F32: 0 | G32: 0 | H32: 0 | I32: 0 | J32: 0 | K32: 0 | L32: 0 | M32: 0 | N32: 0 | O32: 10.59 | P32: 3.53 | Q32: 0 | R32: 0 | S32: 0 | T32: 0 | U32: 0 | V32: 0 | W32: 0 | X32: 0 | Z32: =IFERROR(INDEX(Est2017DistRev!D:D,MATCH($A32,Est2017DistRev!$A:$A,),1),) -> 140 | AA32: =IFERROR(INDEX(Est2017DistRev!E:E,MATCH($A32,Est2017DistRev!$A:$A,),1),) -> 3.01 | AB32: =IFERROR(INDEX(Est2017DistRev!F:F,MATCH($A32,Est2017DistRev!$A:$A,),1),) -> 0 | AC32: =IFERROR(INDEX(Est2017DistRev!G:G,MATCH($A32,Est2017DistRev!$A:$A,),1),) -> 0 | AD32: =IFERROR(INDEX(Est2017DistRev!H:H,MATCH($A32,Est2017DistRev!$A:$A,),1),) -> 0 | AE32: =IFERROR(INDEX(Est2017DistRev!I:I,MATCH($A32,Est2017DistRev!$A:$A,),1),) -> 0 | AF32: =IFERROR(INDEX(Est2017DistRev!J:J,MATCH($A32,Est2017DistRev!$A:$A,),1),) -> 0 | AG32: =IFERROR(INDEX(Est2017DistRev!K:K,MATCH($A32,Est2017DistRev!$A:$A,),1),) -> 0 | AH32: =IFERROR(INDEX(Est2017DistRev!L:L,MATCH($A32,Est2017DistRev!$A:$A,),1),) -> 0 | AI32: =IFERROR(INDEX(Est2017DistRev!M:M,MATCH($A32,Est2017DistRev!$A:$A,),1),) -> 0 | AJ32: =IFERROR(INDEX(Est2017DistRev!N:N,MATCH($A32,Est2017DistRev!$A:$A,),1),) -> 0 | AK32: =IFERROR(INDEX(Est2017DistRev!O:O,MATCH($A32,Est2017DistRev!$A:$A,),1),) -> 9.64 | AL32: =IFERROR(INDEX(Est2017DistRev!P:P,MATCH($A32,Est2017DistRev!$A:$A,),1),) -> 3.21 | AM32: =IFERROR(INDEX(Est2017DistRev!Q:Q,MATCH($A32,Est2017DistRev!$A:$A,),1),) -> 0 | AN32: =IFERROR(INDEX(Est2017DistRev!R:R,MATCH($A32,Est2017DistRev!$A:$A,),1),) -> 0 | AO32: =IFERROR(INDEX(Est2017DistRev!S:S,MATCH($A32,Est2017DistRev!$A:$A,),1),) -> 0 | AP32: =IFERROR(INDEX(Est2017DistRev!T:T,MATCH($A32,Est2017DistRev!$A:$A,),1),) -> 0 | AQ32: =IFERROR(INDEX(Est2017DistRev!U:U,MATCH($A32,Est2017DistRev!$A:$A,),1),) -> 0 | AR32: =IFERROR(INDEX(Est2017DistRev!V:V,MATCH($A32,Est2017DistRev!$A:$A,),1),) -> 0 | AS32: =IFERROR(INDEX(Est2017DistRev!W:W,MATCH($A32,Est2017DistRev!$A:$A,),1),) -> 0 | AT32: =IFERROR(INDEX(Est2017DistRev!X:X,MATCH($A32,Est2017DistRev!$A:$A,),1),) -> 0 | AV32: 5 | AW32: 100000 | AX32: 0 | AY32: 0 | AZ32: 0 | BA32: 0 | BB32: 0 | BC32: 0 | BD32: 0 | BE32: 0 | BF32: 0 | BG32: 130.4631442 | BH32: 228.3105023 | BI32: 0 | BJ32: 0 | BK32: 0 | BL32: 0 | BM32: 0 | BN32: 0 | BO32: 0 | BP32: 0 | BR32: 725 | BS32: 3320 | BT32: 0 | BU32: 0 | BV32: 0 | BW32: 0 | BX32: 0 | BY32: 0 | BZ32: 0 | CA32: 0 | CB32: 0 | CC32: 1381.604697 | CD32: 805.9360731 | CE32: 0 | CF32: 0 | CG32: 0 | CH32: 0 | CI32: 0 | CJ32: 0 | CK32: 0 | CL32: 0 | CM32: 6232.54077 | CO32: =Z32*Vol!D32 -> 700 | CP32: =AA32*Vol!E32/100 -> 3010 | CQ32: =AB32*Vol!F32/100 -> 0 | CR32: =AC32*Vol!G32/100 -> 0 | CS32: =AD32*Vol!H32/100 -> 0 | CT32: =AE32*Vol!I32/100 -> 0 | CU32: =AF32*Vol!J32/100 -> 0 | CV32: =AG32*Vol!K32/100 -> 0 | CW32: =AH32*Vol!L32/100 -> 0 | CX32: =AI32*Vol!M32 -> 0 | CY32: =AJ32*Vol!N32 -> 0 | CZ32: =AK32*Vol!O32 -> 1257.66471 | DA32: =AL32*Vol!P32 -> 732.8767123 | DB32: =AM32*Vol!Q32/100 -> 0 | DC32: =AN32*Vol!R32/100 -> 0 | DD32: =AO32*Vol!S32/100 -> 0 | DE32: =AP32*Vol!T32/100 -> 0 | DF32: =AQ32*Vol!U32/100 -> 0 | DG32: =AR32*Vol!V32/100 -> 0 | DH32: =AS32*Vol!W32/100 -> 0 | DI32: =AT32*Vol!X32/100 -> 0 | DJ32: 5700.541422
A33: CGB | B33: Non-Residential Bulk Demand Tariff | C33: Non-Residential Bulk Demand Tariff | D33: 125 | E33: 2.99 | F33: 0 | G33: 0 | H33: 0 | I33: 0 | J33: 0 | K33: 0 | L33: 0 | M33: 0 | N33: 0 | O33: 7.94 | P33: 2.64 | Q33: 0 | R33: 0 | S33: 0 | T33: 0 | U33: 0 | V33: 0 | W33: 0 | X33: 0 | Z33: =IFERROR(INDEX(Est2017DistRev!D:D,MATCH($A33,Est2017DistRev!$A:$A,),1),) -> 120 | AA33: =IFERROR(INDEX(Est2017DistRev!E:E,MATCH($A33,Est2017DistRev!$A:$A,),1),) -> 2.71 | AB33: =IFERROR(INDEX(Est2017DistRev!F:F,MATCH($A33,Est2017DistRev!$A:$A,),1),) -> 0 | AC33: =IFERROR(INDEX(Est2017DistRev!G:G,MATCH($A33,Est2017DistRev!$A:$A,),1),) -> 0 | AD33: =IFERROR(INDEX(Est2017DistRev!H:H,MATCH($A33,Est2017DistRev!$A:$A,),1),) -> 0 | AE33: =IFERROR(INDEX(Est2017DistRev!I:I,MATCH($A33,Est2017DistRev!$A:$A,),1),) -> 0 | AF33: =IFERROR(INDEX(Est2017DistRev!J:J,MATCH($A33,Est2017DistRev!$A:$A,),1),) -> 0 | AG33: =IFERROR(INDEX(Est2017DistRev!K:K,MATCH($A33,Est2017DistRev!$A:$A,),1),) -> 0 | AH33: =IFERROR(INDEX(Est2017DistRev!L:L,MATCH($A33,Est2017DistRev!$A:$A,),1),) -> 0 | AI33: =IFERROR(INDEX(Est2017DistRev!M:M,MATCH($A33,Est2017DistRev!$A:$A,),1),) -> 0 | AJ33: =IFERROR(INDEX(Est2017DistRev!N:N,MATCH($A33,Est2017DistRev!$A:$A,),1),) -> 0 | AK33: =IFERROR(INDEX(Est2017DistRev!O:O,MATCH($A33,Est2017DistRev!$A:$A,),1),) -> 7.23 | AL33: =IFERROR(INDEX(Est2017DistRev!P:P,MATCH($A33,Est2017DistRev!$A:$A,),1),) -> 2.41 | AM33: =IFERROR(INDEX(Est2017DistRev!Q:Q,MATCH($A33,Est2017DistRev!$A:$A,),1),) -> 0 | AN33: =IFERROR(INDEX(Est2017DistRev!R:R,MATCH($A33,Est2017DistRev!$A:$A,),1),) -> 0 | AO33: =IFERROR(INDEX(Est2017DistRev!S:S,MATCH($A33,Est2017DistRev!$A:$A,),1),) -> 0 | AP33: =IFERROR(INDEX(Est2017DistRev!T:T,MATCH($A33,Est2017DistRev!$A:$A,),1),) -> 0 | AQ33: =IFERROR(INDEX(Est2017DistRev!U:U,MATCH($A33,Est2017DistRev!$A:$A,),1),) -> 0 | AR33: =IFERROR(INDEX(Est2017DistRev!V:V,MATCH($A33,Est2017DistRev!$A:$A,),1),) -> 0 | AS33: =IFERROR(INDEX(Est2017DistRev!W:W,MATCH($A33,Est2017DistRev!$A:$A,),1),) -> 0 | AT33: =IFERROR(INDEX(Est2017DistRev!X:X,MATCH($A33,Est2017DistRev!$A:$A,),1),) -> 0 | AV33: 1 | AW33: 16000 | AX33: 0 | AY33: 0 | AZ33: 0 | BA33: 0 | BB33: 0 | BC33: 0 | BD33: 0 | BE33: 0 | BF33: 0 | BG33: 20.87410307 | BH33: 36.52968037 | BI33: 0 | BJ33: 0 | BK33: 0 | BL33: 0 | BM33: 0 | BN33: 0 | BO33: 0 | BP33: 0 | BR33: 125 | BS33: 478.4 | BT33: 0 | BU33: 0 | BV33: 0 | BW33: 0 | BX33: 0 | BY33: 0 | BZ33: 0 | CA33: 0 | CB33: 0 | CC33: 165.7403783 | CD33: 96.43835616 | CE33: 0 | CF33: 0 | CG33: 0 | CH33: 0 | CI33: 0 | CJ33: 0 | CK33: 0 | CL33: 0 | CM33: 865.5787345 | CO33: =Z33*Vol!D33 -> 120 | CP33: =AA33*Vol!E33/100 -> 433.6 | CQ33: =AB33*Vol!F33/100 -> 0 | CR33: =AC33*Vol!G33/100 -> 0 | CS33: =AD33*Vol!H33/100 -> 0 | CT33: =AE33*Vol!I33/100 -> 0 | CU33: =AF33*Vol!J33/100 -> 0 | CV33: =AG33*Vol!K33/100 -> 0 | CW33: =AH33*Vol!L33/100 -> 0 | CX33: =AI33*Vol!M33 -> 0 | CY33: =AJ33*Vol!N33 -> 0 | CZ33: =AK33*Vol!O33 -> 150.9197652 | DA33: =AL33*Vol!P33 -> 88.03652968 | DB33: =AM33*Vol!Q33/100 -> 0 | DC33: =AN33*Vol!R33/100 -> 0 | DD33: =AO33*Vol!S33/100 -> 0 | DE33: =AP33*Vol!T33/100 -> 0 | DF33: =AQ33*Vol!U33/100 -> 0 | DG33: =AR33*Vol!V33/100 -> 0 | DH33: =AS33*Vol!W33/100 -> 0 | DI33: =AT33*Vol!X33/100 -> 0 | DJ33: 792.5562948
A34: CMG | B34: Medium Business Demand | C34: Medium Business Demand | D34: 800 | E34: 0 | F34: 5.44 | G34: 0 | H34: 0 | I34: 3.21 | J34: 0 | K34: 0 | L34: 0 | M34: 0 | N34: 0 | O34: 2.73 | P34: 1.37 | Q34: 0 | R34: 0 | S34: 0 | T34: 0 | U34: 0 | V34: 0 | W34: 0 | X34: 0 | Z34: =IFERROR(INDEX(Est2017DistRev!D:D,MATCH($A34,Est2017DistRev!$A:$A,),1),) -> 800 | AA34: =IFERROR(INDEX(Est2017DistRev!E:E,MATCH($A34,Est2017DistRev!$A:$A,),1),) -> 0 | AB34: =IFERROR(INDEX(Est2017DistRev!F:F,MATCH($A34,Est2017DistRev!$A:$A,),1),) -> 6.35 | AC34: =IFERROR(INDEX(Est2017DistRev!G:G,MATCH($A34,Est2017DistRev!$A:$A,),1),) -> 0 | AD34: =IFERROR(INDEX(Est2017DistRev!H:H,MATCH($A34,Est2017DistRev!$A:$A,),1),) -> 0 | AE34: =IFERROR(INDEX(Est2017DistRev!I:I,MATCH($A34,Est2017DistRev!$A:$A,),1),) -> 3.14 | AF34: =IFERROR(INDEX(Est2017DistRev!J:J,MATCH($A34,Est2017DistRev!$A:$A,),1),) -> 0 | AG34: =IFERROR(INDEX(Est2017DistRev!K:K,MATCH($A34,Est2017DistRev!$A:$A,),1),) -> 0 | AH34: =IFERROR(INDEX(Est2017DistRev!L:L,MATCH($A34,Est2017DistRev!$A:$A,),1),) -> 0 | AI34: =IFERROR(INDEX(Est2017DistRev!M:M,MATCH($A34,Est2017DistRev!$A:$A,),1),) -> 0 | AJ34: =IFERROR(INDEX(Est2017DistRev!N:N,MATCH($A34,Est2017DistRev!$A:$A,),1),) -> 0 | AK34: =IFERROR(INDEX(Est2017DistRev!O:O,MATCH($A34,Est2017DistRev!$A:$A,),1),) -> 0 | AL34: =IFERROR(INDEX(Est2017DistRev!P:P,MATCH($A34,Est2017DistRev!$A:$A,),1),) -> 0 | AM34: =IFERROR(INDEX(Est2017DistRev!Q:Q,MATCH($A34,Est2017DistRev!$A:$A,),1),) -> 0 | AN34: =IFERROR(INDEX(Est2017DistRev!R:R,MATCH($A34,Est2017DistRev!$A:$A,),1),) -> 0 | AO34: =IFERROR(INDEX(Est2017DistRev!S:S,MATCH($A34,Est2017DistRev!$A:$A,),1),) -> 0 | AP34: =IFERROR(INDEX(Est2017DistRev!T:T,MATCH($A34,Est2017DistRev!$A:$A,),1),) -> 0 | AQ34: =IFERROR(INDEX(Est2017DistRev!U:U,MATCH($A34,Est2017DistRev!$A:$A,),1),) -> 0 | AR34: =IFERROR(INDEX(Est2017DistRev!V:V,MATCH($A34,Est2017DistRev!$A:$A,),1),) -> 0 | AS34: =IFERROR(INDEX(Est2017DistRev!W:W,MATCH($A34,Est2017DistRev!$A:$A,),1),) -> 0 | AT34: =IFERROR(INDEX(Est2017DistRev!X:X,MATCH($A34,Est2017DistRev!$A:$A,),1),) -> 0 | AV34: 4454.758429 | AW34: 0 | AX34: 385749824.5 | AY34: 0 | AZ34: 0 | BA34: 237077602.3 | BB34: 0 | BC34: 0 | BD34: 0 | BE34: 0 | BF34: 0 | BG34: 764494.4395 | BH34: 1326085.146 | BI34: 0 | BJ34: 0 | BK34: 0 | BL34: 0 | BM34: 0 | BN34: 0 | BO34: 0 | BP34: 0 | BR34: 3563806.743 | BS34: 0 | BT34: 20984790.45 | BU34: 0 | BV34: 0 | BW34: 7610191.032 | BX34: 0 | BY34: 0 | BZ34: 0 | CA34: 0 | CB34: 0 | CC34: 2087069.82 | CD34: 1816736.651 | CE34: 0 | CF34: 0 | CG34: 0 | CH34: 0 | CI34: 0 | CJ34: 0 | CK34: 0 | CL34: 0 | CM34: 36062594.7 | CO34: =Z34*Vol!D34 -> 3571006.743 | CP34: =AA34*Vol!E34/100 -> 0 | CQ34: =AB34*Vol!F34/100 -> 24527025.96 | CR34: =AC34*Vol!G34/100 -> 0 | CS34: =AD34*Vol!H34/100 -> 0 | CT34: =AE34*Vol!I34/100 -> 7453688.465 | CU34: =AF34*Vol!J34/100 -> 0 | CV34: =AG34*Vol!K34/100 -> 0 | CW34: =AH34*Vol!L34/100 -> 0 | CX34: =AI34*Vol!M34 -> 0 | CY34: =AJ34*Vol!N34 -> 0 | CZ34: =AK34*Vol!O34 -> 0 | DA34: =AL34*Vol!P34 -> 0 | DB34: =AM34*Vol!Q34/100 -> 0 | DC34: =AN34*Vol!R34/100 -> 0 | DD34: =AO34*Vol!S34/100 -> 0 | DE34: =AP34*Vol!T34/100 -> 0 | DF34: =AQ34*Vol!U34/100 -> 0 | DG34: =AR34*Vol!V34/100 -> 0 | DH34: =AS34*Vol!W34/100 -> 0 | DI34: =AT34*Vol!X34/100 -> 0 | DJ34: 35551721.17
A35: CMGB | B35: Medium Business Bulk Demand | C35: Medium Business Bulk Demand | D35: 800 | E35: 0 | F35: 3.99 | G35: 0 | H35: 0 | I35: 2.53 | J35: 0 | K35: 0 | L35: 0 | M35: 0 | N35: 0 | O35: 2.05 | P35: 1.03 | Q35: 0 | R35: 0 | S35: 0 | T35: 0 | U35: 0 | V35: 0 | W35: 0 | X35: 0 | Z35: =IFERROR(INDEX(Est2017DistRev!D:D,MATCH($A35,Est2017DistRev!$A:$A,),1),) -> 800 | AA35: =IFERROR(INDEX(Est2017DistRev!E:E,MATCH($A35,Est2017DistRev!$A:$A,),1),) -> 0 | AB35: =IFERROR(INDEX(Est2017DistRev!F:F,MATCH($A35,Est2017DistRev!$A:$A,),1),) -> 4.65 | AC35: =IFERROR(INDEX(Est2017DistRev!G:G,MATCH($A35,Est2017DistRev!$A:$A,),1),) -> 0 | AD35: =IFERROR(INDEX(Est2017DistRev!H:H,MATCH($A35,Est2017DistRev!$A:$A,),1),) -> 0 | AE35: =IFERROR(INDEX(Est2017DistRev!I:I,MATCH($A35,Est2017DistRev!$A:$A,),1),) -> 2.47 | AF35: =IFERROR(INDEX(Est2017DistRev!J:J,MATCH($A35,Est2017DistRev!$A:$A,),1),) -> 0 | AG35: =IFERROR(INDEX(Est2017DistRev!K:K,MATCH($A35,Est2017DistRev!$A:$A,),1),) -> 0 | AH35: =IFERROR(INDEX(Est2017DistRev!L:L,MATCH($A35,Est2017DistRev!$A:$A,),1),) -> 0 | AI35: =IFERROR(INDEX(Est2017DistRev!M:M,MATCH($A35,Est2017DistRev!$A:$A,),1),) -> 0 | AJ35: =IFERROR(INDEX(Est2017DistRev!N:N,MATCH($A35,Est2017DistRev!$A:$A,),1),) -> 0 | AK35: =IFERROR(INDEX(Est2017DistRev!O:O,MATCH($A35,Est2017DistRev!$A:$A,),1),) -> 0 | AL35: =IFERROR(INDEX(Est2017DistRev!P:P,MATCH($A35,Est2017DistRev!$A:$A,),1),) -> 0 | AM35: =IFERROR(INDEX(Est2017DistRev!Q:Q,MATCH($A35,Est2017DistRev!$A:$A,),1),) -> 0 | AN35: =IFERROR(INDEX(Est2017DistRev!R:R,MATCH($A35,Est2017DistRev!$A:$A,),1),) -> 0 | AO35: =IFERROR(INDEX(Est2017DistRev!S:S,MATCH($A35,Est2017DistRev!$A:$A,),1),) -> 0 | AP35: =IFERROR(INDEX(Est2017DistRev!T:T,MATCH($A35,Est2017DistRev!$A:$A,),1),) -> 0 | AQ35: =IFERROR(INDEX(Est2017DistRev!U:U,MATCH($A35,Est2017DistRev!$A:$A,),1),) -> 0 | AR35: =IFERROR(INDEX(Est2017DistRev!V:V,MATCH($A35,Est2017DistRev!$A:$A,),1),) -> 0 | AS35: =IFERROR(INDEX(Est2017DistRev!W:W,MATCH($A35,Est2017DistRev!$A:$A,),1),) -> 0 | AT35: =IFERROR(INDEX(Est2017DistRev!X:X,MATCH($A35,Est2017DistRev!$A:$A,),1),) -> 0 | AV35: 2142.068209 | AW35: 0 | AX35: 263482333.8 | AY35: 0 | AZ35: 0 | BA35: 158002594.6 | BB35: 0 | BC35: 0 | BD35: 0 | BE35: 0 | BF35: 0 | BG35: 523965.0885 | BH35: 850358.3194 | BI35: 0 | BJ35: 0 | BK35: 0 | BL35: 0 | BM35: 0 | BN35: 0 | BO35: 0 | BP35: 0 | BR35: 1713654.567 | BS35: 0 | BT35: 10512945.12 | BU35: 0 | BV35: 0 | BW35: 3997465.643 | BX35: 0 | BY35: 0 | BZ35: 0 | CA35: 0 | CB35: 0 | CC35: 1074128.431 | CD35: 875869.069 | CE35: 0 | CF35: 0 | CG35: 0 | CH35: 0 | CI35: 0 | CJ35: 0 | CK35: 0 | CL35: 0 | CM35: 18174062.83 | CO35: =Z35*Vol!D35 -> 1720854.567 | CP35: =AA35*Vol!E35/100 -> 0 | CQ35: =AB35*Vol!F35/100 -> 12278007.06 | CR35: =AC35*Vol!G35/100 -> 0 | CS35: =AD35*Vol!H35/100 -> 0 | CT35: =AE35*Vol!I35/100 -> 3909903.972 | CU35: =AF35*Vol!J35/100 -> 0 | CV35: =AG35*Vol!K35/100 -> 0 | CW35: =AH35*Vol!L35/100 -> 0 | CX35: =AI35*Vol!M35 -> 0 | CY35: =AJ35*Vol!N35 -> 0 | CZ35: =AK35*Vol!O35 -> 0 | DA35: =AL35*Vol!P35 -> 0 | DB35: =AM35*Vol!Q35/100 -> 0 | DC35: =AN35*Vol!R35/100 -> 0 | DD35: =AO35*Vol!S35/100 -> 0 | DE35: =AP35*Vol!T35/100 -> 0 | DF35: =AQ35*Vol!U35/100 -> 0 | DG35: =AR35*Vol!V35/100 -> 0 | DH35: =AS35*Vol!W35/100 -> 0 | DI35: =AT35*Vol!X35/100 -> 0 | DJ35: 17908765.6
A36: CMGO | B36: Medium Business Opt-out | C36: - | D36: 800 | E36: 0 | F36: 8.33 | G36: 0 | H36: 0 | I36: 3.34 | J36: 0 | K36: 0 | L36: 0 | M36: 0 | N36: 0 | O36: 0 | P36: 0 | Q36: 0 | R36: 0 | S36: 0 | T36: 0 | U36: 0 | V36: 0 | W36: 0 | X36: 0 | Z36: =IFERROR(INDEX(Est2017DistRev!D:D,MATCH($A36,Est2017DistRev!$A:$A,),1),) -> 0 | AA36: =IFERROR(INDEX(Est2017DistRev!E:E,MATCH($A36,Est2017DistRev!$A:$A,),1),) -> 0 | AB36: =IFERROR(INDEX(Est2017DistRev!F:F,MATCH($A36,Est2017DistRev!$A:$A,),1),) -> 0 | AC36: =IFERROR(INDEX(Est2017DistRev!G:G,MATCH($A36,Est2017DistRev!$A:$A,),1),) -> 0 | AD36: =IFERROR(INDEX(Est2017DistRev!H:H,MATCH($A36,Est2017DistRev!$A:$A,),1),) -> 0 | AE36: =IFERROR(INDEX(Est2017DistRev!I:I,MATCH($A36,Est2017DistRev!$A:$A,),1),) -> 0 | AF36: =IFERROR(INDEX(Est2017DistRev!J:J,MATCH($A36,Est2017DistRev!$A:$A,),1),) -> 0 | AG36: =IFERROR(INDEX(Est2017DistRev!K:K,MATCH($A36,Est2017DistRev!$A:$A,),1),) -> 0 | AH36: =IFERROR(INDEX(Est2017DistRev!L:L,MATCH($A36,Est2017DistRev!$A:$A,),1),) -> 0 | AI36: =IFERROR(INDEX(Est2017DistRev!M:M,MATCH($A36,Est2017DistRev!$A:$A,),1),) -> 0 | AJ36: =IFERROR(INDEX(Est2017DistRev!N:N,MATCH($A36,Est2017DistRev!$A:$A,),1),) -> 0 | AK36: =IFERROR(INDEX(Est2017DistRev!O:O,MATCH($A36,Est2017DistRev!$A:$A,),1),) -> 0 | AL36: =IFERROR(INDEX(Est2017DistRev!P:P,MATCH($A36,Est2017DistRev!$A:$A,),1),) -> 0 | AM36: =IFERROR(INDEX(Est2017DistRev!Q:Q,MATCH($A36,Est2017DistRev!$A:$A,),1),) -> 0 | AN36: =IFERROR(INDEX(Est2017DistRev!R:R,MATCH($A36,Est2017DistRev!$A:$A,),1),) -> 0 | AO36: =IFERROR(INDEX(Est2017DistRev!S:S,MATCH($A36,Est2017DistRev!$A:$A,),1),) -> 0 | AP36: =IFERROR(INDEX(Est2017DistRev!T:T,MATCH($A36,Est2017DistRev!$A:$A,),1),) -> 0 | AQ36: =IFERROR(INDEX(Est2017DistRev!U:U,MATCH($A36,Est2017DistRev!$A:$A,),1),) -> 0 | AR36: =IFERROR(INDEX(Est2017DistRev!V:V,MATCH($A36,Est2017DistRev!$A:$A,),1),) -> 0 | AS36: =IFERROR(INDEX(Est2017DistRev!W:W,MATCH($A36,Est2017DistRev!$A:$A,),1),) -> 0 | AT36: =IFERROR(INDEX(Est2017DistRev!X:X,MATCH($A36,Est2017DistRev!$A:$A,),1),) -> 0 | AV36: 9 | AW36: 0 | AX36: 502552.9057 | AY36: 0 | AZ36: 0 | BA36: 301011.2823 | BB36: 0 | BC36: 0 | BD36: 0 | BE36: 0 | BF36: 0 | BG36: 0 | BH36: 0 | BI36: 0 | BJ36: 0 | BK36: 0 | BL36: 0 | BM36: 0 | BN36: 0 | BO36: 0 | BP36: 0 | BR36: 7200 | BS36: 0 | BT36: 41862.65705 | BU36: 0 | BV36: 0 | BW36: 10053.77683 | BX36: 0 | BY36: 0 | BZ36: 0 | CA36: 0 | CB36: 0 | CC36: 0 | CD36: 0 | CE36: 0 | CF36: 0 | CG36: 0 | CH36: 0 | CI36: 0 | CJ36: 0 | CK36: 0 | CL36: 0 | CM36: 59116.43387 | CO36: =Z36*Vol!D36 -> 0 | CP36: =AA36*Vol!E36/100 -> 0 | CQ36: =AB36*Vol!F36/100 -> 0 | CR36: =AC36*Vol!G36/100 -> 0 | CS36: =AD36*Vol!H36/100 -> 0 | CT36: =AE36*Vol!I36/100 -> 0 | CU36: =AF36*Vol!J36/100 -> 0 | CV36: =AG36*Vol!K36/100 -> 0 | CW36: =AH36*Vol!L36/100 -> 0 | CX36: =AI36*Vol!M36 -> 0 | CY36: =AJ36*Vol!N36 -> 0 | CZ36: =AK36*Vol!O36 -> 0 | DA36: =AL36*Vol!P36 -> 0 | DB36: =AM36*Vol!Q36/100 -> 0 | DC36: =AN36*Vol!R36/100 -> 0 | DD36: =AO36*Vol!S36/100 -> 0 | DE36: =AP36*Vol!T36/100 -> 0 | DF36: =AQ36*Vol!U36/100 -> 0 | DG36: =AR36*Vol!V36/100 -> 0 | DH36: =AS36*Vol!W36/100 -> 0 | DI36: =AT36*Vol!X36/100 -> 0 | DJ36: 0
A37: CMGBO | B37: Medium Business Bulk Opt-out | C37: - | D37: 800 | E37: 0 | F37: 6.11 | G37: 0 | H37: 0 | I37: 2.62 | J37: 0 | K37: 0 | L37: 0 | M37: 0 | N37: 0 | O37: 0 | P37: 0 | Q37: 0 | R37: 0 | S37: 0 | T37: 0 | U37: 0 | V37: 0 | W37: 0 | X37: 0 | Z37: =IFERROR(INDEX(Est2017DistRev!D:D,MATCH($A37,Est2017DistRev!$A:$A,),1),) -> 0 | AA37: =IFERROR(INDEX(Est2017DistRev!E:E,MATCH($A37,Est2017DistRev!$A:$A,),1),) -> 0 | AB37: =IFERROR(INDEX(Est2017DistRev!F:F,MATCH($A37,Est2017DistRev!$A:$A,),1),) -> 0 | AC37: =IFERROR(INDEX(Est2017DistRev!G:G,MATCH($A37,Est2017DistRev!$A:$A,),1),) -> 0 | AD37: =IFERROR(INDEX(Est2017DistRev!H:H,MATCH($A37,Est2017DistRev!$A:$A,),1),) -> 0 | AE37: =IFERROR(INDEX(Est2017DistRev!I:I,MATCH($A37,Est2017DistRev!$A:$A,),1),) -> 0 | AF37: =IFERROR(INDEX(Est2017DistRev!J:J,MATCH($A37,Est2017DistRev!$A:$A,),1),) -> 0 | AG37: =IFERROR(INDEX(Est2017DistRev!K:K,MATCH($A37,Est2017DistRev!$A:$A,),1),) -> 0 | AH37: =IFERROR(INDEX(Est2017DistRev!L:L,MATCH($A37,Est2017DistRev!$A:$A,),1),) -> 0 | AI37: =IFERROR(INDEX(Est2017DistRev!M:M,MATCH($A37,Est2017DistRev!$A:$A,),1),) -> 0 | AJ37: =IFERROR(INDEX(Est2017DistRev!N:N,MATCH($A37,Est2017DistRev!$A:$A,),1),) -> 0 | AK37: =IFERROR(INDEX(Est2017DistRev!O:O,MATCH($A37,Est2017DistRev!$A:$A,),1),) -> 0 | AL37: =IFERROR(INDEX(Est2017DistRev!P:P,MATCH($A37,Est2017DistRev!$A:$A,),1),) -> 0 | AM37: =IFERROR(INDEX(Est2017DistRev!Q:Q,MATCH($A37,Est2017DistRev!$A:$A,),1),) -> 0 | AN37: =IFERROR(INDEX(Est2017DistRev!R:R,MATCH($A37,Est2017DistRev!$A:$A,),1),) -> 0 | AO37: =IFERROR(INDEX(Est2017DistRev!S:S,MATCH($A37,Est2017DistRev!$A:$A,),1),) -> 0 | AP37: =IFERROR(INDEX(Est2017DistRev!T:T,MATCH($A37,Est2017DistRev!$A:$A,),1),) -> 0 | AQ37: =IFERROR(INDEX(Est2017DistRev!U:U,MATCH($A37,Est2017DistRev!$A:$A,),1),) -> 0 | AR37: =IFERROR(INDEX(Est2017DistRev!V:V,MATCH($A37,Est2017DistRev!$A:$A,),1),) -> 0 | AS37: =IFERROR(INDEX(Est2017DistRev!W:W,MATCH($A37,Est2017DistRev!$A:$A,),1),) -> 0 | AT37: =IFERROR(INDEX(Est2017DistRev!X:X,MATCH($A37,Est2017DistRev!$A:$A,),1),) -> 0 | AV37: 9 | AW37: 0 | AX37: 560828.8423 | AY37: 0 | AZ37: 0 | BA37: 293112.8114 | BB37: 0 | BC37: 0 | BD37: 0 | BE37: 0 | BF37: 0 | BG37: 0 | BH37: 0 | BI37: 0 | BJ37: 0 | BK37: 0 | BL37: 0 | BM37: 0 | BN37: 0 | BO37: 0 | BP37: 0 | BR37: 7200 | BS37: 0 | BT37: 34266.64226 | BU37: 0 | BV37: 0 | BW37: 7679.555658 | BX37: 0 | BY37: 0 | BZ37: 0 | CA37: 0 | CB37: 0 | CC37: 0 | CD37: 0 | CE37: 0 | CF37: 0 | CG37: 0 | CH37: 0 | CI37: 0 | CJ37: 0 | CK37: 0 | CL37: 0 | CM37: 49146.19792 | CO37: =Z37*Vol!D37 -> 0 | CP37: =AA37*Vol!E37/100 -> 0 | CQ37: =AB37*Vol!F37/100 -> 0 | CR37: =AC37*Vol!G37/100 -> 0 | CS37: =AD37*Vol!H37/100 -> 0 | CT37: =AE37*Vol!I37/100 -> 0 | CU37: =AF37*Vol!J37/100 -> 0 | CV37: =AG37*Vol!K37/100 -> 0 | CW37: =AH37*Vol!L37/100 -> 0 | CX37: =AI37*Vol!M37 -> 0 | CY37: =AJ37*Vol!N37 -> 0 | CZ37: =AK37*Vol!O37 -> 0 | DA37: =AL37*Vol!P37 -> 0 | DB37: =AM37*Vol!Q37/100 -> 0 | DC37: =AN37*Vol!R37/100 -> 0 | DD37: =AO37*Vol!S37/100 -> 0 | DE37: =AP37*Vol!T37/100 -> 0 | DF37: =AQ37*Vol!U37/100 -> 0 | DG37: =AR37*Vol!V37/100 -> 0 | DH37: =AS37*Vol!W37/100 -> 0 | DI37: =AT37*Vol!X37/100 -> 0 | DJ37: 0
A38: C2U | B38: Unmetered Supplies / Public Lighting | C38: Unmetered Supplies / Public Lighting | D38: 0 | E38: 0 | F38: 8.53 | G38: 0 | H38: 0 | I38: 2.36 | J38: 0 | K38: 0 | L38: 0 | M38: 0 | N38: 0 | O38: 0 | P38: 0 | Q38: 0 | R38: 0 | S38: 0 | T38: 0 | U38: 0 | V38: 0 | W38: 0 | X38: 0 | Z38: =IFERROR(INDEX(Est2017DistRev!D:D,MATCH($A38,Est2017DistRev!$A:$A,),1),) -> 0 | AA38: =IFERROR(INDEX(Est2017DistRev!E:E,MATCH($A38,Est2017DistRev!$A:$A,),1),) -> 0 | AB38: =IFERROR(INDEX(Est2017DistRev!F:F,MATCH($A38,Est2017DistRev!$A:$A,),1),) -> 7.75 | AC38: =IFERROR(INDEX(Est2017DistRev!G:G,MATCH($A38,Est2017DistRev!$A:$A,),1),) -> 0 | AD38: =IFERROR(INDEX(Est2017DistRev!H:H,MATCH($A38,Est2017DistRev!$A:$A,),1),) -> 0 | AE38: =IFERROR(INDEX(Est2017DistRev!I:I,MATCH($A38,Est2017DistRev!$A:$A,),1),) -> 2.14 | AF38: =IFERROR(INDEX(Est2017DistRev!J:J,MATCH($A38,Est2017DistRev!$A:$A,),1),) -> 0 | AG38: =IFERROR(INDEX(Est2017DistRev!K:K,MATCH($A38,Est2017DistRev!$A:$A,),1),) -> 0 | AH38: =IFERROR(INDEX(Est2017DistRev!L:L,MATCH($A38,Est2017DistRev!$A:$A,),1),) -> 0 | AI38: =IFERROR(INDEX(Est2017DistRev!M:M,MATCH($A38,Est2017DistRev!$A:$A,),1),) -> 0 | AJ38: =IFERROR(INDEX(Est2017DistRev!N:N,MATCH($A38,Est2017DistRev!$A:$A,),1),) -> 0 | AK38: =IFERROR(INDEX(Est2017DistRev!O:O,MATCH($A38,Est2017DistRev!$A:$A,),1),) -> 0 | AL38: =IFERROR(INDEX(Est2017DistRev!P:P,MATCH($A38,Est2017DistRev!$A:$A,),1),) -> 0 | AM38: =IFERROR(INDEX(Est2017DistRev!Q:Q,MATCH($A38,Est2017DistRev!$A:$A,),1),) -> 0 | AN38: =IFERROR(INDEX(Est2017DistRev!R:R,MATCH($A38,Est2017DistRev!$A:$A,),1),) -> 0 | AO38: =IFERROR(INDEX(Est2017DistRev!S:S,MATCH($A38,Est2017DistRev!$A:$A,),1),) -> 0 | AP38: =IFERROR(INDEX(Est2017DistRev!T:T,MATCH($A38,Est2017DistRev!$A:$A,),1),) -> 0 | AQ38: =IFERROR(INDEX(Est2017DistRev!U:U,MATCH($A38,Est2017DistRev!$A:$A,),1),) -> 0 | AR38: =IFERROR(INDEX(Est2017DistRev!V:V,MATCH($A38,Est2017DistRev!$A:$A,),1),) -> 0 | AS38: =IFERROR(INDEX(Est2017DistRev!W:W,MATCH($A38,Est2017DistRev!$A:$A,),1),) -> 0 | AT38: =IFERROR(INDEX(Est2017DistRev!X:X,MATCH($A38,Est2017DistRev!$A:$A,),1),) -> 0 | AV38: 4063 | AW38: 0 | AX38: 14704755.16 | AY38: 0 | AZ38: 0 | BA38: 24328971.64 | BB38: 0 | BC38: 0 | BD38: 0 | BE38: 0 | BF38: 0 | BG38: 0 | BH38: 0 | BI38: 0 | BJ38: 0 | BK38: 0 | BL38: 0 | BM38: 0 | BN38: 0 | BO38: 0 | BP38: 0 | BR38: 0 | BS38: 0 | BT38: 1254315.615 | BU38: 0 | BV38: 0 | BW38: 574163.7306 | BX38: 0 | BY38: 0 | BZ38: 0 | CA38: 0 | CB38: 0 | CC38: 0 | CD38: 0 | CE38: 0 | CF38: 0 | CG38: 0 | CH38: 0 | CI38: 0 | CJ38: 0 | CK38: 0 | CL38: 0 | CM38: 1828479.346 | CO38: =Z38*Vol!D38 -> 0 | CP38: =AA38*Vol!E38/100 -> 0 | CQ38: =AB38*Vol!F38/100 -> 1139618.525 | CR38: =AC38*Vol!G38/100 -> 0 | CS38: =AD38*Vol!H38/100 -> 0 | CT38: =AE38*Vol!I38/100 -> 520639.993 | CU38: =AF38*Vol!J38/100 -> 0 | CV38: =AG38*Vol!K38/100 -> 0 | CW38: =AH38*Vol!L38/100 -> 0 | CX38: =AI38*Vol!M38 -> 0 | CY38: =AJ38*Vol!N38 -> 0 | CZ38: =AK38*Vol!O38 -> 0 | DA38: =AL38*Vol!P38 -> 0 | DB38: =AM38*Vol!Q38/100 -> 0 | DC38: =AN38*Vol!R38/100 -> 0 | DD38: =AO38*Vol!S38/100 -> 0 | DE38: =AP38*Vol!T38/100 -> 0 | DF38: =AQ38*Vol!U38/100 -> 0 | DG38: =AR38*Vol!V38/100 -> 0 | DH38: =AS38*Vol!W38/100 -> 0 | DI38: =AT38*Vol!X38/100 -> 0 | DJ38: 1660258.518
A39: CLLV | B39: Large low Voltage | C39: Large low Voltage | D39: 6300 | E39: 0 | F39: 2.33 | G39: 0 | H39: 0 | I39: 1.41 | J39: 0 | K39: 0 | L39: 0 | M39: 72.02 | N39: 0 | O39: 0 | P39: 0 | Q39: 0 | R39: 0 | S39: 0 | T39: 0 | U39: 0 | V39: 0 | W39: 0 | X39: 0 | Z39: =IFERROR(INDEX(Est2017DistRev!D:D,MATCH($A39,Est2017DistRev!$A:$A,),1),) -> 5801 | AA39: =IFERROR(INDEX(Est2017DistRev!E:E,MATCH($A39,Est2017DistRev!$A:$A,),1),) -> 0 | AB39: =IFERROR(INDEX(Est2017DistRev!F:F,MATCH($A39,Est2017DistRev!$A:$A,),1),) -> 2.18 | AC39: =IFERROR(INDEX(Est2017DistRev!G:G,MATCH($A39,Est2017DistRev!$A:$A,),1),) -> 0 | AD39: =IFERROR(INDEX(Est2017DistRev!H:H,MATCH($A39,Est2017DistRev!$A:$A,),1),) -> 0 | AE39: =IFERROR(INDEX(Est2017DistRev!I:I,MATCH($A39,Est2017DistRev!$A:$A,),1),) -> 1.32 | AF39: =IFERROR(INDEX(Est2017DistRev!J:J,MATCH($A39,Est2017DistRev!$A:$A,),1),) -> 0 | AG39: =IFERROR(INDEX(Est2017DistRev!K:K,MATCH($A39,Est2017DistRev!$A:$A,),1),) -> 0 | AH39: =IFERROR(INDEX(Est2017DistRev!L:L,MATCH($A39,Est2017DistRev!$A:$A,),1),) -> 0 | AI39: =IFERROR(INDEX(Est2017DistRev!M:M,MATCH($A39,Est2017DistRev!$A:$A,),1),) -> 67.65 | AJ39: =IFERROR(INDEX(Est2017DistRev!N:N,MATCH($A39,Est2017DistRev!$A:$A,),1),) -> 0 | AK39: =IFERROR(INDEX(Est2017DistRev!O:O,MATCH($A39,Est2017DistRev!$A:$A,),1),) -> 0 | AL39: =IFERROR(INDEX(Est2017DistRev!P:P,MATCH($A39,Est2017DistRev!$A:$A,),1),) -> 0 | AM39: =IFERROR(INDEX(Est2017DistRev!Q:Q,MATCH($A39,Est2017DistRev!$A:$A,),1),) -> 0 | AN39: =IFERROR(INDEX(Est2017DistRev!R:R,MATCH($A39,Est2017DistRev!$A:$A,),1),) -> 0 | AO39: =IFERROR(INDEX(Est2017DistRev!S:S,MATCH($A39,Est2017DistRev!$A:$A,),1),) -> 0 | AP39: =IFERROR(INDEX(Est2017DistRev!T:T,MATCH($A39,Est2017DistRev!$A:$A,),1),) -> 0 | AQ39: =IFERROR(INDEX(Est2017DistRev!U:U,MATCH($A39,Est2017DistRev!$A:$A,),1),) -> 0 | AR39: =IFERROR(INDEX(Est2017DistRev!V:V,MATCH($A39,Est2017DistRev!$A:$A,),1),) -> 0 | AS39: =IFERROR(INDEX(Est2017DistRev!W:W,MATCH($A39,Est2017DistRev!$A:$A,),1),) -> 0 | AT39: =IFERROR(INDEX(Est2017DistRev!X:X,MATCH($A39,Est2017DistRev!$A:$A,),1),) -> 0 | AV39: 330.0289578 | AW39: 0 | AX39: 112861608.3 | AY39: 0 | AZ39: 0 | BA39: 88751320.91 | BB39: 0 | BC39: 0 | BD39: 0 | BE39: 64648.71038 | BF39: 0 | BG39: 0 | BH39: 0 | BI39: 0 | BJ39: 0 | BK39: 0 | BL39: 0 | BM39: 0 | BN39: 0 | BO39: 0 | BP39: 0 | BR39: 2079182.434 | BS39: 0 | BT39: 2629675.474 | BU39: 0 | BV39: 0 | BW39: 1251393.625 | BX39: 0 | BY39: 0 | BZ39: 0 | CA39: 4656000.122 | CB39: 0 | CC39: 0 | CD39: 0 | CE39: 0 | CF39: 0 | CG39: 0 | CH39: 0 | CI39: 0 | CJ39: 0 | CK39: 0 | CL39: 0 | CM39: 10616251.66 | CO39: =Z39*Vol!D39 -> 1914497.984 | CP39: =AA39*Vol!E39/100 -> 0 | CQ39: =AB39*Vol!F39/100 -> 2460383.062 | CR39: =AC39*Vol!G39/100 -> 0 | CS39: =AD39*Vol!H39/100 -> 0 | CT39: =AE39*Vol!I39/100 -> 1171517.436 | CU39: =AF39*Vol!J39/100 -> 0 | CV39: =AG39*Vol!K39/100 -> 0 | CW39: =AH39*Vol!L39/100 -> 0 | CX39: =AI39*Vol!M39 -> 4373485.257 | CY39: =AJ39*Vol!N39 -> 0 | CZ39: =AK39*Vol!O39 -> 0 | DA39: =AL39*Vol!P39 -> 0 | DB39: =AM39*Vol!Q39/100 -> 0 | DC39: =AN39*Vol!R39/100 -> 0 | DD39: =AO39*Vol!S39/100 -> 0 | DE39: =AP39*Vol!T39/100 -> 0 | DF39: =AQ39*Vol!U39/100 -> 0 | DG39: =AR39*Vol!V39/100 -> 0 | DH39: =AS39*Vol!W39/100 -> 0 | DI39: =AT39*Vol!X39/100 -> 0 | DJ39: 9919883.74
A40: CLLVB | B40: Large low Voltage Bulk | C40: Large low Voltage Bulk | D40: 5850 | E40: 0 | F40: 2.07 | G40: 0 | H40: 0 | I40: 1.29 | J40: 0 | K40: 0 | L40: 0 | M40: 64.82 | N40: 0 | O40: 0 | P40: 0 | Q40: 0 | R40: 0 | S40: 0 | T40: 0 | U40: 0 | V40: 0 | W40: 0 | X40: 0 | Z40: =IFERROR(INDEX(Est2017DistRev!D:D,MATCH($A40,Est2017DistRev!$A:$A,),1),) -> 5355 | AA40: =IFERROR(INDEX(Est2017DistRev!E:E,MATCH($A40,Est2017DistRev!$A:$A,),1),) -> 0 | AB40: =IFERROR(INDEX(Est2017DistRev!F:F,MATCH($A40,Est2017DistRev!$A:$A,),1),) -> 1.94 | AC40: =IFERROR(INDEX(Est2017DistRev!G:G,MATCH($A40,Est2017DistRev!$A:$A,),1),) -> 0 | AD40: =IFERROR(INDEX(Est2017DistRev!H:H,MATCH($A40,Est2017DistRev!$A:$A,),1),) -> 0 | AE40: =IFERROR(INDEX(Est2017DistRev!I:I,MATCH($A40,Est2017DistRev!$A:$A,),1),) -> 1.21 | AF40: =IFERROR(INDEX(Est2017DistRev!J:J,MATCH($A40,Est2017DistRev!$A:$A,),1),) -> 0 | AG40: =IFERROR(INDEX(Est2017DistRev!K:K,MATCH($A40,Est2017DistRev!$A:$A,),1),) -> 0 | AH40: =IFERROR(INDEX(Est2017DistRev!L:L,MATCH($A40,Est2017DistRev!$A:$A,),1),) -> 0 | AI40: =IFERROR(INDEX(Est2017DistRev!M:M,MATCH($A40,Est2017DistRev!$A:$A,),1),) -> 60.88 | AJ40: =IFERROR(INDEX(Est2017DistRev!N:N,MATCH($A40,Est2017DistRev!$A:$A,),1),) -> 0 | AK40: =IFERROR(INDEX(Est2017DistRev!O:O,MATCH($A40,Est2017DistRev!$A:$A,),1),) -> 0 | AL40: =IFERROR(INDEX(Est2017DistRev!P:P,MATCH($A40,Est2017DistRev!$A:$A,),1),) -> 0 | AM40: =IFERROR(INDEX(Est2017DistRev!Q:Q,MATCH($A40,Est2017DistRev!$A:$A,),1),) -> 0 | AN40: =IFERROR(INDEX(Est2017DistRev!R:R,MATCH($A40,Est2017DistRev!$A:$A,),1),) -> 0 | AO40: =IFERROR(INDEX(Est2017DistRev!S:S,MATCH($A40,Est2017DistRev!$A:$A,),1),) -> 0 | AP40: =IFERROR(INDEX(Est2017DistRev!T:T,MATCH($A40,Est2017DistRev!$A:$A,),1),) -> 0 | AQ40: =IFERROR(INDEX(Est2017DistRev!U:U,MATCH($A40,Est2017DistRev!$A:$A,),1),) -> 0 | AR40: =IFERROR(INDEX(Est2017DistRev!V:V,MATCH($A40,Est2017DistRev!$A:$A,),1),) -> 0 | AS40: =IFERROR(INDEX(Est2017DistRev!W:W,MATCH($A40,Est2017DistRev!$A:$A,),1),) -> 0 | AT40: =IFERROR(INDEX(Est2017DistRev!X:X,MATCH($A40,Est2017DistRev!$A:$A,),1),) -> 0 | AV40: 1655.625824 | AW40: 0 | AX40: 1130104579 | AY40: 0 | AZ40: 0 | BA40: 843930303.7 | BB40: 0 | BC40: 0 | BD40: 0 | BE40: 645709.6081 | BF40: 0 | BG40: 0 | BH40: 0 | BI40: 0 | BJ40: 0 | BK40: 0 | BL40: 0 | BM40: 0 | BN40: 0 | BO40: 0 | BP40: 0 | BR40: 9685411.07 | BS40: 0 | BT40: 23393164.78 | BU40: 0 | BV40: 0 | BW40: 10886700.92 | BX40: 0 | BY40: 0 | BZ40: 0 | CA40: 41854896.79 | CB40: 0 | CC40: 0 | CD40: 0 | CE40: 0 | CF40: 0 | CG40: 0 | CH40: 0 | CI40: 0 | CJ40: 0 | CK40: 0 | CL40: 0 | CM40: 85820173.56 | CO40: =Z40*Vol!D40 -> 8865876.287 | CP40: =AA40*Vol!E40/100 -> 0 | CQ40: =AB40*Vol!F40/100 -> 21924028.82 | CR40: =AC40*Vol!G40/100 -> 0 | CS40: =AD40*Vol!H40/100 -> 0 | CT40: =AE40*Vol!I40/100 -> 10211556.67 | CU40: =AF40*Vol!J40/100 -> 0 | CV40: =AG40*Vol!K40/100 -> 0 | CW40: =AH40*Vol!L40/100 -> 0 | CX40: =AI40*Vol!M40 -> 39310800.94 | CY40: =AJ40*Vol!N40 -> 0 | CZ40: =AK40*Vol!O40 -> 0 | DA40: =AL40*Vol!P40 -> 0 | DB40: =AM40*Vol!Q40/100 -> 0 | DC40: =AN40*Vol!R40/100 -> 0 | DD40: =AO40*Vol!S40/100 -> 0 | DE40: =AP40*Vol!T40/100 -> 0 | DF40: =AQ40*Vol!U40/100 -> 0 | DG40: =AR40*Vol!V40/100 -> 0 | DH40: =AS40*Vol!W40/100 -> 0 | DI40: =AT40*Vol!X40/100 -> 0 | DJ40: 80312262.72
A41: CHV | B41: High Voltage | C41: High Voltage | D41: 31200 | E41: 0 | F41: 1.18 | G41: 0 | H41: 0 | I41: 0.61 | J41: 0 | K41: 0 | L41: 0 | M41: 33.44 | N41: 0 | O41: 0 | P41: 0 | Q41: 0 | R41: 0 | S41: 0 | T41: 0 | U41: 0 | V41: 0 | W41: 0 | X41: 0 | Z41: =IFERROR(INDEX(Est2017DistRev!D:D,MATCH($A41,Est2017DistRev!$A:$A,),1),) -> 28600 | AA41: =IFERROR(INDEX(Est2017DistRev!E:E,MATCH($A41,Est2017DistRev!$A:$A,),1),) -> 0 | AB41: =IFERROR(INDEX(Est2017DistRev!F:F,MATCH($A41,Est2017DistRev!$A:$A,),1),) -> 1.11 | AC41: =IFERROR(INDEX(Est2017DistRev!G:G,MATCH($A41,Est2017DistRev!$A:$A,),1),) -> 0 | AD41: =IFERROR(INDEX(Est2017DistRev!H:H,MATCH($A41,Est2017DistRev!$A:$A,),1),) -> 0 | AE41: =IFERROR(INDEX(Est2017DistRev!I:I,MATCH($A41,Est2017DistRev!$A:$A,),1),) -> 0.57 | AF41: =IFERROR(INDEX(Est2017DistRev!J:J,MATCH($A41,Est2017DistRev!$A:$A,),1),) -> 0 | AG41: =IFERROR(INDEX(Est2017DistRev!K:K,MATCH($A41,Est2017DistRev!$A:$A,),1),) -> 0 | AH41: =IFERROR(INDEX(Est2017DistRev!L:L,MATCH($A41,Est2017DistRev!$A:$A,),1),) -> 0 | AI41: =IFERROR(INDEX(Est2017DistRev!M:M,MATCH($A41,Est2017DistRev!$A:$A,),1),) -> 31.49 | AJ41: =IFERROR(INDEX(Est2017DistRev!N:N,MATCH($A41,Est2017DistRev!$A:$A,),1),) -> 0 | AK41: =IFERROR(INDEX(Est2017DistRev!O:O,MATCH($A41,Est2017DistRev!$A:$A,),1),) -> 0 | AL41: =IFERROR(INDEX(Est2017DistRev!P:P,MATCH($A41,Est2017DistRev!$A:$A,),1),) -> 0 | AM41: =IFERROR(INDEX(Est2017DistRev!Q:Q,MATCH($A41,Est2017DistRev!$A:$A,),1),) -> 0 | AN41: =IFERROR(INDEX(Est2017DistRev!R:R,MATCH($A41,Est2017DistRev!$A:$A,),1),) -> 0 | AO41: =IFERROR(INDEX(Est2017DistRev!S:S,MATCH($A41,Est2017DistRev!$A:$A,),1),) -> 0 | AP41: =IFERROR(INDEX(Est2017DistRev!T:T,MATCH($A41,Est2017DistRev!$A:$A,),1),) -> 0 | AQ41: =IFERROR(INDEX(Est2017DistRev!U:U,MATCH($A41,Est2017DistRev!$A:$A,),1),) -> 0 | AR41: =IFERROR(INDEX(Est2017DistRev!V:V,MATCH($A41,Est2017DistRev!$A:$A,),1),) -> 0 | AS41: =IFERROR(INDEX(Est2017DistRev!W:W,MATCH($A41,Est2017DistRev!$A:$A,),1),) -> 0 | AT41: =IFERROR(INDEX(Est2017DistRev!X:X,MATCH($A41,Est2017DistRev!$A:$A,),1),) -> 0 | AV41: 90.98255371 | AW41: 0 | AX41: 343486676.7 | AY41: 0 | AZ41: 0 | BA41: 320752044.2 | BB41: 0 | BC41: 0 | BD41: 0 | BE41: 198974.4461 | BF41: 0 | BG41: 0 | BH41: 0 | BI41: 0 | BJ41: 0 | BK41: 0 | BL41: 0 | BM41: 0 | BN41: 0 | BO41: 0 | BP41: 0 | BR41: 2838655.676 | BS41: 0 | BT41: 4053142.785 | BU41: 0 | BV41: 0 | BW41: 1956587.47 | BX41: 0 | BY41: 0 | BZ41: 0 | CA41: 6653705.479 | CB41: 0 | CC41: 0 | CD41: 0 | CE41: 0 | CF41: 0 | CG41: 0 | CH41: 0 | CI41: 0 | CJ41: 0 | CK41: 0 | CL41: 0 | CM41: 15502091.41 | CO41: =Z41*Vol!D41 -> 2602101.036 | CP41: =AA41*Vol!E41/100 -> 0 | CQ41: =AB41*Vol!F41/100 -> 3812702.112 | CR41: =AC41*Vol!G41/100 -> 0 | CS41: =AD41*Vol!H41/100 -> 0 | CT41: =AE41*Vol!I41/100 -> 1828286.652 | CU41: =AF41*Vol!J41/100 -> 0 | CV41: =AG41*Vol!K41/100 -> 0 | CW41: =AH41*Vol!L41/100 -> 0 | CX41: =AI41*Vol!M41 -> 6265705.309 | CY41: =AJ41*Vol!N41 -> 0 | CZ41: =AK41*Vol!O41 -> 0 | DA41: =AL41*Vol!P41 -> 0 | DB41: =AM41*Vol!Q41/100 -> 0 | DC41: =AN41*Vol!R41/100 -> 0 | DD41: =AO41*Vol!S41/100 -> 0 | DE41: =AP41*Vol!T41/100 -> 0 | DF41: =AQ41*Vol!U41/100 -> 0 | DG41: =AR41*Vol!V41/100 -> 0 | DH41: =AS41*Vol!W41/100 -> 0 | DI41: =AT41*Vol!X41/100 -> 0 | DJ41: 14508795.11
A42: CST | B42: Subtransmission | C42: Subtransmission | D42: 144000 | E42: 0 | F42: 0.1 | G42: 0 | H42: 0 | I42: 0.04 | J42: 0 | K42: 0 | L42: 0 | M42: 0.84 | N42: 0 | O42: 0 | P42: 0 | Q42: 0 | R42: 0 | S42: 0 | T42: 0 | U42: 0 | V42: 0 | W42: 0 | X42: 0 | Z42: =IFERROR(INDEX(Est2017DistRev!D:D,MATCH($A42,Est2017DistRev!$A:$A,),1),) -> 132000 | AA42: =IFERROR(INDEX(Est2017DistRev!E:E,MATCH($A42,Est2017DistRev!$A:$A,),1),) -> 0 | AB42: =IFERROR(INDEX(Est2017DistRev!F:F,MATCH($A42,Est2017DistRev!$A:$A,),1),) -> 0.11 | AC42: =IFERROR(INDEX(Est2017DistRev!G:G,MATCH($A42,Est2017DistRev!$A:$A,),1),) -> 0 | AD42: =IFERROR(INDEX(Est2017DistRev!H:H,MATCH($A42,Est2017DistRev!$A:$A,),1),) -> 0 | AE42: =IFERROR(INDEX(Est2017DistRev!I:I,MATCH($A42,Est2017DistRev!$A:$A,),1),) -> 0.05 | AF42: =IFERROR(INDEX(Est2017DistRev!J:J,MATCH($A42,Est2017DistRev!$A:$A,),1),) -> 0 | AG42: =IFERROR(INDEX(Est2017DistRev!K:K,MATCH($A42,Est2017DistRev!$A:$A,),1),) -> 0 | AH42: =IFERROR(INDEX(Est2017DistRev!L:L,MATCH($A42,Est2017DistRev!$A:$A,),1),) -> 0 | AI42: =IFERROR(INDEX(Est2017DistRev!M:M,MATCH($A42,Est2017DistRev!$A:$A,),1),) -> 0.92 | AJ42: =IFERROR(INDEX(Est2017DistRev!N:N,MATCH($A42,Est2017DistRev!$A:$A,),1),) -> 0 | AK42: =IFERROR(INDEX(Est2017DistRev!O:O,MATCH($A42,Est2017DistRev!$A:$A,),1),) -> 0 | AL42: =IFERROR(INDEX(Est2017DistRev!P:P,MATCH($A42,Est2017DistRev!$A:$A,),1),) -> 0 | AM42: =IFERROR(INDEX(Est2017DistRev!Q:Q,MATCH($A42,Est2017DistRev!$A:$A,),1),) -> 0 | AN42: =IFERROR(INDEX(Est2017DistRev!R:R,MATCH($A42,Est2017DistRev!$A:$A,),1),) -> 0 | AO42: =IFERROR(INDEX(Est2017DistRev!S:S,MATCH($A42,Est2017DistRev!$A:$A,),1),) -> 0 | AP42: =IFERROR(INDEX(Est2017DistRev!T:T,MATCH($A42,Est2017DistRev!$A:$A,),1),) -> 0 | AQ42: =IFERROR(INDEX(Est2017DistRev!U:U,MATCH($A42,Est2017DistRev!$A:$A,),1),) -> 0 | AR42: =IFERROR(INDEX(Est2017DistRev!V:V,MATCH($A42,Est2017DistRev!$A:$A,),1),) -> 0 | AS42: =IFERROR(INDEX(Est2017DistRev!W:W,MATCH($A42,Est2017DistRev!$A:$A,),1),) -> 0 | AT42: =IFERROR(INDEX(Est2017DistRev!X:X,MATCH($A42,Est2017DistRev!$A:$A,),1),) -> 0 | AV42: 6 | AW42: 0 | AX42: 65598744.88 | AY42: 0 | AZ42: 0 | BA42: 37964642.61 | BB42: 0 | BC42: 0 | BD42: 0 | BE42: 37371.68517 | BF42: 0 | BG42: 0 | BH42: 0 | BI42: 0 | BJ42: 0 | BK42: 0 | BL42: 0 | BM42: 0 | BN42: 0 | BO42: 0 | BP42: 0 | BR42: 864000 | BS42: 0 | BT42: 65598.74488 | BU42: 0 | BV42: 0 | BW42: 15185.85704 | BX42: 0 | BY42: 0 | BZ42: 0 | CA42: 31392.21554 | CB42: 0 | CC42: 0 | CD42: 0 | CE42: 0 | CF42: 0 | CG42: 0 | CH42: 0 | CI42: 0 | CJ42: 0 | CK42: 0 | CL42: 0 | CM42: 976176.8175 | CO42: =Z42*Vol!D42 -> 792000 | CP42: =AA42*Vol!E42/100 -> 0 | CQ42: =AB42*Vol!F42/100 -> 72158.61936 | CR42: =AC42*Vol!G42/100 -> 0 | CS42: =AD42*Vol!H42/100 -> 0 | CT42: =AE42*Vol!I42/100 -> 18982.3213 | CU42: =AF42*Vol!J42/100 -> 0 | CV42: =AG42*Vol!K42/100 -> 0 | CW42: =AH42*Vol!L42/100 -> 0 | CX42: =AI42*Vol!M42 -> 34381.95035 | CY42: =AJ42*Vol!N42 -> 0 | CZ42: =AK42*Vol!O42 -> 0 | DA42: =AL42*Vol!P42 -> 0 | DB42: =AM42*Vol!Q42/100 -> 0 | DC42: =AN42*Vol!R42/100 -> 0 | DD42: =AO42*Vol!S42/100 -> 0 | DE42: =AP42*Vol!T42/100 -> 0 | DF42: =AQ42*Vol!U42/100 -> 0 | DG42: =AR42*Vol!V42/100 -> 0 | DH42: =AS42*Vol!W42/100 -> 0 | DI42: =AT42*Vol!X42/100 -> 0 | DJ42: 917522.891
CO43: =Z43*Vol!D43 -> 0 | CP43: =AA43*Vol!E43/100 -> 0 | CQ43: =AB43*Vol!F43/100 -> 0 | CR43: =AC43*Vol!G43/100 -> 0 | CS43: =AD43*Vol!H43/100 -> 0 | CT43: =AE43*Vol!I43/100 -> 0 | CU43: =AF43*Vol!J43/100 -> 0 | CV43: =AG43*Vol!K43/100 -> 0 | CW43: =AH43*Vol!L43/100 -> 0 | CX43: =AI43*Vol!M43 -> 0 | CY43: =AJ43*Vol!N43 -> 0 | CZ43: =AK43*Vol!O43 -> 0 | DA43: =AL43*Vol!P43 -> 0 | DB43: =AM43*Vol!Q43/100 -> 0 | DC43: =AN43*Vol!R43/100 -> 0 | DD43: =AO43*Vol!S43/100 -> 0 | DE43: =AP43*Vol!T43/100 -> 0 | DF43: =AQ43*Vol!U43/100 -> 0 | DG43: =AR43*Vol!V43/100 -> 0 | DH43: =AS43*Vol!W43/100 -> 0 | DI43: =AT43*Vol!X43/100 -> 0 | DJ43: =SUM(CO43:DI43) -> 0
CO44: =Z44*Vol!D44 -> 0 | CP44: =AA44*Vol!E44/100 -> 0 | CQ44: =AB44*Vol!F44/100 -> 0 | CR44: =AC44*Vol!G44/100 -> 0 | CS44: =AD44*Vol!H44/100 -> 0 | CT44: =AE44*Vol!I44/100 -> 0 | CU44: =AF44*Vol!J44/100 -> 0 | CV44: =AG44*Vol!K44/100 -> 0 | CW44: =AH44*Vol!L44/100 -> 0 | CX44: =AI44*Vol!M44 -> 0 | CY44: =AJ44*Vol!N44 -> 0 | CZ44: =AK44*Vol!O44 -> 0 | DA44: =AL44*Vol!P44 -> 0 | DB44: =AM44*Vol!Q44/100 -> 0 | DC44: =AN44*Vol!R44/100 -> 0 | DD44: =AO44*Vol!S44/100 -> 0 | DE44: =AP44*Vol!T44/100 -> 0 | DF44: =AQ44*Vol!U44/100 -> 0 | DG44: =AR44*Vol!V44/100 -> 0 | DH44: =AS44*Vol!W44/100 -> 0 | DI44: =AT44*Vol!X44/100 -> 0 | DJ44: 0
CO45: =Z45*Vol!D45 -> 0 | CP45: =AA45*Vol!E45/100 -> 0 | CQ45: =AB45*Vol!F45/100 -> 0 | CR45: =AC45*Vol!G45/100 -> 0 | CS45: =AD45*Vol!H45/100 -> 0 | CT45: =AE45*Vol!I45/100 -> 0 | CU45: =AF45*Vol!J45/100 -> 0 | CV45: =AG45*Vol!K45/100 -> 0 | CW45: =AH45*Vol!L45/100 -> 0 | CX45: =AI45*Vol!M45 -> 0 | CY45: =AJ45*Vol!N45 -> 0 | CZ45: =AK45*Vol!O45 -> 0 | DA45: =AL45*Vol!P45 -> 0 | DB45: =AM45*Vol!Q45/100 -> 0 | DC45: =AN45*Vol!R45/100 -> 0 | DD45: =AO45*Vol!S45/100 -> 0 | DE45: =AP45*Vol!T45/100 -> 0 | DF45: =AQ45*Vol!U45/100 -> 0 | DG45: =AR45*Vol!V45/100 -> 0 | DH45: =AS45*Vol!W45/100 -> 0 | DI45: =AT45*Vol!X45/100 -> 0 | DJ45: 0
CO46: =Z46*Vol!D46 -> 0 | CP46: =AA46*Vol!E46/100 -> 0 | CQ46: =AB46*Vol!F46/100 -> 0 | CR46: =AC46*Vol!G46/100 -> 0 | CS46: =AD46*Vol!H46/100 -> 0 | CT46: =AE46*Vol!I46/100 -> 0 | CU46: =AF46*Vol!J46/100 -> 0 | CV46: =AG46*Vol!K46/100 -> 0 | CW46: =AH46*Vol!L46/100 -> 0 | CX46: =AI46*Vol!M46 -> 0 | CY46: =AJ46*Vol!N46 -> 0 | CZ46: =AK46*Vol!O46 -> 0 | DA46: =AL46*Vol!P46 -> 0 | DB46: =AM46*Vol!Q46/100 -> 0 | DC46: =AN46*Vol!R46/100 -> 0 | DD46: =AO46*Vol!S46/100 -> 0 | DE46: =AP46*Vol!T46/100 -> 0 | DF46: =AQ46*Vol!U46/100 -> 0 | DG46: =AR46*Vol!V46/100 -> 0 | DH46: =AS46*Vol!W46/100 -> 0 | DI46: =AT46*Vol!X46/100 -> 0 | DJ46: 0
CO47: =Z47*Vol!D47 -> 0 | CP47: =AA47*Vol!E47/100 -> 0 | CQ47: =AB47*Vol!F47/100 -> 0 | CR47: =AC47*Vol!G47/100 -> 0 | CS47: =AD47*Vol!H47/100 -> 0 | CT47: =AE47*Vol!I47/100 -> 0 | CU47: =AF47*Vol!J47/100 -> 0 | CV47: =AG47*Vol!K47/100 -> 0 | CW47: =AH47*Vol!L47/100 -> 0 | CX47: =AI47*Vol!M47 -> 0 | CY47: =AJ47*Vol!N47 -> 0 | CZ47: =AK47*Vol!O47 -> 0 | DA47: =AL47*Vol!P47 -> 0 | DB47: =AM47*Vol!Q47/100 -> 0 | DC47: =AN47*Vol!R47/100 -> 0 | DD47: =AO47*Vol!S47/100 -> 0 | DE47: =AP47*Vol!T47/100 -> 0 | DF47: =AQ47*Vol!U47/100 -> 0 | DG47: =AR47*Vol!V47/100 -> 0 | DH47: =AS47*Vol!W47/100 -> 0 | DI47: =AT47*Vol!X47/100 -> 0 | DJ47: 0
CO48: =Z48*Vol!D48 -> 0 | CP48: =AA48*Vol!E48/100 -> 0 | CQ48: =AB48*Vol!F48/100 -> 0 | CR48: =AC48*Vol!G48/100 -> 0 | CS48: =AD48*Vol!H48/100 -> 0 | CT48: =AE48*Vol!I48/100 -> 0 | CU48: =AF48*Vol!J48/100 -> 0 | CV48: =AG48*Vol!K48/100 -> 0 | CW48: =AH48*Vol!L48/100 -> 0 | CX48: =AI48*Vol!M48 -> 0 | CY48: =AJ48*Vol!N48 -> 0 | CZ48: =AK48*Vol!O48 -> 0 | DA48: =AL48*Vol!P48 -> 0 | DB48: =AM48*Vol!Q48/100 -> 0 | DC48: =AN48*Vol!R48/100 -> 0 | DD48: =AO48*Vol!S48/100 -> 0 | DE48: =AP48*Vol!T48/100 -> 0 | DF48: =AQ48*Vol!U48/100 -> 0 | DG48: =AR48*Vol!V48/100 -> 0 | DH48: =AS48*Vol!W48/100 -> 0 | DI48: =AT48*Vol!X48/100 -> 0 | DJ48: 0
CO49: =Z49*Vol!D49 -> 0 | CP49: =AA49*Vol!E49/100 -> 0 | CQ49: =AB49*Vol!F49/100 -> 0 | CR49: =AC49*Vol!G49/100 -> 0 | CS49: =AD49*Vol!H49/100 -> 0 | CT49: =AE49*Vol!I49/100 -> 0 | CU49: =AF49*Vol!J49/100 -> 0 | CV49: =AG49*Vol!K49/100 -> 0 | CW49: =AH49*Vol!L49/100 -> 0 | CX49: =AI49*Vol!M49 -> 0 | CY49: =AJ49*Vol!N49 -> 0 | CZ49: =AK49*Vol!O49 -> 0 | DA49: =AL49*Vol!P49 -> 0 | DB49: =AM49*Vol!Q49/100 -> 0 | DC49: =AN49*Vol!R49/100 -> 0 | DD49: =AO49*Vol!S49/100 -> 0 | DE49: =AP49*Vol!T49/100 -> 0 | DF49: =AQ49*Vol!U49/100 -> 0 | DG49: =AR49*Vol!V49/100 -> 0 | DH49: =AS49*Vol!W49/100 -> 0 | DI49: =AT49*Vol!X49/100 -> 0 | DJ49: 0
CO50: =Z50*Vol!D50 -> 0 | CP50: =AA50*Vol!E50/100 -> 0 | CQ50: =AB50*Vol!F50/100 -> 0 | CR50: =AC50*Vol!G50/100 -> 0 | CS50: =AD50*Vol!H50/100 -> 0 | CT50: =AE50*Vol!I50/100 -> 0 | CU50: =AF50*Vol!J50/100 -> 0 | CV50: =AG50*Vol!K50/100 -> 0 | CW50: =AH50*Vol!L50/100 -> 0 | CX50: =AI50*Vol!M50 -> 0 | CY50: =AJ50*Vol!N50 -> 0 | CZ50: =AK50*Vol!O50 -> 0 | DA50: =AL50*Vol!P50 -> 0 | DB50: =AM50*Vol!Q50/100 -> 0 | DC50: =AN50*Vol!R50/100 -> 0 | DD50: =AO50*Vol!S50/100 -> 0 | DE50: =AP50*Vol!T50/100 -> 0 | DF50: =AQ50*Vol!U50/100 -> 0 | DG50: =AR50*Vol!V50/100 -> 0 | DH50: =AS50*Vol!W50/100 -> 0 | DI50: =AT50*Vol!X50/100 -> 0 | DJ50: 0
CO51: =Z51*Vol!D51 -> 0 | CP51: =AA51*Vol!E51/100 -> 0 | CQ51: =AB51*Vol!F51/100 -> 0 | CR51: =AC51*Vol!G51/100 -> 0 | CS51: =AD51*Vol!H51/100 -> 0 | CT51: =AE51*Vol!I51/100 -> 0 | CU51: =AF51*Vol!J51/100 -> 0 | CV51: =AG51*Vol!K51/100 -> 0 | CW51: =AH51*Vol!L51/100 -> 0 | CX51: =AI51*Vol!M51 -> 0 | CY51: =AJ51*Vol!N51 -> 0 | CZ51: =AK51*Vol!O51 -> 0 | DA51: =AL51*Vol!P51 -> 0 | DB51: =AM51*Vol!Q51/100 -> 0 | DC51: =AN51*Vol!R51/100 -> 0 | DD51: =AO51*Vol!S51/100 -> 0 | DE51: =AP51*Vol!T51/100 -> 0 | DF51: =AQ51*Vol!U51/100 -> 0 | DG51: =AR51*Vol!V51/100 -> 0 | DH51: =AS51*Vol!W51/100 -> 0 | DI51: =AT51*Vol!X51/100 -> 0 | DJ51: 0
CO52: =Z52*Vol!D52 -> 0 | CP52: =AA52*Vol!E52/100 -> 0 | CQ52: =AB52*Vol!F52/100 -> 0 | CR52: =AC52*Vol!G52/100 -> 0 | CS52: =AD52*Vol!H52/100 -> 0 | CT52: =AE52*Vol!I52/100 -> 0 | CU52: =AF52*Vol!J52/100 -> 0 | CV52: =AG52*Vol!K52/100 -> 0 | CW52: =AH52*Vol!L52/100 -> 0 | CX52: =AI52*Vol!M52 -> 0 | CY52: =AJ52*Vol!N52 -> 0 | CZ52: =AK52*Vol!O52 -> 0 | DA52: =AL52*Vol!P52 -> 0 | DB52: =AM52*Vol!Q52/100 -> 0 | DC52: =AN52*Vol!R52/100 -> 0 | DD52: =AO52*Vol!S52/100 -> 0 | DE52: =AP52*Vol!T52/100 -> 0 | DF52: =AQ52*Vol!U52/100 -> 0 | DG52: =AR52*Vol!V52/100 -> 0 | DH52: =AS52*Vol!W52/100 -> 0 | DI52: =AT52*Vol!X52/100 -> 0 | DJ52: 0
BR53: =D53*AV53 -> 0 | BS53: =E53/100*AW53 -> 0 | BT53: =F53/100*AX53 -> 0 | BU53: =G53/100*AY53 -> 0 | BV53: =H53/100*AZ53 -> 0 | BW53: =I53/100*BA53 -> 0 | BX53: =J53/100*BB53 -> 0 | BY53: =K53/100*BC53 -> 0 | BZ53: =L53/100*BD53 -> 0 | CA53: =M53*BE53 -> 0 | CB53: =N53*BF53 -> 0 | CC53: =O53*BG53 -> 0 | CD53: =P53*BH53 -> 0 | CE53: =Q53/100*BI53 -> 0 | CF53: =R53/100*BJ53 -> 0 | CG53: =S53/100*BK53 -> 0 | CH53: =T53/100*BL53 -> 0 | CI53: =U53/100*BM53 -> 0 | CJ53: =V53/100*BN53 -> 0 | CK53: =W53/100*BO53 -> 0 | CL53: =X53/100*BP53 -> 0 | CM53: =SUM(BR53:CL53) -> 0 | CO53: =Z53*Vol!D53 -> 0 | CP53: =AA53*Vol!E53/100 -> 0 | CQ53: =AB53*Vol!F53/100 -> 0 | CR53: =AC53*Vol!G53/100 -> 0 | CS53: =AD53*Vol!H53/100 -> 0 | CT53: =AE53*Vol!I53/100 -> 0 | CU53: =AF53*Vol!J53/100 -> 0 | CV53: =AG53*Vol!K53/100 -> 0 | CW53: =AH53*Vol!L53/100 -> 0 | CX53: =AI53*Vol!M53 -> 0 | CY53: =AJ53*Vol!N53 -> 0 | CZ53: =AK53*Vol!O53 -> 0 | DA53: =AL53*Vol!P53 -> 0 | DB53: =AM53*Vol!Q53/100 -> 0 | DC53: =AN53*Vol!R53/100 -> 0 | DD53: =AO53*Vol!S53/100 -> 0 | DE53: =AP53*Vol!T53/100 -> 0 | DF53: =AQ53*Vol!U53/100 -> 0 | DG53: =AR53*Vol!V53/100 -> 0 | DH53: =AS53*Vol!W53/100 -> 0 | DI53: =AT53*Vol!X53/100 -> 0 | DJ53: 0
BR54: 0 | BS54: 0 | BT54: 0 | BU54: 0 | BV54: 0 | BW54: 0 | BX54: 0 | BY54: 0 | BZ54: 0 | CA54: 0 | CB54: 0 | CC54: 0 | CD54: 0 | CE54: 0 | CF54: 0 | CG54: 0 | CH54: 0 | CI54: 0 | CJ54: 0 | CK54: 0 | CL54: 0 | CM54: 0 | CO54: =Z54*AV54 -> 0 | CP54: =AA54/100*AW54 -> 0 | CQ54: =AB54/100*AX54 -> 0 | CR54: =AC54/100*AY54 -> 0 | CS54: =AD54/100*AZ54 -> 0 | CT54: =AE54/100*BA54 -> 0 | CU54: =AF54/100*BB54 -> 0 | CV54: =AG54/100*BC54 -> 0 | CW54: =AH54/100*BD54 -> 0 | CX54: =AI54*BE54 -> 0 | CY54: =AJ54*BF54 -> 0 | CZ54: =AK54*BG54 -> 0 | DA54: =AL54*BH54 -> 0 | DB54: =AM54/100*BI54 -> 0 | DC54: =AN54/100*BJ54 -> 0 | DD54: =AO54/100*BK54 -> 0 | DE54: =AP54/100*BL54 -> 0 | DF54: =AQ54/100*BM54 -> 0 | DG54: =AR54/100*BN54 -> 0 | DH54: =AS54/100*BO54 -> 0 | DI54: =AT54/100*BP54 -> 0 | DJ54: =SUM(CO54:DI54) -> 0
BR55: 0 | BS55: 0 | BT55: 0 | BU55: 0 | BV55: 0 | BW55: 0 | BX55: 0 | BY55: 0 | BZ55: 0 | CA55: 0 | CB55: 0 | CC55: 0 | CD55: 0 | CE55: 0 | CF55: 0 | CG55: 0 | CH55: 0 | CI55: 0 | CJ55: 0 | CK55: 0 | CL55: 0 | CM55: 0 | CO55: 0 | CP55: 0 | CQ55: 0 | CR55: 0 | CS55: 0 | CT55: 0 | CU55: 0 | CV55: 0 | CW55: 0 | CX55: 0 | CY55: 0 | CZ55: 0 | DA55: 0 | DB55: 0 | DC55: 0 | DD55: 0 | DE55: 0 | DF55: 0 | DG55: 0 | DH55: 0 | DI55: 0 | DJ55: 0
BR56: 0 | BS56: 0 | BT56: 0 | BU56: 0 | BV56: 0 | BW56: 0 | BX56: 0 | BY56: 0 | BZ56: 0 | CA56: 0 | CB56: 0 | CC56: 0 | CD56: 0 | CE56: 0 | CF56: 0 | CG56: 0 | CH56: 0 | CI56: 0 | CJ56: 0 | CK56: 0 | CL56: 0 | CM56: 0 | CO56: 0 | CP56: 0 | CQ56: 0 | CR56: 0 | CS56: 0 | CT56: 0 | CU56: 0 | CV56: 0 | CW56: 0 | CX56: 0 | CY56: 0 | CZ56: 0 | DA56: 0 | DB56: 0 | DC56: 0 | DD56: 0 | DE56: 0 | DF56: 0 | DG56: 0 | DH56: 0 | DI56: 0 | DJ56: 0
BR57: 0 | BS57: 0 | BT57: 0 | BU57: 0 | BV57: 0 | BW57: 0 | BX57: 0 | BY57: 0 | BZ57: 0 | CA57: 0 | CB57: 0 | CC57: 0 | CD57: 0 | CE57: 0 | CF57: 0 | CG57: 0 | CH57: 0 | CI57: 0 | CJ57: 0 | CK57: 0 | CL57: 0 | CM57: 0 | CO57: 0 | CP57: 0 | CQ57: 0 | CR57: 0 | CS57: 0 | CT57: 0 | CU57: 0 | CV57: 0 | CW57: 0 | CX57: 0 | CY57: 0 | CZ57: 0 | DA57: 0 | DB57: 0 | DC57: 0 | DD57: 0 | DE57: 0 | DF57: 0 | DG57: 0 | DH57: 0 | DI57: 0 | DJ57: 0
BR58: 0 | BS58: 0 | BT58: 0 | BU58: 0 | BV58: 0 | BW58: 0 | BX58: 0 | BY58: 0 | BZ58: 0 | CA58: 0 | CB58: 0 | CC58: 0 | CD58: 0 | CE58: 0 | CF58: 0 | CG58: 0 | CH58: 0 | CI58: 0 | CJ58: 0 | CK58: 0 | CL58: 0 | CM58: 0 | CO58: 0 | CP58: 0 | CQ58: 0 | CR58: 0 | CS58: 0 | CT58: 0 | CU58: 0 | CV58: 0 | CW58: 0 | CX58: 0 | CY58: 0 | CZ58: 0 | DA58: 0 | DB58: 0 | DC58: 0 | DD58: 0 | DE58: 0 | DF58: 0 | DG58: 0 | DH58: 0 | DI58: 0 | DJ58: 0
BR59: 0 | BS59: 0 | BT59: 0 | BU59: 0 | BV59: 0 | BW59: 0 | BX59: 0 | BY59: 0 | BZ59: 0 | CA59: 0 | CB59: 0 | CC59: 0 | CD59: 0 | CE59: 0 | CF59: 0 | CG59: 0 | CH59: 0 | CI59: 0 | CJ59: 0 | CK59: 0 | CL59: 0 | CM59: 0 | CO59: 0 | CP59: 0 | CQ59: 0 | CR59: 0 | CS59: 0 | CT59: 0 | CU59: 0 | CV59: 0 | CW59: 0 | CX59: 0 | CY59: 0 | CZ59: 0 | DA59: 0 | DB59: 0 | DC59: 0 | DD59: 0 | DE59: 0 | DF59: 0 | DG59: 0 | DH59: 0 | DI59: 0 | DJ59: 0
BR60: 0 | BS60: 0 | BT60: 0 | BU60: 0 | BV60: 0 | BW60: 0 | BX60: 0 | BY60: 0 | BZ60: 0 | CA60: 0 | CB60: 0 | CC60: 0 | CD60: 0 | CE60: 0 | CF60: 0 | CG60: 0 | CH60: 0 | CI60: 0 | CJ60: 0 | CK60: 0 | CL60: 0 | CM60: 0 | CO60: 0 | CP60: 0 | CQ60: 0 | CR60: 0 | CS60: 0 | CT60: 0 | CU60: 0 | CV60: 0 | CW60: 0 | CX60: 0 | CY60: 0 | CZ60: 0 | DA60: 0 | DB60: 0 | DC60: 0 | DD60: 0 | DE60: 0 | DF60: 0 | DG60: 0 | DH60: 0 | DI60: 0 | DJ60: 0
BR61: 0 | BS61: 0 | BT61: 0 | BU61: 0 | BV61: 0 | BW61: 0 | BX61: 0 | BY61: 0 | BZ61: 0 | CA61: 0 | CB61: 0 | CC61: 0 | CD61: 0 | CE61: 0 | CF61: 0 | CG61: 0 | CH61: 0 | CI61: 0 | CJ61: 0 | CK61: 0 | CL61: 0 | CM61: 0 | CO61: 0 | CP61: 0 | CQ61: 0 | CR61: 0 | CS61: 0 | CT61: 0 | CU61: 0 | CV61: 0 | CW61: 0 | CX61: 0 | CY61: 0 | CZ61: 0 | DA61: 0 | DB61: 0 | DC61: 0 | DD61: 0 | DE61: 0 | DF61: 0 | DG61: 0 | DH61: 0 | DI61: 0 | DJ61: 0
BR62: 0 | BS62: 0 | BT62: 0 | BU62: 0 | BV62: 0 | BW62: 0 | BX62: 0 | BY62: 0 | BZ62: 0 | CA62: 0 | CB62: 0 | CC62: 0 | CD62: 0 | CE62: 0 | CF62: 0 | CG62: 0 | CH62: 0 | CI62: 0 | CJ62: 0 | CK62: 0 | CL62: 0 | CM62: 0 | CO62: 0 | CP62: 0 | CQ62: 0 | CR62: 0 | CS62: 0 | CT62: 0 | CU62: 0 | CV62: 0 | CW62: 0 | CX62: 0 | CY62: 0 | CZ62: 0 | DA62: 0 | DB62: 0 | DC62: 0 | DD62: 0 | DE62: 0 | DF62: 0 | DG62: 0 | DH62: 0 | DI62: 0 | DJ62: 0
BR63: 0 | BS63: 0 | BT63: 0 | BU63: 0 | BV63: 0 | BW63: 0 | BX63: 0 | BY63: 0 | BZ63: 0 | CA63: 0 | CB63: 0 | CC63: 0 | CD63: 0 | CE63: 0 | CF63: 0 | CG63: 0 | CH63: 0 | CI63: 0 | CJ63: 0 | CK63: 0 | CL63: 0 | CM63: 0 | CO63: 0 | CP63: 0 | CQ63: 0 | CR63: 0 | CS63: 0 | CT63: 0 | CU63: 0 | CV63: 0 | CW63: 0 | CX63: 0 | CY63: 0 | CZ63: 0 | DA63: 0 | DB63: 0 | DC63: 0 | DD63: 0 | DE63: 0 | DF63: 0 | DG63: 0 | DH63: 0 | DI63: 0 | DJ63: 0
BR64: 0 | BS64: 0 | BT64: 0 | BU64: 0 | BV64: 0 | BW64: 0 | BX64: 0 | BY64: 0 | BZ64: 0 | CA64: 0 | CB64: 0 | CC64: 0 | CD64: 0 | CE64: 0 | CF64: 0 | CG64: 0 | CH64: 0 | CI64: 0 | CJ64: 0 | CK64: 0 | CL64: 0 | CM64: 0 | CO64: 0 | CP64: 0 | CQ64: 0 | CR64: 0 | CS64: 0 | CT64: 0 | CU64: 0 | CV64: 0 | CW64: 0 | CX64: 0 | CY64: 0 | CZ64: 0 | DA64: 0 | DB64: 0 | DC64: 0 | DD64: 0 | DE64: 0 | DF64: 0 | DG64: 0 | DH64: 0 | DI64: 0 | DJ64: 0
BR65: 0 | BS65: 0 | BT65: 0 | BU65: 0 | BV65: 0 | BW65: 0 | BX65: 0 | BY65: 0 | BZ65: 0 | CA65: 0 | CB65: 0 | CC65: 0 | CD65: 0 | CE65: 0 | CF65: 0 | CG65: 0 | CH65: 0 | CI65: 0 | CJ65: 0 | CK65: 0 | CL65: 0 | CM65: 0 | CO65: 0 | CP65: 0 | CQ65: 0 | CR65: 0 | CS65: 0 | CT65: 0 | CU65: 0 | CV65: 0 | CW65: 0 | CX65: 0 | CY65: 0 | CZ65: 0 | DA65: 0 | DB65: 0 | DC65: 0 | DD65: 0 | DE65: 0 | DF65: 0 | DG65: 0 | DH65: 0 | DI65: 0 | DJ65: 0
AV66: =SUM(AV6:AV65) -> 365938.9172 | AW66: 1235940224 | AX66: 2661223693 | AY66: 0 | AZ66: 0 | BA66: 1998672957 | BB66: 0 | BC66: 0 | BD66: 0 | BE66: 946704.4498 | BF66: 0 | BG66: 1288686.208 | BH66: 2176828.854 | BI66: 278510.9224 | BJ66: 467168.7957 | BK66: 364966.7329 | BL66: 0 | BM66: 1013688.288 | BN66: 1670241.188 | BO66: 1299163.21 | BP66: 0 | BR66: =SUM(BR6:BR65) -> 49396893.48 | BS66: 59483029.49 | BT66: 92817919.2 | BU66: 0 | BV66: 0 | BW66: 32264266.11 | BX66: 0 | BY66: 0 | BZ66: 0 | CA66: 53195994.61 | CB66: 0 | CC66: 3163260.939 | CD66: 2693789.373 | CE66: 30094.47142 | CF66: 34046.42919 | CG66: 10474.05022 | CH66: 0 | CI66: 109621.8729 | CJ66: 121727.846 | CK66: 37269.0956 | CL66: 0 | CM66: 293358387 | CO66: =SUM(CO6:CO65) -> 47905042.49 | CP66: 57048741.81 | CQ66: 92690025.11 | CR66: 0 | CS66: 0 | CT66: 30347468.7 | CU66: 0 | CV66: 0 | CW66: 0 | CX66: 49984373.46 | CY66: 0 | CZ66: 1854.109589 | DA66: 1064.219178 | DB66: 27371.70165 | DC66: 30999.77062 | DD66: 9560.165231 | DE66: 0 | DF66: 99704.53986 | DG66: 110835.4357 | DH66: 34023.69797 | DI66: 0 | DJ66: 278291065.2

Sheet Vol
B1: ="Tariff Approval - "&'Model update'!C3 -> Tariff Approval - CitiPower
B2: This worksheet has been inserted by CitiPower
B3: 2018 Volumes for 2017 Prices
B4: In 2017 there was no Medium Business opt-out tariff. No volumes / customer numbers have been allocated to these tariffs | D4: ="Forecast Quantities (Qt) for "&'Model update'!$C$5 -> Forecast Quantities (Qt) for 2018
B5: Tariffs | D5: FcastVol Fixed | E5: FcastVol PkBlk1 | F5: FcastVol PkBlk2 | G5: FcastVol PkBlk3 | H5: FcastVol PkBlk4 | I5: FcastVol OPkBlk1 | J5: FcastVol OPkBlk2 | K5: FcastVol OPkBlk3 | L5: FcastVol OPkBlk4 | M5: FcastVol DemBlk1 | N5: FcastVol DemBlk2 | O5: FcastVol DemBlk3 | P5: FcastVol DemBlk4 | Q5: FcastVol SumBlk1 | R5: FcastVol SumBlk2 | S5: FcastVol SumBlk3 | T5: FcastVol SumBlk4 | U5: FcastVol WtrBlk1 | V5: FcastVol WtrBlk2 | W5: FcastVol WtrBlk3 | X5: FcastVol WtrBlk4
A7: =Prop2018DistTar!A7 -> C1R | B7: =Prop2018DistTar!B7 -> Residential Single Rate | D7: 203567.5438 | E7: 837924196.2 | F7: 0 | G7: 0 | H7: 0 | I7: 0 | J7: 0 | K7: 0 | L7: 0 | M7: 0 | N7: 0 | O7: 0 | P7: 0 | Q7: 0 | R7: 0 | S7: 0 | T7: 0 | U7: 0 | V7: 0 | W7: 0 | X7: 0
A8: =Prop2018DistTar!A8 -> C1RB | B8: =Prop2018DistTar!B8 -> Residential Single Rate - Bulk | D8: 30796.1653 | E8: 103793921.8 | F8: 0 | G8: 0 | H8: 0 | I8: 0 | J8: 0 | K8: 0 | L8: 0 | M8: 0 | N8: 0 | O8: 0 | P8: 0 | Q8: 0 | R8: 0 | S8: 0 | T8: 0 | U8: 0 | V8: 0 | W8: 0 | X8: 0
A9: =Prop2018DistTar!A9 -> C13R | B9: =Prop2018DistTar!B9 -> Residential - flexible pricing | D9: 692.1990213 | E9: 0 | F9: 0 | G9: 0 | H9: 0 | I9: 0 | J9: 0 | K9: 0 | L9: 0 | M9: 0 | N9: 0 | O9: 0 | P9: 0 | Q9: 209399.3886 | R9: 421530.7094 | S9: 295381.0238 | T9: 0 | U9: 766444.7639 | V9: 1512235.207 | W9: 1077906.585 | X9: 0
A10: =Prop2018DistTar!A10 -> C13RB | B10: =Prop2018DistTar!B10 -> Residential - flexible pricing bulk | D10: 86 | E10: 0 | F10: 0 | G10: 0 | H10: 0 | I10: 0 | J10: 0 | K10: 0 | L10: 0 | M10: 0 | N10: 0 | O10: 0 | P10: 0 | Q10: 14822.46394 | R10: 30911.09407 | S10: 25018.29177 | T10: 0 | U10: 55723.87165 | V10: 110586.6363 | W10: 89504.20804 | X10: 0
A11: =Prop2018DistTar!A11 -> C2R | B11: =Prop2018DistTar!B11 -> Residential Two Rate 5d | D11: 10844.91892 | E11: 0 | F11: 34303841.22 | G11: 0 | H11: 0 | I11: 29910228.53 | J11: 0 | K11: 0 | L11: 0 | M11: 0 | N11: 0 | O11: 0 | P11: 0 | Q11: 0 | R11: 0 | S11: 0 | T11: 0 | U11: 0 | V11: 0 | W11: 0 | X11: 0
A12: =Prop2018DistTar!A12 -> C2RB | B12: =Prop2018DistTar!B12 -> Residential Two Rate 5d - Bulk | D12: 4325.479896 | E12: 0 | F12: 11937966.33 | G12: 0 | H12: 0 | I12: 10332699.16 | J12: 0 | K12: 0 | L12: 0 | M12: 0 | N12: 0 | O12: 0 | P12: 0 | Q12: 0 | R12: 0 | S12: 0 | T12: 0 | U12: 0 | V12: 0 | W12: 0 | X12: 0
A13: =Prop2018DistTar!A13 -> C3R | B13: =Prop2018DistTar!B13 -> Residential Interval | D13: 17220.89451 | E13: 0 | F13: 60059088.86 | G13: 0 | H13: 0 | I13: 52811678.16 | J13: 0 | K13: 0 | L13: 0 | M13: 0 | N13: 0 | O13: 0 | P13: 0 | Q13: 0 | R13: 0 | S13: 0 | T13: 0 | U13: 0 | V13: 0 | W13: 0 | X13: 0
A14: =Prop2018DistTar!A14 -> C3RB | B14: =Prop2018DistTar!B14 -> Residential Interval - Bulk | D14: 8720.076186 | E14: 0 | F14: 14985083.09 | G14: 0 | H14: 0 | I14: 14138212.66 | J14: 0 | K14: 0 | L14: 0 | M14: 0 | N14: 0 | O14: 0 | P14: 0 | Q14: 0 | R14: 0 | S14: 0 | T14: 0 | U14: 0 | V14: 0 | W14: 0 | X14: 0
A15: =Prop2018DistTar!A15 -> C2ROP | B15: =Prop2018DistTar!B15 -> Residential Two Rate 5d - Controlled Load | D15: 9721.635616 | E15: 0 | F15: 0 | G15: 0 | H15: 0 | I15: 19909930.71 | J15: 0 | K15: 0 | L15: 0 | M15: 0 | N15: 0 | O15: 0 | P15: 0 | Q15: 0 | R15: 0 | S15: 0 | T15: 0 | U15: 0 | V15: 0 | W15: 0 | X15: 0
A16: =Prop2018DistTar!A16 -> C2RBOP | B16: =Prop2018DistTar!B16 -> Residential Two Rate 5d - Bulk - Controlled Load | D16: 3658.606663 | E16: 0 | F16: 0 | G16: 0 | H16: 0 | I16: 7350471.826 | J16: 0 | K16: 0 | L16: 0 | M16: 0 | N16: 0 | O16: 0 | P16: 0 | Q16: 0 | R16: 0 | S16: 0 | T16: 0 | U16: 0 | V16: 0 | W16: 0 | X16: 0
A17: =Prop2018DistTar!A17 -> CDS | B17: =Prop2018DistTar!B17 -> Dedicated Circuit | D17: 22642.03058 | E17: 0 | F17: 0 | G17: 0 | H17: 0 | I17: 33890069.86 | J17: 0 | K17: 0 | L17: 0 | M17: 0 | N17: 0 | O17: 0 | P17: 0 | Q17: 0 | R17: 0 | S17: 0 | T17: 0 | U17: 0 | V17: 0 | W17: 0 | X17: 0
A18: =Prop2018DistTar!A18 -> CDSB | B18: =Prop2018DistTar!B18 -> Dedicated Circuit - Bulk | D18: 1081.479218 | E18: 0 | F18: 0 | G18: 0 | H18: 0 | I18: 2219211.192 | J18: 0 | K18: 0 | L18: 0 | M18: 0 | N18: 0 | O18: 0 | P18: 0 | Q18: 0 | R18: 0 | S18: 0 | T18: 0 | U18: 0 | V18: 0 | W18: 0 | X18: 0
A19: =Prop2018DistTar!A19 -> CR | B19: =Prop2018DistTar!B19 -> Residential Demand | D19: 5 | E19: 27500 | F19: 0 | G19: 0 | H19: 0 | I19: 0 | J19: 0 | K19: 0 | L19: 0 | M19: 0 | N19: 0 | O19: 62.78538813 | P19: 100.456621 | Q19: 0 | R19: 0 | S19: 0 | T19: 0 | U19: 0 | V19: 0 | W19: 0 | X19: 0
A20: =Prop2018DistTar!A20 -> CRB | B20: =Prop2018DistTar!B20 -> Residential Bulk Demand | D20: 1 | E20: 5500 | F20: 0 | G20: 0 | H20: 0 | I20: 0 | J20: 0 | K20: 0 | L20: 0 | M20: 0 | N20: 0 | O20: 12.55707763 | P20: 20.0913242 | Q20: 0 | R20: 0 | S20: 0 | T20: 0 | U20: 0 | V20: 0 | W20: 0 | X20: 0
A21: =Prop2018DistTar!A21 -> C1G | B21: =Prop2018DistTar!B21 -> Non-Residential Single Rate | D21: 18214.93199 | E21: 220224547 | F21: 0 | G21: 0 | H21: 0 | I21: 0 | J21: 0 | K21: 0 | L21: 0 | M21: 0 | N21: 0 | O21: 0 | P21: 0 | Q21: 0 | R21: 0 | S21: 0 | T21: 0 | U21: 0 | V21: 0 | W21: 0 | X21: 0
A22: =Prop2018DistTar!A22 -> C1GB | B22: =Prop2018DistTar!B22 -> Non-Residential Single Rate - Bulk | D22: 5599.005158 | E22: 73848559.18 | F22: 0 | G22: 0 | H22: 0 | I22: 0 | J22: 0 | K22: 0 | L22: 0 | M22: 0 | N22: 0 | O22: 0 | P22: 0 | Q22: 0 | R22: 0 | S22: 0 | T22: 0 | U22: 0 | V22: 0 | W22: 0 | X22: 0
A23: =Prop2018DistTar!A23 -> C2G5 | B23: =Prop2018DistTar!B23 -> Non-Residential Two Rate 5d | D23: 6325.91212 | E23: 0 | F23: 90006939.07 | G23: 0 | H23: 0 | I23: 56232415.07 | J23: 0 | K23: 0 | L23: 0 | M23: 0 | N23: 0 | O23: 0 | P23: 0 | Q23: 0 | R23: 0 | S23: 0 | T23: 0 | U23: 0 | V23: 0 | W23: 0 | X23: 0
A24: =Prop2018DistTar!A24 -> C2G5B | B24: =Prop2018DistTar!B24 -> Non-Residential Two Rate 5d - Bulk | D24: 1106.535597 | E24: 0 | F24: 16887632.07 | G24: 0 | H24: 0 | I24: 9694170.346 | J24: 0 | K24: 0 | L24: 0 | M24: 0 | N24: 0 | O24: 0 | P24: 0 | Q24: 0 | R24: 0 | S24: 0 | T24: 0 | U24: 0 | V24: 0 | W24: 0 | X24: 0
A25: =Prop2018DistTar!A25 -> C3G | B25: =Prop2018DistTar!B25 -> Non-Residential Interval | D25: 4011.792454 | E25: 0 | F25: 44315700.54 | G25: 0 | H25: 0 | I25: 25142157.46 | J25: 0 | K25: 0 | L25: 0 | M25: 0 | N25: 0 | O25: 0 | P25: 0 | Q25: 0 | R25: 0 | S25: 0 | T25: 0 | U25: 0 | V25: 0 | W25: 0 | X25: 0
A26: =Prop2018DistTar!A26 -> C3GB | B26: =Prop2018DistTar!B26 -> Non-Residential Interval - Bulk | D26: 1947.172824 | E26: 0 | F26: 28963727.79 | G26: 0 | H26: 0 | I26: 15296835.41 | J26: 0 | K26: 0 | L26: 0 | M26: 0 | N26: 0 | O26: 0 | P26: 0 | Q26: 0 | R26: 0 | S26: 0 | T26: 0 | U26: 0 | V26: 0 | W26: 0 | X26: 0
A27: =Prop2018DistTar!A27 -> C14G | B27: =Prop2018DistTar!B27 -> Non-Residential Flexible Pricing | D27: 21.10222788 | E27: 0 | F27: 0 | G27: 0 | H27: 0 | I27: 0 | J27: 0 | K27: 0 | L27: 0 | M27: 0 | N27: 0 | O27: 0 | P27: 0 | Q27: 43821.56936 | R27: 12365.14554 | S27: 36868.09714 | T27: 0 | U27: 161494.8713 | V27: 41032.76051 | W27: 110833.915 | X27: 0
A28: =Prop2018DistTar!A28 -> C14GB | B28: =Prop2018DistTar!B28 -> Non-Residential - Flexible Pricing Bulk | D28: 5 | E28: 0 | F28: 0 | G28: 0 | H28: 0 | I28: 0 | J28: 0 | K28: 0 | L28: 0 | M28: 0 | N28: 0 | O28: 0 | P28: 0 | Q28: 10467.50047 | R28: 2361.846711 | S28: 7699.32017 | T28: 0 | U28: 30024.78157 | V28: 6386.584144 | W28: 20918.50232 | X28: 0
A29: =Prop2018DistTar!A29 -> C2G7 | B29: =Prop2018DistTar!B29 -> Non-Residential Two Rate 7d | D29: 2322.444207 | E29: 0 | F29: 37314656.19 | G29: 0 | H29: 0 | I29: 8982959.302 | J29: 0 | K29: 0 | L29: 0 | M29: 0 | N29: 0 | O29: 0 | P29: 0 | Q29: 0 | R29: 0 | S29: 0 | T29: 0 | U29: 0 | V29: 0 | W29: 0 | X29: 0
A30: =Prop2018DistTar!A30 -> C2G7B | B30: =Prop2018DistTar!B30 -> Non-Residential Two Rate 7d - Bulk | D30: 251.5269155 | E30: 0 | F30: 5172333.901 | G30: 0 | H30: 0 | I30: 1298680.775 | J30: 0 | K30: 0 | L30: 0 | M30: 0 | N30: 0 | O30: 0 | P30: 0 | Q30: 0 | R30: 0 | S30: 0 | T30: 0 | U30: 0 | V30: 0 | W30: 0 | X30: 0
A31: =Prop2018DistTar!A31 -> C2L7 | B31: =Prop2018DistTar!B31 -> Large Two Rate 7d | D31: 4 | E31: 0 | F31: 224820.2679 | G31: 0 | H31: 0 | I31: 61632.40762 | J31: 0 | K31: 0 | L31: 0 | M31: 0 | N31: 0 | O31: 0 | P31: 0 | Q31: 0 | R31: 0 | S31: 0 | T31: 0 | U31: 0 | V31: 0 | W31: 0 | X31: 0
A32: =Prop2018DistTar!A32 -> CG | B32: =Prop2018DistTar!B32 -> Non-Residential Demand Tariff | D32: 5 | E32: 100000 | F32: 0 | G32: 0 | H32: 0 | I32: 0 | J32: 0 | K32: 0 | L32: 0 | M32: 0 | N32: 0 | O32: 130.4631442 | P32: 228.3105023 | Q32: 0 | R32: 0 | S32: 0 | T32: 0 | U32: 0 | V32: 0 | W32: 0 | X32: 0
A33: =Prop2018DistTar!A33 -> CGB | B33: =Prop2018DistTar!B33 -> Non-Residential Bulk Demand Tariff | D33: 1 | E33: 16000 | F33: 0 | G33: 0 | H33: 0 | I33: 0 | J33: 0 | K33: 0 | L33: 0 | M33: 0 | N33: 0 | O33: 20.87410307 | P33: 36.52968037 | Q33: 0 | R33: 0 | S33: 0 | T33: 0 | U33: 0 | V33: 0 | W33: 0 | X33: 0
A34: =Prop2018DistTar!A34 -> CMG | B34: =Prop2018DistTar!B34 -> Medium Business Demand | D34: 4463.758429 | E34: 0 | F34: 386252377.4 | I34: 237378613.5 | O34: 766038.9565 | P34: 1328764.252 | Q34: 0 | R34: 0 | S34: 0 | T34: 0 | U34: 0 | V34: 0 | W34: 0 | X34: 0
A35: =Prop2018DistTar!A35 -> CMGB | B35: =Prop2018DistTar!B35 -> Medium Business Bulk Demand | D35: 2151.068209 | E35: 0 | F35: 264043162.7 | I35: 158295707.4 | O35: 526166.5524 | P35: 853931.1398 | Q35: 0 | R35: 0 | S35: 0 | T35: 0 | U35: 0 | V35: 0 | W35: 0 | X35: 0
A36: =Prop2018DistTar!A36 -> CMGO | B36: =Prop2018DistTar!B36 -> Medium Business Opt-out | D36: 0 | E36: 0 | F36: 0 | G36: 0 | H36: 0 | I36: 0 | J36: 0 | K36: 0 | L36: 0 | M36: 0 | N36: 0 | O36: 0 | P36: 0 | Q36: 0 | R36: 0 | S36: 0 | T36: 0 | U36: 0 | V36: 0 | W36: 0 | X36: 0
A37: =Prop2018DistTar!A37 -> CMGBO | B37: =Prop2018DistTar!B37 -> Medium Business Bulk Opt-out | D37: 0 | E37: 0 | F37: 0 | G37: 0 | H37: 0 | I37: 0 | J37: 0 | K37: 0 | L37: 0 | M37: 0 | N37: 0 | O37: 0 | P37: 0 | Q37: 0 | R37: 0 | S37: 0 | T37: 0 | U37: 0 | V37: 0 | W37: 0 | X37: 0
A38: =Prop2018DistTar!A38 -> C2U | B38: =Prop2018DistTar!B38 -> Unmetered Supplies / Public Lighting | D38: 4063 | E38: 0 | F38: 14704755.16 | G38: 0 | H38: 0 | I38: 24328971.64 | J38: 0 | K38: 0 | L38: 0 | M38: 0 | N38: 0 | O38: 0 | P38: 0 | Q38: 0 | R38: 0 | S38: 0 | T38: 0 | U38: 0 | V38: 0 | W38: 0 | X38: 0
A39: =Prop2018DistTar!A39 -> CLLV | B39: =Prop2018DistTar!B39 -> Large low Voltage | D39: 330.0289578 | E39: 0 | F39: 112861608.3 | G39: 0 | H39: 0 | I39: 88751320.91 | J39: 0 | K39: 0 | L39: 0 | M39: 64648.71038 | N39: 0 | O39: 0 | P39: 0 | Q39: 0 | R39: 0 | S39: 0 | T39: 0 | U39: 0 | V39: 0 | W39: 0 | X39: 0
A40: =Prop2018DistTar!A40 -> CLLVB | B40: =Prop2018DistTar!B40 -> Large low Voltage Bulk | D40: 1655.625824 | E40: 0 | F40: 1130104579 | G40: 0 | H40: 0 | I40: 843930303.7 | J40: 0 | K40: 0 | L40: 0 | M40: 645709.6081 | N40: 0 | O40: 0 | P40: 0 | Q40: 0 | R40: 0 | S40: 0 | T40: 0 | U40: 0 | V40: 0 | W40: 0 | X40: 0
A41: =Prop2018DistTar!A41 -> CHV | B41: =Prop2018DistTar!B41 -> High Voltage | D41: 90.98255371 | E41: 0 | F41: 343486676.7 | G41: 0 | H41: 0 | I41: 320752044.2 | J41: 0 | K41: 0 | L41: 0 | M41: 198974.4461 | N41: 0 | O41: 0 | P41: 0 | Q41: 0 | R41: 0 | S41: 0 | T41: 0 | U41: 0 | V41: 0 | W41: 0 | X41: 0
A42: =Prop2018DistTar!A42 -> CST | B42: =Prop2018DistTar!B42 -> Subtransmission | D42: 6 | E42: 0 | F42: 65598744.88 | G42: 0 | H42: 0 | I42: 37964642.61 | J42: 0 | K42: 0 | L42: 0 | M42: 37371.68517 | N42: 0 | O42: 0 | P42: 0 | Q42: 0 | R42: 0 | S42: 0 | T42: 0 | U42: 0 | V42: 0 | W42: 0 | X42: 0
D66: =SUM(D6:D65) -> 365938.9172 | E66: 1235940224 | F66: 2661223693 | G66: 0 | H66: 0 | I66: 1998672957 | J66: 0 | K66: 0 | L66: 0 | M66: 946704.4498 | N66: 0 | O66: 1292432.189 | P66: 2183080.779 | Q66: 278510.9224 | R66: 467168.7957 | S66: 364966.7329 | T66: 0 | U66: 1013688.288 | V66: 1670241.188 | W66: 1299163.21 | X66: 0

Sheet 2018DistRevCapForm
B2: ="Tariff Approval - "&'Model update'!$C$3 -> Tariff Approval - CitiPower
B4: DUoS
B6: Year (t) | C6: ='Model update'!C5 -> 2018 | H6: =C6-1 -> 2017
B8: Table 1- Compliance with AER Final Determination Total Annual Revenue
B9: Revenue from DUoS charges for year t | C9: =Prop2018DistTar!CM66 -> 293358387
B10: Total Annual Revenue for year t | C10: =C18 -> 293358387
C11: =IF(C9="","",IF(C10>=C9,"DUoS REVENUE CAP FORMULA COMPLIANT","DUoS REVENUE CAP FORMULA BREACHED")) -> DUoS REVENUE CAP FORMULA COMPLIANT
B13: Table 2 - Total Annual Revenue for year t (TARt)
B14: Adjusted Annual Smoothed Revenue for year t | C14: =C25 -> 293098089.7 | H14: =H25 -> 282154508.4
B15: I factor for year t (F factor Scheme) | C15: ='Model update'!B$100 -> 140000 | H15: =INDEX('Model update'!$D$100:$H$100,1,MATCH('2018DistRevCapForm'!$H$6,'Model update'!$D$93:$H$93,0)) -> 410000
B16: T factor for year t (DMIS carry over amount) | C16: ='Model update'!B144 -> 0 | H16: =INDEX('Model update'!$D$144:$H$144,1,MATCH('2018DistRevCapForm'!$H$6,'Model update'!$D$137:$H$137,0)) -> 0
B17: B factor for year t | C17: =C32 -> 120297.2204 | H17: =H32 -> -2876661.894
B18: Total Annual Revenue for year t | C18: =C14+C15+C16+C17 -> 293358387 | H18: =H14+H15+H16+H17 -> 279687846.5
B20: Table 3 - Adjusted Annual Revenue for year t (AARt)
B21: Adjusted Annual Smoothed Revenue for year t-1 | C21: =H25 -> 282154508.4 | H21: 279292116.4
B22: CPI for period t | C22: ='Model update'!C30 -> 0.01933701657 | H22: ='Model update'!C29 -> 0.01023255814
B23: X factor for period t | C23: ='Model update'!B60 -> -0.0005 | H23: =INDEX('Model update'!$E$60:$H$60,1,MATCH("Xt for "&'2018DistRevCapForm'!$H$6,'Model update'!$E$53:$H$53,0)) -> 0.004
B24: S factor for period t | C24: ='Model update'!B111 -> 0.01857052664 | H24: =INDEX('Model update'!$D$111:$H$111,1,MATCH('2018DistRevCapForm'!$H$6,'Model update'!$D$104:$H$104,0)) -> 0.004032145684
B25: Adjusted Annual Smoothed Revenue for year t | C25: =IF(C6=2016,'Model update'!D60*(1+C24),(C21*(1+C22)*(1-C23)*(1+C24))) -> 293098089.7 | H25: =IF(H6=2016,'Model update'!D60*(1+H24),(H21*(1+H22)*(1-H23)*(1+H24))) -> 282154508.4
B27: Table 4- B factor for year t
B28: DUoS revenue under/over recovery approved | C28: =E60 -> 35923.13782 | H28: -2920680.924
B29: License Fee Recovery Amount for year t | C29: =C38 -> 84374.08259 | H29: =H38 -> 43444.54104
B30: Approved Pass through Amount for year t | C30: ='Model update'!B122 -> 0 | H30: =INDEX('Model update'!$D$122:$H$122,1,MATCH($H$6,'Model update'!$D$115:$H$115,0)) -> 0
B31: Pass Through revenue under/over recovery for years 2014 and 2015 | H31: 574.4894635
B32: B factor for year t | C32: =SUM(C28:C31) -> 120297.2204 | H32: =SUM(H28:H31) -> -2876661.894
B34: Table 5 - License Fee Recovery Amount for year t
B35: Lt-1 | C35: ='Model update'!B133 -> 78091 | H35: =INDEX('Model update'!$D$133:$H$133,1,MATCH($H$6,'Model update'!$D$126:$H$126,0)) -> 40445
B36: Nominal WACC t | C36: =(1+'Model update'!$B$43)*(1+'Model update'!$C$30)-1 -> 0.05592902844 | H36: =(1+'Model update'!$B$45)*(1+'Model update'!$C$29)-1 -> 0.0470000456
B37: Nominal WACC t-1 | C37: =(1+'Model update'!$B$45)*(1+'Model update'!$C$29)-1 -> 0.0470000456 | H37: =(1+'Model update'!$B$47)*(1+'Model update'!$C$28)-1 -> 0.05256117473
B38: License Fee Recovery Amount for year t | C38: =C35*(1+C36)*(1+C37)^0.5 -> 84374.08259 | H38: =H35*(1+H36)*(1+H37)^0.5 -> 43444.54104
B42: Table 6 - DUoS Recovery Arrangements
C43: Year t-2 | D43: Year t-1 | E43: Year t
C44: (actual) | D44: (estimate) | E44: (forecast)
C45: =D45-1 -> 2016 | D45: =E45-1 -> 2017 | E45: =C$6 -> 2018
B47: (A) Revenue from DUoS Charges | C47: 279326173.3 | D47: =Est2017DistRev!BQ66 -> 282526250.3 | E47: =C9 -> 293358387
B50: (B) Less TAR for regulatory year = | C50: =SUM(C51:C54) -> 279321607.5 | D50: =SUM(D51:D54) -> 282608527.5 | E50: =SUM(E51:E54) -> 293322463.8
B51: + Adjusted annual smoothed revenue | C51: =H21 -> 279292116.4 | D51: =C21 -> 282154508.4 | E51: =C14 -> 293098089.7
B52: +It | C52: =INDEX('Model update'!$D$100:$H$100,1,MATCH($C$45,'Model update'!$D$93:$H$93,0)) -> -15000 | D52: =H15 -> 410000 | E52: =C15 -> 140000
B53: +Tt | C53: =INDEX('Model update'!$D$144:$H$144,1,MATCH($C$45,'Model update'!$D$137:$H$137,0)) -> 0 | D53: =H16 -> 0 | E53: =C16 -> 0
B54: +Bt = | C54: =SUM(C55:C57) -> 44491.06747 | D54: =SUM(D55:D57) -> 44019.0305 | E54: =SUM(E55:E57) -> 84374.08259
B55: +Licence fee recovery | C55: 39867.30941 | D55: =H29 -> 43444.54104 | E55: =C29 -> 84374.08259
B56: +Approved pass throughs | C56: =INDEX('Model update'!$D$122:$H$122,1,MATCH($C$45,'Model update'!$D$115:$H$115,0)) -> 0 | D56: =H30 -> 0 | E56: =C30 -> 0
B57: +Pass Through revenue under/over recovery for years 2014 and 2015 | C57: 4623.758064 | D57: =H31 -> 574.4894635 | E57: =C31 -> 0
B60: (A minus B) Under/over recovery of revenue for regulatory year | C60: =C47-C50 -> 4565.844156 | D60: =D47-D50 -> -82277.20941 | E60: =E47-E50 -> 35923.13782
B64: Table 7 - DUoS Unders and Overs Account
C65: Year t-2 | D65: Year t-1 | E65: Year t
C66: (actual) | D66: (estimate) | E66: (forecast)
B67: Calendar year | C67: =D67-1 -> 2016 | D67: =E67-1 -> 2017 | E67: =C$6 -> 2018
B69: Nominal WACC | C69: =(1+'Model update'!$B$47)*(1+'Model update'!$C$28)-1 -> 0.05256117473 | D69: =(1+'Model update'!$B$45)*(1+'Model update'!$C$29)-1 -> 0.0470000456 | E69: =(1+'Model update'!$B$43)*(1+'Model update'!$C$30)-1 -> 0.05592902844
B71: Opening balance | C71: 0 | D71: =C75 -> 4684.300603 | E71: =D75 -> -79284.06263
B72: Interest on Opening balance | C72: =C71*C69 -> 0 | D72: =D71*D69 -> 220.1623419 | E72: =E71*E69 -> -4434.280594
B73: Under/over recovery of revenue for regulatory year | C73: =C60 -> 4565.844156 | D73: =D60 -> -82277.20941 | E73: =E60 -> 35923.13782
B74: Interest on under/over recovery for regulatory year | C74: =C73*((1+C69)^0.5-1) -> 118.4564468 | D74: =D73*((1+D69)^0.5-1) -> -1911.316167 | E74: =E73*((1+E69)^0.5-1) -> 990.9064799
B75: Closing balance of DUoS overs/ (unders) account | C75: =SUM(C71:C74) -> 4684.300603 | D75: =SUM(D71:D74) -> -79284.06263 | E75: -46804.29892
B77: The DNSP is expected to achieve a closing balance as close to zero as practicable in its DUoS unders and overs account in each forecast year in its annual pricing proposals in the 2016–20 regulatory control period.

Sheet 2018DistTarRebalCont
B1: ="Tariff Approval - "&'Model update'!C3 -> Tariff Approval - CitiPower
B3: ='Model update'!C5&" DISTRIBUTION TARIFF REBALANCING CONTROL" -> 2018 DISTRIBUTION TARIFF REBALANCING CONTROL
B6: Distribution tariff rebalancing control
B8: ="CPI "&'Model update'!$C$5 -> CPI 2018 | C8: ='2018DistRevCapForm'!C22 -> 0.01933701657
B9: ="X "& 'Model update'!$C$5 -> X 2018 | C9: =MIN('2018DistRevCapForm'!C23,0) -> -0.0005
B10: ="St "&'Model update'!$C$5 -> St 2018 | C10: ='2018DistRevCapForm'!C24 -> 0.01857052664
B11: ="It "&'Model update'!$C$5 -> It 2018 | C11: =('2018DistRevCapForm'!C15-'2018DistRevCapForm'!H15)/Prop2018DistTar!DJ$66 -> -0.0009702072174
B12: ="Tt "&'Model update'!$C$5 -> Tt 2018 | C12: =('2018DistRevCapForm'!C16-'2018DistRevCapForm'!H16)/Prop2018DistTar!DJ$66 -> 0
B13: ="Bt "&'Model update'!$C$5 -> Bt 2018 | C13: =('2018DistRevCapForm'!C17-'2018DistRevCapForm'!H17)/Prop2018DistTar!DJ$66 -> 0.0107691532
C16: =(1+C8)*(1-C9)*(1+0.02)*(1+C10)+SUM(C11:C13) -> 1.069360437
B20: Rebalancing control summary | C20: ="Pt-1*(Qt " &'Model update'!$C$5&")" -> Pt-1*(Qt 2018) | D20: ="Pt*(Qt " &'Model update'!$C$5&")" -> Pt*(Qt 2018)
B21: Tariff Class (Input Class Name) | C21: Existing ($) | D21: Proposed ($) | E21: Movement
B22: Residential | C22: =IF(B22="","",SUMIF($B$39:$B$98,$B22,$I$39:$I$98)) -> 77880494.05 | D22: =IF(B22="","",SUMIF($B$39:$B$98,$B22,$F$39:$F$98)) -> 80969110.03 | E22: =IF(B22="","",D22/C22) -> 1.039658403 | F22: =IF(B22="","",IF(E22<$C$16,"COMPLIANT","BREACHED")) -> COMPLIANT
B23: Small business | C23: 94752106.69 | D23: =IF(B23="","",SUMIF($B$39:$B$98,$B23,$F$39:$F$98)) -> 99474583.49 | E23: 1.049840336 | F23: =IF(B23="","",IF(E23<$C$16,"COMPLIANT","BREACHED")) -> COMPLIANT
B24: LLV | C24: 90232146.46 | D24: =IF(B24="","",SUMIF($B$39:$B$98,$B24,$F$39:$F$98)) -> 96436425.21 | E24: 1.068759073 | F24: COMPLIANT
B25: HV | C25: 14508795.11 | D25: =IF(B25="","",SUMIF($B$39:$B$98,$B25,$F$39:$F$98)) -> 15502091.41 | E25: 1.068461667 | F25: COMPLIANT
B26: SubTrans | C26: 917522.891 | D26: =IF(B26="","",SUMIF($B$39:$B$98,$B26,$F$39:$F$98)) -> 976176.8175 | E26: 1.06392639 | F26: COMPLIANT
D27: =IF(B27="","",SUMIF($B$39:$B$98,$B27,$CO$39:$CO$98)) -> 
B34: Check Total | C34: =IF(ABS(SUM(C22:C33)-I99)<0.01,"Ok","Error") -> Ok | D34: =IF(ABS(SUM(D22:D33)-F99)<0.01,"Ok","Error") -> Ok
C35: =IF(ABS(SUM(C22:C33)-Prop2018DistTar!DJ66)<0.01,"Ok","Error") -> Ok | D35: =IF(ABS(SUM(D22:D33)-Prop2018DistTar!CM66)<0.01,"Ok","Error") -> Ok
F37: ="Revenue (Pt "&'Model update'!$C$5&")*(Qt " &'Model update'!$C$5&")" -> Revenue (Pt 2018)*(Qt 2018) | I37: ="Revenue (Pt-1 "&'Model update'!$C$8&")*(Qt " &'Model update'!$C$5&")" -> Revenue (Pt-1 2017)*(Qt 2018)
A38: New Tariff Test | B38: Destination tariff class | C38: Source tariff class | D38: Proposed tariff | E38: Existing tariff | F38: PropRev Total | I38: ExistRev Total
A39: =OR(EXACT(D39,Prop2018DistTar!C$6:C$65)) -> TRUE | D39: =IF(Prop2018DistTar!B6="","",Prop2018DistTar!B6) ->  | E39: =IF(Prop2018DistTar!C6="","",Prop2018DistTar!C6) ->  | F39: =Prop2018DistTar!CM6 -> 0 | I39: =Prop2018DistTar!DJ6 -> 0
A40: =OR(EXACT(D40,Prop2018DistTar!C$6:C$65)) -> TRUE | B40: Residential | C40: Residential | D40: =IF(Prop2018DistTar!B7="","",Prop2018DistTar!B7) -> Residential Single Rate | E40: =IF(Prop2018DistTar!C7="","",Prop2018DistTar!C7) -> Residential Single Rate | F40: =Prop2018DistTar!CM7 -> 55931546.67 | I40: =Prop2018DistTar!DJ7 -> 55847754.25
A41: =OR(EXACT(D41,Prop2018DistTar!C$6:C$65)) -> TRUE | B41: Residential | C41: Residential | D41: =IF(Prop2018DistTar!B8="","",Prop2018DistTar!B8) -> Residential Single Rate - Bulk | E41: =IF(Prop2018DistTar!C8="","",Prop2018DistTar!C8) -> Residential Single Rate - Bulk | F41: =Prop2018DistTar!CM8 -> 6409572.309 | I41: =Prop2018DistTar!DJ8 -> 5610359.111
A42: =OR(EXACT(D42,Prop2018DistTar!C$6:C$65)) -> TRUE | B42: Residential | C42: Residential | D42: =IF(Prop2018DistTar!B9="","",Prop2018DistTar!B9) -> Residential - flexible pricing | E42: =IF(Prop2018DistTar!C9="","",Prop2018DistTar!C9) -> Residential - flexible pricing | F42: =Prop2018DistTar!CM9 -> 348326.7012 | I42: =Prop2018DistTar!DJ9 -> 322469.7701
A43: =OR(EXACT(D43,Prop2018DistTar!C$6:C$65)) -> TRUE | B43: Residential | C43: Residential | D43: =IF(Prop2018DistTar!B10="","",Prop2018DistTar!B10) -> Residential - flexible pricing bulk | E43: =IF(Prop2018DistTar!C10="","",Prop2018DistTar!C10) -> Residential - flexible pricing bulk | F43: =Prop2018DistTar!CM10 -> 23635.14709 | I43: =Prop2018DistTar!DJ10 -> 22098.84807
A44: =OR(EXACT(D44,Prop2018DistTar!C$6:C$65)) -> TRUE | B44: Residential | C44: Residential | D44: =IF(Prop2018DistTar!B11="","",Prop2018DistTar!B11) -> Residential Two Rate 5d | E44: =IF(Prop2018DistTar!C11="","",Prop2018DistTar!C11) -> Residential Two Rate 5d | F44: =Prop2018DistTar!CM11 -> 4942143.442 | I44: =Prop2018DistTar!DJ11 -> 4398723.33
A45: =OR(EXACT(D45,Prop2018DistTar!C$6:C$65)) -> TRUE | B45: Residential | C45: Residential | D45: =IF(Prop2018DistTar!B12="","",Prop2018DistTar!B12) -> Residential Two Rate 5d - Bulk | E45: =IF(Prop2018DistTar!C12="","",Prop2018DistTar!C12) -> Residential Two Rate 5d - Bulk | F45: =Prop2018DistTar!CM12 -> 1525748.515 | I45: =Prop2018DistTar!DJ12 -> 1291574.353
A46: =OR(EXACT(D46,Prop2018DistTar!C$6:C$65)) -> TRUE | B46: Residential | C46: Residential | D46: =IF(Prop2018DistTar!B13="","",Prop2018DistTar!B13) -> Residential Interval | E46: =IF(Prop2018DistTar!C13="","",Prop2018DistTar!C13) -> Residential Interval | F46: =Prop2018DistTar!CM13 -> 8511940.422 | I46: =Prop2018DistTar!DJ13 -> 7559275.933
A47: =OR(EXACT(D47,Prop2018DistTar!C$6:C$65)) -> TRUE | B47: Residential | C47: Residential | D47: =IF(Prop2018DistTar!B14="","",Prop2018DistTar!B14) -> Residential Interval - Bulk | E47: =IF(Prop2018DistTar!C14="","",Prop2018DistTar!C14) -> Residential Interval - Bulk | F47: =Prop2018DistTar!CM14 -> 2184291.064 | I47: =Prop2018DistTar!DJ14 -> 1886139.627
A48: =OR(EXACT(D48,Prop2018DistTar!C$6:C$65)) -> TRUE | B48: Residential | C48: Residential | D48: =IF(Prop2018DistTar!B15="","",Prop2018DistTar!B15) -> Residential Two Rate 5d - Controlled Load | E48: =IF(Prop2018DistTar!C15="","",Prop2018DistTar!C15) -> Residential Two Rate 5d - Controlled Load | F48: =Prop2018DistTar!CM15 -> 354396.7666 | I48: =Prop2018DistTar!DJ15 -> 308603.926
A49: =OR(EXACT(D49,Prop2018DistTar!C$6:C$65)) -> TRUE | B49: Residential | C49: Residential | D49: =IF(Prop2018DistTar!B16="","",Prop2018DistTar!B16) -> Residential Two Rate 5d - Bulk - Controlled Load | E49: =IF(Prop2018DistTar!C16="","",Prop2018DistTar!C16) -> Residential Two Rate 5d - Bulk - Controlled Load | F49: =Prop2018DistTar!CM16 -> 101436.5112 | I49: =Prop2018DistTar!DJ16 -> 81590.23727
A50: =OR(EXACT(D50,Prop2018DistTar!C$6:C$65)) -> TRUE | B50: Residential | C50: Residential | D50: =IF(Prop2018DistTar!B17="","",Prop2018DistTar!B17) -> Dedicated Circuit | E50: =IF(Prop2018DistTar!C17="","",Prop2018DistTar!C17) -> Dedicated Circuit | F50: =Prop2018DistTar!CM17 -> 603243.2436 | I50: =Prop2018DistTar!DJ17 -> 525296.0829
A51: =OR(EXACT(D51,Prop2018DistTar!C$6:C$65)) -> TRUE | B51: Residential | C51: Residential | D51: =IF(Prop2018DistTar!B18="","",Prop2018DistTar!B18) -> Dedicated Circuit - Bulk | E51: =IF(Prop2018DistTar!C18="","",Prop2018DistTar!C18) -> Dedicated Circuit - Bulk | F51: =Prop2018DistTar!CM18 -> 30625.11445 | I51: =Prop2018DistTar!DJ18 -> 24633.24424
A52: =OR(EXACT(D52,Prop2018DistTar!C$6:C$65)) -> TRUE | B52: Residential | C52: Residential | D52: =IF(Prop2018DistTar!B19="","",Prop2018DistTar!B19) -> Residential Demand | E52: =IF(Prop2018DistTar!C19="","",Prop2018DistTar!C19) -> Residential Demand | F52: =Prop2018DistTar!CM19 -> 1926.4121 | I52: =Prop2018DistTar!DJ19 -> 1725.109589
A53: =OR(EXACT(D53,Prop2018DistTar!C$6:C$65)) -> TRUE | B53: Residential | C53: Residential | D53: =IF(Prop2018DistTar!B20="","",Prop2018DistTar!B20) -> Residential Bulk Demand | E53: =IF(Prop2018DistTar!C20="","",Prop2018DistTar!C20) -> Residential Bulk Demand | F53: =Prop2018DistTar!CM20 -> 277.7089041 | I53: =Prop2018DistTar!DJ20 -> 250.2214612
A54: =OR(EXACT(D54,Prop2018DistTar!C$6:C$65)) -> TRUE | B54: Small business | C54: Small business | D54: =IF(Prop2018DistTar!B21="","",Prop2018DistTar!B21) -> Non-Residential Single Rate | E54: =IF(Prop2018DistTar!C21="","",Prop2018DistTar!C21) -> Non-Residential Single Rate | F54: =Prop2018DistTar!CM21 -> 15964750.23 | I54: =Prop2018DistTar!DJ21 -> 14640418.11
A55: =OR(EXACT(D55,Prop2018DistTar!C$6:C$65)) -> TRUE | B55: Small business | C55: Small business | D55: =IF(Prop2018DistTar!B22="","",Prop2018DistTar!B22) -> Non-Residential Single Rate - Bulk | E55: =IF(Prop2018DistTar!C22="","",Prop2018DistTar!C22) -> Non-Residential Single Rate - Bulk | F55: =Prop2018DistTar!CM22 -> 4126448.79 | I55: =Prop2018DistTar!DJ22 -> 3780904.96
A56: =OR(EXACT(D56,Prop2018DistTar!C$6:C$65)) -> TRUE | B56: Small business | C56: Small business | D56: =IF(Prop2018DistTar!B23="","",Prop2018DistTar!B23) -> Non-Residential Two Rate 5d | E56: =IF(Prop2018DistTar!C23="","",Prop2018DistTar!C23) -> Non-Residential Two Rate 5d | F56: =Prop2018DistTar!CM23 -> 10463089.92 | I56: =Prop2018DistTar!DJ23 -> 9555068.206
A57: =OR(EXACT(D57,Prop2018DistTar!C$6:C$65)) -> TRUE | B57: Small business | C57: Small business | D57: =IF(Prop2018DistTar!B24="","",Prop2018DistTar!B24) -> Non-Residential Two Rate 5d - Bulk | E57: =IF(Prop2018DistTar!C24="","",Prop2018DistTar!C24) -> Non-Residential Two Rate 5d - Bulk | F57: =Prop2018DistTar!CM24 -> 1427395.732 | I57: =Prop2018DistTar!DJ24 -> 1304057.172
A58: =OR(EXACT(D58,Prop2018DistTar!C$6:C$65)) -> TRUE | B58: Small business | C58: Small business | D58: =IF(Prop2018DistTar!B25="","",Prop2018DistTar!B25) -> Non-Residential Interval | E58: =IF(Prop2018DistTar!C25="","",Prop2018DistTar!C25) -> Non-Residential Interval | F58: =Prop2018DistTar!CM25 -> 5220364.65 | I58: =Prop2018DistTar!DJ25 -> 4774658.411
A59: =OR(EXACT(D59,Prop2018DistTar!C$6:C$65)) -> TRUE | B59: Small business | C59: Small business | D59: =IF(Prop2018DistTar!B26="","",Prop2018DistTar!B26) -> Non-Residential Interval - Bulk | E59: =IF(Prop2018DistTar!C26="","",Prop2018DistTar!C26) -> Non-Residential Interval - Bulk | F59: =Prop2018DistTar!CM26 -> 2430345.675 | I59: =Prop2018DistTar!DJ26 -> 2220822.824
A60: =OR(EXACT(D60,Prop2018DistTar!C$6:C$65)) -> TRUE | B60: Small business | C60: Small business | D60: =IF(Prop2018DistTar!B27="","",Prop2018DistTar!B27) -> Non-Residential Flexible Pricing | E60: =IF(Prop2018DistTar!C27="","",Prop2018DistTar!C27) -> Non-Residential Flexible Pricing | F60: =Prop2018DistTar!CM27 -> 34487.4356 | I60: =Prop2018DistTar!DJ27 -> 31506.10723
A61: =OR(EXACT(D61,Prop2018DistTar!C$6:C$65)) -> TRUE | B61: Small business | C61: Small business | D61: =IF(Prop2018DistTar!B28="","",Prop2018DistTar!B28) -> Non-Residential - Flexible Pricing Bulk | E61: =IF(Prop2018DistTar!C28="","",Prop2018DistTar!C28) -> Non-Residential - Flexible Pricing Bulk | F61: =Prop2018DistTar!CM28 -> 5756.221321 | I61: =Prop2018DistTar!DJ28 -> 5261.814336
A62: =OR(EXACT(D62,Prop2018DistTar!C$6:C$65)) -> TRUE | B62: Small business | C62: Small business | D62: =IF(Prop2018DistTar!B29="","",Prop2018DistTar!B29) -> Non-Residential Two Rate 7d | E62: =IF(Prop2018DistTar!C29="","",Prop2018DistTar!C29) -> Non-Residential Two Rate 7d | F62: =Prop2018DistTar!CM29 -> 3224973.112 | I62: =Prop2018DistTar!DJ29 -> 2950154.82
A63: =OR(EXACT(D63,Prop2018DistTar!C$6:C$65)) -> TRUE | B63: Small business | C63: Small business | D63: =IF(Prop2018DistTar!B30="","",Prop2018DistTar!B30) -> Non-Residential Two Rate 7d - Bulk | E63: =IF(Prop2018DistTar!C30="","",Prop2018DistTar!C30) -> Non-Residential Two Rate 7d - Bulk | F63: =Prop2018DistTar!CM30 -> 373950.1201 | I63: =Prop2018DistTar!DJ30 -> 341519.6583
A64: =OR(EXACT(D64,Prop2018DistTar!C$6:C$65)) -> TRUE | B64: Small business | C64: Small business | D64: =IF(Prop2018DistTar!B31="","",Prop2018DistTar!B31) -> Large Two Rate 7d | E64: =IF(Prop2018DistTar!C31="","",Prop2018DistTar!C31) -> Large Two Rate 7d | F64: =Prop2018DistTar!CM31 -> 22523.9854 | I64: =Prop2018DistTar!DJ31 -> 20496.22264
A65: =OR(EXACT(D65,Prop2018DistTar!C$6:C$65)) -> TRUE | B65: Small business | C65: Small business | D65: =IF(Prop2018DistTar!B32="","",Prop2018DistTar!B32) -> Non-Residential Demand Tariff | E65: =IF(Prop2018DistTar!C32="","",Prop2018DistTar!C32) -> Non-Residential Demand Tariff | F65: =Prop2018DistTar!CM32 -> 6232.54077 | I65: =Prop2018DistTar!DJ32 -> 5700.541422
A66: =OR(EXACT(D66,Prop2018DistTar!C$6:C$65)) -> TRUE | B66: Small business | C66: Small business | D66: =IF(Prop2018DistTar!B33="","",Prop2018DistTar!B33) -> Non-Residential Bulk Demand Tariff | E66: =IF(Prop2018DistTar!C33="","",Prop2018DistTar!C33) -> Non-Residential Bulk Demand Tariff | F66: =Prop2018DistTar!CM33 -> 865.5787345 | I66: =Prop2018DistTar!DJ33 -> 792.5562948
A67: =OR(EXACT(D67,Prop2018DistTar!C$6:C$65)) -> TRUE | B67: Small business | C67: Small business | D67: =IF(Prop2018DistTar!B34="","",Prop2018DistTar!B34) -> Medium Business Demand | E67: =IF(Prop2018DistTar!C34="","",Prop2018DistTar!C34) -> Medium Business Demand | F67: =Prop2018DistTar!CM34 -> 36062594.7 | I67: =Prop2018DistTar!DJ34 -> 35551721.17
A68: =OR(EXACT(D68,Prop2018DistTar!C$6:C$65)) -> TRUE | B68: Small business | C68: Small business | D68: =IF(Prop2018DistTar!B35="","",Prop2018DistTar!B35) -> Medium Business Bulk Demand | E68: =IF(Prop2018DistTar!C35="","",Prop2018DistTar!C35) -> Medium Business Bulk Demand | F68: =Prop2018DistTar!CM35 -> 18174062.83 | I68: =Prop2018DistTar!DJ35 -> 17908765.6
A69: =OR(EXACT(D69,Prop2018DistTar!C$6:C$65)) -> FALSE | B69: Small business | C69: Small business | D69: =IF(Prop2018DistTar!B36="","",Prop2018DistTar!B36) -> Medium Business Opt-out | E69: =IF(Prop2018DistTar!C36="","",Prop2018DistTar!C36) -> - | F69: =Prop2018DistTar!CM36 -> 59116.43387 | I69: =Prop2018DistTar!DJ36 -> 0
A70: =OR(EXACT(D70,Prop2018DistTar!C$6:C$65)) -> FALSE | B70: Small business | C70: Small business | D70: =IF(Prop2018DistTar!B37="","",Prop2018DistTar!B37) -> Medium Business Bulk Opt-out | E70: =IF(Prop2018DistTar!C37="","",Prop2018DistTar!C37) -> - | F70: =Prop2018DistTar!CM37 -> 49146.19792 | I70: =Prop2018DistTar!DJ37 -> 0
A71: =OR(EXACT(D71,Prop2018DistTar!C$6:C$65)) -> TRUE | B71: Small business | C71: Small business | D71: =IF(Prop2018DistTar!B38="","",Prop2018DistTar!B38) -> Unmetered Supplies / Public Lighting | E71: =IF(Prop2018DistTar!C38="","",Prop2018DistTar!C38) -> Unmetered Supplies / Public Lighting | F71: =Prop2018DistTar!CM38 -> 1828479.346 | I71: =Prop2018DistTar!DJ38 -> 1660258.518
A72: =OR(EXACT(D72,Prop2018DistTar!C$6:C$65)) -> TRUE | B72: LLV | C72: LLV | D72: =IF(Prop2018DistTar!B39="","",Prop2018DistTar!B39) -> Large low Voltage | E72: =IF(Prop2018DistTar!C39="","",Prop2018DistTar!C39) -> Large low Voltage | F72: =Prop2018DistTar!CM39 -> 10616251.66 | I72: =Prop2018DistTar!DJ39 -> 9919883.74
A73: =OR(EXACT(D73,Prop2018DistTar!C$6:C$65)) -> TRUE | B73: LLV | C73: LLV | D73: =IF(Prop2018DistTar!B40="","",Prop2018DistTar!B40) -> Large low Voltage Bulk | E73: =IF(Prop2018DistTar!C40="","",Prop2018DistTar!C40) -> Large low Voltage Bulk | F73: =Prop2018DistTar!CM40 -> 85820173.56 | I73: =Prop2018DistTar!DJ40 -> 80312262.72
A74: =OR(EXACT(D74,Prop2018DistTar!C$6:C$65)) -> TRUE | B74: HV | C74: HV | D74: =IF(Prop2018DistTar!B41="","",Prop2018DistTar!B41) -> High Voltage | E74: =IF(Prop2018DistTar!C41="","",Prop2018DistTar!C41) -> High Voltage | F74: =Prop2018DistTar!CM41 -> 15502091.41 | I74: =Prop2018DistTar!DJ41 -> 14508795.11
A75: =OR(EXACT(D75,Prop2018DistTar!C$6:C$65)) -> TRUE | B75: SubTrans | C75: SubTrans | D75: =IF(Prop2018DistTar!B42="","",Prop2018DistTar!B42) -> Subtransmission | E75: =IF(Prop2018DistTar!C42="","",Prop2018DistTar!C42) -> Subtransmission | F75: =Prop2018DistTar!CM42 -> 976176.8175 | I75: =Prop2018DistTar!DJ42 -> 917522.891
A76: =OR(EXACT(D76,Prop2018DistTar!C$6:C$65)) -> TRUE | D76: =IF(Prop2018DistTar!B43="","",Prop2018DistTar!B43) ->  | E76: =IF(Prop2018DistTar!C43="","",Prop2018DistTar!C43) ->  | F76: =Prop2018DistTar!CM43 -> 0 | I76: =Prop2018DistTar!DJ43 -> 0
A77: =OR(EXACT(D77,Prop2018DistTar!C$6:C$65)) -> TRUE | D77: =IF(Prop2018DistTar!B44="","",Prop2018DistTar!B44) ->  | E77: =IF(Prop2018DistTar!C44="","",Prop2018DistTar!C44) ->  | F77: =Prop2018DistTar!CM44 -> 0 | I77: =Prop2018DistTar!DJ44 -> 0
A78: =OR(EXACT(D78,Prop2018DistTar!C$6:C$65)) -> TRUE | D78: =IF(Prop2018DistTar!B45="","",Prop2018DistTar!B45) ->  | E78: =IF(Prop2018DistTar!C45="","",Prop2018DistTar!C45) ->  | F78: =Prop2018DistTar!CM45 -> 0 | I78: =Prop2018DistTar!DJ45 -> 0
A79: =OR(EXACT(D79,Prop2018DistTar!C$6:C$65)) -> TRUE | D79: =IF(Prop2018DistTar!B46="","",Prop2018DistTar!B46) ->  | E79: =IF(Prop2018DistTar!C46="","",Prop2018DistTar!C46) ->  | F79: =Prop2018DistTar!CM46 -> 0 | I79: =Prop2018DistTar!DJ46 -> 0
A80: =OR(EXACT(D80,Prop2018DistTar!C$6:C$65)) -> TRUE | D80: =IF(Prop2018DistTar!B47="","",Prop2018DistTar!B47) ->  | E80: =IF(Prop2018DistTar!C47="","",Prop2018DistTar!C47) ->  | F80: =Prop2018DistTar!CM47 -> 0 | I80: =Prop2018DistTar!DJ47 -> 0
A81: =OR(EXACT(D81,Prop2018DistTar!C$6:C$65)) -> TRUE | D81: =IF(Prop2018DistTar!B48="","",Prop2018DistTar!B48) ->  | E81: =IF(Prop2018DistTar!C48="","",Prop2018DistTar!C48) ->  | F81: =Prop2018DistTar!CM48 -> 0 | I81: =Prop2018DistTar!DJ48 -> 0
A82: =OR(EXACT(D82,Prop2018DistTar!C$6:C$65)) -> TRUE | D82: =IF(Prop2018DistTar!B49="","",Prop2018DistTar!B49) ->  | E82: =IF(Prop2018DistTar!C49="","",Prop2018DistTar!C49) ->  | F82: =Prop2018DistTar!CM49 -> 0 | I82: =Prop2018DistTar!DJ49 -> 0
A83: =OR(EXACT(D83,Prop2018DistTar!C$6:C$65)) -> TRUE | D83: =IF(Prop2018DistTar!B50="","",Prop2018DistTar!B50) ->  | E83: =IF(Prop2018DistTar!C50="","",Prop2018DistTar!C50) ->  | F83: =Prop2018DistTar!CM50 -> 0 | I83: =Prop2018DistTar!DJ50 -> 0
A84: =OR(EXACT(D84,Prop2018DistTar!C$6:C$65)) -> TRUE | D84: =IF(Prop2018DistTar!B51="","",Prop2018DistTar!B51) ->  | E84: =IF(Prop2018DistTar!C51="","",Prop2018DistTar!C51) ->  | F84: =Prop2018DistTar!CM51 -> 0 | I84: =Prop2018DistTar!DJ51 -> 0
A85: =OR(EXACT(D85,Prop2018DistTar!C$6:C$65)) -> TRUE | D85: =IF(Prop2018DistTar!B52="","",Prop2018DistTar!B52) ->  | E85: =IF(Prop2018DistTar!C52="","",Prop2018DistTar!C52) ->  | F85: =Prop2018DistTar!CM52 -> 0 | I85: =Prop2018DistTar!DJ52 -> 0
A86: =OR(EXACT(D86,Prop2018DistTar!C$6:C$65)) -> TRUE | D86: =IF(Prop2018DistTar!B53="","",Prop2018DistTar!B53) ->  | E86: =IF(Prop2018DistTar!C53="","",Prop2018DistTar!C53) ->  | F86: =Prop2018DistTar!CM53 -> 0 | I86: =Prop2018DistTar!DJ53 -> 0
A87: =OR(EXACT(D87,Prop2018DistTar!C$6:C$65)) -> TRUE | D87: =IF(Prop2018DistTar!B54="","",Prop2018DistTar!B54) ->  | E87: =IF(Prop2018DistTar!C54="","",Prop2018DistTar!C54) ->  | F87: =Prop2018DistTar!CM54 -> 0 | I87: =Prop2018DistTar!DJ54 -> 0
A88: =OR(EXACT(D88,Prop2018DistTar!C$6:C$65)) -> TRUE | D88: =IF(Prop2018DistTar!B55="","",Prop2018DistTar!B55) ->  | E88: =IF(Prop2018DistTar!C55="","",Prop2018DistTar!C55) ->  | F88: =Prop2018DistTar!CM55 -> 0 | I88: =Prop2018DistTar!DJ55 -> 0
A89: =OR(EXACT(D89,Prop2018DistTar!C$6:C$65)) -> TRUE | D89: =IF(Prop2018DistTar!B56="","",Prop2018DistTar!B56) ->  | E89: =IF(Prop2018DistTar!C56="","",Prop2018DistTar!C56) ->  | F89: =Prop2018DistTar!CM56 -> 0 | I89: =Prop2018DistTar!DJ56 -> 0
A90: =OR(EXACT(D90,Prop2018DistTar!C$6:C$65)) -> TRUE | D90: =IF(Prop2018DistTar!B57="","",Prop2018DistTar!B57) ->  | E90: =IF(Prop2018DistTar!C57="","",Prop2018DistTar!C57) ->  | F90: =Prop2018DistTar!CM57 -> 0 | I90: =Prop2018DistTar!DJ57 -> 0
A91: =OR(EXACT(D91,Prop2018DistTar!C$6:C$65)) -> TRUE | D91: =IF(Prop2018DistTar!B58="","",Prop2018DistTar!B58) ->  | E91: =IF(Prop2018DistTar!C58="","",Prop2018DistTar!C58) ->  | F91: =Prop2018DistTar!CM58 -> 0 | I91: =Prop2018DistTar!DJ58 -> 0
A92: =OR(EXACT(D92,Prop2018DistTar!C$6:C$65)) -> TRUE | D92: =IF(Prop2018DistTar!B59="","",Prop2018DistTar!B59) ->  | E92: =IF(Prop2018DistTar!C59="","",Prop2018DistTar!C59) ->  | F92: =Prop2018DistTar!CM59 -> 0 | I92: =Prop2018DistTar!DJ59 -> 0
A93: =OR(EXACT(D93,Prop2018DistTar!C$6:C$65)) -> TRUE | D93: =IF(Prop2018DistTar!B60="","",Prop2018DistTar!B60) ->  | E93: =IF(Prop2018DistTar!C60="","",Prop2018DistTar!C60) ->  | F93: =Prop2018DistTar!CM60 -> 0 | I93: =Prop2018DistTar!DJ60 -> 0
A94: =OR(EXACT(D94,Prop2018DistTar!C$6:C$65)) -> TRUE | D94: =IF(Prop2018DistTar!B61="","",Prop2018DistTar!B61) ->  | E94: =IF(Prop2018DistTar!C61="","",Prop2018DistTar!C61) ->  | F94: =Prop2018DistTar!CM61 -> 0 | I94: =Prop2018DistTar!DJ61 -> 0
A95: =OR(EXACT(D95,Prop2018DistTar!C$6:C$65)) -> TRUE | D95: =IF(Prop2018DistTar!B62="","",Prop2018DistTar!B62) ->  | E95: =IF(Prop2018DistTar!C62="","",Prop2018DistTar!C62) ->  | F95: =Prop2018DistTar!CM62 -> 0 | I95: =Prop2018DistTar!DJ62 -> 0
A96: =OR(EXACT(D96,Prop2018DistTar!C$6:C$65)) -> TRUE | D96: =IF(Prop2018DistTar!B63="","",Prop2018DistTar!B63) ->  | E96: =IF(Prop2018DistTar!C63="","",Prop2018DistTar!C63) ->  | F96: =Prop2018DistTar!CM63 -> 0 | I96: =Prop2018DistTar!DJ63 -> 0
A97: =OR(EXACT(D97,Prop2018DistTar!C$6:C$65)) -> TRUE | D97: =IF(Prop2018DistTar!B64="","",Prop2018DistTar!B64) ->  | E97: =IF(Prop2018DistTar!C64="","",Prop2018DistTar!C64) ->  | F97: =Prop2018DistTar!CM64 -> 0 | I97: =Prop2018DistTar!DJ64 -> 0
A98: =OR(EXACT(D98,Prop2018DistTar!C$6:C$65)) -> TRUE | D98: =IF(Prop2018DistTar!B65="","",Prop2018DistTar!B65) ->  | E98: =IF(Prop2018DistTar!C65="","",Prop2018DistTar!C65) ->  | F98: =Prop2018DistTar!CM65 -> 0 | I98: =Prop2018DistTar!DJ65 -> 0
F99: =SUM(F39:F98) -> 293358387 | I99: =SUM(I39:I98) -> 278291065.2

Sheet Est2017DistRev
B1: ="Tariff Approval - "&'Model update'!C3 -> Tariff Approval - CitiPower
B3: ="ESTIMATED "&'Model update'!$C$8&" Distribution Revenue" -> ESTIMATED 2017 Distribution Revenue
D4: ="Current Distribution Tariffs (Pt-1) for "&'Model update'!$C$8 -> Current Distribution Tariffs (Pt-1) for 2017 | Z4: =" Estimated Distribution Quantities for "&'Model update'!$C$8&" (Qt-1)" -> Estimated Distribution Quantities for 2017 (Qt-1) | AV4: ="Estimated Revenue (Pt-1 "&'Model update'!$C$8&")*(Qt-1 " &'Model update'!$C$8&")" -> Estimated Revenue (Pt-1 2017)*(Qt-1 2017)
B5: ="Tariffs "&'Model update'!C8 -> Tariffs 2017 | D5: Current Fixed | E5: Current Anytime | F5: Current PkBlk | I5: Current OPkBlk1 | M5: Current Dem kVA | N5: Current Dem kW | O5: Current Dem kW Sum | P5: Current Dem kW Win | Q5: Current SumBlk1 | R5: Current SumBlk2 | S5: Current SumBlk3 | U5: Current WtrBlk1 | V5: Current WtrBlk2 | W5: Current WtrBlk3 | Z5: EstVol Fixed | AA5: EstVol Anytime | AB5: EstVol PkBlk | AE5: EstVol OPkBlk1 | AI5: EstVol Dem kVA | AJ5: EstVol Dem kW | AK5: EstVol Dem kW Sum | AL5: EstVol Dem kW Win | AM5: EstVol SumBlk1 | AN5: EstVol SumBlk2 | AO5: EstVol SumBlk3 | AQ5: EstVol WtrBlk1 | AR5: EstVol WtrBlk2 | AS5: EstVol WtrBlk3 | AV5: EstRev Fixed | AW5: EstRev Anytime | AX5: EstRev PkBlk | BA5: EstRev OPkBlk1 | BE5: EstRev Dem kVA | BF5: EstRev Dem kW | BG5: EstRev Dem kW Sum | BH5: EstRev Dem kW Win | BI5: EstRev SumBlk1 | BJ5: EstRev SumBlk2 | BK5: EstRev SumBlk3 | BM5: EstRev WtrBlk1 | BN5: EstRev WtrBlk2 | BO5: EstRev WtrBlk3 | BP5: EstRev WtrBlk4 | BQ5: EstRev Total
AV6: =D6*Z6 -> 0 | AW6: =E6/100*AA6 -> 0 | AX6: 0 | AY6: 0 | AZ6: 0 | BA6: 0 | BB6: 0 | BC6: 0 | BD6: 0 | BE6: =M6*AI6 -> 0 | BF6: 0 | BG6: 0 | BH6: 0 | BI6: =Q6/100*AM6 -> 0 | BJ6: 0 | BK6: 0 | BL6: 0 | BM6: 0 | BN6: 0 | BO6: 0 | BP6: 0 | BQ6: =SUM(AV6:BP6) -> 0
A7: C1R | B7: Residential Single Rate | D7: 85 | E7: 4.6 | F7: 0 | I7: 0 | M7: 0 | O7: 0 | P7: 0 | Q7: 0 | R7: 0 | S7: 0 | U7: 0 | V7: 0 | W7: 0 | X7: 0 | Z7: 203103.2864 | AA7: 816843244.4 | AB7: 0 | AC7: 0 | AD7: 0 | AE7: 0 | AF7: 0 | AG7: 0 | AH7: 0 | AI7: 0 | AJ7: 0 | AK7: 0 | AL7: 0 | AM7: 0 | AN7: 0 | AO7: 0 | AP7: 0 | AQ7: 0 | AR7: 0 | AS7: 0 | AT7: 0 | AV7: 17263779.34 | AW7: 37574789.24 | AX7: 0 | AY7: 0 | AZ7: 0 | BA7: 0 | BB7: 0 | BC7: 0 | BD7: 0 | BE7: 0 | BF7: 0 | BG7: 0 | BH7: 0 | BI7: 0 | BJ7: 0 | BK7: 0 | BL7: 0 | BM7: 0 | BN7: 0 | BO7: 0 | BP7: 0 | BQ7: =SUM(AV7:BP7) -> 54838568.59
A8: C1RB | B8: Residential Single Rate - Bulk | D8: 75 | E8: 3.18 | F8: 0 | I8: 0 | M8: 0 | O8: 0 | P8: 0 | Q8: 0 | R8: 0 | S8: 0 | U8: 0 | V8: 0 | W8: 0 | X8: 0 | Z8: 30973.48563 | AA8: 103150672.3 | AB8: 0 | AC8: 0 | AD8: 0 | AE8: 0 | AF8: 0 | AG8: 0 | AH8: 0 | AI8: 0 | AJ8: 0 | AK8: 0 | AL8: 0 | AM8: 0 | AN8: 0 | AO8: 0 | AP8: 0 | AQ8: 0 | AR8: 0 | AS8: 0 | AT8: 0 | AV8: 2323011.422 | AW8: 3280191.379 | AX8: 0 | AY8: 0 | AZ8: 0 | BA8: 0 | BB8: 0 | BC8: 0 | BD8: 0 | BE8: 0 | BF8: 0 | BG8: 0 | BH8: 0 | BI8: 0 | BJ8: 0 | BK8: 0 | BL8: 0 | BM8: 0 | BN8: 0 | BO8: 0 | BP8: 0 | BQ8: 5603202.801
A9: C13R | B9: Residential - flexible pricing | D9: 85 | E9: 0 | F9: 0 | I9: 0 | M9: 0 | O9: 0 | P9: 0 | Q9: 9.97 | R9: 6.72 | S9: 2.65 | U9: 9.97 | V9: 6.72 | W9: 2.65 | X9: 0 | Z9: 686.1504701 | AA9: 0 | AB9: 0 | AC9: 0 | AD9: 0 | AE9: 0 | AF9: 0 | AG9: 0 | AH9: 0 | AI9: 0 | AJ9: 0 | AK9: 0 | AL9: 0 | AM9: 613112.2927 | AN9: 1019088.457 | AO9: 1354084.138 | AP9: 0 | AQ9: 912417.2234 | AR9: 1605132.698 | AS9: 1774541.374 | AT9: 0 | AV9: 58322.78996 | AW9: 0 | AX9: 0 | AY9: 0 | AZ9: 0 | BA9: 0 | BB9: 0 | BC9: 0 | BD9: 0 | BE9: 0 | BF9: 0 | BG9: 0 | BH9: 0 | BI9: 61127.29558 | BJ9: 68482.74433 | BK9: 35883.22966 | BL9: 0 | BM9: 90967.99717 | BN9: 107864.9173 | BO9: 47025.34642 | BP9: 0 | BQ9: 469674.3204
A10: C13RB | B10: Residential - flexible pricing bulk | D10: 75 | E10: 0 | F10: 0 | I10: 0 | M10: 0 | O10: 0 | P10: 0 | Q10: 7.97 | R10: 5.37 | S10: 2.12 | U10: 7.97 | V10: 5.37 | W10: 2.12 | X10: 0 | Z10: 86.71347108 | AA10: 0 | AB10: 0 | AC10: 0 | AD10: 0 | AE10: 0 | AF10: 0 | AG10: 0 | AH10: 0 | AI10: 0 | AJ10: 0 | AK10: 0 | AL10: 0 | AM10: 39544.13514 | AN10: 85152.12446 | AO10: 65541.54741 | AP10: 0 | AQ10: 61520.78829 | AR10: 127962.4299 | AS10: 100190.3454 | AT10: 0 | AV10: 6503.510331 | AW10: 0 | AX10: 0 | AY10: 0 | AZ10: 0 | BA10: 0 | BB10: 0 | BC10: 0 | BD10: 0 | BE10: 0 | BF10: 0 | BG10: 0 | BH10: 0 | BI10: 3151.667571 | BJ10: 4572.669083 | BK10: 1389.480805 | BL10: 0 | BM10: 4903.206827 | BN10: 6871.582485 | BO10: 2124.035323 | BP10: 0 | BQ10: 29516.15243
A11: C2R | B11: Residential Two Rate 5d | D11: 85 | E11: 0 | F11: 8.54 | I11: 1.83 | M11: 0 | O11: 0 | P11: 0 | Q11: 0 | R11: 0 | S11: 0 | U11: 0 | V11: 0 | W11: 0 | X11: 0 | Z11: 11014.74913 | AA11: 0 | AB11: 33935307.57 | AC11: 0 | AD11: 0 | AE11: 28095960.83 | AF11: 0 | AG11: 0 | AH11: 0 | AI11: 0 | AJ11: 0 | AK11: 0 | AL11: 0 | AM11: 0 | AN11: 0 | AO11: 0 | AP11: 0 | AQ11: 0 | AR11: 0 | AS11: 0 | AT11: 0 | AV11: 936253.6762 | AW11: 0 | AX11: 2898075.267 | AY11: 0 | AZ11: 0 | BA11: 514156.0832 | BB11: 0 | BC11: 0 | BD11: 0 | BE11: 0 | BF11: 0 | BG11: 0 | BH11: 0 | BI11: 0 | BJ11: 0 | BK11: 0 | BL11: 0 | BM11: 0 | BN11: 0 | BO11: 0 | BP11: 0 | BQ11: 4348485.026
A12: C2RB | B12: Residential Two Rate 5d - Bulk | D12: 75 | E12: 0 | F12: 6.76 | I12: 1.55 | M12: 0 | O12: 0 | P12: 0 | Q12: 0 | R12: 0 | S12: 0 | U12: 0 | V12: 0 | W12: 0 | X12: 0 | Z12: 4381.619523 | AA12: 0 | AB12: 11832075.65 | AC12: 0 | AD12: 0 | AE12: 9272614.921 | AF12: 0 | AG12: 0 | AH12: 0 | AI12: 0 | AJ12: 0 | AK12: 0 | AL12: 0 | AM12: 0 | AN12: 0 | AO12: 0 | AP12: 0 | AQ12: 0 | AR12: 0 | AS12: 0 | AT12: 0 | AV12: 328621.4642 | AW12: 0 | AX12: 799848.3138 | AY12: 0 | AZ12: 0 | BA12: 143725.5313 | BB12: 0 | BC12: 0 | BD12: 0 | BE12: 0 | BF12: 0 | BG12: 0 | BH12: 0 | BI12: 0 | BJ12: 0 | BK12: 0 | BL12: 0 | BM12: 0 | BN12: 0 | BO12: 0 | BP12: 0 | BQ12: 1272195.309
A13: C3R | B13: Residential Interval | D13: 85 | E13: 0 | F13: 8.54 | I13: 1.83 | M13: 0 | O13: 0 | P13: 0 | Q13: 0 | R13: 0 | S13: 0 | U13: 0 | V13: 0 | W13: 0 | X13: 0 | Z13: 17389.14783 | AA13: 0 | AB13: 59576789.51 | AC13: 0 | AD13: 0 | AE13: 53241167.13 | AF13: 0 | AG13: 0 | AH13: 0 | AI13: 0 | AJ13: 0 | AK13: 0 | AL13: 0 | AM13: 0 | AN13: 0 | AO13: 0 | AP13: 0 | AQ13: 0 | AR13: 0 | AS13: 0 | AT13: 0 | AV13: 1478077.565 | AW13: 0 | AX13: 5087857.825 | AY13: 0 | AZ13: 0 | BA13: 974313.3585 | BB13: 0 | BC13: 0 | BD13: 0 | BE13: 0 | BF13: 0 | BG13: 0 | BH13: 0 | BI13: 0 | BJ13: 0 | BK13: 0 | BL13: 0 | BM13: 0 | BN13: 0 | BO13: 0 | BP13: 0 | BQ13: 7540248.749
A14: C3RB | B14: Residential Interval - Bulk | D14: 75 | E14: 0 | F14: 6.76 | I14: 1.55 | M14: 0 | O14: 0 | P14: 0 | Q14: 0 | R14: 0 | S14: 0 | U14: 0 | V14: 0 | W14: 0 | X14: 0 | Z14: 8919.701329 | AA14: 0 | AB14: 15283595.68 | AC14: 0 | AD14: 0 | AE14: 14525020.06 | AF14: 0 | AG14: 0 | AH14: 0 | AI14: 0 | AJ14: 0 | AK14: 0 | AL14: 0 | AM14: 0 | AN14: 0 | AO14: 0 | AP14: 0 | AQ14: 0 | AR14: 0 | AS14: 0 | AT14: 0 | AV14: 668977.5997 | AW14: 0 | AX14: 1033171.068 | AY14: 0 | AZ14: 0 | BA14: 225137.8109 | BB14: 0 | BC14: 0 | BD14: 0 | BE14: 0 | BF14: 0 | BG14: 0 | BH14: 0 | BI14: 0 | BJ14: 0 | BK14: 0 | BL14: 0 | BM14: 0 | BN14: 0 | BO14: 0 | BP14: 0 | BQ14: 1927286.478
A15: C2ROP | B15: Residential Two Rate 5d - Controlled Load | D15: 0 | E15: 0 | F15: 0 | I15: 1.55 | M15: 0 | O15: 0 | P15: 0 | Q15: 0 | R15: 0 | S15: 0 | U15: 0 | V15: 0 | W15: 0 | X15: 0 | Z15: 9702.486822 | AA15: 0 | AB15: 0 | AC15: 0 | AD15: 0 | AE15: 22272717.33 | AF15: 0 | AG15: 0 | AH15: 0 | AI15: 0 | AJ15: 0 | AK15: 0 | AL15: 0 | AM15: 0 | AN15: 0 | AO15: 0 | AP15: 0 | AQ15: 0 | AR15: 0 | AS15: 0 | AT15: 0 | AV15: 0 | AW15: 0 | AX15: 0 | AY15: 0 | AZ15: 0 | BA15: 345227.1186 | BB15: 0 | BC15: 0 | BD15: 0 | BE15: 0 | BF15: 0 | BG15: 0 | BH15: 0 | BI15: 0 | BJ15: 0 | BK15: 0 | BL15: 0 | BM15: 0 | BN15: 0 | BO15: 0 | BP15: 0 | BQ15: 345227.1186
A16: C2RBOP | B16: Residential Two Rate 5d - Bulk - Controlled Load | D16: 0 | E16: 0 | F16: 0 | I16: 1.11 | M16: 0 | O16: 0 | P16: 0 | Q16: 0 | R16: 0 | S16: 0 | U16: 0 | V16: 0 | W16: 0 | X16: 0 | Z16: 3672.013937 | AA16: 0 | AB16: 0 | AC16: 0 | AD16: 0 | AE16: 7671612.212 | AF16: 0 | AG16: 0 | AH16: 0 | AI16: 0 | AJ16: 0 | AK16: 0 | AL16: 0 | AM16: 0 | AN16: 0 | AO16: 0 | AP16: 0 | AQ16: 0 | AR16: 0 | AS16: 0 | AT16: 0 | AV16: 0 | AW16: 0 | AX16: 0 | AY16: 0 | AZ16: 0 | BA16: 85154.89555 | BB16: 0 | BC16: 0 | BD16: 0 | BE16: 0 | BF16: 0 | BG16: 0 | BH16: 0 | BI16: 0 | BJ16: 0 | BK16: 0 | BL16: 0 | BM16: 0 | BN16: 0 | BO16: 0 | BP16: 0 | BQ16: 85154.89555
A17: CDS | B17: Dedicated Circuit | D17: 0 | E17: 0 | F17: 0 | I17: 1.55 | M17: 0 | O17: 0 | P17: 0 | Q17: 0 | R17: 0 | S17: 0 | U17: 0 | V17: 0 | W17: 0 | X17: 0 | Z17: 23277.21544 | AA17: 0 | AB17: 0 | AC17: 0 | AD17: 0 | AE17: 34551430.84 | AF17: 0 | AG17: 0 | AH17: 0 | AI17: 0 | AJ17: 0 | AK17: 0 | AL17: 0 | AM17: 0 | AN17: 0 | AO17: 0 | AP17: 0 | AQ17: 0 | AR17: 0 | AS17: 0 | AT17: 0 | AV17: 0 | AW17: 0 | AX17: 0 | AY17: 0 | AZ17: 0 | BA17: 535547.1781 | BB17: 0 | BC17: 0 | BD17: 0 | BE17: 0 | BF17: 0 | BG17: 0 | BH17: 0 | BI17: 0 | BJ17: 0 | BK17: 0 | BL17: 0 | BM17: 0 | BN17: 0 | BO17: 0 | BP17: 0 | BQ17: 535547.1781
A18: CDSB | B18: Dedicated Circuit - Bulk | D18: 0 | E18: 0 | F18: 0 | I18: 1.11 | M18: 0 | O18: 0 | P18: 0 | Q18: 0 | R18: 0 | S18: 0 | U18: 0 | V18: 0 | W18: 0 | X18: 0 | Z18: 1123.285345 | AA18: 0 | AB18: 0 | AC18: 0 | AD18: 0 | AE18: 2356017.402 | AF18: 0 | AG18: 0 | AH18: 0 | AI18: 0 | AJ18: 0 | AK18: 0 | AL18: 0 | AM18: 0 | AN18: 0 | AO18: 0 | AP18: 0 | AQ18: 0 | AR18: 0 | AS18: 0 | AT18: 0 | AV18: 0 | AW18: 0 | AX18: 0 | AY18: 0 | AZ18: 0 | BA18: 26151.79317 | BB18: 0 | BC18: 0 | BD18: 0 | BE18: 0 | BF18: 0 | BG18: 0 | BH18: 0 | BI18: 0 | BJ18: 0 | BK18: 0 | BL18: 0 | BM18: 0 | BN18: 0 | BO18: 0 | BP18: 0 | BQ18: 26151.79317
A19: CR | B19: Residential Demand | D19: 85 | E19: 2.54 | F19: 0 | I19: 0 | M19: 0 | O19: 6.19 | P19: 2.12 | Q19: 0 | R19: 0 | S19: 0 | U19: 0 | V19: 0 | W19: 0 | X19: 0 | Z19: 5 | AA19: 27500 | AB19: 0 | AC19: 0 | AD19: 0 | AE19: 0 | AF19: 0 | AG19: 0 | AH19: 0 | AI19: 0 | AJ19: 0 | AK19: 62.78538813 | AL19: 100.456621 | AM19: 0 | AN19: 0 | AO19: 0 | AP19: 0 | AQ19: 0 | AR19: 0 | AS19: 0 | AT19: 0 | AV19: 425 | AW19: 698.5 | AX19: 0 | AY19: 0 | AZ19: 0 | BA19: 0 | BB19: 0 | BC19: 0 | BD19: 0 | BE19: 0 | BF19: 0 | BG19: 388.6415525 | BH19: 212.9680365 | BI19: 0 | BJ19: 0 | BK19: 0 | BL19: 0 | BM19: 0 | BN19: 0 | BO19: 0 | BP19: 0 | BQ19: 1725.109589
A20: CRB | B20: Residential Bulk Demand | D20: 75 | E20: 1.6 | F20: 0 | I20: 0 | M20: 0 | O20: 4.53 | P20: 1.51 | Q20: 0 | R20: 0 | S20: 0 | U20: 0 | V20: 0 | W20: 0 | X20: 0 | Z20: 1 | AA20: 5500 | AB20: 0 | AC20: 0 | AD20: 0 | AE20: 0 | AF20: 0 | AG20: 0 | AH20: 0 | AI20: 0 | AJ20: 0 | AK20: 12.55707763 | AL20: 20.0913242 | AM20: 0 | AN20: 0 | AO20: 0 | AP20: 0 | AQ20: 0 | AR20: 0 | AS20: 0 | AT20: 0 | AV20: 75 | AW20: 88 | AX20: 0 | AY20: 0 | AZ20: 0 | BA20: 0 | BB20: 0 | BC20: 0 | BD20: 0 | BE20: 0 | BF20: 0 | BG20: 56.88356164 | BH20: 30.33789954 | BI20: 0 | BJ20: 0 | BK20: 0 | BL20: 0 | BM20: 0 | BN20: 0 | BO20: 0 | BP20: 0 | BQ20: 250.2214612
A21: C1G | B21: Non-Residential Single Rate | D21: 140 | E21: 5.49 | F21: 0 | I21: 0 | M21: 0 | O21: 0 | P21: 0 | Q21: 0 | R21: 0 | S21: 0 | U21: 0 | V21: 0 | W21: 0 | X21: 0 | Z21: 18642.44375 | AA21: 204987603.2 | AB21: 0 | AC21: 0 | AD21: 0 | AE21: 0 | AF21: 0 | AG21: 0 | AH21: 0 | AI21: 0 | AJ21: 0 | AK21: 0 | AL21: 0 | AM21: 0 | AN21: 0 | AO21: 0 | AP21: 0 | AQ21: 0 | AR21: 0 | AS21: 0 | AT21: 0 | AV21: 2609942.125 | AW21: 11253819.41 | AX21: 0 | AY21: 0 | AZ21: 0 | BA21: 0 | BB21: 0 | BC21: 0 | BD21: 0 | BE21: 0 | BF21: 0 | BG21: 0 | BH21: 0 | BI21: 0 | BJ21: 0 | BK21: 0 | BL21: 0 | BM21: 0 | BN21: 0 | BO21: 0 | BP21: 0 | BQ21: 13863761.54
A22: C1GB | B22: Non-Residential Single Rate - Bulk | D22: 120 | E22: 4.21 | F22: 0 | I22: 0 | M22: 0 | O22: 0 | P22: 0 | Q22: 0 | R22: 0 | S22: 0 | U22: 0 | V22: 0 | W22: 0 | X22: 0 | Z22: 5552.5975 | AA22: 75430097 | AB22: 0 | AC22: 0 | AD22: 0 | AE22: 0 | AF22: 0 | AG22: 0 | AH22: 0 | AI22: 0 | AJ22: 0 | AK22: 0 | AL22: 0 | AM22: 0 | AN22: 0 | AO22: 0 | AP22: 0 | AQ22: 0 | AR22: 0 | AS22: 0 | AT22: 0 | AV22: 666311.7 | AW22: =E22/100*AA22 -> 3175607.084 | AX22: 0 | AY22: 0 | AZ22: 0 | BA22: 0 | BB22: 0 | BC22: 0 | BD22: 0 | BE22: =M22*AI22 -> 0 | BF22: 0 | BG22: 0 | BH22: 0 | BI22: =Q22/100*AM22 -> 0 | BJ22: 0 | BK22: 0 | BL22: 0 | BM22: 0 | BN22: 0 | BO22: 0 | BP22: 0 | BQ22: 3841918.784
A23: C2G5 | B23: Non-Residential Two Rate 5d | D23: 140 | E23: 0 | F23: 8.27 | I23: 2.18 | M23: 0 | O23: 0 | P23: 0 | Q23: 0 | R23: 0 | S23: 0 | U23: 0 | V23: 0 | W23: 0 | X23: 0 | Z23: 8807.833333 | AA23: 0 | AB23: 75569056.51 | AC23: 0 | AD23: 0 | AE23: 53627319.14 | AF23: 0 | AG23: 0 | AH23: 0 | AI23: 0 | AJ23: 0 | AK23: 0 | AL23: 0 | AM23: 0 | AN23: 0 | AO23: 0 | AP23: 0 | AQ23: 0 | AR23: 0 | AS23: 0 | AT23: 0 | AV23: 1233096.667 | AW23: 0 | AX23: 6249560.973 | AY23: 0 | AZ23: 0 | BA23: 1169075.557 | BB23: 0 | BC23: 0 | BD23: 0 | BE23: 0 | BF23: 0 | BG23: 0 | BH23: 0 | BI23: 0 | BJ23: 0 | BK23: 0 | BL23: 0 | BM23: 0 | BN23: 0 | BO23: 0 | BP23: 0 | BQ23: 8651733.197
A24: C2G5B | B24: Non-Residential Two Rate 5d - Bulk | D24: 120 | E24: 0 | F24: 6 | I24: 1.63 | M24: 0 | O24: 0 | P24: 0 | Q24: 0 | R24: 0 | S24: 0 | U24: 0 | V24: 0 | W24: 0 | X24: 0 | Z24: 1236.583333 | AA24: 0 | AB24: 12370078.12 | AC24: 0 | AD24: 0 | AE24: 7203723.827 | AF24: 0 | AG24: 0 | AH24: 0 | AI24: 0 | AJ24: 0 | AK24: 0 | AL24: 0 | AM24: 0 | AN24: 0 | AO24: 0 | AP24: 0 | AQ24: 0 | AR24: 0 | AS24: 0 | AT24: 0 | AV24: 148390 | AW24: 0 | AX24: 742204.6874 | AY24: 0 | AZ24: 0 | BA24: 117420.6984 | BB24: 0 | BC24: 0 | BD24: 0 | BE24: 0 | BF24: 0 | BG24: 0 | BH24: 0 | BI24: 0 | BJ24: 0 | BK24: 0 | BL24: 0 | BM24: 0 | BN24: 0 | BO24: 0 | BP24: 0 | BQ24: 1008015.386
A25: C3G | B25: Non-Residential Interval | D25: 140 | E25: 0 | F25: 8.27 | I25: 2.18 | M25: 0 | O25: 0 | P25: 0 | Q25: 0 | R25: 0 | S25: 0 | U25: 0 | V25: 0 | W25: 0 | X25: 0 | Z25: 4039.833333 | AA25: 0 | AB25: 36456058.91 | AC25: 0 | AD25: 0 | AE25: 21872712.51 | AF25: 0 | AG25: 0 | AH25: 0 | AI25: 0 | AJ25: 0 | AK25: 0 | AL25: 0 | AM25: 0 | AN25: 0 | AO25: 0 | AP25: 0 | AQ25: 0 | AR25: 0 | AS25: 0 | AT25: 0 | AV25: 565576.6667 | AW25: 0 | AX25: 3014916.072 | AY25: 0 | AZ25: 0 | BA25: 476825.1327 | BB25: 0 | BC25: 0 | BD25: 0 | BE25: 0 | BF25: 0 | BG25: 0 | BH25: 0 | BI25: 0 | BJ25: 0 | BK25: 0 | BL25: 0 | BM25: 0 | BN25: 0 | BO25: 0 | BP25: 0 | BQ25: 4057317.871
A26: C3GB | B26: Non-Residential Interval - Bulk | D26: 120 | E26: 0 | F26: 6 | I26: 1.63 | M26: 0 | O26: 0 | P26: 0 | Q26: 0 | R26: 0 | S26: 0 | U26: 0 | V26: 0 | W26: 0 | X26: 0 | Z26: 2063.083333 | AA26: 0 | AB26: 24804874.76 | AC26: 0 | AD26: 0 | AE26: 13941606.92 | AF26: 0 | AG26: 0 | AH26: 0 | AI26: 0 | AJ26: 0 | AK26: 0 | AL26: 0 | AM26: 0 | AN26: 0 | AO26: 0 | AP26: 0 | AQ26: 0 | AR26: 0 | AS26: 0 | AT26: 0 | AV26: 247570 | AW26: 0 | AX26: 1488292.485 | AY26: 0 | AZ26: 0 | BA26: 227248.1927 | BB26: 0 | BC26: 0 | BD26: 0 | BE26: 0 | BF26: 0 | BG26: 0 | BH26: 0 | BI26: 0 | BJ26: 0 | BK26: 0 | BL26: 0 | BM26: 0 | BN26: 0 | BO26: 0 | BP26: 0 | BQ26: 1963110.678
A27: C14G | B27: Non-Residential Flexible Pricing | D27: 140 | E27: 0 | F27: 0 | I27: 0 | M27: 0 | O27: 0 | P27: 0 | Q27: 10.08 | R27: 7.05 | S27: 2.77 | U27: 10.08 | V27: 7.05 | W27: 2.77 | X27: 0 | Z27: 23.08333333 | AA27: 0 | AB27: 0 | AC27: 0 | AD27: 0 | AE27: 0 | AF27: 0 | AG27: 0 | AH27: 0 | AI27: 0 | AJ27: 0 | AK27: 0 | AL27: 0 | AM27: 674566.2968 | AN27: 271194.0926 | AO27: 779954.6072 | AP27: 0 | AQ27: 674566.2968 | AR27: 271194.0926 | AS27: 779954.6072 | AT27: 0 | AV27: 3231.666667 | AW27: 0 | AX27: 0 | AY27: 0 | AZ27: 0 | BA27: 0 | BB27: 0 | BC27: 0 | BD27: 0 | BE27: 0 | BF27: 0 | BG27: 0 | BH27: 0 | BI27: 67996.28272 | BJ27: 19119.18353 | BK27: 21604.74262 | BL27: 0 | BM27: 67996.28272 | BN27: 19119.18353 | BO27: 21604.74262 | BP27: 0 | BQ27: 220672.0844
A28: C14GB | B28: Non-Residential - Flexible Pricing Bulk | D28: 120 | E28: 0 | F28: 0 | I28: 0 | M28: 0 | O28: 0 | P28: 0 | Q28: 8.56 | R28: 5.98 | S28: 2.35 | U28: 8.56 | V28: 5.98 | W28: 2.35 | X28: 0 | Z28: 6.75 | AA28: 0 | AB28: 0 | AC28: 0 | AD28: 0 | AE28: 0 | AF28: 0 | AG28: 0 | AH28: 0 | AI28: 0 | AJ28: 0 | AK28: 0 | AL28: 0 | AM28: 1234354.332 | AN28: 612698.167 | AO28: 1202221.745 | AP28: 0 | AQ28: 1234354.332 | AR28: 612698.167 | AS28: 1202221.745 | AT28: 0 | AV28: 810 | AW28: 0 | AX28: 0 | AY28: 0 | AZ28: 0 | BA28: 0 | BB28: 0 | BC28: 0 | BD28: 0 | BE28: 0 | BF28: 0 | BG28: 0 | BH28: 0 | BI28: 105660.7308 | BJ28: 36639.35038 | BK28: 28252.21101 | BL28: 0 | BM28: 105660.7308 | BN28: 36639.35038 | BO28: 28252.21101 | BP28: 0 | BQ28: 341914.5844
A29: C2G7 | B29: Non-Residential Two Rate 7d | D29: 140 | E29: 0 | F29: 6.51 | I29: 2.18 | M29: 0 | O29: 0 | P29: 0 | Q29: 0 | R29: 0 | S29: 0 | U29: 0 | V29: 0 | W29: 0 | X29: 0 | Z29: 2567.166667 | AA29: 0 | AB29: 38974041.36 | AC29: 0 | AD29: 0 | AE29: 8891067.103 | AF29: 0 | AG29: 0 | AH29: 0 | AI29: 0 | AJ29: 0 | AK29: 0 | AL29: 0 | AM29: 0 | AN29: 0 | AO29: 0 | AP29: 0 | AQ29: 0 | AR29: 0 | AS29: 0 | AT29: 0 | AV29: 359403.3333 | AW29: 0 | AX29: 2537210.092 | AY29: 0 | AZ29: 0 | BA29: 193825.2629 | BB29: 0 | BC29: 0 | BD29: 0 | BE29: 0 | BF29: 0 | BG29: 0 | BH29: 0 | BI29: 0 | BJ29: 0 | BK29: 0 | BL29: 0 | BM29: 0 | BN29: 0 | BO29: 0 | BP29: 0 | BQ29: 3090438.688
A30: C2G7B | B30: Non-Residential Two Rate 7d - Bulk | D30: 120 | E30: 0 | F30: 5.61 | I30: 1.63 | M30: 0 | O30: 0 | P30: 0 | Q30: 0 | R30: 0 | S30: 0 | U30: 0 | V30: 0 | W30: 0 | X30: 0 | Z30: 294.4166667 | AA30: 0 | AB30: 5947325.889 | AC30: 0 | AD30: 0 | AE30: 1526111.042 | AF30: 0 | AG30: 0 | AH30: 0 | AI30: 0 | AJ30: 0 | AK30: 0 | AL30: 0 | AM30: 0 | AN30: 0 | AO30: 0 | AP30: 0 | AQ30: 0 | AR30: 0 | AS30: 0 | AT30: 0 | AV30: 35330 | AW30: 0 | AX30: 333644.9824 | AY30: 0 | AZ30: 0 | BA30: 24875.60998 | BB30: 0 | BC30: 0 | BD30: 0 | BE30: 0 | BF30: 0 | BG30: 0 | BH30: 0 | BI30: 0 | BJ30: 0 | BK30: 0 | BL30: 0 | BM30: 0 | BN30: 0 | BO30: 0 | BP30: 0 | BQ30: 393850.5924
A31: C2L7 | B31: Large Two Rate 7d | D31: 140 | E31: 0 | F31: 8.27 | I31: 2.18 | M31: 0 | O31: 0 | P31: 0 | Q31: 0 | R31: 0 | S31: 0 | U31: 0 | V31: 0 | W31: 0 | X31: 0 | Z31: 2 | AA31: 0 | AB31: 1028007.867 | AC31: 0 | AD31: 0 | AE31: 1384520.194 | AF31: 0 | AG31: 0 | AH31: 0 | AI31: 0 | AJ31: 0 | AK31: 0 | AL31: 0 | AM31: 0 | AN31: 0 | AO31: 0 | AP31: 0 | AQ31: 0 | AR31: 0 | AS31: 0 | AT31: 0 | AV31: 280 | AW31: 0 | AX31: 85016.25057 | AY31: 0 | AZ31: 0 | BA31: 30182.54023 | BB31: 0 | BC31: 0 | BD31: 0 | BE31: 0 | BF31: 0 | BG31: 0 | BH31: 0 | BI31: 0 | BJ31: 0 | BK31: 0 | BL31: 0 | BM31: 0 | BN31: 0 | BO31: 0 | BP31: 0 | BQ31: 115478.7908
A32: CG | B32: Non-Residential Demand Tariff | D32: 140 | E32: 3.01 | F32: 0 | I32: 0 | M32: 0 | O32: 9.64 | P32: 3.21 | Q32: 0 | R32: 0 | S32: 0 | U32: 0 | V32: 0 | W32: 0 | X32: 0 | Z32: 943 | AA32: 44038820.92 | AB32: 0 | AC32: 0 | AD32: 0 | AE32: 0 | AF32: 0 | AG32: 0 | AH32: 0 | AI32: 0 | AJ32: 0 | AK32: 55402.93876 | AL32: 114884.4008 | AM32: 0 | AN32: 0 | AO32: 0 | AP32: 0 | AQ32: 0 | AR32: 0 | AS32: 0 | AT32: 0 | AV32: 132020 | AW32: 1325568.51 | AX32: 0 | AY32: 0 | AZ32: 0 | BA32: 0 | BB32: 0 | BC32: 0 | BD32: 0 | BE32: 0 | BF32: 0 | BG32: 534084.3296 | BH32: 368778.9265 | BI32: 0 | BJ32: 0 | BK32: 0 | BL32: 0 | BM32: 0 | BN32: 0 | BO32: 0 | BP32: 0 | BQ32: 2360451.766
A33: CGB | B33: Non-Residential Bulk Demand Tariff | D33: 120 | E33: 2.71 | F33: 0 | I33: 0 | M33: 0 | O33: 7.23 | P33: 2.41 | Q33: 0 | R33: 0 | S33: 0 | U33: 0 | V33: 0 | W33: 0 | X33: 0 | Z33: 0 | AA33: 0 | AB33: 0 | AC33: 0 | AD33: 0 | AE33: 0 | AF33: 0 | AG33: 0 | AH33: 0 | AI33: 0 | AJ33: 0 | AK33: 0 | AL33: 0 | AM33: 0 | AN33: 0 | AO33: 0 | AP33: 0 | AQ33: 0 | AR33: 0 | AS33: 0 | AT33: 0 | AV33: 0 | AW33: 0 | AX33: 0 | AY33: 0 | AZ33: 0 | BA33: 0 | BB33: 0 | BC33: 0 | BD33: 0 | BE33: 0 | BF33: 0 | BG33: 0 | BH33: 0 | BI33: 0 | BJ33: 0 | BK33: 0 | BL33: 0 | BM33: 0 | BN33: 0 | BO33: 0 | BP33: 0 | BQ33: 0
A34: CMG | B34: Medium business | D34: 800 | E34: 0 | F34: 6.35 | I34: 3.14 | M34: 0 | O34: 0 | P34: 0 | Q34: 0 | R34: 0 | S34: 0 | U34: 0 | V34: 0 | W34: 0 | X34: 0 | Z34: 4648 | AA34: 0 | AB34: 458603853.6 | AC34: 0 | AD34: 0 | AE34: 223355008.4 | AF34: 0 | AG34: 0 | AH34: 0 | AI34: 0 | AJ34: 0 | AK34: 777697.7151 | AL34: 1436797.923 | AM34: 0 | AN34: 0 | AO34: 0 | AP34: 0 | AQ34: 0 | AR34: 0 | AS34: 0 | AT34: 0 | AV34: 3718400 | AW34: 0 | AX34: 29121344.71 | AY34: 0 | AZ34: 0 | BA34: 7013347.263 | BB34: 0 | BC34: 0 | BD34: 0 | BE34: 0 | BF34: 0 | BG34: 0 | BH34: 0 | BI34: 0 | BJ34: 0 | BK34: 0 | BL34: 0 | BM34: 0 | BN34: 0 | BO34: 0 | BP34: 0 | BQ34: 39853091.97
A35: CMGB | B35: Medium business bulk | D35: 800 | E35: 0 | F35: 4.65 | I35: 2.47 | M35: 0 | O35: 0 | P35: 0 | Q35: 0 | R35: 0 | S35: 0 | U35: 0 | V35: 0 | W35: 0 | X35: 0 | Z35: 2249 | AA35: 0 | AB35: 305307951.2 | AC35: 0 | AD35: 0 | AE35: 157474786.7 | AF35: 0 | AG35: 0 | AH35: 0 | AI35: 0 | AJ35: 0 | AK35: 527296.244 | AL35: 921016.4046 | AM35: 0 | AN35: 0 | AO35: 0 | AP35: 0 | AQ35: 0 | AR35: 0 | AS35: 0 | AT35: 0 | AV35: 1799200 | AW35: 0 | AX35: 14196819.73 | AY35: 0 | AZ35: 0 | BA35: 3889627.232 | BB35: 0 | BC35: 0 | BD35: 0 | BE35: 0 | BF35: 0 | BG35: 0 | BH35: 0 | BI35: 0 | BJ35: 0 | BK35: 0 | BL35: 0 | BM35: 0 | BN35: 0 | BO35: 0 | BP35: 0 | BQ35: 19885646.96
A36: C2U | B36: Unmetered Supplies / Public Lighting | D36: 0 | E36: 0 | F36: 7.75 | I36: 2.14 | M36: 0 | O36: 0 | P36: 0 | Q36: 0 | R36: 0 | S36: 0 | U36: 0 | V36: 0 | W36: 0 | X36: 0 | Z36: 1140.5 | AA36: 0 | AB36: 14051779.54 | AC36: 0 | AD36: 0 | AE36: 23479971.06 | AF36: 0 | AG36: 0 | AH36: 0 | AI36: 0 | AJ36: 0 | AK36: 0 | AL36: 0 | AM36: 0 | AN36: 0 | AO36: 0 | AP36: 0 | AQ36: 0 | AR36: 0 | AS36: 0 | AT36: 0 | AV36: 0 | AW36: 0 | AX36: 1089012.915 | AY36: 0 | AZ36: 0 | BA36: 502471.3807 | BB36: 0 | BC36: 0 | BD36: 0 | BE36: 0 | BF36: 0 | BG36: 0 | BH36: 0 | BI36: 0 | BJ36: 0 | BK36: 0 | BL36: 0 | BM36: 0 | BN36: 0 | BO36: 0 | BP36: 0 | BQ36: 1591484.295
A37: C2DL | B37: Large Low Voltage Demand | D37: 0 | E37: 0 | F37: 0 | I37: 0 | M37: 0 | O37: 0 | P37: 0 | Q37: 0 | R37: 0 | S37: 0 | U37: 0 | V37: 0 | W37: 0 | X37: 0 | Z37: 0 | AA37: 0 | AB37: 0 | AC37: 0 | AD37: 0 | AE37: 0 | AF37: 0 | AG37: 0 | AH37: 0 | AI37: 0 | AJ37: 0 | AK37: 0 | AL37: 0 | AM37: 0 | AN37: 0 | AO37: 0 | AP37: 0 | AQ37: 0 | AR37: 0 | AS37: 0 | AT37: 0 | AV37: 0 | AW37: 0 | AX37: 0 | AY37: 0 | AZ37: 0 | BA37: 0 | BB37: 0 | BC37: 0 | BD37: 0 | BE37: 0 | BF37: 0 | BG37: 0 | BH37: 0 | BI37: 0 | BJ37: 0 | BK37: 0 | BL37: 0 | BM37: 0 | BN37: 0 | BO37: 0 | BP37: 0 | BQ37: 0
A38: C2DLB | B38: Large Low Voltage Demand - Bulk | D38: 0 | E38: 0 | F38: 0 | I38: 0 | M38: 0 | O38: 0 | P38: 0 | Q38: 0 | R38: 0 | S38: 0 | U38: 0 | V38: 0 | W38: 0 | X38: 0 | Z38: 0 | AA38: 0 | AB38: 0 | AC38: 0 | AD38: 0 | AE38: 0 | AF38: 0 | AG38: 0 | AH38: 0 | AI38: 0 | AJ38: 0 | AK38: 0 | AL38: 0 | AM38: 0 | AN38: 0 | AO38: 0 | AP38: 0 | AQ38: 0 | AR38: 0 | AS38: 0 | AT38: 0 | AV38: 0 | AW38: 0 | AX38: 0 | AY38: 0 | AZ38: 0 | BA38: 0 | BB38: 0 | BC38: 0 | BD38: 0 | BE38: 0 | BF38: 0 | BG38: 0 | BH38: 0 | BI38: 0 | BJ38: 0 | BK38: 0 | BL38: 0 | BM38: 0 | BN38: 0 | BO38: 0 | BP38: 0 | BQ38: 0
A39: C2DLER | B39: Large Low Voltage Demand R | D39: 0 | E39: 0 | F39: 0 | I39: 0 | M39: 0 | O39: 0 | P39: 0 | Q39: 0 | R39: 0 | S39: 0 | U39: 0 | V39: 0 | W39: 0 | X39: 0 | Z39: 0 | AA39: 0 | AB39: 0 | AC39: 0 | AD39: 0 | AE39: 0 | AF39: 0 | AG39: 0 | AH39: 0 | AI39: 0 | AJ39: 0 | AK39: 0 | AL39: 0 | AM39: 0 | AN39: 0 | AO39: 0 | AP39: 0 | AQ39: 0 | AR39: 0 | AS39: 0 | AT39: 0 | AV39: 0 | AW39: 0 | AX39: 0 | AY39: 0 | AZ39: 0 | BA39: 0 | BB39: 0 | BC39: 0 | BD39: 0 | BE39: 0 | BF39: 0 | BG39: 0 | BH39: 0 | BI39: 0 | BJ39: 0 | BK39: 0 | BL39: 0 | BM39: 0 | BN39: 0 | BO39: 0 | BP39: 0 | BQ39: 0
A40: C2DLEG | B40: Large Low Voltage Demand G | D40: 0 | E40: 0 | F40: 0 | I40: 0 | M40: 0 | O40: 0 | P40: 0 | Q40: 0 | R40: 0 | S40: 0 | U40: 0 | V40: 0 | W40: 0 | X40: 0 | Z40: 0 | AA40: 0 | AB40: 0 | AC40: 0 | AD40: 0 | AE40: 0 | AF40: 0 | AG40: 0 | AH40: 0 | AI40: 0 | AJ40: 0 | AK40: 0 | AL40: 0 | AM40: 0 | AN40: 0 | AO40: 0 | AP40: 0 | AQ40: 0 | AR40: 0 | AS40: 0 | AT40: 0 | AV40: 0 | AW40: 0 | AX40: 0 | AY40: 0 | AZ40: 0 | BA40: 0 | BB40: 0 | BC40: 0 | BD40: 0 | BE40: 0 | BF40: 0 | BG40: 0 | BH40: 0 | BI40: 0 | BJ40: 0 | BK40: 0 | BL40: 0 | BM40: 0 | BN40: 0 | BO40: 0 | BP40: 0 | BQ40: 0
A41: C2DLBER | B41: Large Low Voltage Demand - Bulk R | D41: 0 | E41: 0 | F41: 0 | I41: 0 | M41: 0 | O41: 0 | P41: 0 | Q41: 0 | R41: 0 | S41: 0 | U41: 0 | V41: 0 | W41: 0 | X41: 0 | Z41: 0 | AA41: 0 | AB41: 0 | AC41: 0 | AD41: 0 | AE41: 0 | AF41: 0 | AG41: 0 | AH41: 0 | AI41: 0 | AJ41: 0 | AK41: 0 | AL41: 0 | AM41: 0 | AN41: 0 | AO41: 0 | AP41: 0 | AQ41: 0 | AR41: 0 | AS41: 0 | AT41: 0 | AV41: 0 | AW41: 0 | AX41: 0 | AY41: 0 | AZ41: 0 | BA41: 0 | BB41: 0 | BC41: 0 | BD41: 0 | BE41: 0 | BF41: 0 | BG41: 0 | BH41: 0 | BI41: 0 | BJ41: 0 | BK41: 0 | BL41: 0 | BM41: 0 | BN41: 0 | BO41: 0 | BP41: 0 | BQ41: 0
A42: C2DLBEG | B42: Large Low Voltage Demand - Bulk G | D42: 0 | E42: 0 | F42: 0 | I42: 0 | M42: 0 | O42: 0 | P42: 0 | Q42: 0 | R42: 0 | S42: 0 | U42: 0 | V42: 0 | W42: 0 | X42: 0 | Z42: 0 | AA42: 0 | AB42: 0 | AC42: 0 | AD42: 0 | AE42: 0 | AF42: 0 | AG42: 0 | AH42: 0 | AI42: 0 | AJ42: 0 | AK42: 0 | AL42: 0 | AM42: 0 | AN42: 0 | AO42: 0 | AP42: 0 | AQ42: 0 | AR42: 0 | AS42: 0 | AT42: 0 | AV42: 0 | AW42: 0 | AX42: 0 | AY42: 0 | AZ42: 0 | BA42: 0 | BB42: 0 | BC42: 0 | BD42: 0 | BE42: 0 | BF42: 0 | BG42: 0 | BH42: 0 | BI42: 0 | BJ42: 0 | BK42: 0 | BL42: 0 | BM42: 0 | BN42: 0 | BO42: 0 | BP42: 0 | BQ42: 0
A43: CLLV | B43: Large low Voltage | D43: 5801 | E43: 0 | F43: 2.18 | I43: 1.32 | M43: 67.65 | O43: 0 | P43: 0 | Q43: 0 | R43: 0 | S43: 0 | U43: 0 | V43: 0 | W43: 0 | X43: 0 | Z43: 298.7522313 | AA43: 0 | AB43: 108710418.9 | AC43: 0 | AD43: 0 | AE43: 83655115.92 | AF43: 0 | AG43: 0 | AH43: 0 | AI43: 60926.08973 | AJ43: 0 | AK43: 0 | AL43: 0 | AM43: 0 | AN43: 0 | AO43: 0 | AP43: 0 | AQ43: 0 | AR43: 0 | AS43: 0 | AT43: 0 | AV43: 1733061.694 | AW43: 0 | AX43: 2369887.132 | AY43: 0 | AZ43: 0 | BA43: 1104247.53 | BB43: 0 | BC43: 0 | BD43: 0 | BE43: 4121649.97 | BF43: 0 | BG43: 0 | BH43: 0 | BI43: 0 | BJ43: 0 | BK43: 0 | BL43: 0 | BM43: 0 | BN43: 0 | BO43: 0 | BP43: 0 | BQ43: 9328846.326
A44: CLLVB | B44: Large low Voltage Bulk | D44: 5355 | E44: 0 | F44: 1.94 | I44: 1.21 | M44: 60.88 | O44: 0 | P44: 0 | Q44: 0 | R44: 0 | S44: 0 | U44: 0 | V44: 0 | W44: 0 | X44: 0 | Z44: 1604.812606 | AA44: 0 | AB44: 1135850756 | AC44: 0 | AD44: 0 | AE44: 836627917.9 | AF44: 0 | AG44: 0 | AH44: 0 | AI44: 641555.6843 | AJ44: 0 | AK44: 0 | AL44: 0 | AM44: 0 | AN44: 0 | AO44: 0 | AP44: 0 | AQ44: 0 | AR44: 0 | AS44: 0 | AT44: 0 | AV44: 8593771.506 | AW44: 0 | AX44: 22035504.67 | AY44: 0 | AZ44: 0 | BA44: 10123197.81 | BB44: 0 | BC44: 0 | BD44: 0 | BE44: 39057910.06 | BF44: 0 | BG44: 0 | BH44: 0 | BI44: 0 | BJ44: 0 | BK44: 0 | BL44: 0 | BM44: 0 | BN44: 0 | BO44: 0 | BP44: 0 | BQ44: 79810384.04
A45: C2DH | B45: High Voltage Demand | D45: 0 | E45: 0 | F45: 0 | I45: 0 | M45: 0 | O45: 0 | P45: 0 | Q45: 0 | R45: 0 | S45: 0 | U45: 0 | V45: 0 | W45: 0 | X45: 0 | Z45: 0 | AA45: 0 | AB45: 0 | AC45: 0 | AD45: 0 | AE45: 0 | AF45: 0 | AG45: 0 | AH45: 0 | AI45: 0 | AJ45: 0 | AK45: 0 | AL45: 0 | AM45: 0 | AN45: 0 | AO45: 0 | AP45: 0 | AQ45: 0 | AR45: 0 | AS45: 0 | AT45: 0 | AV45: 0 | AW45: 0 | AX45: 0 | AY45: 0 | AZ45: 0 | BA45: 0 | BB45: 0 | BC45: 0 | BD45: 0 | BE45: 0 | BF45: 0 | BG45: 0 | BH45: 0 | BI45: 0 | BJ45: 0 | BK45: 0 | BL45: 0 | BM45: 0 | BN45: 0 | BO45: 0 | BP45: 0 | BQ45: 0
A46: C2DHD1 | B46: High Voltage Demand D1 | D46: 0 | E46: 0 | F46: 0 | I46: 0 | M46: 0 | O46: 0 | P46: 0 | Q46: 0 | R46: 0 | S46: 0 | U46: 0 | V46: 0 | W46: 0 | X46: 0 | Z46: 0 | AA46: 0 | AB46: 0 | AC46: 0 | AD46: 0 | AE46: 0 | AF46: 0 | AG46: 0 | AH46: 0 | AI46: 0 | AJ46: 0 | AK46: 0 | AL46: 0 | AM46: 0 | AN46: 0 | AO46: 0 | AP46: 0 | AQ46: 0 | AR46: 0 | AS46: 0 | AT46: 0 | AV46: 0 | AW46: 0 | AX46: 0 | AY46: 0 | AZ46: 0 | BA46: 0 | BB46: 0 | BC46: 0 | BD46: 0 | BE46: 0 | BF46: 0 | BG46: 0 | BH46: 0 | BI46: 0 | BJ46: 0 | BK46: 0 | BL46: 0 | BM46: 0 | BN46: 0 | BO46: 0 | BP46: 0 | BQ46: 0
A47: C2DHER | B47: High Voltage Demand R | D47: 0 | E47: 0 | F47: 0 | I47: 0 | M47: 0 | O47: 0 | P47: 0 | Q47: 0 | R47: 0 | S47: 0 | U47: 0 | V47: 0 | W47: 0 | X47: 0 | Z47: 0 | AA47: 0 | AB47: 0 | AC47: 0 | AD47: 0 | AE47: 0 | AF47: 0 | AG47: 0 | AH47: 0 | AI47: 0 | AJ47: 0 | AK47: 0 | AL47: 0 | AM47: 0 | AN47: 0 | AO47: 0 | AP47: 0 | AQ47: 0 | AR47: 0 | AS47: 0 | AT47: 0 | AV47: 0 | AW47: 0 | AX47: 0 | AY47: 0 | AZ47: 0 | BA47: 0 | BB47: 0 | BC47: 0 | BD47: 0 | BE47: 0 | BF47: 0 | BG47: 0 | BH47: 0 | BI47: 0 | BJ47: 0 | BK47: 0 | BL47: 0 | BM47: 0 | BN47: 0 | BO47: 0 | BP47: 0 | BQ47: 0
A48: C2DHEG | B48: High Voltage Demand G | D48: 0 | E48: 0 | F48: 0 | I48: 0 | M48: 0 | O48: 0 | P48: 0 | Q48: 0 | R48: 0 | S48: 0 | U48: 0 | V48: 0 | W48: 0 | X48: 0 | Z48: 0 | AA48: 0 | AB48: 0 | AC48: 0 | AD48: 0 | AE48: 0 | AF48: 0 | AG48: 0 | AH48: 0 | AI48: 0 | AJ48: 0 | AK48: 0 | AL48: 0 | AM48: 0 | AN48: 0 | AO48: 0 | AP48: 0 | AQ48: 0 | AR48: 0 | AS48: 0 | AT48: 0 | AV48: 0 | AW48: 0 | AX48: 0 | AY48: 0 | AZ48: 0 | BA48: 0 | BB48: 0 | BC48: 0 | BD48: 0 | BE48: 0 | BF48: 0 | BG48: 0 | BH48: 0 | BI48: 0 | BJ48: 0 | BK48: 0 | BL48: 0 | BM48: 0 | BN48: 0 | BO48: 0 | BP48: 0 | BQ48: 0
A49: CHV | B49: High Voltage | D49: 28600 | E49: 0 | F49: 1.11 | I49: 0.57 | M49: 31.49 | O49: 0 | P49: 0 | Q49: 0 | R49: 0 | S49: 0 | U49: 0 | V49: 0 | W49: 0 | X49: 0 | Z49: 87.63418101 | AA49: 0 | AB49: 333095732.7 | AC49: 0 | AD49: 0 | AE49: 312746391.5 | AF49: 0 | AG49: 0 | AH49: 0 | AI49: 193029.5126 | AJ49: 0 | AK49: 0 | AL49: 0 | AM49: 0 | AN49: 0 | AO49: 0 | AP49: 0 | AQ49: 0 | AR49: 0 | AS49: 0 | AT49: 0 | AV49: 2506337.577 | AW49: 0 | AX49: 3697362.633 | AY49: 0 | AZ49: 0 | BA49: 1782654.432 | BB49: 0 | BC49: 0 | BD49: 0 | BE49: 6078499.35 | BF49: 0 | BG49: 0 | BH49: 0 | BI49: 0 | BJ49: 0 | BK49: 0 | BL49: 0 | BM49: 0 | BN49: 0 | BO49: 0 | BP49: 0 | BQ49: 14064853.99
A50: CHVB | B50: High Voltage Bulk | D50: 0 | E50: 0 | F50: 0 | I50: 0 | M50: 0 | O50: 0 | P50: 0 | Q50: 0 | R50: 0 | S50: 0 | U50: 0 | V50: 0 | W50: 0 | X50: 0 | Z50: 0 | AA50: 0 | AB50: 0 | AC50: 0 | AD50: 0 | AE50: 0 | AF50: 0 | AG50: 0 | AH50: 0 | AI50: 0 | AJ50: 0 | AK50: 0 | AL50: 0 | AM50: 0 | AN50: 0 | AO50: 0 | AP50: 0 | AQ50: 0 | AR50: 0 | AS50: 0 | AT50: 0 | AV50: 0 | AW50: 0 | AX50: 0 | AY50: 0 | AZ50: 0 | BA50: 0 | BB50: 0 | BC50: 0 | BD50: 0 | BE50: 0 | BF50: 0 | BG50: 0 | BH50: 0 | BI50: 0 | BJ50: 0 | BK50: 0 | BL50: 0 | BM50: 0 | BN50: 0 | BO50: 0 | BP50: 0 | BQ50: 0
A51: C2DT | B51: Subtransmission | D51: 0 | E51: 0 | F51: 0 | I51: 0 | M51: 0 | O51: 0 | P51: 0 | Q51: 0 | R51: 0 | S51: 0 | U51: 0 | V51: 0 | W51: 0 | X51: 0 | Z51: 0 | AA51: 0 | AB51: 0 | AC51: 0 | AD51: 0 | AE51: 0 | AF51: 0 | AG51: 0 | AH51: 0 | AI51: 0 | AJ51: 0 | AK51: 0 | AL51: 0 | AM51: 0 | AN51: 0 | AO51: 0 | AP51: 0 | AQ51: 0 | AR51: 0 | AS51: 0 | AT51: 0 | AV51: 0 | AW51: 0 | AX51: 0 | AY51: 0 | AZ51: 0 | BA51: 0 | BB51: 0 | BC51: 0 | BD51: 0 | BE51: 0 | BF51: 0 | BG51: 0 | BH51: 0 | BI51: 0 | BJ51: 0 | BK51: 0 | BL51: 0 | BM51: 0 | BN51: 0 | BO51: 0 | BP51: 0 | BQ51: 0
A52: CST | B52: Subtransmission | D52: 132000 | E52: 0 | F52: 0.11 | I52: 0.05 | M52: 0.92 | O52: 0 | P52: 0 | Q52: 0 | R52: 0 | S52: 0 | U52: 0 | V52: 0 | W52: 0 | X52: 0 | Z52: 7 | AA52: 0 | AB52: 69561287.84 | AC52: 0 | AD52: 0 | AE52: 38922335.57 | AF52: 0 | AG52: 0 | AH52: 0 | AI52: 43550.41898 | AJ52: 0 | AK52: 0 | AL52: 0 | AM52: 0 | AN52: 0 | AO52: 0 | AP52: 0 | AQ52: 0 | AR52: 0 | AS52: 0 | AT52: 0 | AV52: 924000 | AW52: 0 | AX52: 76517.41662 | AY52: 0 | AZ52: 0 | BA52: 19461.16778 | BB52: 0 | BC52: 0 | BD52: 0 | BE52: 40066.38546 | BF52: 0 | BG52: 0 | BH52: 0 | BI52: 0 | BJ52: 0 | BK52: 0 | BL52: 0 | BM52: 0 | BN52: 0 | BO52: 0 | BP52: 0 | BQ52: 1060044.97
AV53: =D53*Z53 -> 0 | AW53: =E53/100*AA53 -> 0 | AX53: =F53/100*AB53 -> 0 | AY53: =G53/100*AC53 -> 0 | AZ53: =H53/100*AD53 -> 0 | BA53: =I53/100*AE53 -> 0 | BB53: =J53/100*AF53 -> 0 | BC53: =K53/100*AG53 -> 0 | BD53: =L53/100*AH53 -> 0 | BE53: =M53*AI53 -> 0 | BF53: =N53*AJ53 -> 0 | BG53: =O53*AK53 -> 0 | BH53: =P53*AL53 -> 0 | BI53: =Q53/100*AM53 -> 0 | BJ53: =R53/100*AN53 -> 0 | BK53: =S53/100*AO53 -> 0 | BL53: =T53/100*AP53 -> 0 | BM53: =U53/100*AQ53 -> 0 | BN53: =V53/100*AR53 -> 0 | BO53: =W53/100*AS53 -> 0 | BP53: =X53/100*AT53 -> 0 | BQ53: =SUM(AV53:BP53) -> 0
AV54: 0 | AW54: 0 | AX54: 0 | AY54: 0 | AZ54: 0 | BA54: 0 | BB54: 0 | BC54: 0 | BD54: 0 | BE54: 0 | BF54: 0 | BG54: 0 | BH54: 0 | BI54: 0 | BJ54: 0 | BK54: 0 | BL54: 0 | BM54: 0 | BN54: 0 | BO54: 0 | BP54: 0 | BQ54: 0
AV55: 0 | AW55: 0 | AX55: 0 | AY55: 0 | AZ55: 0 | BA55: 0 | BB55: 0 | BC55: 0 | BD55: 0 | BE55: 0 | BF55: 0 | BG55: 0 | BH55: 0 | BI55: 0 | BJ55: 0 | BK55: 0 | BL55: 0 | BM55: 0 | BN55: 0 | BO55: 0 | BP55: 0 | BQ55: 0
AV56: 0 | AW56: 0 | AX56: 0 | AY56: 0 | AZ56: 0 | BA56: 0 | BB56: 0 | BC56: 0 | BD56: 0 | BE56: 0 | BF56: 0 | BG56: 0 | BH56: 0 | BI56: 0 | BJ56: 0 | BK56: 0 | BL56: 0 | BM56: 0 | BN56: 0 | BO56: 0 | BP56: 0 | BQ56: 0
AV57: 0 | AW57: 0 | AX57: 0 | AY57: 0 | AZ57: 0 | BA57: 0 | BB57: 0 | BC57: 0 | BD57: 0 | BE57: 0 | BF57: 0 | BG57: 0 | BH57: 0 | BI57: 0 | BJ57: 0 | BK57: 0 | BL57: 0 | BM57: 0 | BN57: 0 | BO57: 0 | BP57: 0 | BQ57: 0
AV58: 0 | AW58: 0 | AX58: 0 | AY58: 0 | AZ58: 0 | BA58: 0 | BB58: 0 | BC58: 0 | BD58: 0 | BE58: 0 | BF58: 0 | BG58: 0 | BH58: 0 | BI58: 0 | BJ58: 0 | BK58: 0 | BL58: 0 | BM58: 0 | BN58: 0 | BO58: 0 | BP58: 0 | BQ58: 0
AV59: 0 | AW59: 0 | AX59: 0 | AY59: 0 | AZ59: 0 | BA59: 0 | BB59: 0 | BC59: 0 | BD59: 0 | BE59: 0 | BF59: 0 | BG59: 0 | BH59: 0 | BI59: 0 | BJ59: 0 | BK59: 0 | BL59: 0 | BM59: 0 | BN59: 0 | BO59: 0 | BP59: 0 | BQ59: 0
AV60: 0 | AW60: 0 | AX60: 0 | AY60: 0 | AZ60: 0 | BA60: 0 | BB60: 0 | BC60: 0 | BD60: 0 | BE60: 0 | BF60: 0 | BG60: 0 | BH60: 0 | BI60: 0 | BJ60: 0 | BK60: 0 | BL60: 0 | BM60: 0 | BN60: 0 | BO60: 0 | BP60: 0 | BQ60: 0
AV61: 0 | AW61: 0 | AX61: 0 | AY61: 0 | AZ61: 0 | BA61: 0 | BB61: 0 | BC61: 0 | BD61: 0 | BE61: 0 | BF61: 0 | BG61: 0 | BH61: 0 | BI61: 0 | BJ61: 0 | BK61: 0 | BL61: 0 | BM61: 0 | BN61: 0 | BO61: 0 | BP61: 0 | BQ61: 0
AV62: 0 | AW62: 0 | AX62: 0 | AY62: 0 | AZ62: 0 | BA62: 0 | BB62: 0 | BC62: 0 | BD62: 0 | BE62: 0 | BF62: 0 | BG62: 0 | BH62: 0 | BI62: 0 | BJ62: 0 | BK62: 0 | BL62: 0 | BM62: 0 | BN62: 0 | BO62: 0 | BP62: 0 | BQ62: 0
AV63: 0 | AW63: 0 | AX63: 0 | AY63: 0 | AZ63: 0 | BA63: 0 | BB63: 0 | BC63: 0 | BD63: 0 | BE63: 0 | BF63: 0 | BG63: 0 | BH63: 0 | BI63: 0 | BJ63: 0 | BK63: 0 | BL63: 0 | BM63: 0 | BN63: 0 | BO63: 0 | BP63: 0 | BQ63: 0
AV64: 0 | AW64: 0 | AX64: 0 | AY64: 0 | AZ64: 0 | BA64: 0 | BB64: 0 | BC64: 0 | BD64: 0 | BE64: 0 | BF64: 0 | BG64: 0 | BH64: 0 | BI64: 0 | BJ64: 0 | BK64: 0 | BL64: 0 | BM64: 0 | BN64: 0 | BO64: 0 | BP64: 0 | BQ64: 0
AV65: 0 | AW65: 0 | AX65: 0 | AY65: 0 | AZ65: 0 | BA65: 0 | BB65: 0 | BC65: 0 | BD65: 0 | BE65: 0 | BF65: 0 | BG65: 0 | BH65: 0 | BI65: 0 | BJ65: 0 | BK65: 0 | BL65: 0 | BM65: 0 | BN65: 0 | BO65: 0 | BP65: 0 | BQ65: 0
Z66: =SUM(Z6:Z65) -> 368550.3456 | AA66: 1244483438 | AB66: 2740958992 | AC66: 0 | AD66: 0 | AE66: 1956695129 | AF66: 0 | AG66: 0 | AH66: 0 | AI66: 939061.7055 | AJ66: 0 | AK66: 1360472.24 | AL66: 2472819.276 | AM66: =SUM(AM6:AM65) -> 2561577.057 | AN66: 1988132.841 | AO66: 3401802.038 | AP66: 0 | AQ66: 2882858.64 | AR66: 2616987.388 | AS66: 3856908.072 | AT66: 0 | AV66: =SUM(AV6:AV65) -> 48340780.31 | AW66: 56610762.13 | AX66: 96856247.21 | AY66: 0 | AZ66: 0 | BA66: 29523873.58 | BB66: 0 | BC66: 0 | BD66: 0 | BE66: 49298125.76 | BF66: 0 | BG66: 534529.8547 | BH66: 369022.2324 | BI66: 237935.9767 | BJ66: 128813.9473 | BK66: 87129.66409 | BL66: 0 | BM66: 269528.2175 | BN66: 170495.0337 | BO66: 99006.33537 | BP66: 0 | BQ66: 282526250.3

Sheet Prop2018TransTar
B1: ="Tariff Approval - "&'Model update'!C3 -> Tariff Approval - CitiPower
B3: ="PROPOSED "&'Model update'!$C$5&" TRANSMISSION TARIFFS" -> PROPOSED 2018 TRANSMISSION TARIFFS
D4: ="Proposed Transmission Tariffs (Pt) for "&'Model update'!$C$5 -> Proposed Transmission Tariffs (Pt) for 2018 | Z4: ="Forecast Quantities (Qt) for "&'Model update'!$C$5 -> Forecast Quantities (Qt) for 2018 | AV4: ="Forecast Revenue (Pt "&'Model update'!$C$5&")*(Qt " &'Model update'!$C$5&")" -> Forecast Revenue (Pt 2018)*(Qt 2018)
B5: Proposed tariff | D5: PropTar Fixed | E5: PropTar Anytime | F5: PropTar PkBlk | I5: PropTar OPkBlk1 | M5: PropTar Dem kVA | N5: PropTar Dem kW | O5: PropTar Dem kW Sum | P5: PropTar Dem kW Win | Q5: PropTar SumBlk1 | R5: PropTar SumBlk2 | S5: PropTar SumBlk3 | U5: PropTar WtrBlk1 | V5: PropTar WtrBlk2 | W5: PropTar WtrBlk3 | Z5: FcastVol Fixed | AA5: FcastVol Anytime | AB5: FcastVol Pk | AE5: FcastVol Opk | AI5: FcastVol Dem kVA | AJ5: FcastVol Dem kW | AK5: FcastVol Dem kW Sum | AL5: FcastVol Dem kW Win | AM5: FcastVol SumBlk1 | AN5: FcastVol SumBlk2 | AO5: FcastVol SumBlk3 | AQ5: FcastVol WtrBlk1 | AR5: FcastVol WtrBlk2 | AS5: FcastVol WtrBlk3 | AV5: PropRev Fixed | AW5: PropRev Anytime | AX5: PropRev Pk | BA5: PropRev Opk | BE5: PropRev Dem kVA | BF5: PropRev Dem kW | BG5: PropRev Dem kW Sum | BH5: PropRev Dem kW Win | BI5: PropRev SumBlk1 | BJ5: PropRev SumBlk2 | BK5: PropRev SumBlk3 | BM5: PropRev WtrBlk1 | BN5: PropRev WtrBlk2 | BO5: PropRev WtrBlk3 | BQ5: PropRev Total
AV6: =D6*Z6 -> 0 | AW6: =E6/100*AA6 -> 0 | AX6: 0 | AY6: 0 | AZ6: 0 | BA6: 0 | BB6: 0 | BC6: 0 | BD6: 0 | BE6: =M6*AI6 -> 0 | BF6: 0 | BG6: 0 | BH6: 0 | BI6: =Q6/100*AM6 -> 0 | BJ6: 0 | BK6: 0 | BL6: 0 | BM6: 0 | BN6: 0 | BO6: 0 | BP6: 0 | BQ6: =SUM(AV6:BP6) -> 0
A7: =Prop2018DistTar!A7 -> C1R | B7: =Prop2018DistTar!B7 -> Residential Single Rate | D7: 0 | E7: 1.75 | F7: 0 | G7: 0 | H7: 0 | I7: 0 | J7: 0 | K7: 0 | L7: 0 | M7: 0 | N7: 0 | O7: 0 | P7: 0 | Q7: 0 | R7: 0 | S7: 0 | T7: 0 | U7: 0 | V7: 0 | W7: 0 | X7: 0 | Z7: =Prop2018DistTar!AV7 -> 203567.5438 | AA7: =Prop2018DistTar!AW7 -> 837924196.2 | AB7: =Prop2018DistTar!AX7 -> 0 | AC7: =Prop2018DistTar!AY7 -> 0 | AD7: =Prop2018DistTar!AZ7 -> 0 | AE7: =Prop2018DistTar!BA7 -> 0 | AF7: =Prop2018DistTar!BB7 -> 0 | AG7: =Prop2018DistTar!BC7 -> 0 | AH7: =Prop2018DistTar!BD7 -> 0 | AI7: =Prop2018DistTar!BE7 -> 0 | AJ7: =Prop2018DistTar!BF7 -> 0 | AK7: =Prop2018DistTar!BG7 -> 0 | AL7: =Prop2018DistTar!BH7 -> 0 | AM7: =Prop2018DistTar!BI7 -> 0 | AN7: =Prop2018DistTar!BJ7 -> 0 | AO7: =Prop2018DistTar!BK7 -> 0 | AP7: =Prop2018DistTar!BL7 -> 0 | AQ7: =Prop2018DistTar!BM7 -> 0 | AR7: =Prop2018DistTar!BN7 -> 0 | AS7: =Prop2018DistTar!BO7 -> 0 | AT7: =Prop2018DistTar!BP7 -> 0 | AV7: =D7*Z7 -> 0 | AW7: =E7/100*AA7 -> 14663673.43 | AX7: =F7/100*AB7 -> 0 | AY7: =G7/100*AC7 -> 0 | AZ7: =H7/100*AD7 -> 0 | BA7: =I7/100*AE7 -> 0 | BB7: =J7/100*AF7 -> 0 | BC7: =K7/100*AG7 -> 0 | BD7: =L7/100*AH7 -> 0 | BE7: =M7*AI7 -> 0 | BF7: =N7*AJ7 -> 0 | BG7: =O7*AK7 -> 0 | BH7: =P7*AL7 -> 0 | BI7: =Q7/100*AM7 -> 0 | BJ7: =R7/100*AN7 -> 0 | BK7: =S7/100*AO7 -> 0 | BL7: =T7/100*AP7 -> 0 | BM7: =U7/100*AQ7 -> 0 | BN7: =V7/100*AR7 -> 0 | BO7: =W7/100*AS7 -> 0 | BP7: =X7/100*AT7 -> 0 | BQ7: =SUM(AV7:BP7) -> 14663673.43
A8: =Prop2018DistTar!A8 -> C1RB | B8: =Prop2018DistTar!B8 -> Residential Single Rate - Bulk | D8: 0 | E8: 0.78 | F8: 0 | G8: 0 | H8: 0 | I8: 0 | J8: 0 | K8: 0 | L8: 0 | M8: 0 | N8: 0 | O8: 0 | P8: 0 | Q8: 0 | R8: 0 | S8: 0 | T8: 0 | U8: 0 | V8: 0 | W8: 0 | X8: 0 | Z8: =Prop2018DistTar!AV8 -> 30796.1653 | AA8: =Prop2018DistTar!AW8 -> 103793921.8 | AB8: =Prop2018DistTar!AX8 -> 0 | AC8: =Prop2018DistTar!AY8 -> 0 | AD8: =Prop2018DistTar!AZ8 -> 0 | AE8: =Prop2018DistTar!BA8 -> 0 | AF8: =Prop2018DistTar!BB8 -> 0 | AG8: =Prop2018DistTar!BC8 -> 0 | AH8: =Prop2018DistTar!BD8 -> 0 | AI8: =Prop2018DistTar!BE8 -> 0 | AJ8: =Prop2018DistTar!BF8 -> 0 | AK8: =Prop2018DistTar!BG8 -> 0 | AL8: =Prop2018DistTar!BH8 -> 0 | AM8: =Prop2018DistTar!BI8 -> 0 | AN8: =Prop2018DistTar!BJ8 -> 0 | AO8: =Prop2018DistTar!BK8 -> 0 | AP8: =Prop2018DistTar!BL8 -> 0 | AQ8: =Prop2018DistTar!BM8 -> 0 | AR8: =Prop2018DistTar!BN8 -> 0 | AS8: =Prop2018DistTar!BO8 -> 0 | AT8: =Prop2018DistTar!BP8 -> 0 | AV8: 0 | AW8: 809592.5902 | AX8: 0 | AY8: 0 | AZ8: 0 | BA8: 0 | BB8: 0 | BC8: 0 | BD8: 0 | BE8: 0 | BF8: 0 | BG8: 0 | BH8: 0 | BI8: 0 | BJ8: 0 | BK8: 0 | BL8: 0 | BM8: 0 | BN8: 0 | BO8: 0 | BP8: 0 | BQ8: 809592.5902
A9: =Prop2018DistTar!A9 -> C13R | B9: =Prop2018DistTar!B9 -> Residential - flexible pricing | D9: 0 | E9: 0 | F9: 0 | G9: 0 | H9: 0 | I9: 0 | J9: 0 | K9: 0 | L9: 0 | M9: 0 | N9: 0 | O9: 0 | P9: 0 | Q9: 2.15 | R9: 1.45 | S9: 0.57 | T9: 0 | U9: 2.15 | V9: 1.45 | W9: 0.57 | X9: 0 | Z9: =Prop2018DistTar!AV9 -> 692.1990213 | AA9: =Prop2018DistTar!AW9 -> 0 | AB9: =Prop2018DistTar!AX9 -> 0 | AC9: =Prop2018DistTar!AY9 -> 0 | AD9: =Prop2018DistTar!AZ9 -> 0 | AE9: =Prop2018DistTar!BA9 -> 0 | AF9: =Prop2018DistTar!BB9 -> 0 | AG9: =Prop2018DistTar!BC9 -> 0 | AH9: =Prop2018DistTar!BD9 -> 0 | AI9: =Prop2018DistTar!BE9 -> 0 | AJ9: =Prop2018DistTar!BF9 -> 0 | AK9: =Prop2018DistTar!BG9 -> 0 | AL9: =Prop2018DistTar!BH9 -> 0 | AM9: =Prop2018DistTar!BI9 -> 209399.3886 | AN9: =Prop2018DistTar!BJ9 -> 421530.7094 | AO9: =Prop2018DistTar!BK9 -> 295381.0238 | AP9: =Prop2018DistTar!BL9 -> 0 | AQ9: =Prop2018DistTar!BM9 -> 766444.7639 | AR9: =Prop2018DistTar!BN9 -> 1512235.207 | AS9: =Prop2018DistTar!BO9 -> 1077906.585 | AT9: =Prop2018DistTar!BP9 -> 0 | AV9: 0 | AW9: 0 | AX9: 0 | AY9: 0 | AZ9: 0 | BA9: 0 | BB9: 0 | BC9: 0 | BD9: 0 | BE9: 0 | BF9: 0 | BG9: 0 | BH9: 0 | BI9: 4502.086855 | BJ9: 6112.195286 | BK9: 1683.671836 | BL9: 0 | BM9: 16478.56242 | BN9: 21927.41051 | BO9: 6144.067535 | BP9: 0 | BQ9: 56847.99444
A10: =Prop2018DistTar!A10 -> C13RB | B10: =Prop2018DistTar!B10 -> Residential - flexible pricing bulk | D10: 0 | E10: 0 | F10: 0 | G10: 0 | H10: 0 | I10: 0 | J10: 0 | K10: 0 | L10: 0 | M10: 0 | N10: 0 | O10: 0 | P10: 0 | Q10: 1.72 | R10: 1.16 | S10: 0.45 | T10: 0 | U10: 1.72 | V10: 1.16 | W10: 0.45 | X10: 0 | Z10: =Prop2018DistTar!AV10 -> 86 | AA10: =Prop2018DistTar!AW10 -> 0 | AB10: =Prop2018DistTar!AX10 -> 0 | AC10: =Prop2018DistTar!AY10 -> 0 | AD10: =Prop2018DistTar!AZ10 -> 0 | AE10: =Prop2018DistTar!BA10 -> 0 | AF10: =Prop2018DistTar!BB10 -> 0 | AG10: =Prop2018DistTar!BC10 -> 0 | AH10: =Prop2018DistTar!BD10 -> 0 | AI10: =Prop2018DistTar!BE10 -> 0 | AJ10: =Prop2018DistTar!BF10 -> 0 | AK10: =Prop2018DistTar!BG10 -> 0 | AL10: =Prop2018DistTar!BH10 -> 0 | AM10: =Prop2018DistTar!BI10 -> 14822.46394 | AN10: =Prop2018DistTar!BJ10 -> 30911.09407 | AO10: =Prop2018DistTar!BK10 -> 25018.29177 | AP10: =Prop2018DistTar!BL10 -> 0 | AQ10: =Prop2018DistTar!BM10 -> 55723.87165 | AR10: =Prop2018DistTar!BN10 -> 110586.6363 | AS10: =Prop2018DistTar!BO10 -> 89504.20804 | AT10: =Prop2018DistTar!BP10 -> 0 | AV10: 0 | AW10: 0 | AX10: 0 | AY10: 0 | AZ10: 0 | BA10: 0 | BB10: 0 | BC10: 0 | BD10: 0 | BE10: 0 | BF10: 0 | BG10: 0 | BH10: 0 | BI10: 254.9463797 | BJ10: 358.5686912 | BK10: 112.582313 | BL10: 0 | BM10: 958.4505924 | BN10: 1282.804982 | BO10: 402.7689362 | BP10: 0 | BQ10: 3370.121894
A11: =Prop2018DistTar!A11 -> C2R | B11: =Prop2018DistTar!B11 -> Residential Two Rate 5d | D11: 0 | E11: 0 | F11: 1.94 | G11: 0 | H11: 0 | I11: 0.41 | J11: 0 | K11: 0 | L11: 0 | M11: 0 | N11: 0 | O11: 0 | P11: 0 | Q11: 0 | R11: 0 | S11: 0 | T11: 0 | U11: 0 | V11: 0 | W11: 0 | X11: 0 | Z11: =Prop2018DistTar!AV11 -> 10844.91892 | AA11: =Prop2018DistTar!AW11 -> 0 | AB11: =Prop2018DistTar!AX11 -> 34303841.22 | AC11: =Prop2018DistTar!AY11 -> 0 | AD11: =Prop2018DistTar!AZ11 -> 0 | AE11: =Prop2018DistTar!BA11 -> 29910228.53 | AF11: =Prop2018DistTar!BB11 -> 0 | AG11: =Prop2018DistTar!BC11 -> 0 | AH11: =Prop2018DistTar!BD11 -> 0 | AI11: =Prop2018DistTar!BE11 -> 0 | AJ11: =Prop2018DistTar!BF11 -> 0 | AK11: =Prop2018DistTar!BG11 -> 0 | AL11: =Prop2018DistTar!BH11 -> 0 | AM11: =Prop2018DistTar!BI11 -> 0 | AN11: =Prop2018DistTar!BJ11 -> 0 | AO11: =Prop2018DistTar!BK11 -> 0 | AP11: =Prop2018DistTar!BL11 -> 0 | AQ11: =Prop2018DistTar!BM11 -> 0 | AR11: =Prop2018DistTar!BN11 -> 0 | AS11: =Prop2018DistTar!BO11 -> 0 | AT11: =Prop2018DistTar!BP11 -> 0 | AV11: 0 | AW11: 0 | AX11: 665494.5196 | AY11: 0 | AZ11: 0 | BA11: 122631.937 | BB11: 0 | BC11: 0 | BD11: 0 | BE11: 0 | BF11: 0 | BG11: 0 | BH11: 0 | BI11: 0 | BJ11: 0 | BK11: 0 | BL11: 0 | BM11: 0 | BN11: 0 | BO11: 0 | BP11: 0 | BQ11: 788126.4566
A12: =Prop2018DistTar!A12 -> C2RB | B12: =Prop2018DistTar!B12 -> Residential Two Rate 5d - Bulk | D12: 0 | E12: 0 | F12: 1.65 | G12: 0 | H12: 0 | I12: 0.38 | J12: 0 | K12: 0 | L12: 0 | M12: 0 | N12: 0 | O12: 0 | P12: 0 | Q12: 0 | R12: 0 | S12: 0 | T12: 0 | U12: 0 | V12: 0 | W12: 0 | X12: 0 | Z12: =Prop2018DistTar!AV12 -> 4325.479896 | AA12: =Prop2018DistTar!AW12 -> 0 | AB12: =Prop2018DistTar!AX12 -> 11937966.33 | AC12: =Prop2018DistTar!AY12 -> 0 | AD12: =Prop2018DistTar!AZ12 -> 0 | AE12: =Prop2018DistTar!BA12 -> 10332699.16 | AF12: =Prop2018DistTar!BB12 -> 0 | AG12: =Prop2018DistTar!BC12 -> 0 | AH12: =Prop2018DistTar!BD12 -> 0 | AI12: =Prop2018DistTar!BE12 -> 0 | AJ12: =Prop2018DistTar!BF12 -> 0 | AK12: =Prop2018DistTar!BG12 -> 0 | AL12: =Prop2018DistTar!BH12 -> 0 | AM12: =Prop2018DistTar!BI12 -> 0 | AN12: =Prop2018DistTar!BJ12 -> 0 | AO12: =Prop2018DistTar!BK12 -> 0 | AP12: =Prop2018DistTar!BL12 -> 0 | AQ12: =Prop2018DistTar!BM12 -> 0 | AR12: =Prop2018DistTar!BN12 -> 0 | AS12: =Prop2018DistTar!BO12 -> 0 | AT12: =Prop2018DistTar!BP12 -> 0 | AV12: 0 | AW12: 0 | AX12: 196976.4445 | AY12: 0 | AZ12: 0 | BA12: 39264.2568 | BB12: 0 | BC12: 0 | BD12: 0 | BE12: 0 | BF12: 0 | BG12: 0 | BH12: 0 | BI12: 0 | BJ12: 0 | BK12: 0 | BL12: 0 | BM12: 0 | BN12: 0 | BO12: 0 | BP12: 0 | BQ12: 236240.7013
A13: =Prop2018DistTar!A13 -> C3R | B13: =Prop2018DistTar!B13 -> Residential Interval | D13: 0 | E13: 0 | F13: 1.94 | G13: 0 | H13: 0 | I13: 0.41 | J13: 0 | K13: 0 | L13: 0 | M13: 0 | N13: 0 | O13: 0 | P13: 0 | Q13: 0 | R13: 0 | S13: 0 | T13: 0 | U13: 0 | V13: 0 | W13: 0 | X13: 0 | Z13: =Prop2018DistTar!AV13 -> 17220.89451 | AA13: =Prop2018DistTar!AW13 -> 0 | AB13: =Prop2018DistTar!AX13 -> 60059088.86 | AC13: =Prop2018DistTar!AY13 -> 0 | AD13: =Prop2018DistTar!AZ13 -> 0 | AE13: =Prop2018DistTar!BA13 -> 52811678.16 | AF13: =Prop2018DistTar!BB13 -> 0 | AG13: =Prop2018DistTar!BC13 -> 0 | AH13: =Prop2018DistTar!BD13 -> 0 | AI13: =Prop2018DistTar!BE13 -> 0 | AJ13: =Prop2018DistTar!BF13 -> 0 | AK13: =Prop2018DistTar!BG13 -> 0 | AL13: =Prop2018DistTar!BH13 -> 0 | AM13: =Prop2018DistTar!BI13 -> 0 | AN13: =Prop2018DistTar!BJ13 -> 0 | AO13: =Prop2018DistTar!BK13 -> 0 | AP13: =Prop2018DistTar!BL13 -> 0 | AQ13: =Prop2018DistTar!BM13 -> 0 | AR13: =Prop2018DistTar!BN13 -> 0 | AS13: =Prop2018DistTar!BO13 -> 0 | AT13: =Prop2018DistTar!BP13 -> 0 | AV13: 0 | AW13: 0 | AX13: 1165146.324 | AY13: 0 | AZ13: 0 | BA13: 216527.8805 | BB13: 0 | BC13: 0 | BD13: 0 | BE13: 0 | BF13: 0 | BG13: 0 | BH13: 0 | BI13: 0 | BJ13: 0 | BK13: 0 | BL13: 0 | BM13: 0 | BN13: 0 | BO13: 0 | BP13: 0 | BQ13: 1381674.204
A14: =Prop2018DistTar!A14 -> C3RB | B14: =Prop2018DistTar!B14 -> Residential Interval - Bulk | D14: 0 | E14: 0 | F14: 1.65 | G14: 0 | H14: 0 | I14: 0.38 | J14: 0 | K14: 0 | L14: 0 | M14: 0 | N14: 0 | O14: 0 | P14: 0 | Q14: 0 | R14: 0 | S14: 0 | T14: 0 | U14: 0 | V14: 0 | W14: 0 | X14: 0 | Z14: =Prop2018DistTar!AV14 -> 8720.076186 | AA14: =Prop2018DistTar!AW14 -> 0 | AB14: =Prop2018DistTar!AX14 -> 14985083.09 | AC14: =Prop2018DistTar!AY14 -> 0 | AD14: =Prop2018DistTar!AZ14 -> 0 | AE14: =Prop2018DistTar!BA14 -> 14138212.66 | AF14: =Prop2018DistTar!BB14 -> 0 | AG14: =Prop2018DistTar!BC14 -> 0 | AH14: =Prop2018DistTar!BD14 -> 0 | AI14: =Prop2018DistTar!BE14 -> 0 | AJ14: =Prop2018DistTar!BF14 -> 0 | AK14: =Prop2018DistTar!BG14 -> 0 | AL14: =Prop2018DistTar!BH14 -> 0 | AM14: =Prop2018DistTar!BI14 -> 0 | AN14: =Prop2018DistTar!BJ14 -> 0 | AO14: =Prop2018DistTar!BK14 -> 0 | AP14: =Prop2018DistTar!BL14 -> 0 | AQ14: =Prop2018DistTar!BM14 -> 0 | AR14: =Prop2018DistTar!BN14 -> 0 | AS14: =Prop2018DistTar!BO14 -> 0 | AT14: =Prop2018DistTar!BP14 -> 0 | AV14: 0 | AW14: 0 | AX14: 247253.871 | AY14: 0 | AZ14: 0 | BA14: 53725.20812 | BB14: 0 | BC14: 0 | BD14: 0 | BE14: 0 | BF14: 0 | BG14: 0 | BH14: 0 | BI14: 0 | BJ14: 0 | BK14: 0 | BL14: 0 | BM14: 0 | BN14: 0 | BO14: 0 | BP14: 0 | BQ14: 300979.0791
A15: =Prop2018DistTar!A15 -> C2ROP | B15: =Prop2018DistTar!B15 -> Residential Two Rate 5d - Controlled Load | D15: 0 | E15: 0 | F15: 0 | G15: 0 | H15: 0 | I15: 0.35 | J15: 0 | K15: 0 | L15: 0 | M15: 0 | N15: 0 | O15: 0 | P15: 0 | Q15: 0 | R15: 0 | S15: 0 | T15: 0 | U15: 0 | V15: 0 | W15: 0 | X15: 0 | Z15: =Prop2018DistTar!AV15 -> 9721.635616 | AA15: =Prop2018DistTar!AW15 -> 0 | AB15: =Prop2018DistTar!AX15 -> 0 | AC15: =Prop2018DistTar!AY15 -> 0 | AD15: =Prop2018DistTar!AZ15 -> 0 | AE15: =Prop2018DistTar!BA15 -> 19909930.71 | AF15: =Prop2018DistTar!BB15 -> 0 | AG15: =Prop2018DistTar!BC15 -> 0 | AH15: =Prop2018DistTar!BD15 -> 0 | AI15: =Prop2018DistTar!BE15 -> 0 | AJ15: =Prop2018DistTar!BF15 -> 0 | AK15: =Prop2018DistTar!BG15 -> 0 | AL15: =Prop2018DistTar!BH15 -> 0 | AM15: =Prop2018DistTar!BI15 -> 0 | AN15: =Prop2018DistTar!BJ15 -> 0 | AO15: =Prop2018DistTar!BK15 -> 0 | AP15: =Prop2018DistTar!BL15 -> 0 | AQ15: =Prop2018DistTar!BM15 -> 0 | AR15: =Prop2018DistTar!BN15 -> 0 | AS15: =Prop2018DistTar!BO15 -> 0 | AT15: =Prop2018DistTar!BP15 -> 0 | AV15: 0 | AW15: 0 | AX15: 0 | AY15: 0 | AZ15: 0 | BA15: 69684.75748 | BB15: 0 | BC15: 0 | BD15: 0 | BE15: 0 | BF15: 0 | BG15: 0 | BH15: 0 | BI15: 0 | BJ15: 0 | BK15: 0 | BL15: 0 | BM15: 0 | BN15: 0 | BO15: 0 | BP15: 0 | BQ15: 69684.75748
A16: =Prop2018DistTar!A16 -> C2RBOP | B16: =Prop2018DistTar!B16 -> Residential Two Rate 5d - Bulk - Controlled Load | D16: 0 | E16: 0 | F16: 0 | G16: 0 | H16: 0 | I16: 0.27 | J16: 0 | K16: 0 | L16: 0 | M16: 0 | N16: 0 | O16: 0 | P16: 0 | Q16: 0 | R16: 0 | S16: 0 | T16: 0 | U16: 0 | V16: 0 | W16: 0 | X16: 0 | Z16: =Prop2018DistTar!AV16 -> 3658.606663 | AA16: =Prop2018DistTar!AW16 -> 0 | AB16: =Prop2018DistTar!AX16 -> 0 | AC16: =Prop2018DistTar!AY16 -> 0 | AD16: =Prop2018DistTar!AZ16 -> 0 | AE16: =Prop2018DistTar!BA16 -> 7350471.826 | AF16: =Prop2018DistTar!BB16 -> 0 | AG16: =Prop2018DistTar!BC16 -> 0 | AH16: =Prop2018DistTar!BD16 -> 0 | AI16: =Prop2018DistTar!BE16 -> 0 | AJ16: =Prop2018DistTar!BF16 -> 0 | AK16: =Prop2018DistTar!BG16 -> 0 | AL16: =Prop2018DistTar!BH16 -> 0 | AM16: =Prop2018DistTar!BI16 -> 0 | AN16: =Prop2018DistTar!BJ16 -> 0 | AO16: =Prop2018DistTar!BK16 -> 0 | AP16: =Prop2018DistTar!BL16 -> 0 | AQ16: =Prop2018DistTar!BM16 -> 0 | AR16: =Prop2018DistTar!BN16 -> 0 | AS16: =Prop2018DistTar!BO16 -> 0 | AT16: =Prop2018DistTar!BP16 -> 0 | AV16: 0 | AW16: 0 | AX16: 0 | AY16: 0 | AZ16: 0 | BA16: 19846.27393 | BB16: 0 | BC16: 0 | BD16: 0 | BE16: 0 | BF16: 0 | BG16: 0 | BH16: 0 | BI16: 0 | BJ16: 0 | BK16: 0 | BL16: 0 | BM16: 0 | BN16: 0 | BO16: 0 | BP16: 0 | BQ16: 19846.27393
A17: =Prop2018DistTar!A17 -> CDS | B17: =Prop2018DistTar!B17 -> Dedicated Circuit | D17: 0 | E17: 0 | F17: 0 | G17: 0 | H17: 0 | I17: 0.35 | J17: 0 | K17: 0 | L17: 0 | M17: 0 | N17: 0 | O17: 0 | P17: 0 | Q17: 0 | R17: 0 | S17: 0 | T17: 0 | U17: 0 | V17: 0 | W17: 0 | X17: 0 | Z17: =Prop2018DistTar!AV17 -> 22642.03058 | AA17: =Prop2018DistTar!AW17 -> 0 | AB17: =Prop2018DistTar!AX17 -> 0 | AC17: =Prop2018DistTar!AY17 -> 0 | AD17: =Prop2018DistTar!AZ17 -> 0 | AE17: =Prop2018DistTar!BA17 -> 33890069.86 | AF17: =Prop2018DistTar!BB17 -> 0 | AG17: =Prop2018DistTar!BC17 -> 0 | AH17: =Prop2018DistTar!BD17 -> 0 | AI17: =Prop2018DistTar!BE17 -> 0 | AJ17: =Prop2018DistTar!BF17 -> 0 | AK17: =Prop2018DistTar!BG17 -> 0 | AL17: =Prop2018DistTar!BH17 -> 0 | AM17: =Prop2018DistTar!BI17 -> 0 | AN17: =Prop2018DistTar!BJ17 -> 0 | AO17: =Prop2018DistTar!BK17 -> 0 | AP17: =Prop2018DistTar!BL17 -> 0 | AQ17: =Prop2018DistTar!BM17 -> 0 | AR17: =Prop2018DistTar!BN17 -> 0 | AS17: =Prop2018DistTar!BO17 -> 0 | AT17: =Prop2018DistTar!BP17 -> 0 | AV17: 0 | AW17: 0 | AX17: 0 | AY17: 0 | AZ17: 0 | BA17: 118615.2445 | BB17: 0 | BC17: 0 | BD17: 0 | BE17: 0 | BF17: 0 | BG17: 0 | BH17: 0 | BI17: 0 | BJ17: 0 | BK17: 0 | BL17: 0 | BM17: 0 | BN17: 0 | BO17: 0 | BP17: 0 | BQ17: 118615.2445
A18: =Prop2018DistTar!A18 -> CDSB | B18: =Prop2018DistTar!B18 -> Dedicated Circuit - Bulk | D18: 0 | E18: 0 | F18: 0 | G18: 0 | H18: 0 | I18: 0.27 | J18: 0 | K18: 0 | L18: 0 | M18: 0 | N18: 0 | O18: 0 | P18: 0 | Q18: 0 | R18: 0 | S18: 0 | T18: 0 | U18: 0 | V18: 0 | W18: 0 | X18: 0 | Z18: =Prop2018DistTar!AV18 -> 1081.479218 | AA18: =Prop2018DistTar!AW18 -> 0 | AB18: =Prop2018DistTar!AX18 -> 0 | AC18: =Prop2018DistTar!AY18 -> 0 | AD18: =Prop2018DistTar!AZ18 -> 0 | AE18: =Prop2018DistTar!BA18 -> 2219211.192 | AF18: =Prop2018DistTar!BB18 -> 0 | AG18: =Prop2018DistTar!BC18 -> 0 | AH18: =Prop2018DistTar!BD18 -> 0 | AI18: =Prop2018DistTar!BE18 -> 0 | AJ18: =Prop2018DistTar!BF18 -> 0 | AK18: =Prop2018DistTar!BG18 -> 0 | AL18: =Prop2018DistTar!BH18 -> 0 | AM18: =Prop2018DistTar!BI18 -> 0 | AN18: =Prop2018DistTar!BJ18 -> 0 | AO18: =Prop2018DistTar!BK18 -> 0 | AP18: =Prop2018DistTar!BL18 -> 0 | AQ18: =Prop2018DistTar!BM18 -> 0 | AR18: =Prop2018DistTar!BN18 -> 0 | AS18: =Prop2018DistTar!BO18 -> 0 | AT18: =Prop2018DistTar!BP18 -> 0 | AV18: 0 | AW18: 0 | AX18: 0 | AY18: 0 | AZ18: 0 | BA18: 5991.870219 | BB18: 0 | BC18: 0 | BD18: 0 | BE18: 0 | BF18: 0 | BG18: 0 | BH18: 0 | BI18: 0 | BJ18: 0 | BK18: 0 | BL18: 0 | BM18: 0 | BN18: 0 | BO18: 0 | BP18: 0 | BQ18: 5991.870219
A19: =Prop2018DistTar!A19 -> CR | B19: =Prop2018DistTar!B19 -> Residential Demand | D19: 0 | E19: 0.58 | F19: 0 | G19: 0 | H19: 0 | I19: 0 | J19: 0 | K19: 0 | L19: 0 | M19: 0 | N19: 0 | O19: 1.41 | P19: 0.48 | Q19: 0 | R19: 0 | S19: 0 | T19: 0 | U19: 0 | V19: 0 | W19: 0 | X19: 0 | Z19: =Prop2018DistTar!AV19 -> 5 | AA19: =Prop2018DistTar!AW19 -> 27500 | AB19: =Prop2018DistTar!AX19 -> 0 | AC19: =Prop2018DistTar!AY19 -> 0 | AD19: =Prop2018DistTar!AZ19 -> 0 | AE19: =Prop2018DistTar!BA19 -> 0 | AF19: =Prop2018DistTar!BB19 -> 0 | AG19: =Prop2018DistTar!BC19 -> 0 | AH19: =Prop2018DistTar!BD19 -> 0 | AI19: =Prop2018DistTar!BE19 -> 0 | AJ19: =Prop2018DistTar!BF19 -> 0 | AK19: =Prop2018DistTar!BG19 -> 62.78538813 | AL19: =Prop2018DistTar!BH19 -> 100.456621 | AM19: =Prop2018DistTar!BI19 -> 0 | AN19: =Prop2018DistTar!BJ19 -> 0 | AO19: =Prop2018DistTar!BK19 -> 0 | AP19: =Prop2018DistTar!BL19 -> 0 | AQ19: =Prop2018DistTar!BM19 -> 0 | AR19: =Prop2018DistTar!BN19 -> 0 | AS19: =Prop2018DistTar!BO19 -> 0 | AT19: =Prop2018DistTar!BP19 -> 0 | AV19: 0 | AW19: 159.5 | AX19: 0 | AY19: 0 | AZ19: 0 | BA19: 0 | BB19: 0 | BC19: 0 | BD19: 0 | BE19: 0 | BF19: 0 | BG19: 88.52739726 | BH19: 48.21917808 | BI19: 0 | BJ19: 0 | BK19: 0 | BL19: 0 | BM19: 0 | BN19: 0 | BO19: 0 | BP19: 0 | BQ19: 296.2465753
A20: =Prop2018DistTar!A20 -> CRB | B20: =Prop2018DistTar!B20 -> Residential Bulk Demand | D20: 0 | E20: 0.36 | F20: 0 | G20: 0 | H20: 0 | I20: 0 | J20: 0 | K20: 0 | L20: 0 | M20: 0 | N20: 0 | O20: 1.03 | P20: 0.34 | Q20: 0 | R20: 0 | S20: 0 | T20: 0 | U20: 0 | V20: 0 | W20: 0 | X20: 0 | Z20: =Prop2018DistTar!AV20 -> 1 | AA20: =Prop2018DistTar!AW20 -> 5500 | AB20: =Prop2018DistTar!AX20 -> 0 | AC20: =Prop2018DistTar!AY20 -> 0 | AD20: =Prop2018DistTar!AZ20 -> 0 | AE20: =Prop2018DistTar!BA20 -> 0 | AF20: =Prop2018DistTar!BB20 -> 0 | AG20: =Prop2018DistTar!BC20 -> 0 | AH20: =Prop2018DistTar!BD20 -> 0 | AI20: =Prop2018DistTar!BE20 -> 0 | AJ20: =Prop2018DistTar!BF20 -> 0 | AK20: =Prop2018DistTar!BG20 -> 12.55707763 | AL20: =Prop2018DistTar!BH20 -> 20.0913242 | AM20: =Prop2018DistTar!BI20 -> 0 | AN20: =Prop2018DistTar!BJ20 -> 0 | AO20: =Prop2018DistTar!BK20 -> 0 | AP20: =Prop2018DistTar!BL20 -> 0 | AQ20: =Prop2018DistTar!BM20 -> 0 | AR20: =Prop2018DistTar!BN20 -> 0 | AS20: =Prop2018DistTar!BO20 -> 0 | AT20: =Prop2018DistTar!BP20 -> 0 | AV20: 0 | AW20: 19.8 | AX20: 0 | AY20: 0 | AZ20: 0 | BA20: 0 | BB20: 0 | BC20: 0 | BD20: 0 | BE20: 0 | BF20: 0 | BG20: 12.93378995 | BH20: 6.831050228 | BI20: 0 | BJ20: 0 | BK20: 0 | BL20: 0 | BM20: 0 | BN20: 0 | BO20: 0 | BP20: 0 | BQ20: 39.56484018
A21: =Prop2018DistTar!A21 -> C1G | B21: =Prop2018DistTar!B21 -> Non-Residential Single Rate | D21: 0 | E21: 1.91 | F21: 0 | G21: 0 | H21: 0 | I21: 0 | J21: 0 | K21: 0 | L21: 0 | M21: 0 | N21: 0 | O21: 0 | P21: 0 | Q21: 0 | R21: 0 | S21: 0 | T21: 0 | U21: 0 | V21: 0 | W21: 0 | X21: 0 | Z21: =Prop2018DistTar!AV21 -> 18214.93199 | AA21: =Prop2018DistTar!AW21 -> 220224547 | AB21: =Prop2018DistTar!AX21 -> 0 | AC21: =Prop2018DistTar!AY21 -> 0 | AD21: =Prop2018DistTar!AZ21 -> 0 | AE21: =Prop2018DistTar!BA21 -> 0 | AF21: =Prop2018DistTar!BB21 -> 0 | AG21: =Prop2018DistTar!BC21 -> 0 | AH21: =Prop2018DistTar!BD21 -> 0 | AI21: =Prop2018DistTar!BE21 -> 0 | AJ21: =Prop2018DistTar!BF21 -> 0 | AK21: =Prop2018DistTar!BG21 -> 0 | AL21: =Prop2018DistTar!BH21 -> 0 | AM21: =Prop2018DistTar!BI21 -> 0 | AN21: =Prop2018DistTar!BJ21 -> 0 | AO21: =Prop2018DistTar!BK21 -> 0 | AP21: =Prop2018DistTar!BL21 -> 0 | AQ21: =Prop2018DistTar!BM21 -> 0 | AR21: =Prop2018DistTar!BN21 -> 0 | AS21: =Prop2018DistTar!BO21 -> 0 | AT21: =Prop2018DistTar!BP21 -> 0 | AV21: 0 | AW21: 4206288.847 | AX21: 0 | AY21: 0 | AZ21: 0 | BA21: 0 | BB21: 0 | BC21: 0 | BD21: 0 | BE21: 0 | BF21: 0 | BG21: 0 | BH21: 0 | BI21: 0 | BJ21: 0 | BK21: 0 | BL21: 0 | BM21: 0 | BN21: 0 | BO21: 0 | BP21: 0 | BQ21: 4206288.847
A22: =Prop2018DistTar!A22 -> C1GB | B22: =Prop2018DistTar!B22 -> Non-Residential Single Rate - Bulk | D22: 0 | E22: 1.46 | F22: 0 | G22: 0 | H22: 0 | I22: 0 | J22: 0 | K22: 0 | L22: 0 | M22: 0 | N22: 0 | O22: 0 | P22: 0 | Q22: 0 | R22: 0 | S22: 0 | T22: 0 | U22: 0 | V22: 0 | W22: 0 | X22: 0 | Z22: =Prop2018DistTar!AV22 -> 5599.005158 | AA22: =Prop2018DistTar!AW22 -> 73848559.18 | AB22: =Prop2018DistTar!AX22 -> 0 | AC22: =Prop2018DistTar!AY22 -> 0 | AD22: =Prop2018DistTar!AZ22 -> 0 | AE22: =Prop2018DistTar!BA22 -> 0 | AF22: =Prop2018DistTar!BB22 -> 0 | AG22: =Prop2018DistTar!BC22 -> 0 | AH22: =Prop2018DistTar!BD22 -> 0 | AI22: =Prop2018DistTar!BE22 -> 0 | AJ22: =Prop2018DistTar!BF22 -> 0 | AK22: =Prop2018DistTar!BG22 -> 0 | AL22: =Prop2018DistTar!BH22 -> 0 | AM22: =Prop2018DistTar!BI22 -> 0 | AN22: =Prop2018DistTar!BJ22 -> 0 | AO22: =Prop2018DistTar!BK22 -> 0 | AP22: =Prop2018DistTar!BL22 -> 0 | AQ22: =Prop2018DistTar!BM22 -> 0 | AR22: =Prop2018DistTar!BN22 -> 0 | AS22: =Prop2018DistTar!BO22 -> 0 | AT22: =Prop2018DistTar!BP22 -> 0 | AV22: 0 | AW22: 1078188.964 | AX22: 0 | AY22: 0 | AZ22: 0 | BA22: 0 | BB22: 0 | BC22: 0 | BD22: 0 | BE22: 0 | BF22: 0 | BG22: 0 | BH22: 0 | BI22: 0 | BJ22: 0 | BK22: 0 | BL22: 0 | BM22: 0 | BN22: 0 | BO22: 0 | BP22: 0 | BQ22: 1078188.964
A23: =Prop2018DistTar!A23 -> C2G5 | B23: =Prop2018DistTar!B23 -> Non-Residential Two Rate 5d | D23: 0 | E23: 0 | F23: 2.87 | G23: 0 | H23: 0 | I23: 0.76 | J23: 0 | K23: 0 | L23: 0 | M23: 0 | N23: 0 | O23: 0 | P23: 0 | Q23: 0 | R23: 0 | S23: 0 | T23: 0 | U23: 0 | V23: 0 | W23: 0 | X23: 0 | Z23: =Prop2018DistTar!AV23 -> 6325.91212 | AA23: =Prop2018DistTar!AW23 -> 0 | AB23: =Prop2018DistTar!AX23 -> 90006939.07 | AC23: =Prop2018DistTar!AY23 -> 0 | AD23: =Prop2018DistTar!AZ23 -> 0 | AE23: =Prop2018DistTar!BA23 -> 56232415.07 | AF23: =Prop2018DistTar!BB23 -> 0 | AG23: =Prop2018DistTar!BC23 -> 0 | AH23: =Prop2018DistTar!BD23 -> 0 | AI23: =Prop2018DistTar!BE23 -> 0 | AJ23: =Prop2018DistTar!BF23 -> 0 | AK23: =Prop2018DistTar!BG23 -> 0 | AL23: =Prop2018DistTar!BH23 -> 0 | AM23: =Prop2018DistTar!BI23 -> 0 | AN23: =Prop2018DistTar!BJ23 -> 0 | AO23: =Prop2018DistTar!BK23 -> 0 | AP23: =Prop2018DistTar!BL23 -> 0 | AQ23: =Prop2018DistTar!BM23 -> 0 | AR23: =Prop2018DistTar!BN23 -> 0 | AS23: =Prop2018DistTar!BO23 -> 0 | AT23: =Prop2018DistTar!BP23 -> 0 | AV23: 0 | AW23: 0 | AX23: 2583199.151 | AY23: 0 | AZ23: 0 | BA23: 427366.3545 | BB23: 0 | BC23: 0 | BD23: 0 | BE23: 0 | BF23: 0 | BG23: 0 | BH23: 0 | BI23: 0 | BJ23: 0 | BK23: 0 | BL23: 0 | BM23: 0 | BN23: 0 | BO23: 0 | BP23: 0 | BQ23: 3010565.506
A24: =Prop2018DistTar!A24 -> C2G5B | B24: =Prop2018DistTar!B24 -> Non-Residential Two Rate 5d - Bulk | D24: 0 | E24: 0 | F24: 2.09 | G24: 0 | H24: 0 | I24: 0.57 | J24: 0 | K24: 0 | L24: 0 | M24: 0 | N24: 0 | O24: 0 | P24: 0 | Q24: 0 | R24: 0 | S24: 0 | T24: 0 | U24: 0 | V24: 0 | W24: 0 | X24: 0 | Z24: =Prop2018DistTar!AV24 -> 1106.535597 | AA24: =Prop2018DistTar!AW24 -> 0 | AB24: =Prop2018DistTar!AX24 -> 16887632.07 | AC24: =Prop2018DistTar!AY24 -> 0 | AD24: =Prop2018DistTar!AZ24 -> 0 | AE24: =Prop2018DistTar!BA24 -> 9694170.346 | AF24: =Prop2018DistTar!BB24 -> 0 | AG24: =Prop2018DistTar!BC24 -> 0 | AH24: =Prop2018DistTar!BD24 -> 0 | AI24: =Prop2018DistTar!BE24 -> 0 | AJ24: =Prop2018DistTar!BF24 -> 0 | AK24: =Prop2018DistTar!BG24 -> 0 | AL24: =Prop2018DistTar!BH24 -> 0 | AM24: =Prop2018DistTar!BI24 -> 0 | AN24: =Prop2018DistTar!BJ24 -> 0 | AO24: =Prop2018DistTar!BK24 -> 0 | AP24: =Prop2018DistTar!BL24 -> 0 | AQ24: =Prop2018DistTar!BM24 -> 0 | AR24: =Prop2018DistTar!BN24 -> 0 | AS24: =Prop2018DistTar!BO24 -> 0 | AT24: =Prop2018DistTar!BP24 -> 0 | AV24: 0 | AW24: 0 | AX24: 352951.5102 | AY24: 0 | AZ24: 0 | BA24: 55256.77097 | BB24: 0 | BC24: 0 | BD24: 0 | BE24: 0 | BF24: 0 | BG24: 0 | BH24: 0 | BI24: 0 | BJ24: 0 | BK24: 0 | BL24: 0 | BM24: 0 | BN24: 0 | BO24: 0 | BP24: 0 | BQ24: 408208.2812
A25: =Prop2018DistTar!A25 -> C3G | B25: =Prop2018DistTar!B25 -> Non-Residential Interval | D25: 0 | E25: 0 | F25: 2.87 | G25: 0 | H25: 0 | I25: 0.76 | J25: 0 | K25: 0 | L25: 0 | M25: 0 | N25: 0 | O25: 0 | P25: 0 | Q25: 0 | R25: 0 | S25: 0 | T25: 0 | U25: 0 | V25: 0 | W25: 0 | X25: 0 | Z25: =Prop2018DistTar!AV25 -> 4011.792454 | AA25: =Prop2018DistTar!AW25 -> 0 | AB25: =Prop2018DistTar!AX25 -> 44315700.54 | AC25: =Prop2018DistTar!AY25 -> 0 | AD25: =Prop2018DistTar!AZ25 -> 0 | AE25: =Prop2018DistTar!BA25 -> 25142157.46 | AF25: =Prop2018DistTar!BB25 -> 0 | AG25: =Prop2018DistTar!BC25 -> 0 | AH25: =Prop2018DistTar!BD25 -> 0 | AI25: =Prop2018DistTar!BE25 -> 0 | AJ25: =Prop2018DistTar!BF25 -> 0 | AK25: =Prop2018DistTar!BG25 -> 0 | AL25: =Prop2018DistTar!BH25 -> 0 | AM25: =Prop2018DistTar!BI25 -> 0 | AN25: =Prop2018DistTar!BJ25 -> 0 | AO25: =Prop2018DistTar!BK25 -> 0 | AP25: =Prop2018DistTar!BL25 -> 0 | AQ25: =Prop2018DistTar!BM25 -> 0 | AR25: =Prop2018DistTar!BN25 -> 0 | AS25: =Prop2018DistTar!BO25 -> 0 | AT25: =Prop2018DistTar!BP25 -> 0 | AV25: 0 | AW25: 0 | AX25: 1271860.605 | AY25: 0 | AZ25: 0 | BA25: 191080.3967 | BB25: 0 | BC25: 0 | BD25: 0 | BE25: 0 | BF25: 0 | BG25: 0 | BH25: 0 | BI25: 0 | BJ25: 0 | BK25: 0 | BL25: 0 | BM25: 0 | BN25: 0 | BO25: 0 | BP25: 0 | BQ25: 1462941.002
A26: =Prop2018DistTar!A26 -> C3GB | B26: =Prop2018DistTar!B26 -> Non-Residential Interval - Bulk | D26: 0 | E26: 0 | F26: 2.09 | G26: 0 | H26: 0 | I26: 0.57 | J26: 0 | K26: 0 | L26: 0 | M26: 0 | N26: 0 | O26: 0 | P26: 0 | Q26: 0 | R26: 0 | S26: 0 | T26: 0 | U26: 0 | V26: 0 | W26: 0 | X26: 0 | Z26: =Prop2018DistTar!AV26 -> 1947.172824 | AA26: =Prop2018DistTar!AW26 -> 0 | AB26: =Prop2018DistTar!AX26 -> 28963727.79 | AC26: =Prop2018DistTar!AY26 -> 0 | AD26: =Prop2018DistTar!AZ26 -> 0 | AE26: =Prop2018DistTar!BA26 -> 15296835.41 | AF26: =Prop2018DistTar!BB26 -> 0 | AG26: =Prop2018DistTar!BC26 -> 0 | AH26: =Prop2018DistTar!BD26 -> 0 | AI26: =Prop2018DistTar!BE26 -> 0 | AJ26: =Prop2018DistTar!BF26 -> 0 | AK26: =Prop2018DistTar!BG26 -> 0 | AL26: =Prop2018DistTar!BH26 -> 0 | AM26: =Prop2018DistTar!BI26 -> 0 | AN26: =Prop2018DistTar!BJ26 -> 0 | AO26: =Prop2018DistTar!BK26 -> 0 | AP26: =Prop2018DistTar!BL26 -> 0 | AQ26: =Prop2018DistTar!BM26 -> 0 | AR26: =Prop2018DistTar!BN26 -> 0 | AS26: =Prop2018DistTar!BO26 -> 0 | AT26: =Prop2018DistTar!BP26 -> 0 | AV26: 0 | AW26: 0 | AX26: 605341.9109 | AY26: 0 | AZ26: 0 | BA26: 87191.96184 | BB26: 0 | BC26: 0 | BD26: 0 | BE26: 0 | BF26: 0 | BG26: 0 | BH26: 0 | BI26: 0 | BJ26: 0 | BK26: 0 | BL26: 0 | BM26: 0 | BN26: 0 | BO26: 0 | BP26: 0 | BQ26: 692533.8727
A27: =Prop2018DistTar!A27 -> C14G | B27: =Prop2018DistTar!B27 -> Non-Residential Flexible Pricing | D27: 0 | E27: 0 | F27: 0 | G27: 0 | H27: 0 | I27: 0 | J27: 0 | K27: 0 | L27: 0 | M27: 0 | N27: 0 | O27: 0 | P27: 0 | Q27: 3.5 | R27: 2.45 | S27: 0.96 | T27: 0 | U27: 3.5 | V27: 2.45 | W27: 0.96 | X27: 0 | Z27: =Prop2018DistTar!AV27 -> 21.10222788 | AA27: =Prop2018DistTar!AW27 -> 0 | AB27: =Prop2018DistTar!AX27 -> 0 | AC27: =Prop2018DistTar!AY27 -> 0 | AD27: =Prop2018DistTar!AZ27 -> 0 | AE27: =Prop2018DistTar!BA27 -> 0 | AF27: =Prop2018DistTar!BB27 -> 0 | AG27: =Prop2018DistTar!BC27 -> 0 | AH27: =Prop2018DistTar!BD27 -> 0 | AI27: =Prop2018DistTar!BE27 -> 0 | AJ27: =Prop2018DistTar!BF27 -> 0 | AK27: =Prop2018DistTar!BG27 -> 0 | AL27: =Prop2018DistTar!BH27 -> 0 | AM27: =Prop2018DistTar!BI27 -> 43821.56936 | AN27: =Prop2018DistTar!BJ27 -> 12365.14554 | AO27: =Prop2018DistTar!BK27 -> 36868.09714 | AP27: =Prop2018DistTar!BL27 -> 0 | AQ27: =Prop2018DistTar!BM27 -> 161494.8713 | AR27: =Prop2018DistTar!BN27 -> 41032.76051 | AS27: =Prop2018DistTar!BO27 -> 110833.915 | AT27: =Prop2018DistTar!BP27 -> 0 | AV27: 0 | AW27: 0 | AX27: 0 | AY27: 0 | AZ27: 0 | BA27: 0 | BB27: 0 | BC27: 0 | BD27: 0 | BE27: 0 | BF27: 0 | BG27: 0 | BH27: 0 | BI27: 1533.754928 | BJ27: 302.9460657 | BK27: 353.9337325 | BL27: 0 | BM27: 5652.320495 | BN27: 1005.302633 | BO27: 1064.005584 | BP27: 0 | BQ27: 9912.263437
A28: =Prop2018DistTar!A28 -> C14GB | B28: =Prop2018DistTar!B28 -> Non-Residential - Flexible Pricing Bulk | D28: 0 | E28: 0 | F28: 0 | G28: 0 | H28: 0 | I28: 0 | J28: 0 | K28: 0 | L28: 0 | M28: 0 | N28: 0 | O28: 0 | P28: 0 | Q28: 2.97 | R28: 2.08 | S28: 0.82 | T28: 0 | U28: 2.97 | V28: 2.08 | W28: 0.82 | X28: 0 | Z28: =Prop2018DistTar!AV28 -> 5 | AA28: =Prop2018DistTar!AW28 -> 0 | AB28: =Prop2018DistTar!AX28 -> 0 | AC28: =Prop2018DistTar!AY28 -> 0 | AD28: =Prop2018DistTar!AZ28 -> 0 | AE28: =Prop2018DistTar!BA28 -> 0 | AF28: =Prop2018DistTar!BB28 -> 0 | AG28: =Prop2018DistTar!BC28 -> 0 | AH28: =Prop2018DistTar!BD28 -> 0 | AI28: =Prop2018DistTar!BE28 -> 0 | AJ28: =Prop2018DistTar!BF28 -> 0 | AK28: =Prop2018DistTar!BG28 -> 0 | AL28: =Prop2018DistTar!BH28 -> 0 | AM28: =Prop2018DistTar!BI28 -> 10467.50047 | AN28: =Prop2018DistTar!BJ28 -> 2361.846711 | AO28: =Prop2018DistTar!BK28 -> 7699.32017 | AP28: =Prop2018DistTar!BL28 -> 0 | AQ28: =Prop2018DistTar!BM28 -> 30024.78157 | AR28: =Prop2018DistTar!BN28 -> 6386.584144 | AS28: =Prop2018DistTar!BO28 -> 20918.50232 | AT28: =Prop2018DistTar!BP28 -> 0 | AV28: 0 | AW28: 0 | AX28: 0 | AY28: 0 | AZ28: 0 | BA28: 0 | BB28: 0 | BC28: 0 | BD28: 0 | BE28: 0 | BF28: 0 | BG28: 0 | BH28: 0 | BI28: 310.8847639 | BJ28: 49.12641158 | BK28: 63.13442539 | BL28: 0 | BM28: 891.7360127 | BN28: 132.8409502 | BO28: 171.531719 | BP28: 0 | BQ28: 1619.254283
A29: =Prop2018DistTar!A29 -> C2G7 | B29: =Prop2018DistTar!B29 -> Non-Residential Two Rate 7d | D29: 0 | E29: 0 | F29: 2.26 | G29: 0 | H29: 0 | I29: 0.76 | J29: 0 | K29: 0 | L29: 0 | M29: 0 | N29: 0 | O29: 0 | P29: 0 | Q29: 0 | R29: 0 | S29: 0 | T29: 0 | U29: 0 | V29: 0 | W29: 0 | X29: 0 | Z29: =Prop2018DistTar!AV29 -> 2322.444207 | AA29: =Prop2018DistTar!AW29 -> 0 | AB29: =Prop2018DistTar!AX29 -> 37314656.19 | AC29: =Prop2018DistTar!AY29 -> 0 | AD29: =Prop2018DistTar!AZ29 -> 0 | AE29: =Prop2018DistTar!BA29 -> 8982959.302 | AF29: =Prop2018DistTar!BB29 -> 0 | AG29: =Prop2018DistTar!BC29 -> 0 | AH29: =Prop2018DistTar!BD29 -> 0 | AI29: =Prop2018DistTar!BE29 -> 0 | AJ29: =Prop2018DistTar!BF29 -> 0 | AK29: =Prop2018DistTar!BG29 -> 0 | AL29: =Prop2018DistTar!BH29 -> 0 | AM29: =Prop2018DistTar!BI29 -> 0 | AN29: =Prop2018DistTar!BJ29 -> 0 | AO29: =Prop2018DistTar!BK29 -> 0 | AP29: =Prop2018DistTar!BL29 -> 0 | AQ29: =Prop2018DistTar!BM29 -> 0 | AR29: =Prop2018DistTar!BN29 -> 0 | AS29: =Prop2018DistTar!BO29 -> 0 | AT29: =Prop2018DistTar!BP29 -> 0 | AV29: 0 | AW29: 0 | AX29: 843311.2298 | AY29: 0 | AZ29: 0 | BA29: 68270.49069 | BB29: 0 | BC29: 0 | BD29: 0 | BE29: 0 | BF29: 0 | BG29: 0 | BH29: 0 | BI29: 0 | BJ29: 0 | BK29: 0 | BL29: 0 | BM29: 0 | BN29: 0 | BO29: 0 | BP29: 0 | BQ29: 911581.7205
A30: =Prop2018DistTar!A30 -> C2G7B | B30: =Prop2018DistTar!B30 -> Non-Residential Two Rate 7d - Bulk | D30: 0 | E30: 0 | F30: 1.95 | G30: 0 | H30: 0 | I30: 0.57 | J30: 0 | K30: 0 | L30: 0 | M30: 0 | N30: 0 | O30: 0 | P30: 0 | Q30: 0 | R30: 0 | S30: 0 | T30: 0 | U30: 0 | V30: 0 | W30: 0 | X30: 0 | Z30: =Prop2018DistTar!AV30 -> 251.5269155 | AA30: =Prop2018DistTar!AW30 -> 0 | AB30: =Prop2018DistTar!AX30 -> 5172333.901 | AC30: =Prop2018DistTar!AY30 -> 0 | AD30: =Prop2018DistTar!AZ30 -> 0 | AE30: =Prop2018DistTar!BA30 -> 1298680.775 | AF30: =Prop2018DistTar!BB30 -> 0 | AG30: =Prop2018DistTar!BC30 -> 0 | AH30: =Prop2018DistTar!BD30 -> 0 | AI30: =Prop2018DistTar!BE30 -> 0 | AJ30: =Prop2018DistTar!BF30 -> 0 | AK30: =Prop2018DistTar!BG30 -> 0 | AL30: =Prop2018DistTar!BH30 -> 0 | AM30: =Prop2018DistTar!BI30 -> 0 | AN30: =Prop2018DistTar!BJ30 -> 0 | AO30: =Prop2018DistTar!BK30 -> 0 | AP30: =Prop2018DistTar!BL30 -> 0 | AQ30: =Prop2018DistTar!BM30 -> 0 | AR30: =Prop2018DistTar!BN30 -> 0 | AS30: =Prop2018DistTar!BO30 -> 0 | AT30: =Prop2018DistTar!BP30 -> 0 | AV30: 0 | AW30: 0 | AX30: 100860.5111 | AY30: 0 | AZ30: 0 | BA30: 7402.48042 | BB30: 0 | BC30: 0 | BD30: 0 | BE30: 0 | BF30: 0 | BG30: 0 | BH30: 0 | BI30: 0 | BJ30: 0 | BK30: 0 | BL30: 0 | BM30: 0 | BN30: 0 | BO30: 0 | BP30: 0 | BQ30: 108262.9915
A31: =Prop2018DistTar!A31 -> C2L7 | B31: =Prop2018DistTar!B31 -> Large Two Rate 7d | D31: 0 | E31: 0 | F31: 2.87 | G31: 0 | H31: 0 | I31: 0.76 | J31: 0 | K31: 0 | L31: 0 | M31: 0 | N31: 0 | O31: 0 | P31: 0 | Q31: 0 | R31: 0 | S31: 0 | T31: 0 | U31: 0 | V31: 0 | W31: 0 | X31: 0 | Z31: =Prop2018DistTar!AV31 -> 4 | AA31: =Prop2018DistTar!AW31 -> 0 | AB31: =Prop2018DistTar!AX31 -> 224820.2679 | AC31: =Prop2018DistTar!AY31 -> 0 | AD31: =Prop2018DistTar!AZ31 -> 0 | AE31: =Prop2018DistTar!BA31 -> 61632.40762 | AF31: =Prop2018DistTar!BB31 -> 0 | AG31: =Prop2018DistTar!BC31 -> 0 | AH31: =Prop2018DistTar!BD31 -> 0 | AI31: =Prop2018DistTar!BE31 -> 0 | AJ31: =Prop2018DistTar!BF31 -> 0 | AK31: =Prop2018DistTar!BG31 -> 0 | AL31: =Prop2018DistTar!BH31 -> 0 | AM31: =Prop2018DistTar!BI31 -> 0 | AN31: =Prop2018DistTar!BJ31 -> 0 | AO31: =Prop2018DistTar!BK31 -> 0 | AP31: =Prop2018DistTar!BL31 -> 0 | AQ31: =Prop2018DistTar!BM31 -> 0 | AR31: =Prop2018DistTar!BN31 -> 0 | AS31: =Prop2018DistTar!BO31 -> 0 | AT31: =Prop2018DistTar!BP31 -> 0 | AV31: 0 | AW31: 0 | AX31: 6452.341689 | AY31: 0 | AZ31: 0 | BA31: 468.4062979 | BB31: 0 | BC31: 0 | BD31: 0 | BE31: 0 | BF31: 0 | BG31: 0 | BH31: 0 | BI31: 0 | BJ31: 0 | BK31: 0 | BL31: 0 | BM31: 0 | BN31: 0 | BO31: 0 | BP31: 0 | BQ31: 6920.747987
A32: =Prop2018DistTar!A32 -> CG | B32: =Prop2018DistTar!B32 -> Non-Residential Demand Tariff | D32: 0 | E32: 1.05 | F32: 0 | G32: 0 | H32: 0 | I32: 0 | J32: 0 | K32: 0 | L32: 0 | M32: 0 | N32: 0 | O32: 3.34 | P32: 1.11 | Q32: 0 | R32: 0 | S32: 0 | T32: 0 | U32: 0 | V32: 0 | W32: 0 | X32: 0 | Z32: =Prop2018DistTar!AV32 -> 5 | AA32: =Prop2018DistTar!AW32 -> 100000 | AB32: =Prop2018DistTar!AX32 -> 0 | AC32: =Prop2018DistTar!AY32 -> 0 | AD32: =Prop2018DistTar!AZ32 -> 0 | AE32: =Prop2018DistTar!BA32 -> 0 | AF32: =Prop2018DistTar!BB32 -> 0 | AG32: =Prop2018DistTar!BC32 -> 0 | AH32: =Prop2018DistTar!BD32 -> 0 | AI32: =Prop2018DistTar!BE32 -> 0 | AJ32: =Prop2018DistTar!BF32 -> 0 | AK32: =Prop2018DistTar!BG32 -> 130.4631442 | AL32: =Prop2018DistTar!BH32 -> 228.3105023 | AM32: =Prop2018DistTar!BI32 -> 0 | AN32: =Prop2018DistTar!BJ32 -> 0 | AO32: =Prop2018DistTar!BK32 -> 0 | AP32: =Prop2018DistTar!BL32 -> 0 | AQ32: =Prop2018DistTar!BM32 -> 0 | AR32: =Prop2018DistTar!BN32 -> 0 | AS32: =Prop2018DistTar!BO32 -> 0 | AT32: =Prop2018DistTar!BP32 -> 0 | AV32: 0 | AW32: 1050 | AX32: 0 | AY32: 0 | AZ32: 0 | BA32: 0 | BB32: 0 | BC32: 0 | BD32: 0 | BE32: 0 | BF32: 0 | BG32: 435.7469015 | BH32: 253.4246575 | BI32: 0 | BJ32: 0 | BK32: 0 | BL32: 0 | BM32: 0 | BN32: 0 | BO32: 0 | BP32: 0 | BQ32: 1739.171559
A33: =Prop2018DistTar!A33 -> CGB | B33: =Prop2018DistTar!B33 -> Non-Residential Bulk Demand Tariff | D33: 0 | E33: 0.94 | F33: 0 | G33: 0 | H33: 0 | I33: 0 | J33: 0 | K33: 0 | L33: 0 | M33: 0 | N33: 0 | O33: 2.51 | P33: 0.84 | Q33: 0 | R33: 0 | S33: 0 | T33: 0 | U33: 0 | V33: 0 | W33: 0 | X33: 0 | Z33: =Prop2018DistTar!AV33 -> 1 | AA33: =Prop2018DistTar!AW33 -> 16000 | AB33: =Prop2018DistTar!AX33 -> 0 | AC33: =Prop2018DistTar!AY33 -> 0 | AD33: =Prop2018DistTar!AZ33 -> 0 | AE33: =Prop2018DistTar!BA33 -> 0 | AF33: =Prop2018DistTar!BB33 -> 0 | AG33: =Prop2018DistTar!BC33 -> 0 | AH33: =Prop2018DistTar!BD33 -> 0 | AI33: =Prop2018DistTar!BE33 -> 0 | AJ33: =Prop2018DistTar!BF33 -> 0 | AK33: =Prop2018DistTar!BG33 -> 20.87410307 | AL33: =Prop2018DistTar!BH33 -> 36.52968037 | AM33: =Prop2018DistTar!BI33 -> 0 | AN33: =Prop2018DistTar!BJ33 -> 0 | AO33: =Prop2018DistTar!BK33 -> 0 | AP33: =Prop2018DistTar!BL33 -> 0 | AQ33: =Prop2018DistTar!BM33 -> 0 | AR33: =Prop2018DistTar!BN33 -> 0 | AS33: =Prop2018DistTar!BO33 -> 0 | AT33: =Prop2018DistTar!BP33 -> 0 | AV33: 0 | AW33: 150.4 | AX33: 0 | AY33: 0 | AZ33: 0 | BA33: 0 | BB33: 0 | BC33: 0 | BD33: 0 | BE33: 0 | BF33: 0 | BG33: 52.3939987 | BH33: 30.68493151 | BI33: 0 | BJ33: 0 | BK33: 0 | BL33: 0 | BM33: 0 | BN33: 0 | BO33: 0 | BP33: 0 | BQ33: 233.4789302
A34: =Prop2018DistTar!A34 -> CMG | B34: =Prop2018DistTar!B34 -> Medium Business Demand | D34: 0 | E34: 0 | F34: 1.96 | G34: 0 | H34: 0 | I34: 1.16 | J34: 0 | K34: 0 | L34: 0 | M34: 0 | N34: 0 | O34: 0.99 | P34: 0.49 | Q34: 0 | R34: 0 | S34: 0 | T34: 0 | U34: 0 | V34: 0 | W34: 0 | X34: 0 | Z34: =Prop2018DistTar!AV34 -> 4454.758429 | AA34: =Prop2018DistTar!AW34 -> 0 | AB34: =Prop2018DistTar!AX34 -> 385749824.5 | AC34: =Prop2018DistTar!AY34 -> 0 | AD34: =Prop2018DistTar!AZ34 -> 0 | AE34: =Prop2018DistTar!BA34 -> 237077602.3 | AF34: =Prop2018DistTar!BB34 -> 0 | AG34: =Prop2018DistTar!BC34 -> 0 | AH34: =Prop2018DistTar!BD34 -> 0 | AI34: =Prop2018DistTar!BE34 -> 0 | AJ34: =Prop2018DistTar!BF34 -> 0 | AK34: =Prop2018DistTar!BG34 -> 764494.4395 | AL34: =Prop2018DistTar!BH34 -> 1326085.146 | AM34: =Prop2018DistTar!BI34 -> 0 | AN34: =Prop2018DistTar!BJ34 -> 0 | AO34: =Prop2018DistTar!BK34 -> 0 | AP34: =Prop2018DistTar!BL34 -> 0 | AQ34: =Prop2018DistTar!BM34 -> 0 | AR34: =Prop2018DistTar!BN34 -> 0 | AS34: =Prop2018DistTar!BO34 -> 0 | AT34: =Prop2018DistTar!BP34 -> 0 | AV34: 0 | AW34: 0 | AX34: 7560696.56 | AY34: 0 | AZ34: 0 | BA34: 2750100.186 | BB34: 0 | BC34: 0 | BD34: 0 | BE34: 0 | BF34: 0 | BG34: 756849.4951 | BH34: 649781.7217 | BI34: 0 | BJ34: 0 | BK34: 0 | BL34: 0 | BM34: 0 | BN34: 0 | BO34: 0 | BP34: 0 | BQ34: 11717427.96
